Workbook

Sheet Содержание
C1: ЗАВОД «ОПК» Тел.: +7 (496) 704-52-11 e-mail:manager@ozpk.ru сайт: ozpk.ru
A2: Ваша скидка | B2: - | C2: 0
A3: НДС | B3: -
A5: Нейтральное оборудование
A6: Столы производственные с бортом/без борта обвязка
A7: Столы производственные с бортом/ без борта решетчатая полка
A8: Столы производственные с бортом/ без борта сплошная полка
A9: Столы кондитерские/разделочные
A10: Столы для сбора отходов
A11: Столы закрытые
A12: Столы закрытые с ванной
A13: Столы для посудомоек, столы для рыбы
A14: Цельнотянутые ванны моечные
A15: Сварные ванны моечные
A16: Рукомойники, Котломоечные ванны
A17: Стеллажи
A18: Полки кухонные открытые
A19: Полки настольные
A20: Полки, шкафы закрытые
A21: Передвижные шпильки, полки для посуды и инвентаря
A22: Зонты пристенные
A23: Зонты островные
A24: Подставки, подтоварники, тележки

Sheet Столы Italfrost с боковым (hidden)
A1: Охлаждаемые столы с боковым расположением агрегата | O1: На главную
A3: Ваша скидка: | C3: =Содержание!C2 -> 0
A4: НДС: | C4: =IF(Лист2!A1=TRUE,"С НДС","БЕЗ НДС") -> С НДС
C6: Складская программа
A7: № | B7: Внешний вид | C7: Наименование | D7: С бортом/ без борта | E7: Количество | G7: Стандарт Gastronorm GN 1/1 | H7: Общий объём, л | I7: Полезный объём, л | J7: Габаритные размеры, мм | M7: Базовая цена, руб. (с НДС) | N7: =Лист2!$A$5 -> Ваша цена, руб.
E8: Ящиков | F8: Дверей | J8: Длина | K8: Ширина | L8: Высота
A9: Холодильные столы с нержавеющей столешницей (температурный режим, °C +1…+10)
C10: Шкаф-стол холодильный СШC-0,2 GN-1400 | D10: С бортом | E10: 0 | F10: 2 | G10: + | H10: 305 | I10: 220 | J10: 1393 | K10: 700 | L10: 840 | M10: 85802 | N10: =ROUND(M10*(1-$C$3)/Лист2!$A$6,0) -> 85802
C11: Шкаф-стол холодильный СШC-0,2 GNВ-1400 | D11: Без борта
C12: Шкаф-стол холодильный СШС-0,2-1400 | D12: С бортом | E12: 0 | F12: 2 | G12: - | H12: 255 | I12: 200 | J12: 1393 | K12: 600 | L12: 840 | M12: 85342 | N12: =ROUND(M12*(1-$C$3)/Лист2!$A$6,0) -> 85342
C13: Шкаф-стол холодильный СШС-0,2 В-1400 | D13: Без борта
C14: Шкаф-стол холодильный СШС-0,3 GN-1850 | D14: С бортом | E14: 0 | F14: 3 | G14: + | H14: 465 | I14: 310 | J14: 1838 | K14: 700 | L14: 840 | M14: 101152 | N14: =ROUND(M14*(1-$C$3)/Лист2!$A$6,0) -> 101152
C15: Шкаф-стол холодильный СШС-0,3 GNВ-1850 | D15: Без борта
C16: Шкаф-стол холодильный СШС-0,3-1850 | D16: С бортом | E16: 0 | F16: 3 | G16: - | H16: 395 | I16: 260 | J16: 1838 | K16: 600 | L16: 840 | M16: 100690 | N16: =ROUND(M16*(1-$C$3)/Лист2!$A$6,0) -> 100690
C17: Шкаф-стол холодильный СШС-0,3 В-1850 | D17: Без борта
C18: Шкаф-стол холодильный СШС-0,4 GN-2300 | D18: С бортом | E18: 0 | F18: 4 | G18: + | H18: 620 | I18: 410 | J18: 2283 | K18: 700 | L18: 840 | M18: 122640 | N18: =ROUND(M18*(1-$C$3)/Лист2!$A$6,0) -> 122640
C19: Шкаф-стол холодильный СШС-0,4 GNВ-2300 | D19: Без борта
C20: Шкаф-стол холодильный СШС-0,4-2300 | D20: С бортом | E20: 0 | F20: 4 | G20: - | H20: 520 | I20: 340 | J20: 2283 | K20: 600 | L20: 840 | M20: 122180 | N20: =ROUND(M20*(1-$C$3)/Лист2!$A$6,0) -> 122180
C21: Шкаф-стол холодильный СШС-0,4 В-2300 | D21: Без борта
A22: Морозильные столы с нержавеющей столешницей (температурный режим, °C -20…-10)
C23: Шкаф-стол морозильный СШН-0,2 GN-1400 | D23: С бортом | E23: 0 | F23: 2 | G23: + | H23: 305 | I23: 220 | J23: 1393 | K23: 700 | L23: 840 | M23: 99617 | N23: =ROUND(M23*(1-$C$3)/Лист2!$A$6,0) -> 99617
C24: Шкаф-стол морозильный СШН-0,2 GNВ-1400 | D24: Без борта
C25: Шкаф-стол морозильный СШН-0,2-1400 | D25: С бортом | E25: 0 | F25: 2 | G25: - | H25: 255 | I25: 200 | J25: 1393 | K25: 600 | L25: 840 | M25: 99156 | N25: =ROUND(M25*(1-$C$3)/Лист2!$A$6,0) -> 99156
C26: Шкаф-стол морозильный СШН-0,2 В-1400 | D26: Без борта
C27: Шкаф-стол морозильный СШН-0,3 GN-1850 | D27: С бортом | E27: 0 | F27: 3 | G27: + | H27: 465 | I27: 310 | J27: 1838 | K27: 700 | L27: 840 | M27: 127246 | N27: =ROUND(M27*(1-$C$3)/Лист2!$A$6,0) -> 127246
C28: Шкаф-стол морозильный СШН-0,3 GNВ-1850 | D28: Без борта
C29: Шкаф-стол морозильный СШН-0,3-1850 | D29: С бортом | E29: 0 | F29: 3 | G29: - | H29: 395 | I29: 260 | J29: 1838 | K29: 600 | L29: 840 | M29: 126785 | N29: =ROUND(M29*(1-$C$3)/Лист2!$A$6,0) -> 126785
C30: Шкаф-стол морозильный СШН-0,3 В-1850 | D30: Без борта
C31: Шкаф-стол морозильный СШН-0,4 GN-2300 | D31: С бортом | E31: 0 | F31: 4 | G31: + | H31: 620 | I31: 410 | J31: 2283 | K31: 700 | L31: 840 | M31: 150269 | N31: =ROUND(M31*(1-$C$3)/Лист2!$A$6,0) -> 150269
C32: Шкаф-стол морозильный СШН-0,4 GNВ-2300 | D32: Без борта
C33: Шкаф-стол морозильный СШН-0,4-2300 | D33: С бортом | E33: 0 | F33: 4 | G33: - | H33: 520 | I33: 340 | J33: 2283 | K33: 600 | L33: 840 | M33: 149808 | N33: =ROUND(M33*(1-$C$3)/Лист2!$A$6,0) -> 149808
C34: Шкаф-стол морозильный СШН-0,4 В-2300 | D34: Без борта
A35: Модификации к холодильным/морозильным столам( добавить к стандартной стоимости изделия)
C36: Полипропиленовая столешница, толщина пропилена - 30 мм, клеится к нержавеющей столешнице высотой 20 мм | J36: 1393 | K36: 700 | L36: 30 | M36: 24364 | N36: =ROUND(M36*(1-$C$3)/Лист2!$A$6,0) -> 24364
J37: 1393 | K37: 600 | L37: 30 | M37: 23010 | N37: =ROUND(M37*(1-$C$3)/Лист2!$A$6,0) -> 23010
J38: 1838 | K38: 700 | L38: 30 | M38: 29778 | N38: =ROUND(M38*(1-$C$3)/Лист2!$A$6,0) -> 29778
J39: 1838 | K39: 600 | L39: 30 | M39: 28425 | N39: =ROUND(M39*(1-$C$3)/Лист2!$A$6,0) -> 28425
J40: 2283 | K40: 700 | L40: 30 | M40: 35192 | N40: =ROUND(M40*(1-$C$3)/Лист2!$A$6,0) -> 35192
J41: 2283 | K41: 600 | L41: 30 | M41: 33839 | N41: =ROUND(M41*(1-$C$3)/Лист2!$A$6,0) -> 33839
C42: Установка 2-х выдвижных ящиков вместо одной распашной двери | M42: 18950 | N42: =ROUND(M42*(1-$C$3)/Лист2!$A$6,0) -> 18950
C43: Установка 3-х выдвижных ящиков вместо одной распашной двери(только для столов с боковым расположением агрегата | M43: 28425 | N43: =ROUND(M43*(1-$C$3)/Лист2!$A$6,0) -> 28425
C44: Замена стандартных ножек на колеса, 2 из них с тормозом | M44: 8933 | N44: =ROUND(M44*(1-$C$3)/Лист2!$A$6,0) -> 8933
A45: Опции к холодильным/морозильным столам(поставляются отдельно)
C46: Решетка защитаная для агрега из нержавеющей стали (84312), артикул СО.906.57.00.00 | M46: 2030 | N46: =ROUND(M46*(1-$C$3)/Лист2!$A$6,0) -> 2030
C47: Полкодержатель слева (96480) для столов 700, артикул СО.979.03.0000.05 | M47: 366 | N47: =ROUND(M47*(1-$C$3)/Лист2!$A$6,0) -> 366
C48: Полкодержатель справа (96481) для столов 700, артикул СО.979.03.0000.05mir | M48: 366 | N48: =ROUND(M48*(1-$C$3)/Лист2!$A$6,0) -> 366
C49: Полкодержатель слева (106969) для столов 700, артикул СО.906.03.0000.05 | M49: 339 | N49: =ROUND(M49*(1-$C$3)/Лист2!$A$6,0) -> 339
C50: Полкодержатель справа (106970) для столов 700, артикул СО.906.03.0000.05mir | M50: 339 | N50: =ROUND(M50*(1-$C$3)/Лист2!$A$6,0) -> 339
C51: Полка решетчатая для столов 700, крашенная (100670), артикул СО.979.56.5000.01 | J51: 332 | K51: 570 | L51: 4(6) | M51: 1287 | N51: =ROUND(M51*(1-$C$3)/Лист2!$A$6,0) -> 1287
C52: Полка решетчатая для столов 600, крашенная (100671), артикул СО.906.56.5000.01 | J52: 332 | K52: 470 | L52: 4(6) | M52: 1083 | N52: =ROUND(M52*(1-$C$3)/Лист2!$A$6,0) -> 1083

Sheet Столы Italfrost с нижним (hidden)
A1: Охлаждаемые столы с нижним расположением агрегата | O1: На главную
A3: Ваша скидка: | C3: =Содержание!C2 -> 0
A4: НДС: | C4: =IF(Лист2!A1=TRUE,"С НДС","БЕЗ НДС") -> С НДС
C6: Складская программа
A7: № | B7: Внешний вид | C7: Наименование | D7: С бортом/ без борта | E7: Количество | G7: Стандарт Gastronorm GN 1/1 | H7: Общий объём, л | I7: Полезный объём, л | J7: Габаритные размеры, мм | M7: Базовая цена, руб. (с НДС) | N7: =Лист2!$A$5 -> Ваша цена, руб.
E8: Ящиков | F8: Дверей | J8: Длина | K8: Ширина | L8: Высота
A9: Холодильные столы с нержавеющей столешницей (температурный режим, °C +1…+10)
C10: Шкаф-стол холодильный СШС-0,2 GN-1000 NDSBS | D10: С бортом | E10: 0 | F10: 2 | G10: + | H10: 245 | I10: 200 | J10: 1000 | K10: 700 | L10: 865 | M10: 73661 | N10: =ROUND(M10*(1-$C$3)/Лист2!$A$6,0) -> 73661
C11: Шкаф-стол холодильный СШС-0,2 GN-1000 NDSFS | D11: Без борта
C12: Шкаф-стол холодильный СШС-0,2-1000 NDSBS | D12: С бортом | E12: 0 | F12: 2 | G12: - | H12: 205 | I12: 165 | J12: 1000 | K12: 600 | L12: 865 | M12: 73200 | N12: =ROUND(M12*(1-$C$3)/Лист2!$A$6,0) -> 73200
C13: Шкаф-стол холодильный СШС-0,2-1000 NDSFS | D13: Без борта
C14: Шкаф-стол холодильный СШС-0,3 GN-1500 NDSBS | D14: С бортом | E14: 0 | F14: 3 | G14: + | H14: 375 | I14: 260 | J14: 1500 | K14: 700 | L14: 865 | M14: 90546 | N14: =ROUND(M14*(1-$C$3)/Лист2!$A$6,0) -> 90546
C15: Шкаф-стол холодильный СШС-0,3 GN-1500 NDSFS | D15: Без борта
C16: Шкаф-стол холодильный СШС-0,3-1500 NDSBS | D16: С бортом | E16: 0 | F16: 3 | G16: - | H16: 315 | I16: 215 | J16: 1500 | K16: 600 | L16: 865 | M16: 90084 | N16: =ROUND(M16*(1-$C$3)/Лист2!$A$6,0) -> 90084
C17: Шкаф-стол холодильный СШС-0,3-1500 NDSFS | D17: Без борта
A18: Морозильные столы с нержавеющей столешницей (температурный режим, °C -20…-10)
C19: Шкаф-стол морозильный СШН-0,2 GN-1000 NDSBS | D19: С бортом | E19: 0 | F19: 2 | G19: + | H19: 245 | I19: 200 | J19: 1000 | K19: 700 | L19: 865 | M19: 85942 | N19: =ROUND(M19*(1-$C$3)/Лист2!$A$6,0) -> 85942
C20: Шкаф-стол морозильный СШН-0,2 GN-1000 NDSFS | D20: Без борта
C21: Шкаф-стол морозильный СШН-0,2-1000 NDSBS | D21: С бортом | E21: 0 | F21: 2 | G21: - | H21: 205 | I21: 165 | J21: 1000 | K21: 600 | L21: 865 | M21: 85480 | N21: =ROUND(M21*(1-$C$3)/Лист2!$A$6,0) -> 85480
C22: Шкаф-стол морозильный СШН-0,2-1000 NDSFS | D22: Без борта
C23: Шкаф-стол морозильный СШН-0,3 GN-1500 NDSBS | D23: С бортом | E23: 0 | F23: 3 | G23: + | H23: 375 | I23: 260 | J23: 1500 | K23: 700 | L23: 865 | M23: 108965 | N23: =ROUND(M23*(1-$C$3)/Лист2!$A$6,0) -> 108965
C24: Шкаф-стол морозильный СШН-0,3 GN-1500 NDSFS | D24: Без борта
C25: Шкаф-стол морозильный СШН-0,3-1500 NDSBS | D25: С бортом | E25: 0 | F25: 3 | G25: - | H25: 315 | I25: 215 | J25: 1500 | K25: 600 | L25: 865 | M25: 108503 | N25: =ROUND(M25*(1-$C$3)/Лист2!$A$6,0) -> 108503
C26: Шкаф-стол морозильный СШН-0,3-1500 NDSFS | D26: Без борта
A27: Модификации к холодильным/морозильным столам( добавить к стандартной стоимости изделия)
C28: Полипропиленовая столешница, толщина пропилена - 30 мм, клеится к нержавеющей столешнице высотой 20 мм | J28: 1000 | K28: 700 | L28: 30 | M28: 21657 | N28: =ROUND(M28*(1-$C$3)/Лист2!$A$6,0) -> 21657
J29: 1000 | K29: 600 | L29: 30 | M29: 20303 | N29: =ROUND(M29*(1-$C$3)/Лист2!$A$6,0) -> 20303
J30: 1500 | K30: 700 | L30: 30 | M30: 27071 | N30: =ROUND(M30*(1-$C$3)/Лист2!$A$6,0) -> 27071
J31: 1500 | K31: 600 | L31: 30 | M31: 25717 | N31: =ROUND(M31*(1-$C$3)/Лист2!$A$6,0) -> 25717
C32: Установка 2-х выдвижных ящиков вместо одной распашной двери | M32: 18950 | N32: =ROUND(M32*(1-$C$3)/Лист2!$A$6,0) -> 18950
C33: Замена стандартных ножек на колеса, 2 из них с тормозом | M33: 8933 | N33: =ROUND(M33*(1-$C$3)/Лист2!$A$6,0) -> 8933
A34: Опции к холодильным/морозильным столам(поставляются отдельно)
C35: Решетка защитаная для агрега из нержавеющей стали для 2-х секционного стола(135524), артикул СО.1499.57.00.00 | M35: 2166 | N35: =ROUND(M35*(1-$C$3)/Лист2!$A$6,0) -> 2166
C36: Решетка защитаная для агрега из нержавеющей стали для 3-х секционного стола(135527), артикул СО.1503.57.00.00 | M36: 2436 | N36: =ROUND(M36*(1-$C$3)/Лист2!$A$6,0) -> 2436
C37: Полкодержатель слева (96480) для столов 700, артикул СО.979.03.0000.05 | M37: 366 | N37: =ROUND(M37*(1-$C$3)/Лист2!$A$6,0) -> 366
C38: Полкодержатель справа (96481) для столов 700, артикул СО.979.03.0000.05mir | M38: 366 | N38: =ROUND(M38*(1-$C$3)/Лист2!$A$6,0) -> 366
C39: Полкодержатель слева (106969) для столов 700, артикул СО.906.03.0000.05 | M39: 339 | N39: =ROUND(M39*(1-$C$3)/Лист2!$A$6,0) -> 339
C40: Полкодержатель справа (106970) для столов 700, артикул СО.906.03.0000.05mir | M40: 339 | N40: =ROUND(M40*(1-$C$3)/Лист2!$A$6,0) -> 339
C41: Полка решетчатая для столов 700, крашенная (100670), артикул СО.979.56.5000.01 | J41: 332 | K41: 570 | L41: 4(6) | M41: 1287 | N41: =ROUND(M41*(1-$C$3)/Лист2!$A$6,0) -> 1287
C42: Полка решетчатая для столов 600, крашенная (100671), артикул СО.906.56.5000.01 | J42: 332 | K42: 470 | L42: 4(6) | M42: 1083 | N42: =ROUND(M42*(1-$C$3)/Лист2!$A$6,0) -> 1083

Sheet Столы Italfrost для салатов (hidden)
A1: Холодильные столы/Столы для салатов | O1: На главную
A3: Ваша скидка: | C3: =Содержание!C2 -> 0
A4: НДС: | C4: =IF(Лист2!A1=TRUE,"С НДС","БЕЗ НДС") -> С НДС
C6: Складская программа
A7: № | B7: Внешний вид | C7: Наименование | D7: Количество | F7: Стандарт Gastronorm GN 1/1 | G7: Гастроемкости кол-во (в комплект не входят) | H7: Общий объём, л | I7: Полезный объём, л | J7: Габаритные размеры, мм | M7: Базовая цена, руб. (с НДС) | N7: =Лист2!$A$5 -> Ваша цена, руб.
D8: Ящиков | E8: Дверей | J8: Длина | K8: Ширина | L8: Высота
A9: Холодильные столы для салатов (температурный режим, °C +1…+10) с боковым расположением агрегата
C10: Шкаф- стол холодильный CШС-0,2 GN - 1400 SRSBS 1\3 | D10: 0 | E10: 2 | F10: + | G10: GN 1/3 -5 шт | H10: 305 | I10: 120 | J10: 1393 | K10: 700 | L10: 850 | M10: 116639 | N10: =ROUND(M10*(1-$C$3)/Лист2!$A$6,0) -> 116639
C11: Шкаф- стол холодильный CШС-0,2 - 1400 SRSBS 1\3 | D11: 0 | E11: 2 | F11: - | G11: GN 1/3 -5 шт | H11: 255 | I11: 100 | J11: 1393 | K11: 600 | L11: 850 | M11: 116178 | N11: =ROUND(M11*(1-$C$3)/Лист2!$A$6,0) -> 116178
C12: Шкаф- стол холодильный CШС-0,2 GN - 1400 SRSBS 1\6 | D12: 0 | E12: 2 | F12: + | G12: GN 1/6 -5 шт | H12: 305 | I12: 120 | J12: 1393 | K12: 700 | L12: 850 | M12: 115105 | N12: =ROUND(M12*(1-$C$3)/Лист2!$A$6,0) -> 115105
C13: Шкаф- стол холодильный CШС-0,2 - 1400 SRSBS 1\6 | D13: 0 | E13: 2 | F13: - | G13: GN 1/6 -5 шт | H13: 255 | I13: 100 | J13: 1393 | K13: 600 | L13: 850 | M13: 114643 | N13: =ROUND(M13*(1-$C$3)/Лист2!$A$6,0) -> 114643
C14: Шкаф- стол холодильный CШС-0,3 GN - 1850 SRSBS 1\3 | D14: 0 | E14: 3 | F14: + | G14: GN 1/3 -8 шт | H14: 465 | I14: 305 | J14: 1838 | K14: 700 | L14: 850 | M14: 136456 | N14: =ROUND(M14*(1-$C$3)/Лист2!$A$6,0) -> 136456
C15: Шкаф- стол холодильный CШС-0,3 - 1850 SRSBS 1\3 | D15: 0 | E15: 3 | F15: - | G15: GN 1/3 -8 шт | H15: 395 | I15: 250 | J15: 1838 | K15: 600 | L15: 850 | M15: 135994 | N15: =ROUND(M15*(1-$C$3)/Лист2!$A$6,0) -> 135994
C16: Шкаф- стол холодильный CШС-0,3 GN - 1850 SRSBS 1\6 | D16: 0 | E16: 3 | F16: + | G16: GN 1/6 -8 шт | H16: 465 | I16: 305 | J16: 1838 | K16: 700 | L16: 850 | M16: 134921 | N16: =ROUND(M16*(1-$C$3)/Лист2!$A$6,0) -> 134921
C17: Шкаф- стол холодильный CШС-0,3 - 1850 SRSBS 1\6 | D17: 0 | E17: 3 | F17: - | G17: GN 1/6 -8 шт | H17: 395 | I17: 250 | J17: 1838 | K17: 600 | L17: 850 | M17: 134459 | N17: =ROUND(M17*(1-$C$3)/Лист2!$A$6,0) -> 134459
A18: Холодильные столы для салатов (температурный режим, °C +1…+10) с нижним расположением агрегата
C19: Шкаф- стол холодильный CШС-2,0 L-90 | D19: 0 | E19: 2 | F19: + | I19: 215 | J19: 900 | K19: 695 | L19: 865 | M19: 93615 | N19: =ROUND(M19*(1-$C$3)/Лист2!$A$6,0) -> 93615
C20: Шкаф- стол холодильный CШС-0,2 GN - 1000 SDSBS 1\3 | D20: 0 | E20: 2 | F20: + | G20: GN 1/3 -5 шт | H20: 245 | I20: 120 | J20: 1000 | K20: 700 | L20: 865 | M20: 89010 | N20: =ROUND(M20*(1-$C$3)/Лист2!$A$6,0) -> 89010
C21: Шкаф- стол холодильный CШС-0,2 - 1000 SDSBS 1\3 | D21: 0 | E21: 2 | F21: - | G21: GN 1/3 -5 шт | H21: 205 | I21: 100 | J21: 1000 | K21: 600 | L21: 865 | M21: 88549 | N21: =ROUND(M21*(1-$C$3)/Лист2!$A$6,0) -> 88549
C22: Шкаф- стол холодильный CШС-0,2 GN - 1000 SDSBS 1\6 | D22: 0 | E22: 2 | F22: + | G22: GN 1/6 -5 шт | H22: 245 | I22: 120 | J22: 1000 | K22: 700 | L22: 865 | M22: 87476 | N22: =ROUND(M22*(1-$C$3)/Лист2!$A$6,0) -> 87476
C23: Шкаф- стол холодильный CШС-0,2 - 1000 SDSBS 1\6 | D23: 0 | E23: 2 | F23: - | G23: GN 1/6 -5 шт | H23: 205 | I23: 100 | J23: 1000 | K23: 600 | L23: 865 | M23: 87014 | N23: =ROUND(M23*(1-$C$3)/Лист2!$A$6,0) -> 87014
C24: Шкаф- стол холодильный CШС-0,3 GN - 1500 SDSBS 1\3 | D24: 0 | E24: 3 | F24: + | G24: GN 1/3 -8 шт | H24: 375 | I24: 305 | J24: 1500 | K24: 700 | L24: 865 | M24: 107430 | N24: =ROUND(M24*(1-$C$3)/Лист2!$A$6,0) -> 107430
C25: Шкаф- стол холодильный CШС-0,3 - 1500 SDSBS 1\3 | D25: 0 | E25: 3 | F25: - | G25: GN 1/3 -8 шт | H25: 315 | I25: 250 | J25: 1500 | K25: 600 | L25: 865 | M25: 106968 | N25: =ROUND(M25*(1-$C$3)/Лист2!$A$6,0) -> 106968
C26: Шкаф- стол холодильный CШС-0,3 GN - 1500 SDSBS 1\6 | D26: 0 | E26: 3 | F26: + | G26: GN 1/6 -8 шт | H26: 375 | I26: 305 | J26: 1500 | K26: 700 | L26: 865 | M26: 105894 | N26: =ROUND(M26*(1-$C$3)/Лист2!$A$6,0) -> 105894
C27: Шкаф- стол холодильный CШС-0,3 - 1500 SDSBS 1\6 | D27: 0 | E27: 3 | F27: - | G27: GN 1/6 -8 шт | H27: 315 | I27: 250 | J27: 1500 | K27: 600 | L27: 865 | M27: 105434 | N27: =ROUND(M27*(1-$C$3)/Лист2!$A$6,0) -> 105434
A28: Модификации к холодильным/морозильным столам( добавить к стандартной стоимости изделия)
C29: Установка 2-х выдвижных ящиков вместо одной распашной двери | M29: 18950 | N29: =ROUND(M29*(1-$C$3)/Лист2!$A$6,0) -> 18950
C30: Установка 3-х выдвижных ящиков вместо одной распашной двери(только для столов с боковым расположением агрегата) | M30: 28425 | N30: =ROUND(M30*(1-$C$3)/Лист2!$A$6,0) -> 28425
C31: Замена стандартных ножек на колеса, 2 из них с тормозом | M31: 8933 | N31: =ROUND(M31*(1-$C$3)/Лист2!$A$6,0) -> 8933
A32: Опции к холодильным/морозильным столам(поставляются отдельно)
C33: Решетка защитаная для агрега из нержавеющей стали (84312), артикул СО.906.57.00.00 | M33: 1901 | N33: =ROUND(M33*(1-$C$3)/Лист2!$A$6,0) -> 1901
C34: Полкодержатель слева (96480) для столов 700, артикул СО.979.03.0000.05 | M34: 342 | N34: =ROUND(M34*(1-$C$3)/Лист2!$A$6,0) -> 342
C35: Полкодержатель справа (96481) для столов 700, артикул СО.979.03.0000.05mir | M35: 342 | N35: =ROUND(M35*(1-$C$3)/Лист2!$A$6,0) -> 342
C36: Полкодержатель слева (106969) для столов 700, артикул СО.906.03.0000.05 | M36: 317 | N36: =ROUND(M36*(1-$C$3)/Лист2!$A$6,0) -> 317
C37: Полкодержатель справа (106970) для столов 700, артикул СО.906.03.0000.05mir | M37: 317 | N37: =ROUND(M37*(1-$C$3)/Лист2!$A$6,0) -> 317
C38: Полка решетчатая для столов 700, крашенная (100670), артикул СО.979.56.5000.01 | J38: 332 | K38: 570 | L38: 4(6) | M38: 1205 | N38: =ROUND(M38*(1-$C$3)/Лист2!$A$6,0) -> 1205
C39: Полка решетчатая для столов 600, крашенная (100671), артикул СО.906.56.5000.01 | J39: 332 | K39: 470 | L39: 4(6) | M39: 1014 | N39: =ROUND(M39*(1-$C$3)/Лист2!$A$6,0) -> 1014

Sheet Столы ОБ
A1: Нейтральное оборудование/Столы с обвязкой | N1: На главную
A3: Ваша скидка: | D3: =Содержание!C2 -> 0
A4: НДС: | D4: =IF(Лист2!A1=TRUE,"С НДС","БЕЗ НДС") -> С НДС
B7: Стол с бортом с нижней обвязкой (СРП Ш; ОБ)
B10: Изображение | C10: Артикул | F10: Модель | G10: Характеристика номенклатуры | K10: Базовая цена, | L10: Ваша цена, | M10: Техническое описание | O10: Базовая цена,
K11: руб | L11: руб | O11: руб
C12: СРПШ_60608587_ОБ | F12: СРПШ | G12: L=600, S=600, H=850-870, ОБ | K12: =ROUND(O12*(1+'Повышение цен'!$C$9),0) -> 13127 | L12: =ROUND(IF($D$4="С НДС",K12*(1-$D$3),K12*(1-$D$3)/1.2),0) -> 13127 | M12: шлифованная н/ст, толщина столешницы - 1 мм, разборная конструкция, обвязка, каркас - труба 40*40*1,2 мм, Hстолешницы -50 мм, Hборта - 40 мм, столешница усилена ЛДСП толщиной 16 мм, регулируемые ножки(+/-20мм), отступ от края 100 мм | O12: 10905
C13: СРПШ_80608587_ОБ | F13: СРПШ | G13: L=800, S=600, H=850-870, ОБ | K13: =ROUND(O13*(1+'Повышение цен'!$C$9),0) -> 14215 | L13: =ROUND(IF($D$4="С НДС",K13*(1-$D$3),K13*(1-$D$3)/1.2),0) -> 14215 | O13: 11809
C14: СРПШ_100608587_ОБ | F14: СРПШ | G14: L=1000, S=600, H=850-870, ОБ | K14: =ROUND(O14*(1+'Повышение цен'!$C$9),0) -> 15301 | L14: 15301 | O14: 12711
C15: СРПШ_120608587_ОБ | F15: СРПШ | G15: L=1200, S=600, H=850-870, ОБ | K15: =ROUND(O15*(1+'Повышение цен'!$C$9),0) -> 16391 | L15: 16391 | O15: 13616
C16: СРПШ_150608587_ОБ | F16: СРПШ | G16: L=1500, S=600, H=850-870, ОБ | K16: =ROUND(O16*(1+'Повышение цен'!$C$9),0) -> 18019 | L16: 18019 | O16: 14969
C17: СРПШ_180608587_ОБ | F17: СРПШ | G17: L=1800, S=600, H=850-870, ОБ | K17: =ROUND(O17*(1+'Повышение цен'!$C$9),0) -> 19650 | L17: 19650 | O17: 16324
C19: СРПШ_60708587_ОБ | F19: СРПШ | G19: L=600, S=700, H=850-870, ОБ | K19: =ROUND(O19*(1+'Повышение цен'!$C$9),0) -> 13774 | L19: 13774 | O19: 11442
C20: СРПШ_80708587_ОБ | F20: СРПШ | G20: L=800, S=700, H=850-870, ОБ | K20: =ROUND(O20*(1+'Повышение цен'!$C$9),0) -> 14952 | L20: 14952 | O20: 12421
C21: СРПШ_100708587_ОБ | F21: СРПШ | G21: L=1000, S=700, H=850-870, ОБ | K21: =ROUND(O21*(1+'Повышение цен'!$C$9),0) -> 16132 | L21: 16132 | O21: 13401
C22: СРПШ_120708587_ОБ | F22: СРПШ | G22: L=1200, S=700, H=850-870, ОБ | K22: =ROUND(O22*(1+'Повышение цен'!$C$9),0) -> 17310 | L22: 17310 | O22: 14380
C23: СРПШ_150708587_ОБ | F23: СРПШ | G23: L=1500, S=700, H=850-870, ОБ | K23: =ROUND(O23*(1+'Повышение цен'!$C$9),0) -> 19080 | L23: 19080 | O23: 15850
C24: СРПШ_180708587_ОБ | F24: СРПШ | G24: L=1800, S=700, H=850-870, ОБ | K24: =ROUND(O24*(1+'Повышение цен'!$C$9),0) -> 20849 | L24: 20849 | O24: 17320
B26: Стол без борта с нижней обвязкой (СРЦ Ш; ОБ)
B28: Изображение | C28: Артикул | F28: Модель | G28: Характеристика номенклатуры | K28: Базовая цена, | L28: Ваша цена, | M28: Техническое описание | O28: Базовая цена,
K29: руб | L29: руб | O29: руб
C30: СРЦШ_60608587_ОБ | F30: СРЦШ | G30: L=600, S=600, H=850-870, ОБ | K30: =ROUND(O30*(1+'Повышение цен'!$C$9),0) -> 12476 | L30: =ROUND(IF($D$4="С НДС",K30*(1-$D$3),K30*(1-$D$3)/1.2),0) -> 12476 | M30: шлифованная н/ст, толщина столешницы - 1 мм, разборная конструкция, обвязка, каркас - труба 40*40*1,2 мм, Hстолешницы -50 мм, без борта, столешница усилена ЛДСП толщиной 16 мм, регулируемые ножки(+/-20мм) | O30: 10364
C31: СРЦШ_80608587_ОБ | F31: СРЦШ | G31: L=800, S=600, H=850-870, ОБ | K31: =ROUND(O31*(1+'Повышение цен'!$C$9),0) -> 13470 | L31: 13470 | O31: 11190
C32: СРЦШ_100608587_ОБ | F32: СРЦШ | G32: L=1000, S=600, H=850-870, ОБ | K32: =ROUND(O32*(1+'Повышение цен'!$C$9),0) -> 14467 | L32: 14467 | O32: 12018
C33: СРЦШ_120608587_ОБ | F33: СРЦШ | G33: L=1200, S=600, H=850-870, ОБ | K33: =ROUND(O33*(1+'Повышение цен'!$C$9),0) -> 15463 | L33: 15463 | O33: 12845
C34: СРЦШ_150608587_ОБ | F34: СРЦШ | G34: L=1500, S=600, H=850-870, ОБ | K34: =ROUND(O34*(1+'Повышение цен'!$C$9),0) -> 16953 | L34: 16953 | O34: 14083
C35: СРЦШ_180608587_ОБ | F35: СРЦШ | G35: L=1800, S=600, H=850-870, ОБ | K35: =ROUND(O35*(1+'Повышение цен'!$C$9),0) -> 18447 | L35: 18447 | O35: 15324
C37: СРЦШ_60708587_ОБ | F37: СРЦШ | G37: L=600, S=700, H=850-870, ОБ | K37: =ROUND(O37*(1+'Повышение цен'!$C$9),0) -> 13078 | L37: =ROUND(IF($D$4="С НДС",K37*(1-$D$3),K37*(1-$D$3)/1.2),0) -> 13078 | O37: 10864
C38: СРЦШ_80708587_ОБ | F38: СРЦШ | G38: L=800, S=700, H=850-870, ОБ | K38: =ROUND(O38*(1+'Повышение цен'!$C$9),0) -> 14150 | L38: 14150 | O38: 11755
C39: СРЦШ_100708587_ОБ | F39: СРЦШ | G39: L=1000, S=700, H=850-870, ОБ | K39: =ROUND(O39*(1+'Повышение цен'!$C$9),0) -> 15222 | L39: 15222 | O39: 12645
C40: СРЦШ_120708587_ОБ | F40: СРЦШ | G40: L=1200, S=700, H=850-870, ОБ | K40: =ROUND(O40*(1+'Повышение цен'!$C$9),0) -> 16294 | L40: 16294 | O40: 13536
C41: СРЦШ_150708587_ОБ | F41: СРЦШ | G41: L=1500, S=700, H=850-870, ОБ | K41: =ROUND(O41*(1+'Повышение цен'!$C$9),0) -> 17900 | L41: 17900 | O41: 14870
C42: СРЦШ_180708587_ОБ | F42: СРЦШ | G42: L=1800, S=700, H=850-870, ОБ | K42: =ROUND(O42*(1+'Повышение цен'!$C$9),0) -> 19507 | L42: 19507 | O42: 16205
C44: Формула расчета цены | M44: Техническое описание
B45: Артикул | C45: Модель | D45: Длина, | E45: Глубина, | F45: Высота | G45: Доп. | H45: Доп. | I45: Каркас | J45: Доп. | K45: Базовая цена, | L45: Ваша цена, | M45: Нестандартной модели
D46: мм | E46: мм | F46: мм | G46: опция | H46: борт | I46: раз/св | J46: колеса | K46: руб | L46: руб | M46: =CONCATENATE("шлифованная н/ст, толщина столешницы - 1 мм,",IF(I47="СВ","сварная конструкция","разборная конструкция"),", обвязка, каркас - труба 40*40*1,2 мм,",IF(C47="СРПШ","стол с бортом Нборта-40мм, отступ от края 100 мм","стол без борта"),IF(AND(C47="СРПШ",G47="ОБ2Б"),", стол угловой с двумя бортами",""),IF(AND(C47="СРПШ",G47="ОБ3Б"),", стол с тремя бортами",""),IF(AND(G47="ОБ2Б",H47="П"),", правый",""),IF(AND(G47="ОБ2Б",H47="Л"),", левый","")," Hстолешницы -50 мм, столешница усилена ЛДСП толщиной 16 мм,",IF(J47="К"," 4 колеса(2 с тормозом)","регулируемые ножки(+/-20мм)"),", длина ", D47,"мм",", глубина ",E47,"мм"," ,высота ",F47,"мм, ", "Объем в упаковке ",IF(I47="",ROUND(D47/1000*E47/1000*0.255,2), ROUND(D47/1000*E47/1000*(F47+150)/1000,2))," м3") -> шлифованная н/ст, толщина столешницы - 1 мм,разборная конструкция, обвязка, каркас - труба 40*40*1,2 мм,стол с бортом Нборта-40мм, отступ от края 100 мм Hстолешницы -50 мм, столешница усилена ЛДСП толщиной 16 мм,регулируемые ножки(+/-20мм), длина 800мм, глубина 600мм ,высота 850мм, Объем в упаковке 0,12 м3
B47: =UPPER(CONCATENATE(C47,"_",D47/10,E47/10,IF(AND(J47="",F50=850),8587,F50/10),"_",G47,H47,I47,J47)) -> СРПШ_80608587_ОБ | C47: СРПШ | D47: 800 | E47: 600 | F47: 850 | G47: ОБ | K47: =ROUND((K48*IF(D48>1800,1.05,1)*IF(E48>700,1.05,1)*IF(F48>870,1.05,1)*IF(G47="ОБ3Б",1.07,1)+IF(J47="К",6000,0))*1.3595*(1+'Повышение цен'!C9),0) -> 14215 | L47: =ROUND(IF($D$4="С НДС",K47*(1-$D$3),K47*(1-$D$3)/1.2),0) -> 14215
D48: =IF(AND(D47>349,D47<2001),D47,"не производим") -> 800 | E48: =IF(AND(E47>349,E47<1001),E47,"не производим") -> 600 | F48: =IF(AND(F50>599,F50<1001),F50,"не производим") -> 850 | K48: =IF(C47="СРПШ",IF(AND(I47="",G47="ОБ"),ROUND((((D48*E48*Техно!I10*Техно!J8*0.00001*1.2*Техно!J10)+(((F48-50)*0.001*4+(D48-50)*0.001+(E48-50)*2*0.001)*Техно!J19)+(((D48-100)*80*0.00001*Техно!J8*Техно!I14*2)+((E48-100)*80*0.00001*Техно!J8*Техно!I14*2))*Техно!J14)*1.18+((D48*0.001+E48*0.001)*0.9*Техно!J20)+(Техно!J25*0.35)+((Техно!J26+Техно!J27)*2.5))*1.18/0.68*(0.85+0.6944),0),IF(AND(I47="СВ",G47="ОБ"),ROUND((((D48*E48*Техно!I10*Техно!J8*0.00001*1.2*Техно!J10)+(((F48-50)*0.001*4+(D48-50)*0.001+(E48-50)*2*0.001)*Техно!J19)+(((D48-100)*80*0.00001*Техно!J8*Техно!I14*2)+((E48-100)*80*0.00001*Техно!J8*Техно!I14*2))*Техно!J14+((D48*E48*Техно!I16*Техно!J8*0.00001)*Техно!J16))*1.18+((D48*0.001+E48*0.001)*0.9*Техно!J20)+(Техно!J25*(0.35+0.05))+((Техно!J26+Техно!J27)*(2.5+0.2)))*1.18/0.68*(0.85+0.6944),0),IF(AND(I47="",OR(G47="ОБ2Б",G47="ОБ3Б")),ROUND((((D48*E48*Техно!I10*Техно!J8*0.00001*(1.2+0.1)*Техно!J10)+(((F48-50)*0.001*4+(D48-50)*0.001+(E48-50)*2*0.001)*Техно!J19)+(((D48-100)*80*0.00001*Техно!J8*Техно!I14*2)+((E48-100)*80*0.00001*Техно!J8*Техно!I14*2))*Техно!J14)*1.18+((D48*0.001+E48*0.001)*0.9*Техно!J20)+(Техно!J25*0.35)+((Техно!J26+Техно!J27)*(2.5+0.5)))*1.18/0.68*(0.85+0.6944),0),IF(AND(I47="СВ",OR(G47="ОБ2Б",G47="ОБ3Б")),ROUND((((D48*E48*Техно!I10*Техно!J8*0.00001*(1.2+0.1)*Техно!J10)+(((F48-50)*0.001*4+(D48-50)*0.001+(E48-50)*2*0.001)*Техно!J19)+(((D48-100)*80*0.00001*Техно!J8*Техно!I14*2)+((E48-100)*80*0.00001*Техно!J8*Техно!I14*2))*Техно!J14+((D48*E48*Техно!I16*Техно!J8*0.00001)*Техно!J16))*1.18+((D48*0.001+E48*0.001)*0.9*Техно!J20)+(Техно!J25*(0.35+0.05))+((Техно!J26+Техно!J27)*(2.5+0.2+0.5)))*1.18/0.68*(0.85+0.6944),0))))),IF(C47="СРЦШ",IF(I47="",ROUND((((D48*E48*Техно!I10*Техно!J8*0.00001*1*Техно!J10)+(((F48-50)*0.001*4+(D48-50)*0.001+(E48-50)*2*0.001)*Техно!J19)+(((D48-100)*80*0.00001*Техно!J8*Техно!I14*2)+((E48-100)*80*0.00001*Техно!J8*Техно!I14*2))*Техно!J14)*1.18+((D48*0.001+E48*0.001)*0.9*Техно!J20)+(Техно!J25*0.35)+((Техно!J26+Техно!J27)*2.2))*1.18/0.68*(0.85+0.6944),0),IF(I47="СВ",ROUND((((D48*E48*Техно!I10*Техно!J8*0.00001*1*Техно!J10)+(((F48-50)*0.001*4+(D48-50)*0.001+(E48-50)*2*0.001)*Техно!J19)+(((D48-100)*80*0.00001*Техно!J8*Техно!I14*2)+((E48-100)*80*0.00001*Техно!J8*Техно!I14*2))*Техно!J14+((D48*E48*Техно!I16*Техно!J8*0.00001)*Техно!J16))*1.18+((D48*0.001+E48*0.001)*0.9*Техно!J20)+(Техно!J25*(0.35+0.05))+((Техно!J26+Техно!J27)*(2.2+0.2)))*1.18/0.68*(0.85+0.6944),0),)))) -> 8686
D49: 350-2000 | E49: 350-1000 | F49: 600-1000 | J49: К | K49: Колеса
F50: =IF(F47=870,850,F47) -> 850 | G50: ОБ | I50: СВ | K50: Сварная конструкция
G51: ОБ2Б | H51: П | I51: угловой стол(два борта сзади и справа)
C52: СРПШ | D52: с бортом | G52: ОБ2Б | H52: Л | I52: угловой стол(два борта сзади и слева)
C53: СРЦШ | D53: без борта | G53: ОБ3Б | I53: Стол с тремя бортами
B55: Стол с бортом с нижней обвязкой (СРПН Э1; ОБ)
B57: Изображение | C57: Артикул | F57: Модель | G57: Характеристика номенклатуры | K57: Базовая цена, | L57: Ваша цена, | M57: Техническое описание | O57: Базовая цена,
K58: руб | L58: руб | O58: руб
C59: СРПНЭ1_60608587_ОБ | F59: СРПНЭ1 | G59: L=600, S=600, H=850-870, ОБ | K59: =ROUND(O59*(1+'Повышение цен'!$C$10),0) -> 11957 | L59: =ROUND(IF($D$4="С НДС",K59*(1-$D$3),K59*(1-$D$3)/1.2),0) -> 11957 | M59: н/ст, толщина столешницы - 0,8 мм, разборная конструкция, обвязка, каркас - труба 40*40*1,2 мм, Hстолешницы -40 мм, Hборта - 40 мм, столешница усилена ЛДСП толщиной 16 мм, регулируемые ножки(+/-20мм), отступ от края 100 мм | O59: 9933
C60: СРПНЭ1_80608587_ОБ | F60: СРПНЭ1 | G60: L=800, S=600, H=850-870, ОБ | K60: =ROUND(O60*(1+'Повышение цен'!$C$10),0) -> 12856 | L60: 12856 | O60: 10680
C61: СРПНЭ1_100608587_ОБ | F61: СРПНЭ1 | G61: L=1000, S=600, H=850-870, ОБ | K61: =ROUND(O61*(1+'Повышение цен'!$C$10),0) -> 13757 | L61: 13757 | O61: 11428
C62: СРПНЭ1_120608587_ОБ | F62: СРПНЭ1 | G62: L=1200, S=600, H=850-870, ОБ | K62: =ROUND(O62*(1+'Повышение цен'!$C$10),0) -> 14654 | L62: 14654 | O62: 12173
C63: СРПНЭ1_150608587_ОБ | F63: СРПНЭ1 | G63: L=1500, S=600, H=850-870, ОБ | K63: =ROUND(O63*(1+'Повышение цен'!$C$10),0) -> 16004 | L63: 16004 | O63: 13295
C64: СРПНЭ1_180608587_ОБ | F64: СРПНЭ1 | G64: L=1800, S=600, H=850-870, ОБ | K64: =ROUND(O64*(1+'Повышение цен'!$C$10),0) -> 17350 | L64: 17350 | O64: 14413
C66: СРПНЭ1_60708587_ОБ | F66: СРПНЭ1 | G66: L=600, S=700, H=850-870, ОБ | K66: =ROUND(O66*(1+'Повышение цен'!$C$10),0) -> 12504 | L66: =ROUND(IF($D$4="С НДС",K66*(1-$D$3),K66*(1-$D$3)/1.2),0) -> 12504 | O66: 10387
C67: СРПНЭ1_80708587_ОБ | F67: СРПНЭ1 | G67: L=800, S=700, H=850-870, ОБ | K67: =ROUND(O67*(1+'Повышение цен'!$C$10),0) -> 13468 | L67: 13468 | O67: 11188
C68: СРПНЭ1_100708587_ОБ | F68: СРПНЭ1 | G68: L=1000, S=700, H=850-870, ОБ | K68: =ROUND(O68*(1+'Повышение цен'!$C$10),0) -> 14433 | L68: 14433 | O68: 11990
C69: СРПНЭ1_120708587_ОБ | F69: СРПНЭ1 | G69: L=1200, S=700, H=850-870, ОБ | K69: =ROUND(O69*(1+'Повышение цен'!$C$10),0) -> 15399 | L69: 15399 | O69: 12792
C70: СРПНЭ1_150708587_ОБ | F70: СРПНЭ1 | G70: L=1500, S=700, H=850-870, ОБ | K70: =ROUND(O70*(1+'Повышение цен'!$C$10),0) -> 16846 | L70: 16846 | O70: 13994
C71: СРПНЭ1_180708587_ОБ | F71: СРПНЭ1 | G71: L=1800, S=700, H=850-870, ОБ | K71: =ROUND(O71*(1+'Повышение цен'!$C$10),0) -> 18295 | L71: 18295 | O71: 15198
B74: Стол без борта с нижней обвязкой (СРЦН Э1; ОБ)
B76: Изображение | C76: Артикул | F76: Модель | G76: Характеристика номенклатуры | K76: Базовая цена, | L76: Ваша цена, | M76: Техническое описание | O76: Базовая цена,
K77: руб | L77: руб | O77: руб
C78: СРЦНЭ1_60608587_ОБ | F78: СРЦНЭ1 | G78: L=600, S=600, H=850-870, ОБ | K78: =ROUND(O78*(1+'Повышение цен'!$C$10),0) -> 11406 | L78: =ROUND(IF($D$4="С НДС",K78*(1-$D$3),K78*(1-$D$3)/1.2),0) -> 11406 | M78: н/ст, толщина столешницы - 0,8 мм, разборная конструкция, обвязка, каркас - труба 40*40*1,2 мм, Hстолешницы -40 мм, Hборта - 40 мм, столешница усилена ЛДСП толщиной 16 мм, регулируемые ножки(+/-20мм), | O78: 9475
C79: СРЦНЭ1_80608587_ОБ | F79: СРЦНЭ1 | G79: L=800, S=600, H=850-870, ОБ | K79: =ROUND(O79*(1+'Повышение цен'!$C$10),0) -> 12239 | L79: 12239 | O79: 10167
C80: СРЦНЭ1_100608587_ОБ | F80: СРЦНЭ1 | G80: L=1000, S=600, H=850-870, ОБ | K80: =ROUND(O80*(1+'Повышение цен'!$C$10),0) -> 13072 | L80: 13072 | O80: 10859
C81: СРЦНЭ1_120608587_ОБ | F81: СРЦНЭ1 | G81: L=1200, S=600, H=850-870, ОБ | K81: =ROUND(O81*(1+'Повышение цен'!$C$10),0) -> 13905 | L81: 13905 | O81: 11551
C82: СРЦНЭ1_150608587_ОБ | F82: СРЦНЭ1 | G82: L=1500, S=600, H=850-870, ОБ | K82: =ROUND(O82*(1+'Повышение цен'!$C$10),0) -> 15156 | L82: 15156 | O82: 12590
C83: СРЦНЭ1_180608587_ОБ | F83: СРЦНЭ1 | G83: L=1800, S=600, H=850-870, ОБ | K83: =ROUND(O83*(1+'Повышение цен'!$C$10),0) -> 16406 | L83: 16406 | O83: 13629
C85: СРЦНЭ1_60708587_ОБ | F85: СРЦНЭ1 | G85: L=600, S=700, H=850-870, ОБ | K85: =ROUND(O85*(1+'Повышение цен'!$C$10),0) -> 11920 | L85: =ROUND(IF($D$4="С НДС",K85*(1-$D$3),K85*(1-$D$3)/1.2),0) -> 11920 | O85: 9902
C86: СРЦНЭ1_80708587_ОБ | F86: СРЦНЭ1 | G86: L=800, S=700, H=850-870, ОБ | K86: =ROUND(O86*(1+'Повышение цен'!$C$10),0) -> 12808 | L86: 12808 | O86: 10640
C87: СРЦНЭ1_100708587_ОБ | F87: СРЦНЭ1 | G87: L=1000, S=700, H=850-870, ОБ | K87: =ROUND(O87*(1+'Повышение цен'!$C$10),0) -> 13695 | L87: 13695 | O87: 11377
C88: СРЦНЭ1_120708587_ОБ | F88: СРЦНЭ1 | G88: L=1200, S=700, H=850-870, ОБ | K88: =ROUND(O88*(1+'Повышение цен'!$C$10),0) -> 14584 | L88: 14584 | O88: 12115
C89: СРЦНЭ1_150708587_ОБ | F89: СРЦНЭ1 | G89: L=1500, S=700, H=850-870, ОБ | K89: =ROUND(O89*(1+'Повышение цен'!$C$10),0) -> 15915 | L89: 15915 | O89: 13221
C90: СРЦНЭ1_180708587_ОБ | F90: СРЦНЭ1 | G90: L=1800, S=700, H=850-870, ОБ | K90: =ROUND(O90*(1+'Повышение цен'!$C$10),0) -> 17249 | L90: 17249 | O90: 14329
C92: Формула расчета цены | M92: Техническое описание
B93: Артикул | D93: Длина, | E93: Глубина, | F93: Высота | G93: Доп. | I93: Каркас | J93: Доп. | K93: Базовая цена, | L93: Ваша цена, | M93: Нестандартной модели
D94: мм | E94: мм | F94: мм | G94: опция | I94: раз/св | J94: колеса | K94: руб | L94: руб | M94: =CONCATENATE("н/ст, толщина столешницы - 0,8 мм,",IF(I95="СВ","сварная конструкция","разборная конструкция"),", обвязка, каркас - труба 40*40*1,2 мм,",IF(C95="СРПНЭ1","стол с бортом Нборта-40мм, отступ от края 100 мм","стол без борта")," Hстолешницы -40 мм, столешница усилена ЛДСП толщиной 16 мм,",IF(J95="К",", 4 колеса(2 с тормозом)","регулируемые ножки(+/-20мм)"),", длина ", D95,"мм",", глубина ",E95,"мм"," ,высота ",F95,"мм, ", "Объем в упаковке ",IF(I95="",ROUND(D95/1000*E95/1000*0.255,2), ROUND(D95/1000*E95/1000*(F95+150)/1000,2))," м3") -> н/ст, толщина столешницы - 0,8 мм,разборная конструкция, обвязка, каркас - труба 40*40*1,2 мм,стол с бортом Нборта-40мм, отступ от края 100 мм Hстолешницы -40 мм, столешница усилена ЛДСП толщиной 16 мм,регулируемые ножки(+/-20мм), длина 1100мм, глубина 600мм ,высота 870мм, Объем в упаковке 0,17 м3
B95: =UPPER(CONCATENATE(C95,"_",D95/10,E95/10,IF(AND(F98=850,J95=""),8587,F98/10),"_",G95,,I95,J95)) -> СРПНЭ1_110608587_ОБ | C95: СРПНЭ1 | D95: 1100 | E95: 600 | F95: 870 | G95: ОБ | K95: =ROUND((K96*IF(D96>1800,1.05,1)*IF(E96>700,1.05,1)*IF(F96>870,1.05,1)+IF(J95="К",6000,0))*1.1*1.07*1.1*(1+'Повышение цен'!C10),0) -> 14204 | L95: =ROUND(IF($D$4="С НДС",K95*(1-$D$3),K95*(1-$D$3)/1.2),0) -> 14204
D96: =IF(AND(D95>349,D95<2001),D95,"не производим") -> 1100 | E96: =IF(AND(E95>349,E95<1001),E95,"не производим") -> 600 | F96: =IF(AND(F98>599,F98<1001),F98,"не производим") -> 850 | K96: =IF(C95="СРПНЭ1",IF(I95="",ROUND((((D96*E96*Техно!I12*Техно!J8*0.00001*1.2*Техно!J12)+(((F96-50)*0.001*4+(D96-50)*0.001+(E96-50)*2*0.001)*Техно!J19)+(((D96-100)*80*0.00001*Техно!J8*Техно!I14*2)+((E96-100)*80*0.00001*Техно!J8*Техно!I14*2))*Техно!J14)*1.18+((D96*0.001+E96*0.001)*0.9*Техно!J20)+(Техно!J25*0.35)+((Техно!J26+Техно!J27)*2.5))*1.18/0.69*(0.85+0.6944),0),IF(I95="СВ",ROUND((((D96*E96*Техно!I12*Техно!J8*0.00001*1.2*Техно!J12)+(((F96-50)*0.001*4+(D96-50)*0.001+(E96-50)*2*0.001)*Техно!J19)+(((D96-100)*80*0.00001*Техно!J8*Техно!I14*2)+((E96-100)*80*0.00001*Техно!J8*Техно!I14*2))*Техно!J14+((D96*E96*Техно!I16*Техно!J8*0.00001)*Техно!J16))*1.18+((D96*0.001+E96*0.001)*0.9*Техно!J20)+(Техно!J25*(0.35+0.05))+((Техно!J26+Техно!J27)*(2.5+0.2)))*1.18/0.69*(0.85+0.6944),0))),IF(C95="СРЦНЭ1",IF(I95="",ROUND((((D96*E96*Техно!I12*Техно!J8*0.00001*1*Техно!J12)+(((F96-50)*0.001*4+(D96-50)*0.001+(E96-50)*2*0.001)*Техно!J19)+(((D96-100)*80*0.00001*Техно!J8*Техно!I14*2)+((E96-100)*80*0.00001*Техно!J8*Техно!I14*2))*Техно!J14)*1.18+((D96*0.001+E96*0.001)*0.9*Техно!J20)+(Техно!J25*0.35)+((Техно!J26+Техно!J27)*2.2))*1.18/0.69*(0.85+0.6944),0),IF(I95="СВ",ROUND((((D96*E96*Техно!I12*Техно!J8*0.00001*1*Техно!J12)+(((F96-50)*0.001*4+(D96-50)*0.001+(E96-50)*2*0.001)*Техно!J19)+(((D96-100)*80*0.00001*Техно!J8*Техно!I14*2)+((E96-100)*80*0.00001*Техно!J8*Техно!I14*2))*Техно!J14+((D96*E96*Техно!I16*Техно!J8*0.00001)*Техно!J16))*1.18+((D96*0.001+E96*0.001)*0.9*Техно!J20)+(Техно!J25*(0.35+0.05))+((Техно!J26+Техно!J27)*(2.2+0.2)))*1.18/0.69*(0.85+0.6944),0))))) -> 9114
D97: 350-2000 | E97: 350-1000 | F97: 600-1000 | G97: ОБ | J97: К | K97: Колеса
F98: =IF(F95=870,850,F95) -> 850 | I98: СВ | K98: Сварная конструкция
C99: СРПНЭ1 | D99: с бортом
C100: СРЦНЭ1 | D100: без борта
B102: Стол с бортом с нижней обвязкой (СРПН Э; ОБ)
B104: Изображение | C104: Артикул | F104: Модель | G104: Характеристика номенклатуры | K104: Базовая цена, | L104: Ваша цена, | M104: Техническое описание | O104: Базовая цена,
K105: руб | L105: руб | O105: руб
C106: СРПНЭ_60608587_ОБ | F106: СРПНЭ | G106: L=600, S=600, H=850-870, ОБ | K106: =ROUND(O106*(1+'Повышение цен'!$C$10),0) -> 7136 | L106: =ROUND(IF($D$4="С НДС",K106*(1-$D$3),K106*(1-$D$3)/1.22),0) -> 7136 | M106: н/ст, толщина столешницы - 0,8 мм, разборная конструкция, обвязка с четырех сторон, каркас - нерж. уголок 40*40*1,5 мм, Hстолешницы -40 мм, Hборта - 40 мм, столешница усилена ЛДСП толщиной 16 мм, регулируемые ножки(+/-20мм), отступ от края 100 мм | O106: 5928
C107: СРПНЭ_80608587_ОБ | F107: СРПНЭ | G107: L=800, S=600, H=850-870, ОБ | K107: =ROUND(O107*(1+'Повышение цен'!$C$10),0) -> 7962 | L107: =ROUND(IF($D$4="С НДС",K107*(1-$D$3),K107*(1-$D$3)/1.22),0) -> 7962 | O107: 6614
C108: СРПНЭ_100608587_ОБ | F108: СРПНЭ | G108: L=1000, S=600, H=850-870, ОБ | K108: =ROUND(O108*(1+'Повышение цен'!$C$10),0) -> 8786 | L108: 8786 | O108: 7299
C109: СРПНЭ_120608587_ОБ | F109: СРПНЭ | G109: L=1200, S=600, H=850-870, ОБ | K109: =ROUND(O109*(1+'Повышение цен'!$C$10),0) -> 9611 | L109: 9611 | O109: 7984
C110: СРПНЭ_150608587_ОБ | F110: СРПНЭ | G110: L=1500, S=600, H=850-870, ОБ | K110: =ROUND(O110*(1+'Повышение цен'!$C$10),0) -> 10851 | L110: 10851 | O110: 9014
C112: СРПНЭ_60708587_ОБ | F112: СРПНЭ | G112: L=600, S=700, H=850-870, ОБ | K112: =ROUND(O112*(1+'Повышение цен'!$C$10),0) -> 7538 | L112: =ROUND(IF($D$4="С НДС",K112*(1-$D$3),K112*(1-$D$3)/1.22),0) -> 7538 | O112: 6262
C113: СРПНЭ_80708587_ОБ | F113: СРПНЭ | G113: L=800, S=700, H=850-870, ОБ | K113: =ROUND(O113*(1+'Повышение цен'!$C$10),0) -> 8441 | L113: 8441 | O113: 7012
C114: СРПНЭ_100708587_ОБ | F114: СРПНЭ | G114: L=1000, S=700, H=850-870, ОБ | K114: =ROUND(O114*(1+'Повышение цен'!$C$10),0) -> 9340 | L114: 9340 | O114: 7759
C115: СРПНЭ_120708587_ОБ | F115: СРПНЭ | G115: L=1200, S=700, H=850-870, ОБ | K115: =ROUND(O115*(1+'Повышение цен'!$C$10),0) -> 10244 | L115: 10244 | O115: 8510
C116: СРПНЭ_150708587_ОБ | F116: СРПНЭ | G116: L=1500, S=700, H=850-870, ОБ | K116: =ROUND(O116*(1+'Повышение цен'!$C$10),0) -> 11597 | L116: 11597 | O116: 9634
B118: Стол без борта с нижней обвязкой (СРЦН Э; ОБ)
B120: Изображение | C120: Артикул | F120: Модель | G120: Характеристика номенклатуры | K120: Базовая цена, | L120: Ваша цена, | M120: Техническое описание | O120: Базовая цена,
K121: руб | L121: руб | O121: руб
C122: СРЦНЭ_60608587_ОБ | F122: СРЦНЭ | G122: L=600, S=600, H=850-870, ОБ | K122: =ROUND(O122*(1+'Повышение цен'!$C$10),0) -> 6971 | L122: =ROUND(IF($D$4="С НДС",K122*(1-$D$3),K122*(1-$D$3)/1.22),0) -> 6971 | M122: н/ст, толщина столешницы - 0,8 мм, разборная конструкция, обвязка с четырех сторон, каркас - нерж. уголок 40*40*1,5 мм, Hстолешницы -40 мм, без борта, столешница усилена ЛДСП толщиной 16 мм, регулируемые ножки(+/-20мм), | O122: 5791
C123: СРЦНЭ_80608587_ОБ | F123: СРЦНЭ | G123: L=800, S=600, H=850-870, ОБ | K123: =ROUND(O123*(1+'Повышение цен'!$C$10),0) -> 7743 | L123: 7743 | O123: 6432
C124: СРЦНЭ_100608587_ОБ | F124: СРЦНЭ | G124: L=1000, S=600, H=850-870, ОБ | K124: =ROUND(O124*(1+'Повышение цен'!$C$10),0) -> 8511 | L124: 8511 | O124: 7070
C125: СРЦНЭ_120608587_ОБ | F125: СРЦНЭ | G125: L=1200, S=600, H=850-870, ОБ | K125: =ROUND(O125*(1+'Повышение цен'!$C$10),0) -> 9284 | L125: 9284 | O125: 7712
C126: СРЦНЭ_150608587_ОБ | F126: СРЦНЭ | G126: L=1500, S=600, H=850-870, ОБ | K126: =ROUND(O126*(1+'Повышение цен'!$C$10),0) -> 10438 | L126: 10438 | O126: 8671
C128: СРЦНЭ_60708587_ОБ | F128: СРЦНЭ | G128: L=600, S=700, H=850-870, ОБ | K128: =ROUND(O128*(1+'Повышение цен'!$C$10),0) -> 7345 | L128: =ROUND(IF($D$4="С НДС",K128*(1-$D$3),K128*(1-$D$3)/1.22),0) -> 7345 | O128: 6102
C129: СРЦНЭ_80708587_ОБ | F129: СРЦНЭ | G129: L=800, S=700, H=850-870, ОБ | K129: =ROUND(O129*(1+'Повышение цен'!$C$10),0) -> 8184 | L129: 8184 | O129: 6799
C130: СРЦНЭ_100708587_ОБ | F130: СРЦНЭ | G130: L=1000, S=700, H=850-870, ОБ | K130: =ROUND(O130*(1+'Повышение цен'!$C$10),0) -> 9022 | L130: 9022 | O130: 7495
C131: СРЦНЭ_120708587_ОБ | F131: СРЦНЭ | G131: L=1200, S=700, H=850-870, ОБ | K131: =ROUND(O131*(1+'Повышение цен'!$C$10),0) -> 9859 | L131: 9859 | O131: 8190
C132: СРЦНЭ_150708587_ОБ | F132: СРЦНЭ | G132: L=1500, S=700, H=850-870, ОБ | K132: =ROUND(O132*(1+'Повышение цен'!$C$10),0) -> 11114 | L132: 11114 | O132: 9233
C134: Формула расчета цены | M134: Техническое описание
B135: Артикул | D135: Длина, | E135: Глубина, | F135: Высота | G135: Доп. | H135: Доп. | J135: Доп. | K135: Базовая цена, | L135: Ваша цена, | M135: Нестандартной модели
D136: мм | E136: мм | F136: мм | G136: опция | H136: опция | J136: колеса | K136: руб | L136: руб | M136: =CONCATENATE("н/ст, толщина столешницы - 0,8 мм",", обвязка, каркас - нерж уголок 40*40*1,5 мм,",IF(C137="СРПНЭ"," стол с бортом Нборта-40мм, отступ от края 100 мм","стол без борта")," Hстолешницы -40 мм, столешница усилена ЛДСП толщиной 16 мм,",IF(J137="К"," 4 колеса (2 с тормозом)","регулируемые ножки(+/-20мм)"),", длина ", D137,"мм",", глубина ",E137,"мм"," ,высота ",F137,"мм, ", "Объем в упаковке ",IF(J137="",ROUND(D137/1000*E137/1000*0.255,2), ROUND(D137/1000*E137/1000*(F137+150)/1000,2))," м3") -> н/ст, толщина столешницы - 0,8 мм, обвязка, каркас - нерж уголок 40*40*1,5 мм, стол с бортом Нборта-40мм, отступ от края 100 мм Hстолешницы -40 мм, столешница усилена ЛДСП толщиной 16 мм,регулируемые ножки(+/-20мм), длина 900мм, глубина 600мм ,высота 850мм, Объем в упаковке 0,14 м3
B137: =UPPER(CONCATENATE(C137,"_",D137/10,E137/10,IF(AND(F140=870,J137=""),8587,F137/10),"_",G137,J137)) -> СРПНЭ_90608587_ОБ | C137: СРПНЭ | D137: 900 | E137: 600 | F137: 850 | G137: ОБ | K137: =ROUND((K138*IF(D138>1500,1.05,1)*IF(E138>700,1.05,1)*IF(F138>870,1.05,1)+IF(J137="К",6000,0))*1.1*1.07*1.15*(1+'Повышение цен'!C10),0) -> 8375 | L137: =ROUND(IF($D$4="С НДС",K137*(1-$D$3),K137*(1-$D$3)/1.22),0) -> 8375
D138: =IF(AND(D137>349,D137<2001),D137,"не производим") -> 900 | E138: =IF(AND(E137>349,E137<801),E137,"не производим") -> 600 | F138: =IF(AND(F140>599,F140<1001),F140,"не производим") -> 870 | K138: =IF(C137="СРПНЭ",ROUND((((D138*E138*Техно!I12*Техно!J8*0.00001*1.25*Техно!J12)+((E138-50)*80*0.00001*Техно!J8*Техно!I17*Техно!J17*D138/E138)+(((D138-100)*80*0.00001*Техно!J8*Техно!I14*2)+((E138-100)*80*0.00001*Техно!J8*Техно!I14*2)+((F138-50)*80*0.00001*Техно!J8*Техно!I14*2))*Техно!J14)*1.18+((D138*0.001+E138*0.001)*0.9*Техно!J20)+(Техно!J25*0.15)+((Техно!J26+Техно!J27)*1.8))*1.18/0.65*(0.85+0.6944),0),IF(C137="СРЦНЭ",ROUND((((D138*E138*Техно!I12*Техно!J8*0.00001*1.1*Техно!J12)+((E138-50)*80*0.00001*Техно!J8*Техно!I17*Техно!J17*D138/E138)+(((D138-100)*80*0.00001*Техно!J8*Техно!I14*2)+((E138-100)*80*0.00001*Техно!J8*Техно!I14*2)+((F138-50)*80*0.00001*Техно!J8*Техно!I14*2))*Техно!J14)*1.18+((D138*0.001+E138*0.001)*0.9*Техно!J20)+(Техно!J25*0.15)+((Техно!J26+Техно!J27)*1.8))*1.18/0.65*(0.85+0.6944),0))) -> 5140
D139: 350-2000 | E139: 350-800 | F139: 600-1000 | G139: ОБ | J139: К | K139: Колеса
F140: =IF(F137=850,870,F137) -> 870
C141: СРПНЭ | D141: с бортом
C142: СРЦНЭ | D142: без борта
B145: Стол с бортом с нижней обвязкой (СРПЦ Э; ОБ)
B147: Изображение | C147: Артикул | F147: Модель | G147: Характеристика номенклатуры | K147: Базовая цена, | L147: Ваша цена, | M147: Техническое описание | O147: Базовая цена,
K148: руб | L148: руб | O148: руб
C149: СРПЦЭ_60608587_ОБ | F149: СРПЦЭ | G149: L=600, S=600, H=850-870, ОБ | K149: =ROUND(O149*(1+'Повышение цен'!$C$10),0) -> 5882 | L149: =ROUND(IF($D$4="С НДС",K149*(1-$D$3),K149*(1-$D$3)/1.22),0) -> 5882 | M149: н/ст, толщина столешницы - 0,8 мм, разборная конструкция, обвязка с четырех сторон, каркас - оцин. уголок 40*40*1,5 мм, Hстолешницы -40 мм, Hборта - 40 мм, столешница усилена ЛДСП толщиной 16 мм, регулируемые ножки(+/-20мм), отступ от края 100 мм | O149: 4886
C150: СРПЦЭ_80608587_ОБ | F150: СРПЦЭ | G150: L=800, S=600, H=850-870, ОБ | K150: =ROUND(O150*(1+'Повышение цен'!$C$10),0) -> 6565 | L150: 6565 | O150: 5454
C151: СРПЦЭ_100608587_ОБ | F151: СРПЦЭ | G151: L=1000, S=600, H=850-870, ОБ | K151: =ROUND(O151*(1+'Повышение цен'!$C$10),0) -> 7252 | L151: 7252 | O151: 6024
C152: СРПЦЭ_120608587_ОБ | F152: СРПЦЭ | G152: L=1200, S=600, H=850-870, ОБ | K152: =ROUND(O152*(1+'Повышение цен'!$C$10),0) -> 7935 | L152: 7935 | O152: 6592
C153: СРПЦЭ_150608587_ОБ | F153: СРПЦЭ | G153: L=1500, S=600, H=850-870, ОБ | K153: =ROUND(O153*(1+'Повышение цен'!$C$10),0) -> 8962 | L153: 8962 | O153: 7445
C155: СРПЦЭ_60708587_ОБ | F155: СРПЦЭ | G155: L=600, S=700, H=850-870, ОБ | K155: =ROUND(O155*(1+'Повышение цен'!$C$10),0) -> 6213 | L155: =ROUND(IF($D$4="С НДС",K155*(1-$D$3),K155*(1-$D$3)/1.22),0) -> 6213 | O155: 5161
C156: СРПЦЭ_80708587_ОБ | F156: СРПЦЭ | G156: L=800, S=700, H=850-870, ОБ | K156: =ROUND(O156*(1+'Повышение цен'!$C$10),0) -> 6969 | L156: 6969 | O156: 5789
C157: СРПЦЭ_100708587_ОБ | F157: СРПЦЭ | G157: L=1000, S=700, H=850-870, ОБ | K157: =ROUND(O157*(1+'Повышение цен'!$C$10),0) -> 7725 | L157: 7725 | O157: 6417
C158: СРПЦЭ_120708587_ОБ | F158: СРПЦЭ | G158: L=1200, S=700, H=850-870, ОБ | K158: =ROUND(O158*(1+'Повышение цен'!$C$10),0) -> 8479 | L158: 8479 | O158: 7044
C159: СРПЦЭ_150708587_ОБ | F159: СРПЦЭ | G159: L=1500, S=700, H=850-870, ОБ | K159: =ROUND(O159*(1+'Повышение цен'!$C$10),0) -> 9613 | L159: 9613 | O159: 7986
B161: Стол без борта с нижней обвязкой (СРЦЦ Э; ОБ)
B163: Изображение | C163: Артикул | F163: Модель | G163: Характеристика номенклатуры | K163: Базовая цена, | L163: Ваша цена, | M163: Техническое описание | O163: Базовая цена,
K164: руб | L164: руб | O164: руб
C165: СРЦЦЭ_60608587_ОБ | F165: СРЦЦЭ | G165: L=600, S=600, H=850-870, ОБ | K165: =ROUND(O165*(1+'Повышение цен'!$C$10),0) -> 5730 | L165: =ROUND(IF($D$4="С НДС",K165*(1-$D$3),K165*(1-$D$3)/1.22),0) -> 5730 | M165: н/ст, толщина столешницы - 0,8 мм, разборная конструкция, обвязка с четырех сторон, каркас - оцин. уголок 40*40*1,5 мм, Hстолешницы -40 мм, без борта, столешница усилена ЛДСП толщиной 16 мм, регулируемые ножки(+/-20мм), | O165: 4760
C166: СРЦЦЭ_80608587_ОБ | F166: СРЦЦЭ | G166: L=800, S=600, H=850-870, ОБ | K166: =ROUND(O166*(1+'Повышение цен'!$C$10),0) -> 6364 | L166: 6364 | O166: 5287
C167: СРЦЦЭ_100608587_ОБ | F167: СРЦЦЭ | G167: L=1000, S=600, H=850-870, ОБ | K167: =ROUND(O167*(1+'Повышение цен'!$C$10),0) -> 6996 | L167: 6996 | O167: 5812
C168: СРЦЦЭ_120608587_ОБ | F168: СРЦЦЭ | G168: L=1200, S=600, H=850-870, ОБ | K168: =ROUND(O168*(1+'Повышение цен'!$C$10),0) -> 7630 | L168: 7630 | O168: 6338
C169: СРЦЦЭ_150608587_ОБ | F169: СРЦЦЭ | G169: L=1500, S=600, H=850-870, ОБ | K169: =ROUND(O169*(1+'Повышение цен'!$C$10),0) -> 8579 | L169: 8579 | O169: 7127
C171: СРЦЦЭ_60708587_ОБ | F171: СРЦЦЭ | G171: L=600, S=700, H=850-870, ОБ | K171: =ROUND(O171*(1+'Повышение цен'!$C$10),0) -> 6035 | L171: =ROUND(IF($D$4="С НДС",K171*(1-$D$3),K171*(1-$D$3)/1.22),0) -> 6035 | O171: 5013
C172: СРЦЦЭ_80708587_ОБ | F172: СРЦЦЭ | G172: L=800, S=700, H=850-870, ОБ | K172: =ROUND(O172*(1+'Повышение цен'!$C$10),0) -> 6730 | L172: 6730 | O172: 5591
C173: СРЦЦЭ_100708587_ОБ | F173: СРЦЦЭ | G173: L=1000, S=700, H=850-870, ОБ | K173: =ROUND(O173*(1+'Повышение цен'!$C$10),0) -> 7427 | L173: 7427 | O173: 6170
C174: СРЦЦЭ_120708587_ОБ | F174: СРЦЦЭ | G174: L=1200, S=700, H=850-870, ОБ | K174: =ROUND(O174*(1+'Повышение цен'!$C$10),0) -> 8123 | L174: 8123 | O174: 6748
C175: СРЦЦЭ_150708587_ОБ | F175: СРЦЦЭ | G175: L=1500, S=700, H=850-870, ОБ | K175: =ROUND(O175*(1+'Повышение цен'!$C$10),0) -> 9167 | L175: 9167 | O175: 7615
C177: Формула расчета цены | M177: Техническое описание
B178: Артикул | D178: Длина, | E178: Глубина, | F178: Высота | G178: Доп. | H178: Доп. | J178: Доп. | K178: Базовая цена, | L178: Ваша цена, | M178: Нестандартной модели
D179: мм | E179: мм | F179: мм | G179: опция | H179: опция | J179: колеса | K179: руб | L179: руб | M179: =CONCATENATE("н/ст, толщина столешницы - 0,8 мм",", обвязка, каркас - оцин. уголок 40*40*1,5 мм,",IF(C180="СРПЦЭ","стол с бортом Нборта-40мм, отступ от края 100 мм","стол без борта")," Hстолешницы -40 мм, столешница усилена ЛДСП толщиной 16 мм,",IF(J180="К",", 4 колеса(2 с тормозом)","регулируемые ножки(+/-20мм)"),", длина ", D180,"мм",", глубина ",E180,"мм"," ,высота ",F180,"мм, ", "Объем в упаковке ",IF(I180="",ROUND(D180/1000*E180/1000*0.255,2), ROUND(D180/1000*E180/1000*(F180+150)/1000,2))," м3") -> н/ст, толщина столешницы - 0,8 мм, обвязка, каркас - оцин. уголок 40*40*1,5 мм,стол с бортом Нборта-40мм, отступ от края 100 мм Hстолешницы -40 мм, столешница усилена ЛДСП толщиной 16 мм,регулируемые ножки(+/-20мм), длина 1100мм, глубина 700мм ,высота 870мм, Объем в упаковке 0,2 м3
B180: =UPPER(CONCATENATE(C180,"_",D180/10,E180/10,IF(AND(F183=870,J180=""),8587,F183/10),"_",G180,J180)) -> СРПЦЭ_110708587_ОБ | C180: СРПЦЭ | D180: 1100 | E180: 700 | F180: 870 | G180: ОБ | K180: =ROUND((K181*IF(D181>1500,1.05,1)*IF(E181>700,1.05,1)*IF(F181>870,1.05,1)+IF(J180="К",6000,0))*1.1*1.07*1.15*(1+'Повышение цен'!C10),0) -> 8103 | L180: =ROUND(IF($D$4="С НДС",K180*(1-$D$3),K180*(1-$D$3)/1.22),0) -> 8103
D181: =IF(AND(D180>349,D180<2001),D180,"не производим") -> 1100 | E181: =IF(AND(E180>349,E180<801),E180,"не производим") -> 700 | F181: =IF(AND(F183>599,F183<1001),F183,"не производим") -> 870 | K181: =IF(C180="СРПЦЭ",ROUND((((D181*E181*Техно!I12*Техно!J8*0.00001*1.25*Техно!J12)+((E181-50)*80*0.00001*Техно!J8*Техно!I17*Техно!J17*D181/E181)+(((D181-100)*80*0.00001*Техно!J8*Техно!I15*2)+((E181-100)*80*0.00001*Техно!J8*Техно!I15*2)+((F181-50)*80*0.00001*Техно!J8*Техно!I15*2))*Техно!J15)*1.18+((D181*0.001+E181*0.001)*0.9*Техно!J20)+(Техно!J25*0.15)+((Техно!J26+Техно!J27)*1.8))*1.18/0.7*(0.85+0.6944),0),IF(C180="СРЦЦЭ",ROUND((((D181*E181*Техно!I12*Техно!J8*0.00001*1.1*Техно!J12)+((E181-50)*80*0.00001*Техно!J8*Техно!I17*Техно!J17*D181/E181)+(((D181-100)*80*0.00001*Техно!J8*Техно!I15*2)+((E181-100)*80*0.00001*Техно!J8*Техно!I15*2)+((F181-50)*80*0.00001*Техно!J8*Техно!I15*2))*Техно!J15)*1.18+((D181*0.001+E181*0.001)*0.9*Техно!J20)+(Техно!J25*0.15)+((Техно!J26+Техно!J27)*1.8))*1.18/0.7*(0.85+0.6944),0))) -> 4973
D182: 350-2000 | E182: 350-800 | F182: 600-1000 | G182: ОБ | J182: К | K182: Колеса
F183: =IF(F180=850,870,F180) -> 870
C184: СРПЦЭ | D184: с бортом
C185: СРЦЦЭ | D185: без борта

Sheet Столы РП
A1: Нейтральное оборудование/Столы с решетчатой полкой | N1: На главную
A3: Ваша скидка: | D3: =Содержание!C2 -> 0
A4: НДС: | D4: =IF(Лист2!A1=TRUE,"С НДС","БЕЗ НДС") -> С НДС
B7: Стол с бортом с решетчатой полкой (СРП Ш; РП)
B10: Изображение | C10: Артикул | F10: Модель | G10: Характеристика номенклатуры | K10: Базовая цена, | L10: Ваша цена, | M10: Техническое описание | O10: Базовая цена,
K11: руб | L11: руб | O11: руб
C12: СРПШ_60608587_РП | F12: СРПШ | G12: L=600, S=600, H=850-870, РП | K12: =ROUND(O12*(1+'Повышение цен'!$C$9),0) -> 13998 | L12: =ROUND(IF($D$4="С НДС",K12*(1-$D$3),K12*(1-$D$3)/1.2),0) -> 13998 | M12: шлифованная н/ст, толщина столешницы - 1 мм, разборная конструкция, решетчатая полка, каркас - труба 40*40*1,2 мм, Hстолешницы -50 мм, Hборта - 40 мм, столешница усилена ЛДСП толщиной 16 мм, регулируемые ножки(+/-20мм), отступ от края 100 мм | O12: 11628
C13: СРПШ_80608587_РП | F13: СРПШ | G13: L=800, S=600, H=850-870, РП | K13: =ROUND(O13*(1+'Повышение цен'!$C$9),0) -> 15784 | L13: 15784 | O13: 13112
C14: СРПШ_100608587_РП | F14: СРПШ | G14: L=1000, S=600, H=850-870, РП | K14: =ROUND(O14*(1+'Повышение цен'!$C$9),0) -> 17820 | L14: 17820 | O14: 14803
C15: СРПШ_120608587_РП | F15: СРПШ | G15: L=1200, S=600, H=850-870, РП | K15: =ROUND(O15*(1+'Повышение цен'!$C$9),0) -> 20105 | L15: 20105 | O15: 16702
C16: СРПШ_150608587_РП | F16: СРПШ | G16: L=1500, S=600, H=850-870, РП | K16: =ROUND(O16*(1+'Повышение цен'!$C$9),0) -> 24006 | L16: 24006 | O16: 19942
C17: СРПШ_180608587_РП | F17: СРПШ | G17: L=1800, S=600, H=850-870, РП | K17: =ROUND(O17*(1+'Повышение цен'!$C$9),0) -> 28472 | L17: 28472 | O17: 23652
C19: СРПШ_60708587_РП | F19: СРПШ | G19: L=600, S=700, H=850-870, РП | K19: =ROUND(O19*(1+'Повышение цен'!$C$9),0) -> 14666 | L19: 14666 | O19: 12183
C20: СРПШ_80708587_РП | F20: СРПШ | G20: L=800, S=700, H=850-870, РП | K20: =ROUND(O20*(1+'Повышение цен'!$C$9),0) -> 16648 | L20: 16648 | O20: 13830
C21: СРПШ_100708587_РП | F21: СРПШ | G21: L=1000, S=700, H=850-870, РП | K21: =ROUND(O21*(1+'Повышение цен'!$C$9),0) -> 18903 | L21: 18903 | O21: 15703
C22: СРПШ_120708587_РП | F22: СРПШ | G22: L=1200, S=700, H=850-870, РП | K22: =ROUND(O22*(1+'Повышение цен'!$C$9),0) -> 21425 | L22: 21425 | O22: 17798
C23: СРПШ_150708587_РП | F23: СРПШ | G23: L=1500, S=700, H=850-870, РП | K23: =ROUND(O23*(1+'Повышение цен'!$C$9),0) -> 25714 | L23: 25714 | O23: 21361
C24: СРПШ_180708587_РП | F24: СРПШ | G24: L=1800, S=700, H=850-870, РП | K24: =ROUND(O24*(1+'Повышение цен'!$C$9),0) -> 30611 | L24: 30611 | O24: 25429
B27: Стол без борта с решетчатой полкой (СРЦ Ш; РП)
B29: Изображение | C29: Артикул | F29: Модель | G29: Характеристика номенклатуры | K29: Базовая цена, | L29: Ваша цена, | M29: Техническое описание | O29: Базовая цена,
K30: руб | L30: руб | O30: руб
C31: СРЦШ_60608587_РП | F31: СРЦШ | G31: L=600, S=600, H=850-870, РП | K31: =ROUND(O31*(1+'Повышение цен'!$C$9),0) -> 13363 | L31: =ROUND(IF($D$4="С НДС",K31*(1-$D$3),K31*(1-$D$3)/1.2),0) -> 13363 | M31: шлифованная н/ст, толщина столешницы - 1 мм, разборная конструкция, решетчатая полка, каркас - труба 40*40*1,2 мм, Hстолешницы -50 мм, без борта, столешница усилена ЛДСП толщиной 16 мм, регулируемые ножки(+/-20мм) | O31: 11101
C32: СРЦШ_80608587_РП | F32: СРЦШ | G32: L=800, S=600, H=850-870, РП | K32: =ROUND(O32*(1+'Повышение цен'!$C$9),0) -> 15139 | L32: 15139 | O32: 12576
C33: СРЦШ_100608587_РП | F33: СРЦШ | G33: L=1000, S=600, H=850-870, РП | K33: =ROUND(O33*(1+'Повышение цен'!$C$9),0) -> 17165 | L33: 17165 | O33: 14259
C34: СРЦШ_120608587_РП | F34: СРЦШ | G34: L=1200, S=600, H=850-870, РП | K34: =ROUND(O34*(1+'Повышение цен'!$C$9),0) -> 19442 | L34: 19442 | O34: 16151
C35: СРЦШ_150608587_РП | F35: СРЦШ | G35: L=1500, S=600, H=850-870, РП | K35: =ROUND(O35*(1+'Повышение цен'!$C$9),0) -> 23330 | L35: 23330 | O35: 19381
C36: СРЦШ_180608587_РП | F36: СРЦШ | G36: L=1800, S=600, H=850-870, РП | K36: =ROUND(O36*(1+'Повышение цен'!$C$9),0) -> 27781 | L36: 27781 | O36: 23078
C38: СРЦШ_60708587_РП | F38: СРЦШ | G38: L=600, S=700, H=850-870, РП | K38: =ROUND(O38*(1+'Повышение цен'!$C$9),0) -> 14025 | L38: =ROUND(IF($D$4="С НДС",K38*(1-$D$3),K38*(1-$D$3)/1.2),0) -> 14025 | O38: 11651
C39: СРЦШ_80708587_РП | F39: СРЦШ | G39: L=800, S=700, H=850-870, РП | K39: =ROUND(O39*(1+'Повышение цен'!$C$9),0) -> 15998 | L39: 15998 | O39: 13290
C40: СРЦШ_100708587_РП | F40: СРЦШ | G40: L=1000, S=700, H=850-870, РП | K40: =ROUND(O40*(1+'Повышение цен'!$C$9),0) -> 18242 | L40: 18242 | O40: 15154
C41: СРЦШ_120708587_РП | F41: СРЦШ | G41: L=1200, S=700, H=850-870, РП | K41: =ROUND(O41*(1+'Повышение цен'!$C$9),0) -> 20753 | L41: 20753 | O41: 17240
C42: СРЦШ_150708587_РП | F42: СРЦШ | G42: L=1500, S=700, H=850-870, РП | K42: =ROUND(O42*(1+'Повышение цен'!$C$9),0) -> 25027 | L42: 25027 | O42: 20790
C43: СРЦШ_180708587_РП | F43: СРЦШ | G43: L=1800, S=700, H=850-870, РП | K43: =ROUND(O43*(1+'Повышение цен'!$C$9),0) -> 29908 | L43: 29908 | O43: 24845
C45: Формула расчета цены | M45: Техническое описание
B46: Артикул | C46: Модель | D46: Длина, | E46: Глубина, | F46: Высота | G46: Доп. | H46: Доп. | I46: Каркас | J46: Доп. | K46: Базовая цена, | L46: Ваша цена, | M46: Нестандартной модели
D47: мм | E47: мм | F47: мм | G47: опция | H47: борт | I47: раз/св | J47: колеса | K47: руб | L47: руб | M47: =CONCATENATE("шлифованная н/ст, толщина столешницы - 1 мм,",IF(I48="СВ","сварная конструкция","разборная конструкция"),", решетчатая полка, каркас - труба 40*40*1,2 мм,",IF(C48="СРПШ","стол с бортом Нборта-40мм, отступ от края 100 мм","стол без борта"),IF(AND(C48="СРПШ",G48="ОБ2Б"),", стол угловой с двумя бортами",""),IF(AND(C48="СРПШ",G48="ОБ3Б"),", стол с тремя бортами",""),IF(AND(G48="ОБ2Б",H48="П"),", правый",""),IF(AND(G48="ОБ2Б",H48="Л"),", левый","")," Hстолешницы -50 мм, столешница усилена ЛДСП толщиной 16 мм,",IF(J48="К",", 4 колеса(2 с тормозом)","регулируемые ножки(+/-20мм)"),", длина ", D48,"мм",", глубина ",E48,"мм"," ,высота ",F48,"мм, ", "Объем в упаковке ",IF(I48="",ROUND(D48/1000*E48/1000*0.255,2), ROUND(D48/1000*E48/1000*(F48+150)/1000,2))," м3") -> шлифованная н/ст, толщина столешницы - 1 мм,разборная конструкция, решетчатая полка, каркас - труба 40*40*1,2 мм,стол с бортом Нборта-40мм, отступ от края 100 мм Hстолешницы -50 мм, столешница усилена ЛДСП толщиной 16 мм,регулируемые ножки(+/-20мм), длина 1200мм, глубина 600мм ,высота 870мм, Объем в упаковке 0,18 м3
B48: =UPPER(CONCATENATE(C48,"_",D48/10,E48/10,IF(AND(J48="",F51=850),8587,F51/10),"_",G48,H48,I48,J48)) -> СРПШ_120608587_РП | C48: СРПШ | D48: 1200 | E48: 600 | F48: 870 | G48: РП | K48: =ROUND(((K49*IF(D49>1800,1.05,1)*IF(E49>700,1.05,1)*IF(F49>870,1.05,1)*IF(G48="РП3Б",1.07,1)+IF(J48="К",6000,0))*1.1),0)*1.05*1.07*1.1*(1+'Повышение цен'!$C$9) -> 20106.1165 | L48: =ROUND(IF($D$4="С НДС",K48*(1-$D$3),K48*(1-$D$3)/1.2),0) -> 20106
D49: =IF(AND(D48>349,D48<2001),D48,"не производим") -> 1200 | E49: =IF(AND(E48>399,E48<1001),E48,"не производим") -> 600 | F49: =IF(AND(F51>599,F51<1001),F51,"не производим") -> 850 | K49: =IF(C48="СРПШ",IF(AND(I48="",G48="РП"),ROUND(((((D49*E49*Техно!M10*Техно!N8*0.00001*1.8)+(((E49-50)*150*0.00001*Техно!N8*Техно!M10*D49/600*D49/400)+(((D49-100)*150*0.00001*Техно!N8*Техно!M10*D49/600*2)+((E49-100)*150*0.00001*Техно!N8*Техно!M10*2))))*Техно!N10+(F49*4*0.001*Техно!N19))*1.18+((D49*0.001+E49*0.001)*0.9*Техно!N20)+(Техно!N25*0.35)+((Техно!N26+Техно!N27)*3.5))*1.18/0.7*(0.85+0.6944),0),IF(AND(I48="СВ",G48="РП"),ROUND(((((D49*E49*Техно!M10*Техно!N8*0.00001*1.8)+(((E49-50)*150*0.00001*Техно!N8*Техно!M10*D49/600*D49/400)+(((D49-100)*150*0.00001*Техно!N8*Техно!M10*D49/600*2)+((E49-100)*150*0.00001*Техно!N8*Техно!M10*2))))*Техно!N10+(F49*4*0.001*Техно!N19))*1.18+((D49*0.001+E49*0.001)*0.9*Техно!N20)+(Техно!N25*0.35)+((Техно!N26+Техно!N27)*3.5))*1.18/0.7*1.07*(0.85+0.6944),0),IF(AND(I48="",OR(G48="РП2Б",G48="РП3Б")),ROUND(((((D49*E49*Техно!M10*Техно!N8*0.00001*1.8)+(((E49-50)*150*0.00001*Техно!N8*Техно!M10*D49/600*D49/400)+(((D49-100)*150*0.00001*Техно!N8*Техно!M10*D49/600*2)+((E49-100)*150*0.00001*Техно!N8*Техно!M10*2))))*Техно!N10+(F49*4*0.001*Техно!N19))*1.18+((D49*0.001+E49*0.001)*0.9*Техно!N20)+(Техно!N25*0.35)+((Техно!N26+Техно!N27)*3.5))*1.18/0.7*1.05*(0.85+0.6944),0),IF(AND(I48="СВ",OR(G48="РП2Б",G48="РП3Б")),ROUND(((((D49*E49*Техно!M10*Техно!N8*0.00001*1.8)+(((E49-50)*150*0.00001*Техно!N8*Техно!M10*D49/600*D49/400)+(((D49-100)*150*0.00001*Техно!N8*Техно!M10*D49/600*2)+((E49-100)*150*0.00001*Техно!N8*Техно!M10*2))))*Техно!N10+(F49*4*0.001*Техно!N19))*1.18+((D49*0.001+E49*0.001)*0.9*Техно!N20)+(Техно!N25*0.35)+((Техно!N26+Техно!N27)*3.5))*1.18/0.7*1.11*(0.85+0.6944),0))))),IF(C48="СРЦШ",IF(AND(I48="",G48="РП"),ROUND(((((D49*E49*Техно!K10*Техно!L8*0.00001*1.78)+(((E49-50)*150*0.00001*Техно!L8*Техно!K10*D49/600*D49/400)+(((D49-100)*150*0.00001*Техно!L8*Техно!K10*D49/600*2)+((E49-100)*150*0.00001*Техно!L8*Техно!K10*2))))*Техно!L10+(F49*4*0.001*Техно!L19))*1.18+((D49*0.001+E49*0.001)*0.9*Техно!L20)+(Техно!L25*0.35)+((Техно!L26+Техно!L27)*3))*1.18/0.7*(0.85+0.6944),0),IF(AND(I48="СВ",G48="РП"),ROUND(((((D49*E49*Техно!K10*Техно!L8*0.00001*1.78)+(((E49-50)*150*0.00001*Техно!L8*Техно!K10*D49/600*D49/400)+(((D49-100)*150*0.00001*Техно!L8*Техно!K10*D49/600*2)+((E49-100)*150*0.00001*Техно!L8*Техно!K10*2))))*Техно!L10+(F49*4*0.001*Техно!L19))*1.18+((D49*0.001+E49*0.001)*0.9*Техно!L20)+(Техно!L25*0.35)+((Техно!L26+Техно!L27)*3))*1.18/0.7*1.07*(0.85+0.6944),0),)))) -> 12286
D50: 350-2000 | E50: 400-1000 | F50: 600-1000 | J50: К | K50: Колеса
F51: =IF(F48=870,850,F48) -> 850 | G51: РП | I51: СВ | K51: Сварная конструкция
G52: РП2Б | H52: П | I52: угловой стол(два борта сзади и справа)
C53: СРПШ | D53: с бортом | G53: РП2Б | H53: Л | I53: угловой стол(два борта сзади и слева)
C54: СРЦШ | D54: без борта | G54: РП3Б | I54: Стол с тремя бортами
B56: Стол с бортом с решетчатой полкой (СРПН Э1; РП)
B58: Изображение | C58: Артикул | F58: Модель | G58: Характеристика номенклатуры | K58: Базовая цена, | L58: Ваша цена, | M58: Техническое описание | O58: Базовая цена,
K59: руб | L59: руб | O59: руб
C60: СРПНЭ1_60608587_РП | F60: СРПНЭ1 | G60: L=600, S=600, H=850-870, РП | K60: =ROUND(O60*(1+'Повышение цен'!$C$10),0) -> 13120 | L60: =ROUND(IF($D$4="С НДС",K60*(1-$D$3),K60*(1-$D$3)/1.2),0) -> 13120 | M60: н/ст, толщина столешницы - 0,8 мм, разборная конструкция, решетчатая полка, каркас - труба 40*40*1,2 мм, Hстолешницы -40 мм, Hборта - 40 мм, столешница усилена ЛДСП толщиной 16 мм, регулируемые ножки(+/-20мм), отступ от края 100 мм | O60: 10899
C61: СРПНЭ1_80608587_РП | F61: СРПНЭ1 | G61: L=800, S=600, H=850-870, РП | K61: =ROUND(O61*(1+'Повышение цен'!$C$10),0) -> 14485 | L61: 14485 | O61: 12033
C62: СРПНЭ1_100608587_РП | F62: СРПНЭ1 | G62: L=1000, S=600, H=850-870, РП | K62: =ROUND(O62*(1+'Повышение цен'!$C$10),0) -> 16033 | L62: 16033 | O62: 13319
C63: СРПНЭ1_120608587_РП | F63: СРПНЭ1 | G63: L=1200, S=600, H=850-870, РП | K63: =ROUND(O63*(1+'Повышение цен'!$C$10),0) -> 17764 | L63: 17764 | O63: 14757
C64: СРПНЭ1_150608587_РП | F64: СРПНЭ1 | G64: L=1500, S=600, H=850-870, РП | K64: =ROUND(O64*(1+'Повышение цен'!$C$10),0) -> 20701 | L64: 20701 | O64: 17197
C65: СРПНЭ1_180608587_РП | F65: СРПНЭ1 | G65: L=1800, S=600, H=850-870, РП | K65: =ROUND(O65*(1+'Повышение цен'!$C$10),0) -> 24051 | L65: 24051 | O65: 19980
C67: СРПНЭ1_60708587_РП | F67: СРПНЭ1 | G67: L=600, S=700, H=850-870, РП | K67: =ROUND(O67*(1+'Повышение цен'!$C$10),0) -> 13638 | L67: =ROUND(IF($D$4="С НДС",K67*(1-$D$3),K67*(1-$D$3)/1.2),0) -> 13638 | O67: 11329
C68: СРПНЭ1_80708587_РП | F68: СРПНЭ1 | G68: L=800, S=700, H=850-870, РП | K68: =ROUND(O68*(1+'Повышение цен'!$C$10),0) -> 15153 | L68: 15153 | O68: 12588
C69: СРПНЭ1_100708587_РП | F69: СРПНЭ1 | G69: L=1000, S=700, H=850-870, РП | K69: =ROUND(O69*(1+'Повышение цен'!$C$10),0) -> 16865 | L69: 16865 | O69: 14010
C70: СРПНЭ1_120708587_РП | F70: СРПНЭ1 | G70: L=1200, S=700, H=850-870, РП | K70: =ROUND(O70*(1+'Повышение цен'!$C$10),0) -> 18774 | L70: 18774 | O70: 15596
C71: СРПНЭ1_150708587_РП | F71: СРПНЭ1 | G71: L=1500, S=700, H=850-870, РП | K71: =ROUND(O71*(1+'Повышение цен'!$C$10),0) -> 22004 | L71: 22004 | O71: 18279
C72: СРПНЭ1_180708587_РП | F72: СРПНЭ1 | G72: L=1800, S=700, H=850-870, РП | K72: =ROUND(O72*(1+'Повышение цен'!$C$10),0) -> 25678 | L72: 25678 | O72: 21331
B75: Стол без борта с решетчатой полкой (СРЦН Э1; РП)
B77: Изображение | C77: Артикул | F77: Модель | G77: Характеристика номенклатуры | K77: Базовая цена, | L77: Ваша цена, | M77: Техническое описание | O77: Базовая цена,
K78: руб | L78: руб | O78: руб
C79: СРЦНЭ1_60608587_РП | F79: СРЦНЭ1 | G79: L=600, S=600, H=850-870, РП | K79: =ROUND(O79*(1+'Повышение цен'!$C$10),0) -> 12520 | L79: =ROUND(IF($D$4="С НДС",K79*(1-$D$3),K79*(1-$D$3)/1.2),0) -> 12520 | M79: н/ст, толщина столешницы - 0,8 мм, разборная конструкция, решетчатая полка, каркас - труба 40*40*1,2 мм, Hстолешницы -40 мм, Hборта - 40 мм, столешница усилена ЛДСП толщиной 16 мм, регулируемые ножки(+/-20мм), | O79: 10401
C80: СРЦНЭ1_80608587_РП | F80: СРЦНЭ1 | G80: L=800, S=600, H=850-870, РП | K80: =ROUND(O80*(1+'Повышение цен'!$C$10),0) -> 13880 | L80: 13880 | O80: 11530
C81: СРЦНЭ1_100608587_РП | F81: СРЦНЭ1 | G81: L=1000, S=600, H=850-870, РП | K81: =ROUND(O81*(1+'Повышение цен'!$C$10),0) -> 15420 | L81: 15420 | O81: 12810
C82: СРЦНЭ1_120608587_РП | F82: СРЦНЭ1 | G82: L=1200, S=600, H=850-870, РП | K82: =ROUND(O82*(1+'Повышение цен'!$C$10),0) -> 17144 | L82: 17144 | O82: 14242
C83: СРЦНЭ1_150608587_РП | F83: СРЦНЭ1 | G83: L=1500, S=600, H=850-870, РП | K83: =ROUND(O83*(1+'Повышение цен'!$C$10),0) -> 20074 | L83: 20074 | O83: 16676
C84: СРЦНЭ1_180608587_РП | F84: СРЦНЭ1 | G84: L=1800, S=600, H=850-870, РП | K84: =ROUND(O84*(1+'Повышение цен'!$C$10),0) -> 23413 | L84: 23413 | O84: 19450
C86: СРЦНЭ1_60708587_РП | F86: СРЦНЭ1 | G86: L=600, S=700, H=850-870, РП | K86: =ROUND(O86*(1+'Повышение цен'!$C$10),0) -> 13035 | L86: =ROUND(IF($D$4="С НДС",K86*(1-$D$3),K86*(1-$D$3)/1.2),0) -> 13035 | O86: 10828
C87: СРЦНЭ1_80708587_РП | F87: СРЦНЭ1 | G87: L=800, S=700, H=850-870, РП | K87: =ROUND(O87*(1+'Повышение цен'!$C$10),0) -> 14542 | L87: 14542 | O87: 12080
C88: СРЦНЭ1_100708587_РП | F88: СРЦНЭ1 | G88: L=1000, S=700, H=850-870, РП | K88: =ROUND(O88*(1+'Повышение цен'!$C$10),0) -> 16246 | L88: 16246 | O88: 13496
C89: СРЦНЭ1_120708587_РП | F89: СРЦНЭ1 | G89: L=1200, S=700, H=850-870, РП | K89: =ROUND(O89*(1+'Повышение цен'!$C$10),0) -> 18148 | L89: 18148 | O89: 15076
C90: СРЦНЭ1_150708587_РП | F90: СРЦНЭ1 | G90: L=1500, S=700, H=850-870, РП | K90: =ROUND(O90*(1+'Повышение цен'!$C$10),0) -> 21368 | L90: 21368 | O90: 17751
C91: СРЦНЭ1_180708587_РП | F91: СРЦНЭ1 | G91: L=1800, S=700, H=850-870, РП | K91: =ROUND(O91*(1+'Повышение цен'!$C$10),0) -> 25029 | L91: 25029 | O91: 20792
C93: Формула расчета цены | M93: Техническое описание
B94: Артикул | D94: Длина, | E94: Глубина, | F94: Высота | G94: Доп. | H94: Доп. | I94: Каркас | J94: Доп. | K94: Базовая цена, | L94: Ваша цена, | M94: Нестандартной модели
D95: мм | E95: мм | F95: мм | G95: опция | H95: опция | I95: раз/св | J95: колеса | K95: руб | L95: руб | M95: =CONCATENATE("н/ст, толщина столешницы - 0,8 мм,",IF(I96="СВ","сварная конструкция","разборная конструкция"),", решетчатая полка, каркас - труба 40*40*1,2 мм,",IF(C96="СРПНЭ1","стол с бортом Нборта-40мм, отступ от края 100 мм","стол без борта")," Hстолешницы -40 мм, столешница усилена ЛДСП толщиной 16 мм,",IF(J96="К",", 4 колеса(2 с тормозом)","регулируемые ножки(+/-20мм)"),", длина ", D96,"мм",", глубина ",E96,"мм"," ,высота ",F96,"мм, ", "Объем ",IF(I96="",ROUND(D96/1000*E96/1000*0.255,2), ROUND(D96/1000*E96/1000*(F96+150)/1000,2))," м3") -> н/ст, толщина столешницы - 0,8 мм,разборная конструкция, решетчатая полка, каркас - труба 40*40*1,2 мм,стол с бортом Нборта-40мм, отступ от края 100 мм Hстолешницы -40 мм, столешница усилена ЛДСП толщиной 16 мм,регулируемые ножки(+/-20мм), длина 1000мм, глубина 500мм ,высота 850мм, Объем 0,13 м3
B96: =UPPER(CONCATENATE(C96,"_",D96/10,E96/10,IF(AND(F99=850,J96=""),8587,F99/10),"_",G96,,I96,J96)) -> СРПНЭ1_100508587_РП | C96: СРПНЭ1 | D96: 1000 | E96: 500 | F96: 850 | G96: РП | K96: =ROUND((K97*IF(D97>1800,1.05,1)*IF(E97>700,1.05,1)*IF(F97>870,1.05,1)+IF(J96="К",6000,0))*1.1*1.07*1.1*(1+'Повышение цен'!$C$10),0) -> 15200 | L96: =ROUND(IF($D$4="С НДС",K96*(1-$D$3),K96*(1-$D$3)/1.2),0) -> 15200
D97: =IF(AND(D96>349,D96<2001),D96,"не производим") -> 1000 | E97: =IF(AND(E96>399,E96<1001),E96,"не производим") -> 500 | F97: =IF(AND(F99>599,F99<1001),F99,"не производим") -> 850 | K97: =IF(C96="СРПНЭ1",IF(I96="",ROUND(((((D97*E97*Техно!K12*Техно!L8*0.00001*1.9)+(((E97-50)*150*0.00001*Техно!L8*Техно!K12*D97/600*D97/400)+(((D97-100)*150*0.00001*Техно!L8*Техно!K12*D97/600*2)+((E97-100)*150*0.00001*Техно!L8*Техно!K12*2))))*Техно!L12+(F97*4*0.001*Техно!L19))*1.18+((D97*0.001+E97*0.001)*0.9*Техно!L20)+(Техно!L25*0.35)+((Техно!L26+Техно!L27)*4))*1.18/0.7*(0.85+0.6944),0),IF(I96="СВ",ROUND(((((D97*E97*Техно!K12*Техно!L8*0.00001*1.9)+(((E97-50)*150*0.00001*Техно!L8*Техно!K12*D97/600*D97/400)+(((D97-100)*150*0.00001*Техно!L8*Техно!K12*D97/600*2)+((E97-100)*150*0.00001*Техно!L8*Техно!K12*2))))*Техно!L12+(F97*4*0.001*Техно!L19))*1.18+((D97*0.001+E97*0.001)*0.9*Техно!L20)+(Техно!L25*0.35)+((Техно!L26+Техно!L27)*4))*1.18/0.7*1.07*(0.85+0.6944),0))),IF(C96="СРЦНЭ1",IF(I96="",ROUND(((((D97*E97*Техно!K12*Техно!L8*0.00001*1.88)+(((E97-50)*150*0.00001*Техно!L8*Техно!K12*D97/600*D97/400)+(((D97-100)*150*0.00001*Техно!L8*Техно!K12*D97/600*2)+((E97-100)*150*0.00001*Техно!L8*Техно!K12*2))))*Техно!L12+(F97*4*0.001*Техно!L19))*1.18+((D97*0.001+E97*0.001)*0.9*Техно!L20)+(Техно!L25*0.35)+((Техно!L26+Техно!L27)*3.5))*1.18/0.7*(0.85+0.6944),0),IF(I96="СВ",ROUND(((((D97*E97*Техно!K12*Техно!L8*0.00001*1.88)+(((E97-50)*150*0.00001*Техно!L8*Техно!K12*D97/600*D97/400)+(((D97-100)*150*0.00001*Техно!L8*Техно!K12*D97/600*2)+((E97-100)*150*0.00001*Техно!L8*Техно!K12*2))))*Техно!L12+(F97*4*0.001*Техно!L19))*1.18+((D97*0.001+E97*0.001)*0.9*Техно!L20)+(Техно!L25*0.35)+((Техно!L26+Техно!L27)*3.5))*1.18/0.7*1.07*(0.85+0.6944),0))))) -> 9753
D98: 350-2000 | E98: 400-1000 | F98: 600-1000 | G98: РП | J98: К | K98: Колеса
F99: =IF(F96=870,850,F96) -> 850 | I99: СВ | K99: Сварная конструкция
C100: СРПНЭ1 | D100: с бортом
C101: СРЦНЭ1 | D101: без борта
B103: Стол с бортом с решетчатой полкой (СРПН Э; РП)
B105: Изображение | C105: Артикул | F105: Модель | G105: Характеристика номенклатуры | K105: Базовая цена, | L105: Ваша цена, | M105: Техническое описание | O105: Базовая цена,
K106: руб | L106: руб | O106: руб
C107: СРПНЭ_60608587_РП | F107: СРПНЭ | G107: L=600, S=600, H=850-870, РП | K107: =ROUND(O107*(1+'Повышение цен'!$C$10),0) -> 7510 | L107: =ROUND(IF($D$4="С НДС",K107*(1-$D$3),K107*(1-$D$3)/1.22),0) -> 7510 | M107: н/ст, толщина столешницы - 0,8 мм, разборная конструкция, решетчатая полка, каркас - нерж. уголок 40*40*1,5 мм, Hстолешницы -40 мм, Hборта - 40 мм, столешница усилена ЛДСП толщиной 16 мм, регулируемые ножки(+/-20мм), отступ от края 100 мм | O107: 6239
C108: СРПНЭ_80608587_РП | F108: СРПНЭ | G108: L=800, S=600, H=850-870, РП | K108: =ROUND(O108*(1+'Повышение цен'!$C$10),0) -> 8328 | L108: =ROUND(IF($D$4="С НДС",K108*(1-$D$3),K108*(1-$D$3)/1.22),0) -> 8328 | O108: 6918
C109: СРПНЭ_100608587_РП | F109: СРПНЭ | G109: L=1000, S=600, H=850-870, РП | K109: =ROUND(O109*(1+'Повышение цен'!$C$10),0) -> 9144 | L109: 9144 | O109: 7596
C110: СРПНЭ_120608587_РП | F110: СРПНЭ | G110: L=1200, S=600, H=850-870, РП | K110: =ROUND(O110*(1+'Повышение цен'!$C$10),0) -> 9961 | L110: 9961 | O110: 8275
C111: СРПНЭ_150608587_РП | F111: СРПНЭ | G111: L=1500, S=600, H=850-870, РП | K111: =ROUND(O111*(1+'Повышение цен'!$C$10),0) -> 11188 | L111: 11188 | O111: 9294
C112: СРПНЭ_180608587_РП | F112: СРПНЭ | G112: L=1800, S=600, H=850-870, РП | K112: =ROUND(O112*(1+'Повышение цен'!$C$10),0) -> 12413 | L112: 12413 | O112: 10312
C114: СРПНЭ_60708587_РП | F114: СРПНЭ | G114: L=600, S=700, H=850-870, РП | K114: =ROUND(O114*(1+'Повышение цен'!$C$10),0) -> 7908 | L114: =ROUND(IF($D$4="С НДС",K114*(1-$D$3),K114*(1-$D$3)/1.22),0) -> 7908 | O114: 6569
C115: СРПНЭ_80708587_РП | F115: СРПНЭ | G115: L=800, S=700, H=850-870, РП | K115: =ROUND(O115*(1+'Повышение цен'!$C$10),0) -> 8804 | L115: 8804 | O115: 7314
C116: СРПНЭ_100708587_РП | F116: СРПНЭ | G116: L=1000, S=700, H=850-870, РП | K116: =ROUND(O116*(1+'Повышение цен'!$C$10),0) -> 9700 | L116: 9700 | O116: 8058
C117: СРПНЭ_120708587_РП | F117: СРПНЭ | G117: L=1200, S=700, H=850-870, РП | K117: =ROUND(O117*(1+'Повышение цен'!$C$10),0) -> 10600 | L117: 10600 | O117: 8806
C118: СРПНЭ_150708587_РП | F118: СРПНЭ | G118: L=1500, S=700, H=850-870, РП | K118: =ROUND(O118*(1+'Повышение цен'!$C$10),0) -> 11943 | L118: 11943 | O118: 9921
C119: СРПНЭ_180708587_РП | F119: СРПНЭ | G119: L=1500, S=700, H=850-870, РП | K119: =ROUND(O119*(1+'Повышение цен'!$C$10),0) -> 13290 | L119: 13290 | O119: 11040
B122: Стол без борта с решетчатой полкой (СРЦН Э; РП)
B124: Изображение | C124: Артикул | F124: Модель | G124: Характеристика номенклатуры | K124: Базовая цена, | L124: Ваша цена, | M124: Техническое описание | O124: Базовая цена,
K125: руб | L125: руб | O125: руб
C126: СРЦНЭ_60608587_РП | F126: СРЦНЭ | G126: L=600, S=600, H=850-870, РП | K126: =ROUND(O126*(1+'Повышение цен'!$C$10),0) -> 7306 | L126: =ROUND(IF($D$4="С НДС",K126*(1-$D$3),K126*(1-$D$3)/1.22),0) -> 7306 | M126: н/ст, толщина столешницы - 0,8 мм, разборная конструкция, решетчатая полка, каркас - нерж. уголок 40*40*1,5 мм, Hстолешницы -40 мм, без борта, столешница усилена ЛДСП толщиной 16 мм, регулируемые ножки(+/-20мм), | O126: 6069
C127: СРЦНЭ_80608587_РП | F127: СРЦНЭ | G127: L=800, S=600, H=850-870, РП | K127: =ROUND(O127*(1+'Повышение цен'!$C$10),0) -> 8056 | L127: 8056 | O127: 6692
C128: СРЦНЭ_100608587_РП | F128: СРЦНЭ | G128: L=1000, S=600, H=850-870, РП | K128: =ROUND(O128*(1+'Повышение цен'!$C$10),0) -> 8804 | L128: 8804 | O128: 7314
C129: СРЦНЭ_120608587_РП | F129: СРЦНЭ | G129: L=1200, S=600, H=850-870, РП | K129: =ROUND(O129*(1+'Повышение цен'!$C$10),0) -> 9552 | L129: 9552 | O129: 7935
C130: СРЦНЭ_150608587_РП | F130: СРЦНЭ | G130: L=1500, S=600, H=850-870, РП | K130: =ROUND(O130*(1+'Повышение цен'!$C$10),0) -> 10678 | L130: 10678 | O130: 8870
C131: СРЦНЭ_180608587_РП | F131: СРЦНЭ | G131: L=1800, S=600, H=850-870, РП | K131: =ROUND(O131*(1+'Повышение цен'!$C$10),0) -> 11802 | L131: 11802 | O131: 9804
C133: СРЦНЭ_60708587_РП | F133: СРЦНЭ | G133: L=600, S=700, H=850-870, РП | K133: =ROUND(O133*(1+'Повышение цен'!$C$10),0) -> 7669 | L133: =ROUND(IF($D$4="С НДС",K133*(1-$D$3),K133*(1-$D$3)/1.22),0) -> 7669 | O133: 6371
C134: СРЦНЭ_80708587_РП | F134: СРЦНЭ | G134: L=800, S=700, H=850-870, РП | K134: =ROUND(O134*(1+'Повышение цен'!$C$10),0) -> 8488 | L134: 8488 | O134: 7051
C135: СРЦНЭ_100708587_РП | F135: СРЦНЭ | G135: L=1000, S=700, H=850-870, РП | K135: =ROUND(O135*(1+'Повышение цен'!$C$10),0) -> 9305 | L135: 9305 | O135: 7730
C136: СРЦНЭ_120708587_РП | F136: СРЦНЭ | G136: L=1200, S=700, H=850-870, РП | K136: =ROUND(O136*(1+'Повышение цен'!$C$10),0) -> 10123 | L136: 10123 | O136: 8409
C137: СРЦНЭ_150708587_РП | F137: СРЦНЭ | G137: L=1500, S=700, H=850-870, РП | K137: =ROUND(O137*(1+'Повышение цен'!$C$10),0) -> 11349 | L137: 11349 | O137: 9428
C138: СРЦНЭ_180708587_РП | F138: СРЦНЭ | G138: L=1800, S=700, H=850-870, РП | K138: =ROUND(O138*(1+'Повышение цен'!$C$10),0) -> 12576 | L138: 12576 | O138: 10447
C140: Формула расчета цены | M140: Техническое описание
B141: Артикул | D141: Длина, | E141: Глубина, | F141: Высота | G141: Доп. | H141: Доп. | J141: Доп. | K141: Базовая цена, | L141: Ваша цена, | M141: Нестандартной модели
D142: мм | E142: мм | F142: мм | G142: опция | H142: опция | J142: колеса | K142: руб | L142: руб | M142: =CONCATENATE("н/ст, толщина столешницы - 0,8 мм",", решетчатая полка, каркас - нерж уголок 40*40*1,5 мм,",IF(C143="СРПНЭ","стол с бортом Нборта-40мм, отступ от края 100 мм","стол без борта")," Hстолешницы -40 мм, столешница усилена ЛДСП толщиной 16 мм,",IF(J143="К",", 4 колеса(2 с тормозом)","регулируемые ножки(+/-20мм)"),", длина ", D143,"мм",", глубина ",E143,"мм"," ,высота ",F143,"мм, ", "Объем в упаковке ",IF(I143="",ROUND(D143/1000*E143/1000*0.255,2), ROUND(D143/1000*E143/1000*(F143+150)/1000,2))," м3") -> н/ст, толщина столешницы - 0,8 мм, решетчатая полка, каркас - нерж уголок 40*40*1,5 мм,стол без борта Hстолешницы -40 мм, столешница усилена ЛДСП толщиной 16 мм,регулируемые ножки(+/-20мм), длина 800мм, глубина 400мм ,высота 870мм, Объем в упаковке 0,08 м3
B143: =UPPER(CONCATENATE(C143,"_",D143/10,E143/10,IF(AND(F146=870,J143=""),8587,F146/10),"_",G143,J143)) -> СРЦНЭ_80408587_РП | C143: СРЦНЭ | D143: 800 | E143: 400 | F143: 870 | G143: РП | K143: =ROUND((K144*IF(D144>1800,1.05,1)*IF(E144>700,1.05,1)*IF(F144>870,1.05,1)+IF(J143="К",6000,0))*1.1*1.07*1.15*(1+'Повышение цен'!$C$10),0) -> 7189 | L143: =ROUND(IF($D$4="С НДС",K143*(1-$D$3),K143*(1-$D$3)/1.22),0) -> 7189
D144: =IF(AND(D143>349,D143<2001),D143,"не производим") -> 800 | E144: =IF(AND(E143>399,E143<801),E143,"не производим") -> 400 | F144: =IF(AND(F146>599,F146<1001),F146,"не производим") -> 870 | K144: =IF(C143="СРПНЭ",ROUND((((D144*E144*Техно!K12*Техно!L8*0.00001*1.4*Техно!L12)+((E144-50)*80*0.00001*Техно!L8*Техно!K17*Техно!L17*D144/E144)+(((D144-100)*80*0.00001*Техно!L8*Техно!K14*2)+((E144-100)*80*0.00001*Техно!L8*Техно!K14*2)+((F144-50)*80*0.00001*Техно!L8*Техно!K14*4))*Техно!L14)*1.18+((D144*0.001+E144*0.001)*0.9*Техно!L20)+(Техно!L25*0.15)+((Техно!L26+Техно!L27)*1.8))*1.18/0.7*(0.85+0.6944),0),IF(C143="СРЦНЭ",ROUND((((D144*E144*Техно!K12*Техно!L8*0.00001*1.2*Техно!L12)+((E144-50)*80*0.00001*Техно!L8*Техно!K17*Техно!L17*D144/E144)+(((D144-100)*80*0.00001*Техно!L8*Техно!K14*2)+((E144-100)*80*0.00001*Техно!L8*Техно!K14*2)+((F144-50)*80*0.00001*Техно!L8*Техно!K14*4))*Техно!L14)*1.18+((D144*0.001+E144*0.001)*0.9*Техно!L20)+(Техно!L25*0.15)+((Техно!L26+Техно!L27)*1.8))*1.18/0.7*(0.85+0.6944),0))) -> 4412
D145: 350-2000 | E145: 400-800 | F145: 600-1000 | G145: РП | J145: К | K145: Колеса
F146: =IF(F143=850,870,F143) -> 870
C147: СРПНЭ | D147: с бортом
C148: СРЦНЭ | D148: без борта
B151: Стол с бортом с решетчатой полкой (СРПЦ Э; РП)
B153: Изображение | C153: Артикул | F153: Модель | G153: Характеристика номенклатуры | K153: Базовая цена, | L153: Ваша цена, | M153: Техническое описание | O153: Базовая цена,
K154: руб | L154: руб | O154: руб
C155: СРПЦЭ_60608587_РП | F155: СРПЦЭ | G155: L=600, S=600, H=850-870, РП | K155: =ROUND(O155*(1+'Повышение цен'!$C$10),0) -> 6784 | L155: =ROUND(IF($D$4="С НДС",K155*(1-$D$3),K155*(1-$D$3)/1.22),0) -> 6784 | M155: н/ст, толщина столешницы - 0,8 мм, разборная конструкция, решетчатая полка, каркас - оцин. уголок 40*40*1,5 мм, Hстолешницы -40 мм, Hборта - 40 мм, столешница усилена ЛДСП толщиной 16 мм, регулируемые ножки(+/-20мм), отступ от края 100 мм | O155: 5636
C156: СРПЦЭ_80608587_РП | F156: СРПЦЭ | G156: L=800, S=600, H=850-870, РП | K156: =ROUND(O156*(1+'Повышение цен'!$C$10),0) -> 7525 | L156: 7525 | O156: 6251
C157: СРПЦЭ_100608587_РП | F157: СРПЦЭ | G157: L=1000, S=600, H=850-870, РП | K157: =ROUND(O157*(1+'Повышение цен'!$C$10),0) -> 8265 | L157: 8265 | O157: 6866
C158: СРПЦЭ_120608587_РП | F158: СРПЦЭ | G158: L=1200, S=600, H=850-870, РП | K158: =ROUND(O158*(1+'Повышение цен'!$C$10),0) -> 9002 | L158: 9002 | O158: 7478
C159: СРПЦЭ_150608587_РП | F159: СРПЦЭ | G159: L=1500, S=600, H=850-870, РП | K159: =ROUND(O159*(1+'Повышение цен'!$C$10),0) -> 10113 | L159: 10113 | O159: 8401
C160: СРПЦЭ_180608587_РП | F160: СРПЦЭ | G160: L=1500, S=600, H=850-870, РП | K160: =ROUND(O160*(1+'Повышение цен'!$C$10),0) -> 11223 | L160: 11223 | O160: 9323
C162: СРПЦЭ_60708587_РП | F162: СРПЦЭ | G162: L=600, S=700, H=850-870, РП | K162: =ROUND(O162*(1+'Повышение цен'!$C$10),0) -> 7143 | L162: =ROUND(IF($D$4="С НДС",K162*(1-$D$3),K162*(1-$D$3)/1.22),0) -> 7143 | O162: 5934
C163: СРПЦЭ_80708587_РП | F163: СРПЦЭ | G163: L=800, S=700, H=850-870, РП | K163: =ROUND(O163*(1+'Повышение цен'!$C$10),0) -> 7958 | L163: 7958 | O163: 6611
C164: СРПЦЭ_100708587_РП | F164: СРПЦЭ | G164: L=1000, S=700, H=850-870, РП | K164: =ROUND(O164*(1+'Повышение цен'!$C$10),0) -> 8776 | L164: 8776 | O164: 7290
C165: СРПЦЭ_120708587_РП | F165: СРПЦЭ | G165: L=1200, S=700, H=850-870, РП | K165: =ROUND(O165*(1+'Повышение цен'!$C$10),0) -> 9594 | L165: 9594 | O165: 7970
C166: СРПЦЭ_150708587_РП | F166: СРПЦЭ | G166: L=1500, S=700, H=850-870, РП | K166: =ROUND(O166*(1+'Повышение цен'!$C$10),0) -> 10817 | L166: 10817 | O166: 8986
C167: СРПЦЭ_180708587_РП | F167: СРПЦЭ | G167: L=1800, S=700, H=850-870, РП | K167: =ROUND(O167*(1+'Повышение цен'!$C$10),0) -> 12043 | L167: 12043 | O167: 10004
B170: Стол без борта с решетчатой полкой (СРЦЦ Э; РП)
B172: Изображение | C172: Артикул | F172: Модель | G172: Характеристика номенклатуры | K172: Базовая цена, | L172: Ваша цена, | M172: Техническое описание | O172: Базовая цена,
K173: руб | L173: руб | O173: руб
C174: СРЦЦЭ_60608587_РП | F174: СРЦЦЭ | G174: L=600, S=600, H=850-870, РП | K174: =ROUND(O174*(1+'Повышение цен'!$C$10),0) -> 6509 | L174: =ROUND(IF($D$4="С НДС",K174*(1-$D$3),K174*(1-$D$3)/1.22),0) -> 6509 | M174: н/ст, толщина столешницы - 0,8 мм, разборная конструкция, решетчатая полка, каркас - оцин. уголок 40*40*1,5 мм, Hстолешницы -40 мм, без борта, столешница усилена ЛДСП толщиной 16 мм, регулируемые ножки(+/-20мм), | O174: 5407
C175: СРЦЦЭ_80608587_РП | F175: СРЦЦЭ | G175: L=800, S=600, H=850-870, РП | K175: =ROUND(O175*(1+'Повышение цен'!$C$10),0) -> 7155 | L175: 7155 | O175: 5944
C176: СРЦЦЭ_100608587_РП | F176: СРЦЦЭ | G176: L=1000, S=600, H=850-870, РП | K176: =ROUND(O176*(1+'Повышение цен'!$C$10),0) -> 7805 | L176: 7805 | O176: 6484
C177: СРЦЦЭ_120608587_РП | F177: СРЦЦЭ | G177: L=1200, S=600, H=850-870, РП | K177: =ROUND(O177*(1+'Повышение цен'!$C$10),0) -> 8452 | L177: 8452 | O177: 7021
C178: СРЦЦЭ_150608587_РП | F178: СРЦЦЭ | G178: L=1500, S=600, H=850-870, РП | K178: =ROUND(O178*(1+'Повышение цен'!$C$10),0) -> 9423 | L178: 9423 | O178: 7828
C179: СРЦЦЭ_180608587_РП | F179: СРЦЦЭ | G179: L=1800, S=600, H=850-870, РП | K179: =ROUND(O179*(1+'Повышение цен'!$C$10),0) -> 10395 | L179: 10395 | O179: 8635
C181: СРЦЦЭ_60708587_РП | F181: СРЦЦЭ | G181: L=600, S=700, H=850-870, РП | K181: =ROUND(O181*(1+'Повышение цен'!$C$10),0) -> 6822 | L181: =ROUND(IF($D$4="С НДС",K181*(1-$D$3),K181*(1-$D$3)/1.22),0) -> 6822 | O181: 5667
C182: СРЦЦЭ_80708587_РП | F182: СРЦЦЭ | G182: L=800, S=700, H=850-870, РП | K182: =ROUND(O182*(1+'Повышение цен'!$C$10),0) -> 7531 | L182: 7531 | O182: 6256
C183: СРЦЦЭ_100708587_РП | F183: СРЦЦЭ | G183: L=1000, S=700, H=850-870, РП | K183: =ROUND(O183*(1+'Повышение цен'!$C$10),0) -> 8239 | L183: 8239 | O183: 6844
C184: СРЦЦЭ_120708587_РП | F184: СРЦЦЭ | G184: L=1200, S=700, H=850-870, РП | K184: =ROUND(O184*(1+'Повышение цен'!$C$10),0) -> 8950 | L184: 8950 | O184: 7435
C185: СРЦЦЭ_150708587_РП | F185: СРЦЦЭ | G185: L=1500, S=700, H=850-870, РП | K185: =ROUND(O185*(1+'Повышение цен'!$C$10),0) -> 10013 | L185: 10013 | O185: 8318
C186: СРЦЦЭ_180708587_РП | F186: СРЦЦЭ | G186: L=1800, S=700, H=850-870, РП | K186: =ROUND(O186*(1+'Повышение цен'!$C$10),0) -> 10354 | L186: 10354 | O186: 8601
C188: Формула расчета цены | M188: Техническое описание
B189: Артикул | D189: Длина, | E189: Глубина, | F189: Высота | G189: Доп. | H189: Доп. | J189: Доп. | K189: Базовая цена, | L189: Ваша цена, | M189: Нестандартной модели
D190: мм | E190: мм | F190: мм | G190: опция | H190: опция | J190: колеса | K190: руб | L190: руб | M190: =CONCATENATE("н/ст, толщина столешницы - 0,8 мм",", решетчатая полка, каркас - оцин. уголок 40*40*1,5 мм,",IF(C191="СРПЦЭ","стол с бортом Нборта-40мм, отступ от края 100 мм","стол без борта")," Hстолешницы -40 мм, столешница усилена ЛДСП толщиной 16 мм,",IF(J191="К",", 4 колеса(2 с тормозом)","регулируемые ножки(+/-20мм)"),", длина ", D191,"мм",", глубина ",E191,"мм"," ,высота ",F191,"мм, ", "Объем в упаковке ",IF(I191="",ROUND(D191/1000*E191/1000*0.255,2), ROUND(D191/1000*E191/1000*(F191+150)/1000,2))," м3") -> н/ст, толщина столешницы - 0,8 мм, решетчатая полка, каркас - оцин. уголок 40*40*1,5 мм,стол с бортом Нборта-40мм, отступ от края 100 мм Hстолешницы -40 мм, столешница усилена ЛДСП толщиной 16 мм,регулируемые ножки(+/-20мм), длина 1200мм, глубина 600мм ,высота 850мм, Объем в упаковке 0,18 м3
B191: =UPPER(CONCATENATE(C191,"_",D191/10,E191/10,IF(AND(F194=870,J191=""),8587,F194/10),"_",G191,J191)) -> СРПЦЭ_120608587_РП | C191: СРПЦЭ | D191: 1200 | E191: 600 | F191: 850 | G191: РП | K191: =ROUND((((K192*IF(D192>1800,1.05,1)*IF(E192>700,1.05,1)*IF(F192>870,1.05,1)+IF(J191="К",6000,0))*1.1*1.05)*1.07*1.15*(1+'Повышение цен'!$C$10)),0) -> 9002 | L191: =ROUND(IF($D$4="С НДС",K191*(1-$D$3),K191*(1-$D$3)/1.22),0) -> 9002
D192: =IF(AND(D191>349,D191<2001),D191,"не производим") -> 1200 | E192: =IF(AND(E191>399,E191<801),E191,"не производим") -> 600 | F192: =IF(AND(F194>599,F194<1001),F194,"не производим") -> 870 | K192: =IF(C191="СРПЦЭ",ROUND((((D192*E192*Техно!K12*Техно!L8*0.00001*1.25*Техно!L12)+((E192-50)*80*0.00001*Техно!L8*Техно!K17*Техно!L17*D192/E192)+(((D192-100)*80*0.00001*Техно!L8*Техно!K15*2)+((E192-100)*80*0.00001*Техно!L8*Техно!K15*2)+((F192-50)*80*0.00001*Техно!L8*Техно!K15*4))*Техно!L15)*1.18+((D192*0.001+E192*0.001)*0.9*Техно!L20)+(Техно!L25*0.15)+((Техно!L26+Техно!L27)*1.8))*1.18/0.68*(0.85+0.6944),0),IF(C191="СРЦЦЭ",ROUND((((D192*E192*Техно!K12*Техно!L8*0.00001*1*Техно!L12)+((E192-50)*80*0.00001*Техно!L8*Техно!K17*Техно!L17*D192/E192)+(((D192-100)*80*0.00001*Техно!L8*Техно!K15*2)+((E192-100)*80*0.00001*Техно!L8*Техно!K15*2)+((F192-50)*80*0.00001*Техно!L8*Техно!K15*4))*Техно!L15)*1.18+((D192*0.001+E192*0.001)*0.9*Техно!L20)+(Техно!L25*0.15)+((Техно!L26+Техно!L27)*1.8))*1.18/0.68*(0.85+0.6944),0))) -> 5262
D193: 350-2000 | E193: 400-800 | F193: 600-1000 | G193: РП | J193: К | K193: Колеса
F194: =IF(F191=850,870,F191) -> 870
C195: СРПЦЭ | D195: с бортом
C196: СРЦЦЭ | D196: без борта

Sheet Столы СП
A1: Нейтральное оборудование/Столы с сплошной полкой | O1: На главную
A3: Ваша скидка: | D3: =Содержание!C2 -> 0
A4: НДС: | D4: =IF(Лист2!A1=TRUE,"С НДС","БЕЗ НДС") -> С НДС
B7: Стол с бортом со сплошной полкой (СРП Ш; СП)
B10: Изображение | C10: Артикул | F10: Модель | G10: Характеристика номенклатуры | L10: Базовая цена, | M10: Ваша цена, | N10: Техническое описание | P10: Базовая цена,
L11: руб | M11: руб | P11: руб
C12: СРПШ_60608587_СП | F12: СРПШ | G12: L=600, S=600, H=850-870, СП | L12: =ROUND(P12*(1+'Повышение цен'!$C$9),0) -> 13971 | M12: =ROUND(IF($D$4="С НДС",L12*(1-$D$3),L12*(1-$D$3)/1.2),0) -> 13971 | N12: шлифованная н/ст, толщина столешницы - 1 мм, разборная конструкция, сплошная полка, каркас - труба 40*40*1,2 мм, Hстолешницы -50 мм, Hборта - 40 мм, столешница усилена ЛДСП толщиной 16 мм, регулируемые ножки(+/-20мм), отступ от края 100 мм | P12: 11606
C13: СРПШ_80608587_СП | F13: СРПШ | G13: L=800, S=600, H=850-870, СП | L13: =ROUND(P13*(1+'Повышение цен'!$C$9),0) -> 15700 | M13: 15700 | P13: 13042
C14: СРПШ_100608587_СП | F14: СРПШ | G14: L=1000, S=600, H=850-870, СП | L14: =ROUND(P14*(1+'Повышение цен'!$C$9),0) -> 17430 | M14: 17430 | P14: 14479
C15: СРПШ_120608587_СП | F15: СРПШ | G15: L=1200, S=600, H=850-870, СП | L15: =ROUND(P15*(1+'Повышение цен'!$C$9),0) -> 19161 | M15: 19161 | P15: 15917
C16: СРПШ_150608587_СП | F16: СРПШ | G16: L=1500, S=600, H=850-870, СП | L16: =ROUND(P16*(1+'Повышение цен'!$C$9),0) -> 21755 | M16: 21755 | P16: 18072
C17: СРПШ_180608587_СП | F17: СРПШ | G17: L=1800, S=600, H=850-870, СП | L17: =ROUND(P17*(1+'Повышение цен'!$C$9),0) -> 24349 | M17: 24349 | P17: 20227
C19: СРПШ_60708587_СП | F19: СРПШ | G19: L=600, S=700, H=850-870, СП | L19: =ROUND(P19*(1+'Повышение цен'!$C$9),0) -> 14835 | M19: 14835 | P19: 12324
C20: СРПШ_80708587_СП | F20: СРПШ | G20: L=800, S=700, H=850-870, СП | L20: =ROUND(P20*(1+'Повышение цен'!$C$9),0) -> 16800 | M20: 16800 | P20: 13956
C21: СРПШ_100708587_СП | F21: СРПШ | G21: L=1000, S=700, H=850-870, СП | L21: =ROUND(P21*(1+'Повышение цен'!$C$9),0) -> 18763 | M21: 18763 | P21: 15587
C22: СРПШ_120708587_СП | F22: СРПШ | G22: L=1200, S=700, H=850-870, СП | L22: =ROUND(P22*(1+'Повышение цен'!$C$9),0) -> 20723 | M22: 20723 | P22: 17215
C23: СРПШ_150708587_СП | F23: СРПШ | G23: L=1500, S=700, H=850-870, СП | L23: =ROUND(P23*(1+'Повышение цен'!$C$9),0) -> 23670 | M23: 23670 | P23: 19663
C24: СРПШ_180708587_СП | F24: СРПШ | G24: L=1800, S=700, H=850-870, СП | L24: =ROUND(P24*(1+'Повышение цен'!$C$9),0) -> 26613 | M24: 26613 | P24: 22108
B27: Стол без борта со сплошной полкой (СРЦ Ш; СП)
B29: Изображение | C29: Артикул | F29: Модель | G29: Характеристика номенклатуры | L29: Базовая цена, | M29: Ваша цена, | N29: Техническое описание | P29: Базовая цена,
L30: руб | M30: руб | P30: руб
C31: СРЦШ_60608587_СП | F31: СРЦШ | G31: L=600, S=600, H=850-870, СП | L31: =ROUND(P31*(1+'Повышение цен'!$C$9),0) -> 13627 | M31: =ROUND(IF($D$4="С НДС",L31*(1-$D$3),L31*(1-$D$3)/1.2),0) -> 13627 | N31: шлифованная н/ст, толщина столешницы - 1 мм, разборная конструкция, сплошная полка, каркас - труба 40*40*1,2 мм, Hстолешницы -50 мм, без борта, столешница усилена ЛДСП толщиной 16 мм, регулируемые ножки(+/-20мм) | P31: 11320
C32: СРЦШ_80608587_СП | F32: СРЦШ | G32: L=800, S=600, H=850-870, СП | L32: =ROUND(P32*(1+'Повышение цен'!$C$9),0) -> 15240 | M32: 15240 | P32: 12660
C33: СРЦШ_100608587_СП | F33: СРЦШ | G33: L=1000, S=600, H=850-870, СП | L33: =ROUND(P33*(1+'Повышение цен'!$C$9),0) -> 16855 | M33: 16855 | P33: 14002
C34: СРЦШ_120608587_СП | F34: СРЦШ | G34: L=1200, S=600, H=850-870, СП | L34: =ROUND(P34*(1+'Повышение цен'!$C$9),0) -> 18471 | M34: 18471 | P34: 15344
C35: СРЦШ_150608587_СП | F35: СРЦШ | G35: L=1500, S=600, H=850-870, СП | L35: =ROUND(P35*(1+'Повышение цен'!$C$9),0) -> 20895 | M35: 20895 | P35: 17358
C36: СРЦШ_180608587_СП | F36: СРЦШ | G36: L=1800, S=600, H=850-870, СП | L36: =ROUND(P36*(1+'Повышение цен'!$C$9),0) -> 23317 | M36: 23317 | P36: 19370
C38: СРЦШ_60708587_СП | F38: СРЦШ | G38: L=600, S=700, H=850-870, СП | L38: =ROUND(P38*(1+'Повышение цен'!$C$9),0) -> 14433 | M38: =ROUND(IF($D$4="С НДС",L38*(1-$D$3),L38*(1-$D$3)/1.2),0) -> 14433 | P38: 11990
C39: СРЦШ_80708587_СП | F39: СРЦШ | G39: L=800, S=700, H=850-870, СП | L39: =ROUND(P39*(1+'Повышение цен'!$C$9),0) -> 16263 | M39: 16263 | P39: 13510
C40: СРЦШ_100708587_СП | F40: СРЦШ | G40: L=1000, S=700, H=850-870, СП | L40: =ROUND(P40*(1+'Повышение цен'!$C$9),0) -> 18093 | M40: 18093 | P40: 15030
C41: СРЦШ_120708587_СП | F41: СРЦШ | G41: L=1200, S=700, H=850-870, СП | L41: =ROUND(P41*(1+'Повышение цен'!$C$9),0) -> 19920 | M41: 19920 | P41: 16548
C42: СРЦШ_150708587_СП | F42: СРЦШ | G42: L=1500, S=700, H=850-870, СП | L42: =ROUND(P42*(1+'Повышение цен'!$C$9),0) -> 22666 | M42: 22666 | P42: 18829
C43: СРЦШ_180708587_СП | F43: СРЦШ | G43: L=1800, S=700, H=850-870, СП | L43: =ROUND(P43*(1+'Повышение цен'!$C$9),0) -> 25409 | M43: 25409 | P43: 21108
C45: Формула расчета цены | N45: Техническое описание
B46: Артикул | D46: Длина, | E46: Глубина, | F46: Высота | G46: Кол. | H46: Доп. | I46: Доп. | J46: Каркас | K46: Доп. | L46: Базовая цена, | M46: Ваша цена, | N46: Нестандартной модели
D47: мм | E47: мм | F47: мм | G47: полок | H47: опция | I47: борт | J47: раз/св | K47: колеса | L47: руб | M47: руб | N47: =CONCATENATE("шлифованная н/ст, толщина столешницы - 1 мм,",IF(J48="СВ","сварная конструкция","разборная конструкция"),", сплошная полка ",IF(G49="",1,G49), "шт,"," каркас - труба 40*40*1,2 мм,",IF(C48="СРПШ","стол с бортом Нборта-40мм, отступ от края 100 мм","стол без борта"),IF(AND(C48="СРПШ",H48="СП2Б"),", стол угловой с двумя бортами",""),IF(AND(C48="СРПШ",H48="СП3Б"),", стол с тремя бортами",""),IF(AND(H48="СП2Б",I48="П"),", правый",""),IF(AND(H48="СП2Б",I48="Л"),", левый","")," Hстолешницы -50 мм, столешница усилена ЛДСП толщиной 16 мм,",IF(K48="К"," 4 колеса(2 с тормозом)","регулируемые ножки(+/-20мм)"),", длина ", D48,"мм",", глубина ",E48,"мм"," ,высота ",F48,"мм, ", "Объем в упаковке ",IF(J48="",ROUND(D48/1000*E48/1000*0.255,2), ROUND(D48/1000*E48/1000*(F48+150)/1000,2))," м3") -> шлифованная н/ст, толщина столешницы - 1 мм,разборная конструкция, сплошная полка 1шт, каркас - труба 40*40*1,2 мм,стол с бортом Нборта-40мм, отступ от края 100 мм Hстолешницы -50 мм, столешница усилена ЛДСП толщиной 16 мм,регулируемые ножки(+/-20мм), длина 600мм, глубина 600мм ,высота 850мм, Объем в упаковке 0,09 м3
B48: =UPPER(CONCATENATE(C48,"_",D48/10,E48/10,IF(AND(F51=850,K48=""),8587,F51/10),"_",IF(G48=1,"",G48),H48,I48,J48,K48)) -> СРПШ_60608587_СП | C48: СРПШ | D48: 600 | E48: 600 | F48: 850 | H48: СП | L48: =ROUND((L49*IF(D49>1800,1.05,1)*IF(E49>700,1.05,1)*IF(F49>870,1.05,1)*IF(H48="СП3Б",1.07,1)+IF(K48="К",6000,0))*1.1,0)*1.05*1.07*1.1*(1+'Повышение цен'!$C$9) -> 13970.88717 | M48: =ROUND(IF($D$4="С НДС",L48*(1-$D$3),L48*(1-$D$3)/1.2),0) -> 13971
D49: =IF(AND(D48>349,D48<2001),D48,"не производим") -> 600 | E49: =IF(AND(E48>399,E48<1001),E48,"не производим") -> 600 | F49: =IF(AND(F51>599,F51<1001),F51,"не производим") -> 850 | G49: =IF(G48="",1,G48) -> 1 | L49: =IF(C48="СРПШ",IF(AND(J48="",H48="СП"),ROUND((((D49*E49*Техно!M10*Техно!N8*0.00001*1.6*Техно!N10)+((D49*E49*Техно!M10*Техно!N8*0.00001*1.45*Техно!N10)*G49)+(((F49-50)*0.001*4)*Техно!N19)+(((D49-100)*80*0.00001*Техно!N8*Техно!M14*2)+((E49-100)*80*0.00001*Техно!N8*Техно!M14*2))*Техно!N14)*1.18+((D49*0.001+E49*0.001)*0.9*Техно!N20)+(Техно!N25*0.35)+((Техно!N26+Техно!N27)*2.5))*1.18/0.68*(0.85+0.6944),0),IF(AND(J48="СВ",H48="СП"),ROUND((((D49*E49*Техно!M10*Техно!N8*0.00001*1.6*Техно!N10)+((D49*E49*Техно!M10*Техно!N8*0.00001*1.45*Техно!N10)*G49)+(((F49-50)*0.001*4)*Техно!N19)+(((D49-100)*80*0.00001*Техно!N8*Техно!M14*2)+((E49-100)*80*0.00001*Техно!N8*Техно!M14*2))*Техно!N14+(D49*E49*Техно!N8*Техно!M16*0.00001*Техно!N16))*1.18+((D49*0.001+E49*0.001)*0.9*Техно!N20)+(Техно!N25*(0.35+0.05))+((Техно!N26+Техно!N27)*(2.5+0.2)))*1.18/0.68*(0.85+0.6944),0),IF(AND(J48="",OR(H48="СП2Б",H48="СП3Б")),ROUND((((D49*E49*Техно!M10*Техно!N8*0.00001*1.6*Техно!N10)+((D49*E49*Техно!M10*Техно!N8*0.00001*1.45*Техно!N10)*G49)+(((F49-50)*0.001*4)*Техно!N19)+(((D49-100)*80*0.00001*Техно!N8*Техно!M14*2)+((E49-100)*80*0.00001*Техно!N8*Техно!M14*2))*Техно!N14)*1.18+((D49*0.001+E49*0.001)*0.9*Техно!N20)+(Техно!N25*0.35)+((Техно!N26+Техно!N27)*2.5))*1.18/0.68*1.05*(0.85+0.6944),0),IF(AND(J48="СВ",OR(H48="СП2Б",H48="СП3Б")),ROUND((((D49*E49*Техно!M10*Техно!N8*0.00001*1.6*Техно!N10)+((D49*E49*Техно!M10*Техно!N8*0.00001*1.45*Техно!N10)*G49)+(((F49-50)*0.001*4)*Техно!N19)+(((D49-100)*80*0.00001*Техно!N8*Техно!M14*2)+((E49-100)*80*0.00001*Техно!N8*Техно!M14*2))*Техно!N14+(D49*E49*Техно!N8*Техно!M16*0.00001*Техно!N16))*1.18+((D49*0.001+E49*0.001)*0.9*Техно!N20)+(Техно!N25*(0.35+0.05))+((Техно!N26+Техно!N27)*(2.5+0.2)))*1.18/0.68*1.05*(0.85+0.6944),0))))),IF(C48="СРЦШ",IF(J48="",ROUND((((D49*E49*Техно!M10*Техно!N8*0.00001*1.35*Техно!N10)+((D49*E49*Техно!M10*Техно!N8*0.00001*1.45*Техно!N10)*G49)+(((F49-50)*0.001*4)*Техно!N19)+(((D49-100)*80*0.00001*Техно!N8*Техно!M14*2)+((E49-100)*80*0.00001*Техно!N8*Техно!M14*2))*Техно!N14)*1.18+((D49*0.001+E49*0.001)*0.9*Техно!N20)+(Техно!N25*0.35)+((Техно!N26+Техно!N27)*2.5))*1.18/0.68*(0.85+0.6944),0),IF(J48="СВ",ROUND((((D49*E49*Техно!M10*Техно!N8*0.00001*1.35*Техно!N10)+((D49*E49*Техно!M10*Техно!N8*0.00001*1.45*Техно!N10)*G49)+(((F49-50)*0.001*4)*Техно!N19)+(((D49-100)*80*0.00001*Техно!N8*Техно!M14*2)+((E49-100)*80*0.00001*Техно!N8*Техно!M14*2))*Техно!N14+(D49*E49*Техно!N8*Техно!M16*0.00001*Техно!N16))*1.18+((D49*0.001+E49*0.001)*0.9*Техно!N20)+(Техно!N25*(0.35+0.05))+((Техно!N26+Техно!N27)*(2.5+0.2)))*1.18/0.68*(0.85+0.6944),0))))) -> 8537
D50: 350-2000 | E50: 400-1000 | F50: 600-1000 | G50: 1_2 | H50: СП | K50: К | L50: Колеса
F51: =IF(F48=870,850,F48) -> 850 | J51: СВ | L51: Сварная конструкция
H52: СП2Б | I52: П | J52: угловой стол(два борта сзади и справа)
C53: СРПШ | D53: с бортом | H53: СП2Б | I53: Л | J53: угловой стол(два борта сзади и слева)
C54: СРЦШ | D54: без борта | H54: СП3Б | J54: Стол с тремя бортами
B56: Стол с бортом со сплошной полкой (СРПН Э1; СП)
B58: Изображение | C58: Артикул | F58: Модель | G58: Характеристика номенклатуры | L58: Базовая цена, | M58: Ваша цена, | N58: Техническое описание | P58: Базовая цена,
L59: руб | M59: руб | P59: руб
C60: СРПНЭ1_60608587_СП | F60: СРПНЭ1 | G60: L=600, S=600, H=850-870, СП | L60: =ROUND(P60*(1+'Повышение цен'!$C$10),0) -> 12581 | M60: =ROUND(IF($D$4="С НДС",L60*(1-$D$3),L60*(1-$D$3)/1.2),0) -> 12581 | N60: н/ст, толщина столешницы - 0,8 мм, разборная конструкция, сплошная полка, каркас - труба 40*40*1,2 мм, Hстолешницы -40 мм, Hборта - 40 мм, столешница усилена ЛДСП толщиной 16 мм, регулируемые ножки(+/-20мм), отступ от края 100 мм | P60: 10451
C61: СРПНЭ1_80608587_СП | F61: СРПНЭ1 | G61: L=800, S=600, H=850-870, СП | L61: =ROUND(P61*(1+'Повышение цен'!$C$10),0) -> 13918 | M61: 13918 | P61: 11562
C62: СРПНЭ1_100608587_СП | F62: СРПНЭ1 | G62: L=1000, S=600, H=850-870, СП | L62: =ROUND(P62*(1+'Повышение цен'!$C$10),0) -> 15255 | M62: 15255 | P62: 12673
C63: СРПНЭ1_120608587_СП | F63: СРПНЭ1 | G63: L=1200, S=600, H=850-870, СП | L63: =ROUND(P63*(1+'Повышение цен'!$C$10),0) -> 16593 | M63: 16593 | P63: 13784
C64: СРПНЭ1_150608587_СП | F64: СРПНЭ1 | G64: L=1500, S=600, H=850-870, СП | L64: =ROUND(P64*(1+'Повышение цен'!$C$10),0) -> 18598 | M64: 18598 | P64: 15450
C65: СРПНЭ1_180608587_СП | F65: СРПНЭ1 | G65: L=1800, S=600, H=850-870, СП | L65: =ROUND(P65*(1+'Повышение цен'!$C$10),0) -> 20604 | M65: 20604 | P65: 17116
C67: СРПНЭ1_60708587_СП | F67: СРПНЭ1 | G67: L=600, S=700, H=850-870, СП | L67: =ROUND(P67*(1+'Повышение цен'!$C$10),0) -> 13250 | M67: =ROUND(IF($D$4="С НДС",L67*(1-$D$3),L67*(1-$D$3)/1.2),0) -> 13250 | P67: 11007
C68: СРПНЭ1_80708587_СП | F68: СРПНЭ1 | G68: L=800, S=700, H=850-870, СП | L68: =ROUND(P68*(1+'Повышение цен'!$C$10),0) -> 14756 | M68: 14756 | P68: 12258
C69: СРПНЭ1_100708587_СП | F69: СРПНЭ1 | G69: L=1000, S=700, H=850-870, СП | L69: =ROUND(P69*(1+'Повышение цен'!$C$10),0) -> 16264 | M69: 16264 | P69: 13511
C70: СРПНЭ1_120708587_СП | F70: СРПНЭ1 | G70: L=1200, S=700, H=850-870, СП | L70: =ROUND(P70*(1+'Повышение цен'!$C$10),0) -> 17770 | M70: 17770 | P70: 14762
C71: СРПНЭ1_150708587_СП | F71: СРПНЭ1 | G71: L=1500, S=700, H=850-870, СП | L71: =ROUND(P71*(1+'Повышение цен'!$C$10),0) -> 20032 | M71: 20032 | P71: 16641
C72: СРПНЭ1_180708587_СП | F72: СРПНЭ1 | G72: L=1800, S=700, H=850-870, СП | L72: =ROUND(P72*(1+'Повышение цен'!$C$10),0) -> 22290 | M72: 22290 | P72: 18517
B75: Стол без борта со сплошной полкой (СРЦН Э1; СП)
B77: Изображение | C77: Артикул | F77: Модель | G77: Характеристика номенклатуры | L77: Базовая цена, | M77: Ваша цена, | N77: Техническое описание | P77: Базовая цена,
L78: руб | M78: руб | P78: руб
C79: СРЦНЭ1_60608587_СП | F79: СРЦНЭ1 | G79: L=600, S=600, H=850-870, СП | L79: =ROUND(P79*(1+'Повышение цен'!$C$10),0) -> 12376 | M79: =ROUND(IF($D$4="С НДС",L79*(1-$D$3),L79*(1-$D$3)/1.2),0) -> 12376 | N79: н/ст, толщина столешницы - 0,8 мм, разборная конструкция, сплошная полка, каркас - труба 40*40*1,2 мм, Hстолешницы -40 мм, Hборта - 40 мм, столешница усилена ЛДСП толщиной 16 мм, регулируемые ножки(+/-20мм), | P79: 10281
C80: СРЦНЭ1_80608587_СП | F80: СРЦНЭ1 | G80: L=800, S=600, H=850-870, СП | L80: =ROUND(P80*(1+'Повышение цен'!$C$10),0) -> 13646 | M80: 13646 | P80: 11336
C81: СРЦНЭ1_100608587_СП | F81: СРЦНЭ1 | G81: L=1000, S=600, H=850-870, СП | L81: =ROUND(P81*(1+'Повышение цен'!$C$10),0) -> 14915 | M81: 14915 | P81: 12390
C82: СРЦНЭ1_120608587_СП | F82: СРЦНЭ1 | G82: L=1200, S=600, H=850-870, СП | L82: =ROUND(P82*(1+'Повышение цен'!$C$10),0) -> 16186 | M82: 16186 | P82: 13446
C83: СРЦНЭ1_150608587_СП | F83: СРЦНЭ1 | G83: L=1500, S=600, H=850-870, СП | L83: =ROUND(P83*(1+'Повышение цен'!$C$10),0) -> 18089 | M83: 18089 | P83: 15027
C84: СРЦНЭ1_180608587_СП | F84: СРЦНЭ1 | G84: L=1800, S=600, H=850-870, СП | L84: =ROUND(P84*(1+'Повышение цен'!$C$10),0) -> 19994 | M84: 19994 | P84: 16609
C86: СРЦНЭ1_60708587_СП | F86: СРЦНЭ1 | G86: L=600, S=700, H=850-870, СП | L86: =ROUND(P86*(1+'Повышение цен'!$C$10),0) -> 13012 | M86: =ROUND(IF($D$4="С НДС",L86*(1-$D$3),L86*(1-$D$3)/1.2),0) -> 13012 | P86: 10809
C87: СРЦНЭ1_80708587_СП | F87: СРЦНЭ1 | G87: L=800, S=700, H=850-870, СП | L87: =ROUND(P87*(1+'Повышение цен'!$C$10),0) -> 14437 | M87: 14437 | P87: 11993
C88: СРЦНЭ1_100708587_СП | F88: СРЦНЭ1 | G88: L=1000, S=700, H=850-870, СП | L88: =ROUND(P88*(1+'Повышение цен'!$C$10),0) -> 15867 | M88: 15867 | P88: 13181
C89: СРЦНЭ1_120708587_СП | F89: СРЦНЭ1 | G89: L=1200, S=700, H=850-870, СП | L89: =ROUND(P89*(1+'Повышение цен'!$C$10),0) -> 17295 | M89: 17295 | P89: 14367
C90: СРЦНЭ1_150708587_СП | F90: СРЦНЭ1 | G90: L=1500, S=700, H=850-870, СП | L90: =ROUND(P90*(1+'Повышение цен'!$C$10),0) -> 19436 | M90: 19436 | P90: 16146
C91: СРЦНЭ1_180708587_СП | F91: СРЦНЭ1 | G91: L=1800, S=700, H=850-870, СП | L91: =ROUND(P91*(1+'Повышение цен'!$C$10),0) -> 21580 | M91: 21580 | P91: 17927
C93: Формула расчета цены | N93: Техническое описание
B94: Артикул | D94: Длина, | E94: Глубина, | F94: Высота | G94: Кол. | I94: Доп. | J94: Каркас | K94: Доп. | L94: Базовая цена, | M94: Ваша цена, | N94: Нестандартной модели
D95: мм | E95: мм | F95: мм | G95: полок | H95: Полка | I95: Опция | J95: раз/св | K95: колеса | L95: руб | M95: руб | N95: =CONCATENATE("н/ст, толщина столешницы - 0,8 мм,",IF(J96="СВ","сварная конструкция","разборная конструкция"),", сплошная полка ",IF(G97="",1,G97), "шт,"," каркас - труба 40*40*1,2 мм,",IF(C96="СРПНЭ1","стол с бортом Нборта-40мм","стол без борта")," Hстолешницы -40 мм, столешница усилена ЛДСП толщиной 16 мм,",IF(K96="К"," 4 колеса(2 с тормозом)","регулируемые ножки(+/-20мм)"),", длина ", D96,"мм",", глубина ",E96,"мм"," ,высота ",F96,"мм, ", "Объем в упаковке ",IF(J96="",ROUND(D96/1000*E96/1000*0.255,2), ROUND(D96/1000*E96/1000*(F96+150)/1000,2))," м3") -> н/ст, толщина столешницы - 0,8 мм,разборная конструкция, сплошная полка 2шт, каркас - труба 40*40*1,2 мм,стол с бортом Нборта-40мм Hстолешницы -40 мм, столешница усилена ЛДСП толщиной 16 мм,регулируемые ножки(+/-20мм), длина 1500мм, глубина 800мм ,высота 870мм, Объем в упаковке 0,31 м3
B96: =UPPER(CONCATENATE(C96,"_",D96/10,E96/10,IF(AND(F99=850,K96=""),8587,F99/10),"_",IF(G96=1,"",G96),H96,J96,K96)) -> СРПНЭ1_150808587_2СП | C96: СРПНЭ1 | D96: 1500 | E96: 800 | F96: 870 | G96: 2 | H96: СП | L96: =ROUND((L97*IF(D97>1800,1.05,1)*IF(E97>700,1.05,1)*IF(F97>870,1.05,1)+IF(K96="К",6000,0))*1.1,0)*1.07*1.1*(1+'Повышение цен'!$C$10) -> 27530.74713 | M96: =ROUND(IF($D$4="С НДС",L96*(1-$D$3),L96*(1-$D$3)/1.2),0) -> 27531
D97: =IF(AND(D96>349,D96<2001),D96,"не производим") -> 1500 | E97: =IF(AND(E96>399,E96<1001),E96,"не производим") -> 800 | F97: =IF(AND(F99>599,F99<1001),F99,"не производим") -> 850 | G97: =IF(G96="",1,G96) -> 2 | L97: =IF(C96="СРПНЭ1",IF(J96="",ROUND((((D97*E97*Техно!M12*Техно!N8*0.00001*1.6*Техно!N12)+((D97*E97*Техно!M12*Техно!N8*0.00001*1.4*Техно!N12)*G97)+(((F97-50+20)*0.001*4)*Техно!N19)+(((D97-100)*80*0.00001*Техно!N8*Техно!M14*2)+((E97-100)*80*0.00001*Техно!N8*Техно!M14*2))*Техно!N14)*1.18+((D97*0.001+E97*0.001)*0.9*Техно!N20)+(Техно!N25*0.35)+((Техно!N26+Техно!N27)*2.5))*1.18/0.67*(0.85+0.6944),0),IF(J96="СВ",ROUND((((D97*E97*Техно!M12*Техно!N8*0.00001*1.6*Техно!N12)+((D97*E97*Техно!M12*Техно!N8*0.00001*1.4*Техно!N12)*G97)+(((F97-50+20)*0.001*4)*Техно!N19)+(((D97-100)*80*0.00001*Техно!N8*Техно!M14*2)+((E97-100)*80*0.00001*Техно!N8*Техно!M14*2))*Техно!N14)*1.18+((D97*0.001+E97*0.001)*0.9*Техно!N20)+(Техно!N25*0.35)+((Техно!N26+Техно!N27)*2.5))*1.18/0.67*1.07*(0.85+0.6944),0))),IF(C96="СРЦНЭ1",IF(J96="",ROUND((((D97*E97*Техно!M12*Техно!N8*0.00001*1.4*Техно!N12)+((D97*E97*Техно!M12*Техно!N8*0.00001*1.4*Техно!N12)*G97)+(((F97-50+20)*0.001*4)*Техно!N19)+(((D97-100)*80*0.00001*Техно!N8*Техно!M14*2)+((E97-100)*80*0.00001*Техно!N8*Техно!M14*2))*Техно!N14)*1.18+((D97*0.001+E97*0.001)*0.9*Техно!N20)+(Техно!N25*0.35)+((Техно!N26+Техно!N27)*2.5))*1.18/0.67*(0.85+0.6944),0),IF(J96="СВ",ROUND((((D97*E97*Техно!M12*Техно!N8*0.00001*1.4*Техно!N12)+((D97*E97*Техно!M12*Техно!N8*0.00001*1.4*Техно!N12)*G97)+(((F97-50+20)*0.001*4)*Техно!N19)+(((D97-100)*80*0.00001*Техно!N8*Техно!M14*2)+((E97-100)*80*0.00001*Техно!N8*Техно!M14*2))*Техно!N14)*1.18+((D97*0.001+E97*0.001)*0.9*Техно!N20)+(Техно!N25*0.35)+((Техно!N26+Техно!N27)*2.5))*1.18/0.67*1.07*(0.85+0.6944),0))))) -> 16823
D98: 350-2000 | E98: 400-1000 | F98: 600-1000 | G98: 1_2 | H98: СП | K98: К | L98: Колеса
F99: =IF(F96=870,850,F96) -> 850 | J99: СВ | L99: Сварная конструкция
C100: СРПНЭ1 | D100: с бортом
C101: СРЦНЭ1 | D101: без борта
B104: Стол с бортом со сплошной полкой (СРПН Э; СП)
B106: Изображение | C106: Артикул | F106: Модель | G106: Характеристика номенклатуры | L106: Базовая цена, | M106: Ваша цена, | N106: Техническое описание | P106: Базовая цена,
L107: руб | M107: руб | P107: руб
C108: СРПНЭ_60608587_СП | F108: СРПНЭ | G108: L=600, S=600, H=850-870, СП | L108: =ROUND(P108*(1+'Повышение цен'!$C$10),0) -> 8868 | M108: =ROUND(IF($D$4="С НДС",L108*(1-$D$3),L108*(1-$D$3)/1.22),0) -> 8868 | N108: н/ст, толщина столешницы - 0,8 мм, разборная конструкция, сплошная полка, каркас - нерж. уголок 40*40*1,5 мм, Hстолешницы -40 мм, Hборта - 40 мм, столешница усилена ЛДСП толщиной 16 мм, регулируемые ножки(+/-20мм), отступ от края 100 мм | P108: 7367
C109: СРПНЭ_80608587_СП | F109: СРПНЭ | G109: L=800, S=600, H=850-870, СП | L109: =ROUND(P109*(1+'Повышение цен'!$C$10),0) -> 10141 | M109: =ROUND(IF($D$4="С НДС",L109*(1-$D$3),L109*(1-$D$3)/1.22),0) -> 10141 | P109: 8424
C110: СРПНЭ_100608587_СП | F110: СРПНЭ | G110: L=1000, S=600, H=850-870, СП | L110: =ROUND(P110*(1+'Повышение цен'!$C$10),0) -> 11414 | M110: 11414 | P110: 9482
C111: СРПНЭ_120608587_СП | F111: СРПНЭ | G111: L=1200, S=600, H=850-870, СП | L111: =ROUND(P111*(1+'Повышение цен'!$C$10),0) -> 12688 | M111: 12688 | P111: 10540
C112: СРПНЭ_150608587_СП | F112: СРПНЭ | G112: L=1500, S=600, H=850-870, СП | L112: =ROUND(P112*(1+'Повышение цен'!$C$10),0) -> 14597 | M112: 14597 | P112: 12126
C113: СРПНЭ_180608587_СП | F113: СРПНЭ | G113: L=1800, S=600, H=850-870, СП | L113: =ROUND(P113*(1+'Повышение цен'!$C$10),0) -> 16505 | M113: 16505 | P113: 13711
C115: СРПНЭ_60708587_СП | F115: СРПНЭ | G115: L=600, S=700, H=850-870, СП | L115: =ROUND(P115*(1+'Повышение цен'!$C$10),0) -> 9505 | M115: =ROUND(IF($D$4="С НДС",L115*(1-$D$3),L115*(1-$D$3)/1.22),0) -> 9505 | P115: 7896
C116: СРПНЭ_80708587_СП | F116: СРПНЭ | G116: L=800, S=700, H=850-870, СП | L116: =ROUND(P116*(1+'Повышение цен'!$C$10),0) -> 10935 | M116: 10935 | P116: 9084
C117: СРПНЭ_100708587_СП | F117: СРПНЭ | G117: L=1000, S=700, H=850-870, СП | L117: =ROUND(P117*(1+'Повышение цен'!$C$10),0) -> 12365 | M117: 12365 | P117: 10272
C118: СРПНЭ_120708587_СП | F118: СРПНЭ | G118: L=1200, S=700, H=850-870, СП | L118: =ROUND(P118*(1+'Повышение цен'!$C$10),0) -> 13796 | M118: 13796 | P118: 11461
C119: СРПНЭ_150708587_СП | F119: СРПНЭ | G119: L=1500, S=700, H=850-870, СП | L119: =ROUND(P119*(1+'Повышение цен'!$C$10),0) -> 15939 | M119: 15939 | P119: 13241
C120: СРПНЭ_180708587_СП | F120: СРПНЭ | G120: L=1800, S=700, H=850-870, СП | L120: =ROUND(P120*(1+'Повышение цен'!$C$10),0) -> 18087 | M120: 18087 | P120: 15025
B122: Стол без борта со сплошной полкой (СРЦН Э; СП)
B124: Изображение | C124: Артикул | F124: Модель | G124: Характеристика номенклатуры | L124: Базовая цена, | M124: Ваша цена, | N124: Техническое описание | P124: Базовая цена,
L125: руб | M125: руб | P125: руб
C126: СРЦНЭ_60608587_СП | F126: СРЦНЭ | G126: L=600, S=600, H=850-870, СП | L126: =ROUND(P126*(1+'Повышение цен'!$C$10),0) -> 8658 | M126: =ROUND(IF($D$4="С НДС",L126*(1-$D$3),L126*(1-$D$3)/1.22),0) -> 8658 | N126: н/ст, толщина столешницы - 0,8 мм, разборная конструкция, сплошная полка, каркас - нерж. уголок 40*40*1,5 мм, Hстолешницы -40 мм, без борта, столешница усилена ЛДСП толщиной 16 мм, регулируемые ножки(+/-20мм), | P126: 7192
C127: СРЦНЭ_80608587_СП | F127: СРЦНЭ | G127: L=800, S=600, H=850-870, СП | L127: =ROUND(P127*(1+'Повышение цен'!$C$10),0) -> 9860 | M127: 9860 | P127: 8191
C128: СРЦНЭ_100608587_СП | F128: СРЦНЭ | G128: L=1000, S=600, H=850-870, СП | L128: =ROUND(P128*(1+'Повышение цен'!$C$10),0) -> 11065 | M128: 11065 | P128: 9192
C129: СРЦНЭ_120608587_СП | F129: СРЦНЭ | G129: L=1200, S=600, H=850-870, СП | L129: =ROUND(P129*(1+'Повышение цен'!$C$10),0) -> 12268 | M129: 12268 | P129: 10191
C130: СРЦНЭ_150608587_СП | F130: СРЦНЭ | G130: L=1500, S=600, H=850-870, СП | L130: =ROUND(P130*(1+'Повышение цен'!$C$10),0) -> 14072 | M130: 14072 | P130: 11690
C131: СРЦНЭ_180608587_СП | F131: СРЦНЭ | G131: L=1800, S=600, H=850-870, СП | L131: =ROUND(P131*(1+'Повышение цен'!$C$10),0) -> 15874 | M131: 15874 | P131: 13187
C133: СРЦНЭ_60708587_СП | F133: СРЦНЭ | G133: L=600, S=700, H=850-870, СП | L133: =ROUND(P133*(1+'Повышение цен'!$C$10),0) -> 9259 | M133: =ROUND(IF($D$4="С НДС",L133*(1-$D$3),L133*(1-$D$3)/1.22),0) -> 9259 | P133: 7692
C134: СРЦНЭ_80708587_СП | F134: СРЦНЭ | G134: L=800, S=700, H=850-870, СП | L134: =ROUND(P134*(1+'Повышение цен'!$C$10),0) -> 10608 | M134: 10608 | P134: 8812
C135: СРЦНЭ_100708587_СП | F135: СРЦНЭ | G135: L=1000, S=700, H=850-870, СП | L135: =ROUND(P135*(1+'Повышение цен'!$C$10),0) -> 11958 | M135: 11958 | P135: 9934
C136: СРЦНЭ_120708587_СП | F136: СРЦНЭ | G136: L=1200, S=700, H=850-870, СП | L136: =ROUND(P136*(1+'Повышение цен'!$C$10),0) -> 13307 | M136: 13307 | P136: 11054
C137: СРЦНЭ_150708587_СП | F137: СРЦНЭ | G137: L=1500, S=700, H=850-870, СП | L137: =ROUND(P137*(1+'Повышение цен'!$C$10),0) -> 15329 | M137: 15329 | P137: 12734
C138: СРЦНЭ_180708587_СП | F138: СРЦНЭ | G138: L=1800, S=700, H=850-870, СП | L138: =ROUND(P138*(1+'Повышение цен'!$C$10),0) -> 17351 | M138: 17351 | P138: 14414
C140: Формула расчета цены | N140: Техническое описание
B141: Артикул | D141: Длина, | E141: Глубина, | F141: Высота | G141: Кол. | H141: Доп. | I141: Доп. | K141: Доп. | L141: Базовая цена, | M141: Ваша цена, | N141: Нестандартной модели
D142: мм | E142: мм | F142: мм | G142: полок | H142: опция | I142: опция | K142: колеса | L142: руб | M142: руб | N142: =CONCATENATE("н/ст, толщина столешницы - 0,8 мм,",IF(J143="СВ","сварная конструкция","разборная конструкция"),", сплошная полка ",IF(G144="",1,G144), "шт,"," каркас - нерж уголок 40*40*1,5 мм,",IF(C143="СРПНЭ","стол с бортом Нборта-40мм, отступ от края 100 мм","стол без борта")," Hстолешницы -40 мм, столешница усилена ЛДСП толщиной 16 мм,",IF(K143="К"," 4 колеса(2 с тормозом)","регулируемые ножки(+/-20мм)"),", длина ", D143,"мм",", глубина ",E143,"мм"," ,высота ",F143,"мм, ", "Объем в упаковке ",IF(J143="",ROUND(D143/1000*E143/1000*0.255,2), ROUND(D143/1000*E143/1000*(F143+150)/1000,2))," м3") -> н/ст, толщина столешницы - 0,8 мм,разборная конструкция, сплошная полка 1шт, каркас - нерж уголок 40*40*1,5 мм,стол без борта Hстолешницы -40 мм, столешница усилена ЛДСП толщиной 16 мм,регулируемые ножки(+/-20мм), длина 1000мм, глубина 700мм ,высота 870мм, Объем в упаковке 0,18 м3
B143: =UPPER(CONCATENATE(C143,"_",D143/10,E143/10,IF(AND(F146=870,K143=""),8587,F146/10),"_",IF(G143=1,"",G143),H143,K143)) -> СРЦНЭ_100708587_СП | C143: СРЦНЭ | D143: 1000 | E143: 700 | F143: 870 | H143: СП | L143: =ROUND((L144*IF(D144>1800,1.05,1)*IF(E144>700,1.05,1)*IF(F144>870,1.05,1)+IF(K143="К",6000,0))*1.1*1.07*1.15*(1+'Повышение цен'!$C$10),0) -> 11958 | M143: =ROUND(IF($D$4="С НДС",L143*(1-$D$3),L143*(1-$D$3)/1.22),0) -> 11958
D144: =IF(AND(D143>349,D143<2001),D143,"не производим") -> 1000 | E144: =IF(AND(E143>399,E143<801),E143,"не производим") -> 700 | F144: =IF(AND(F146>599,F146<1001),F146,"не производим") -> 870 | G144: =IF(G143="",1,G143) -> 1 | L144: =IF(C143="СРПНЭ",ROUND((((D144*E144*Техно!M12*Техно!N8*0.00001*1.4*Техно!N12)+((D144*E144*Техно!M12*Техно!N8*0.00001*1.3*Техно!N12)*G144)+(((D144-100)*80*0.00001*Техно!N8*Техно!M14*2)+((E144-100)*80*0.00001*Техно!N8*Техно!M14*2)+((F144-50)*80*0.00001*Техно!N8*Техно!M14*4))*Техно!N14)*1.18+((D144*0.001+E144*0.001)*0.9*Техно!N20)+(Техно!N25*0.2)+((Техно!N26+Техно!N27)*1.5))*1.18/0.68*(0.85+0.6944),0),IF(C143="СРЦНЭ",ROUND((((D144*E144*Техно!M12*Техно!N8*0.00001*1.2*Техно!N12)+((D144*E144*Техно!M12*Техно!N8*0.00001*1.3*Техно!N12)*G144)+(((D144-100)*80*0.00001*Техно!N8*Техно!M14*2)+((E144-100)*80*0.00001*Техно!N8*Техно!M14*2)+((F144-50)*80*0.00001*Техно!N8*Техно!M14*4))*Техно!N14)*1.18+((D144*0.001+E144*0.001)*0.9*Техно!N20)+(Техно!N25*0.2)+((Техно!N26+Техно!N27)*1.5))*1.18/0.68*(0.85+0.6944),0))) -> 7339
D145: 350-2000 | E145: 400-800 | F145: 600-1000 | G145: 1_2 | H145: СП | K145: К | L145: Колеса
F146: =IF(F143=850,870,F143) -> 870
C147: СРПНЭ | D147: с бортом
C148: СРЦНЭ | D148: без борта
B151: Стол с бортом со сплошной полкой (СРПЦ Э; СП)
B153: Изображение | C153: Артикул | F153: Модель | G153: Характеристика номенклатуры | L153: Базовая цена, | M153: Ваша цена, | N153: Техническое описание | P153: Базовая цена,
L154: руб | M154: руб | P154: руб
C155: СРПЦЭ_60608587_СП | F155: СРПЦЭ | G155: L=600, S=600, H=850-870, СП | L155: =ROUND(P155*(1+'Повышение цен'!$C$10),0) -> 7872 | M155: =ROUND(IF($D$4="С НДС",L155*(1-$D$3),L155*(1-$D$3)/1.22),0) -> 7872 | N155: н/ст, толщина столешницы - 0,8 мм, разборная конструкция, сплошная полка, каркас - оцин. уголок 40*40*1,5 мм, Hстолешницы -40 мм, Hборта - 40 мм, столешница усилена ЛДСП толщиной 16 мм, регулируемые ножки(+/-20мм), отступ от края 100 мм | P155: 6539
C156: СРПЦЭ_80608587_СП | F156: СРПЦЭ | G156: L=800, S=600, H=850-870, СП | L156: =ROUND(P156*(1+'Повышение цен'!$C$10),0) -> 9079 | M156: 9079 | P156: 7542
C157: СРПЦЭ_100608587_СП | F157: СРПЦЭ | G157: L=1000, S=600, H=850-870, СП | L157: =ROUND(P157*(1+'Повышение цен'!$C$10),0) -> 10284 | M157: 10284 | P157: 8543
C158: СРПЦЭ_120608587_СП | F158: СРПЦЭ | G158: L=1200, S=600, H=850-870, СП | L158: =ROUND(P158*(1+'Повышение цен'!$C$10),0) -> 11490 | M158: 11490 | P158: 9545
C159: СРПЦЭ_150608587_СП | F159: СРПЦЭ | G159: L=1500, S=600, H=850-870, СП | L159: =ROUND(P159*(1+'Повышение цен'!$C$10),0) -> 13298 | M159: 13298 | P159: 11047
C160: СРПЦЭ_180608587_СП | F160: СРПЦЭ | G160: L=1800, S=600, H=850-870, СП | L160: =ROUND(P160*(1+'Повышение цен'!$C$10),0) -> 15109 | M160: 15109 | P160: 12551
C162: СРПЦЭ_60708587_СП | F162: СРПЦЭ | G162: L=600, S=700, H=850-870, СП | L162: =ROUND(P162*(1+'Повышение цен'!$C$10),0) -> 8473 | M162: =ROUND(IF($D$4="С НДС",L162*(1-$D$3),L162*(1-$D$3)/1.22),0) -> 8473 | P162: 7039
C163: СРПЦЭ_80708587_СП | F163: СРПЦЭ | G163: L=800, S=700, H=850-870, СП | L163: =ROUND(P163*(1+'Повышение цен'!$C$10),0) -> 9841 | M163: 9841 | P163: 8175
C164: СРПЦЭ_100708587_СП | F164: СРПЦЭ | G164: L=1000, S=700, H=850-870, СП | L164: =ROUND(P164*(1+'Повышение цен'!$C$10),0) -> 11207 | M164: 11207 | P164: 9310
C165: СРПЦЭ_120708587_СП | F165: СРПЦЭ | G165: L=1200, S=700, H=850-870, СП | L165: =ROUND(P165*(1+'Повышение цен'!$C$10),0) -> 12572 | M165: 12572 | P165: 10444
C166: СРПЦЭ_150708587_СП | F166: СРПЦЭ | G166: L=1500, S=700, H=850-870, СП | L166: =ROUND(P166*(1+'Повышение цен'!$C$10),0) -> 14621 | M166: 14621 | P166: 12146
C167: СРПЦЭ_180708587_СП | F167: СРПЦЭ | G167: L=1800, S=700, H=850-870, СП | L167: =ROUND(P167*(1+'Повышение цен'!$C$10),0) -> 16670 | M167: 16670 | P167: 13848
B170: Стол без борта со сплошной полкой (СРЦЦ Э; СП)
B172: Изображение | C172: Артикул | F172: Модель | G172: Характеристика номенклатуры | L172: Базовая цена, | M172: Ваша цена, | N172: Техническое описание | P172: Базовая цена,
L173: руб | M173: руб | P173: руб
C174: СРЦЦЭ_60608587_СП | F174: СРЦЦЭ | G174: L=600, S=600, H=850-870, СП | L174: =ROUND(P174*(1+'Повышение цен'!$C$10),0) -> 7660 | M174: =ROUND(IF($D$4="С НДС",L174*(1-$D$3),L174*(1-$D$3)/1.22),0) -> 7660 | N174: н/ст, толщина столешницы - 0,8 мм, разборная конструкция, сплошная полка, каркас - оцин. уголок 40*40*1,5 мм, Hстолешницы -40 мм, без борта, столешница усилена ЛДСП толщиной 16 мм, регулируемые ножки(+/-20мм), | P174: 6363
C175: СРЦЦЭ_80608587_СП | F175: СРЦЦЭ | G175: L=800, S=600, H=850-870, СП | L175: =ROUND(P175*(1+'Повышение цен'!$C$10),0) -> 8795 | M175: 8795 | P175: 7306
C176: СРЦЦЭ_100608587_СП | F176: СРЦЦЭ | G176: L=1000, S=600, H=850-870, СП | L176: =ROUND(P176*(1+'Повышение цен'!$C$10),0) -> 9929 | M176: 9929 | P176: 8248
C177: СРЦЦЭ_120608587_СП | F177: СРЦЦЭ | G177: L=1200, S=600, H=850-870, СП | L177: =ROUND(P177*(1+'Повышение цен'!$C$10),0) -> 11065 | M177: 11065 | P177: 9192
C178: СРЦЦЭ_150608587_СП | F178: СРЦЦЭ | G178: L=1500, S=600, H=850-870, СП | L178: =ROUND(P178*(1+'Повышение цен'!$C$10),0) -> 12767 | M178: 12767 | P178: 10606
C179: СРЦЦЭ_180608587_СП | F179: СРЦЦЭ | G179: L=1800, S=600, H=850-870, СП | L179: =ROUND(P179*(1+'Повышение цен'!$C$10),0) -> 14471 | M179: 14471 | P179: 12021
C181: СРЦЦЭ_60708587_СП | F181: СРЦЦЭ | G181: L=600, S=700, H=850-870, СП | L181: =ROUND(P181*(1+'Повышение цен'!$C$10),0) -> 8227 | M181: =ROUND(IF($D$4="С НДС",L181*(1-$D$3),L181*(1-$D$3)/1.22),0) -> 8227 | P181: 6834
C182: СРЦЦЭ_80708587_СП | F182: СРЦЦЭ | G182: L=800, S=700, H=850-870, СП | L182: =ROUND(P182*(1+'Повышение цен'!$C$10),0) -> 9509 | M182: 9509 | P182: 7899
C183: СРЦЦЭ_100708587_СП | F183: СРЦЦЭ | G183: L=1000, S=700, H=850-870, СП | L183: =ROUND(P183*(1+'Повышение цен'!$C$10),0) -> 10792 | M183: 10792 | P183: 8965
C184: СРЦЦЭ_120708587_СП | F184: СРЦЦЭ | G184: L=1200, S=700, H=850-870, СП | L184: =ROUND(P184*(1+'Повышение цен'!$C$10),0) -> 12075 | M184: 12075 | P184: 10031
C185: СРЦЦЭ_150708587_СП | F185: СРЦЦЭ | G185: L=1500, S=700, H=850-870, СП | L185: =ROUND(P185*(1+'Повышение цен'!$C$10),0) -> 14001 | M185: 14001 | P185: 11631
C186: СРЦЦЭ_180708587_СП | F186: СРЦЦЭ | G186: L=1800, S=700, H=850-870, СП | L186: =ROUND(P186*(1+'Повышение цен'!$C$10),0) -> 15926 | M186: 15926 | P186: 13230
C188: Формула расчета цены | N188: Техническое описание
B189: Артикул | D189: Длина, | E189: Глубина, | F189: Высота | G189: Кол. | H189: Доп. | I189: Доп. | K189: Доп. | L189: Базовая цена, | M189: Ваша цена, | N189: Нестандартной модели
D190: мм | E190: мм | F190: мм | G190: полок | H190: опция | I190: опция | K190: колеса | L190: руб | M190: руб | N190: =CONCATENATE("н/ст, толщина столешницы - 0,8 мм,","разборная конструкция",", сплошная полка ",IF(G192="",1,G192), "шт,"," каркас - оцин уголок 40*40*1,5 мм,",IF(C191="СРПНЭ","стол с бортом Нборта-40мм, отступ от края 100 мм","стол без борта")," Hстолешницы -40 мм, столешница усилена ЛДСП толщиной 16 мм,",IF(K191="К"," 4 колеса(2 с тормозом)","регулируемые ножки(+/-20мм)"),", длина ", D191,"мм",", глубина ",E191,"мм"," ,высота ",F191,"мм, ", "Объем в упаковке ",IF(J191="",ROUND(D191/1000*E191/1000*0.255,2), ROUND(D191/1000*E191/1000*(F191+150)/1000,2))," м3") -> н/ст, толщина столешницы - 0,8 мм,разборная конструкция, сплошная полка 1шт, каркас - оцин уголок 40*40*1,5 мм,стол без борта Hстолешницы -40 мм, столешница усилена ЛДСП толщиной 16 мм,регулируемые ножки(+/-20мм), длина 1000мм, глубина 700мм ,высота 870мм, Объем в упаковке 0,18 м3
B191: =UPPER(CONCATENATE(C191,"_",D191/10,E191/10,IF(AND(F194=870,K191=""),8587,F194/10),"_",IF(G191=1,"",G191),H191,K191)) -> СРЦЦЭ_100708587_СП | C191: СРЦЦЭ | D191: 1000 | E191: 700 | F191: 870 | H191: СП | L191: =ROUND((L192*IF(D192>1800,1.05,1)*IF(E192>700,1.05,1)*IF(F192>870,1.05,1)+IF(K191="К",6000,0))*1.1*1.07*1.15*(1+'Повышение цен'!$C$10),0) -> 10793 | M191: =ROUND(IF($D$4="С НДС",L191*(1-$D$3),L191*(1-$D$3)/1.22),0) -> 10793
D192: =IF(AND(D191>349,D191<2001),D191,"не производим") -> 1000 | E192: =IF(AND(E191>399,E191<801),E191,"не производим") -> 700 | F192: =IF(AND(F194>599,F194<1001),F194,"не производим") -> 870 | G192: =IF(G191="",1,G191) -> 1 | L192: =IF(C191="СРПЦЭ",ROUND((((D192*E192*Техно!M12*Техно!N8*0.00001*1.4*Техно!N12)+((D192*E192*Техно!M12*Техно!N8*0.00001*1.3*Техно!N12)*G192)+(((D192-100)*80*0.00001*Техно!N8*Техно!M15*2)+((E192-100)*80*0.00001*Техно!N8*Техно!M15*2)+((F192-50)*80*0.00001*Техно!N8*Техно!M15*4))*Техно!N15)*1.18+((D192*0.001+E192*0.001)*0.9*Техно!N20)+(Техно!N25*0.2)+((Техно!N26+Техно!N27)*1.5))*1.18/0.67*(0.85+0.6944),0),IF(C191="СРЦЦЭ",ROUND((((D192*E192*Техно!M12*Техно!N8*0.00001*1.2*Техно!N12)+((D192*E192*Техно!M12*Техно!N8*0.00001*1.3*Техно!N12)*G192)+(((D192-100)*80*0.00001*Техно!N8*Техно!M15*2)+((E192-100)*80*0.00001*Техно!N8*Техно!M15*2)+((F192-50)*80*0.00001*Техно!N8*Техно!M15*4))*Техно!N15)*1.18+((D192*0.001+E192*0.001)*0.9*Техно!N20)+(Техно!N25*0.2)+((Техно!N26+Техно!N27)*1.5))*1.18/0.67*(0.85+0.6944),0))) -> 6624
D193: 350-2000 | E193: 400-800 | F193: 600-1000 | G193: 1_2 | H193: СП | K193: К | L193: Колеса
F194: =IF(F191=850,870,F191) -> 870
C195: СРПЦЭ | D195: с бортом
C196: СРЦЦЭ | D196: без борта

Sheet Столы конд_разделочные (hidden)
A1: Нейтральное оборудование/Столы кондитерские и с пропиленовой столешницей | N1: На главную
A3: Ваша скидка: | D3: =Содержание!C2 -> 0
A4: НДС: | D4: =IF(Лист2!A1=TRUE,"С НДС","БЕЗ НДС") -> С НДС | E4: Складская программа
B7: Стол кондитерский с нижней полкой (ССБ Ш; СП)
B10: Изображение | C10: Артикул | F10: Модель | G10: Характеристика номенклатуры | K10: Базовая цена, | L10: Ваша цена, | M10: Техническое описание | O10: Базовая цена,
K11: руб | L11: руб | O11: руб
C12: ССБШ_60608587_СП | F12: ССБШ | G12: L=600, S=600, H=850-870, СП | K12: =ROUND(O12*(1+'Повышение цен'!$C$9),0) -> 31151 | L12: =ROUND(IF($D$4="С НДС",K12*(1-$D$3),K12*(1-$D$3)/1.2),0) -> 31151 | M12: шлифованная н/ст, столешницы - Бук, неразборная конструкция,нижний фартук, каркас - труба 40*40*1,2 мм, Hстолешницы -30 мм(бук), сплошная полка; регулируемые ножки (+/-20мм), | O12: 25878
C13: ССБШ_80608587_СП | F13: ССБШ | G13: L=800, S=600, H=850-870, СП | K13: =ROUND(O13*(1+'Повышение цен'!$C$9),0) -> 32438 | L13: 32438 | O13: 26947
C14: ССБШ_100608587_СП | F14: ССБШ | G14: L=1000, S=600, H=850-870, СП | K14: =ROUND(O14*(1+'Повышение цен'!$C$9),0) -> 33727 | L14: 33727 | O14: 28018
C15: ССБШ_120608587_СП | F15: ССБШ | G15: L=1200, S=600, H=850-870, СП | K15: =ROUND(O15*(1+'Повышение цен'!$C$9),0) -> 35018 | L15: 35018 | O15: 29090
C16: ССБШ_150608587_СП | F16: ССБШ | G16: L=1500, S=600, H=850-870, СП | K16: =ROUND(O16*(1+'Повышение цен'!$C$9),0) -> 36954 | L16: 36954 | O16: 30698
C17: ССБШ_180608587_СП | F17: ССБШ | G17: L=1800, S=600, H=850-870, СП | K17: =ROUND(O17*(1+'Повышение цен'!$C$9),0) -> 38886 | L17: 38886 | O17: 32303
C19: ССБШ_60708587_СП | F19: ССБШ | G19: L=600, S=700, H=850-870, СП | K19: =ROUND(O19*(1+'Повышение цен'!$C$9),0) -> 31794 | L19: 31794 | O19: 26412
C20: ССБШ_80708587_СП | F20: ССБШ | G20: L=800, S=700, H=850-870, СП | K20: =ROUND(O20*(1+'Повышение цен'!$C$9),0) -> 33298 | L20: 33298 | O20: 27661
C21: ССБШ_100708587_СП | F21: ССБШ | G21: L=1000, S=700, H=850-870, СП | K21: =ROUND(O21*(1+'Повышение цен'!$C$9),0) -> 34801 | L21: 34801 | O21: 28910
C22: ССБШ_120708587_СП | F22: ССБШ | G22: L=1200, S=700, H=850-870, СП | K22: =ROUND(O22*(1+'Повышение цен'!$C$9),0) -> 36308 | L22: 36308 | O22: 30162
C23: ССБШ_150708587_СП | F23: ССБШ | G23: L=1500, S=700, H=850-870, СП | K23: =ROUND(O23*(1+'Повышение цен'!$C$9),0) -> 38564 | L23: 38564 | O23: 32036
C24: ССБШ_180708587_СП | F24: ССБШ | G24: L=1800, S=700, H=850-870, СП | K24: =ROUND(O24*(1+'Повышение цен'!$C$9),0) -> 40820 | L24: 40820 | O24: 33910
B26: Стол кондитерский с обвязкой (ССБ Ш; ОБ)
B28: Изображение | C28: Артикул | F28: Модель | G28: Характеристика номенклатуры | K28: Базовая цена, | L28: Ваша цена, | M28: Техническое описание | O28: Базовая цена,
K29: руб | L29: руб | O29: руб
C30: ССБШ_60608587_ОБ | F30: ССБШ | G30: L=600, S=600, H=850-870, ОБ | K30: =ROUND(O30*(1+'Повышение цен'!$C$9),0) -> 28982 | L30: =ROUND(IF($D$4="С НДС",K30*(1-$D$3),K30*(1-$D$3)/1.2),0) -> 28982 | M30: шлифованная н/ст, столешницы - Бук, неразборная конструкция, нижний фартук, каркас - труба 40*40*1,2 мм, Hстолешницы -30 мм(бук), обвязка; регулируемые ножки (+/-20мм), | O30: 24076
C31: ССБШ_80608587_ОБ | F31: ССБШ | G31: L=800, S=600, H=850-870, ОБ | K31: =ROUND(O31*(1+'Повышение цен'!$C$9),0) -> 29911 | L31: 29911 | O31: 24848
C32: ССБШ_100608587_ОБ | F32: ССБШ | G32: L=1000, S=600, H=850-870, ОБ | K32: =ROUND(O32*(1+'Повышение цен'!$C$9),0) -> 30840 | L32: 30840 | O32: 25619
C33: ССБШ_120608587_ОБ | F33: ССБШ | G33: L=1200, S=600, H=850-870, ОБ | K33: =ROUND(O33*(1+'Повышение цен'!$C$9),0) -> 31774 | L33: 31774 | O33: 26395
C34: ССБШ_150608587_ОБ | F34: ССБШ | G34: L=1500, S=600, H=850-870, ОБ | K34: =ROUND(O34*(1+'Повышение цен'!$C$9),0) -> 33166 | L34: 33166 | O34: 27552
C35: ССБШ_180608587_ОБ | F35: ССБШ | G35: L=1800, S=600, H=850-870, ОБ | K35: =ROUND(O35*(1+'Повышение цен'!$C$9),0) -> 34563 | L35: 34563 | O35: 28712
C37: ССБШ_60708587_ОБ | F37: ССБШ | G37: L=600, S=700, H=850-870, ОБ | K37: =ROUND(O37*(1+'Повышение цен'!$C$9),0) -> 29443 | L37: =ROUND(IF($D$4="С НДС",K37*(1-$D$3),K37*(1-$D$3)/1.2),0) -> 29443 | O37: 24459
C38: ССБШ_80708587_ОБ | F38: ССБШ | G38: L=800, S=700, H=850-870, ОБ | K38: =ROUND(O38*(1+'Повышение цен'!$C$9),0) -> 30530 | L38: 30530 | O38: 25362
C39: ССБШ_100708587_ОБ | F39: ССБШ | G39: L=1000, S=700, H=850-870, ОБ | K39: =ROUND(O39*(1+'Повышение цен'!$C$9),0) -> 31617 | L39: 31617 | O39: 26265
C40: ССБШ_120708587_ОБ | F40: ССБШ | G40: L=1200, S=700, H=850-870, ОБ | K40: =ROUND(O40*(1+'Повышение цен'!$C$9),0) -> 32702 | L40: 32702 | O40: 27166
C41: ССБШ_150708587_ОБ | F41: ССБШ | G41: L=1500, S=700, H=850-870, ОБ | K41: =ROUND(O41*(1+'Повышение цен'!$C$9),0) -> 34331 | L41: 34331 | O41: 28519
C42: ССБШ_180708587_ОБ | F42: ССБШ | G42: L=1800, S=700, H=850-870, ОБ | K42: =ROUND(O42*(1+'Повышение цен'!$C$9),0) -> 35959 | L42: 35959 | O42: 29872
C44: Формула расчета цены | M44: Техническое описание
B45: Артикул | C45: Модель | D45: Длина, | E45: Глубина, | F45: Высота | G45: Исполнение | I45: Доп. | J45: Доп. | K45: Базовая цена, | L45: Ваша цена, | M45: Нестандартной модели
D46: мм | E46: мм | F46: мм | G46: полка/обв | I46: опция | J46: колеса | K46: руб | L46: руб | M46: =CONCATENATE("шлифованная н/ст, столешница бук - 30 мм, неразборная конструкция, нижний фартук",", каркас - труба 40*40*1,2 мм,",IF(G47="СП"," сплошная полка, R36","обвязка, "),IF(J47="К",", 4 колеса(2 с тормозом)","регулируемые ножки(+/-20мм)"),", длина ", D47,"мм",", глубина ",E47,"мм"," ,высота ",F47,"мм, ", "Объем в упаковке ",ROUND(D47/1000*E47/1000*(F47+150)/1000,2)," м3") -> шлифованная н/ст, столешница бук - 30 мм, неразборная конструкция, нижний фартук, каркас - труба 40*40*1,2 мм, сплошная полка, R36регулируемые ножки(+/-20мм), длина 1500мм, глубина 700мм ,высота 850мм, Объем в упаковке 1,05 м3
B47: =UPPER(CONCATENATE(C47,"_",D47/10,E47/10,IF(AND(J47="",F50=850),8587,F50/10),"_",G47,H47,I47,J47)) -> ССБШ_150708587_СП | C47: ССБШ | D47: 1500 | E47: 700 | F47: 850 | G47: СП | K47: =ROUND(((K48*IF(D48>1800,1.05,1)*IF(E48>700,1.05,1)*IF(F48>870,1.05,1)+IF(J47="К",6000,0))*1.1)*1.05*1.07*1.1*(1+'Повышение цен'!$C$9),0) -> 38565 | L47: =ROUND(IF($D$4="С НДС",K47*(1-$D$3),K47*(1-$D$3)/1.2),0) -> 38565
D48: =IF(AND(D47>399,D47<2001),D47,"не производим") -> 1500 | E48: =IF(AND(E47>399,E47<1001),E47,"не производим") -> 700 | F48: =IF(AND(F50>599,F50<1011),F50,"не производим") -> 850 | K48: =IF(G47="СП",ROUND(ROUND(ROUND((((2920*1.62/2)*(D48*E48)/1000000+380*2.5+230+30000*1.5*(D48*E48*0.03)/1000000)+1500*F48/850*F48/850+1500*4.5)*1.18,0)*0.97,0)*(0.85+0.6944),0),IF(G47="ОБ",ROUND(ROUND(ROUND((((2920*1.62/2)*(D48*E48*0.8)/1000000+380*2.5+230+30000*1.5*(D48*E48*0.02)/1000000)+1500*F48/850*F48/850+1500*4.5)*1.18,0)*0.97*0.96,0)*(0.85+0.6944),0))) -> 23566
D49: 400-2000 | E49: 400-1000 | F49: 600-1000 | J49: К | K49: Колеса
F50: =IF(F47=870,850,F47) -> 850
C51: ССБШ | D51: стол с буковой столешницей | G51: ОБ | I51: обвязка
G52: СП | I52: сплошная полка
B54: Стол разделочный с полипропиленой столешницей с нижней полкой (ССП Ш; СП)
B56: Изображение | C56: Артикул | F56: Модель | G56: Характеристика номенклатуры | K56: Базовая цена, | L56: Ваша цена, | M56: Техническое описание | O56: Базовая цена,
K57: руб | L57: руб | O57: руб
C58: ССПШ_60608587_СП | F58: ССПШ | G58: L=600, S=600, H=850-870, СП | K58: =ROUND(O58*(1+'Повышение цен'!$C$9),0) -> 27420 | L58: =ROUND(IF($D$4="С НДС",K58*(1-$D$3),K58*(1-$D$3)/1.2),0) -> 27420 | M58: шлифованная н/ст, столешницы - полипропилен, неразборная конструкция,нижний фартук, каркас - труба 40*40*1,2 мм, Hстолешницы -30 мм(полипропилен), сплошная полка; регулируемые ножки (+/-20мм), | O58: 22778
C59: ССПШ_80608587_СП | F59: ССПШ | G59: L=800, S=600, H=850-870, СП | K59: =ROUND(O59*(1+'Повышение цен'!$C$9),0) -> 30942 | L59: 30942 | O59: 25704
C60: ССПШ_100608587_СП | F60: ССПШ | G60: L=1000, S=600, H=850-870, СП | K60: =ROUND(O60*(1+'Повышение цен'!$C$9),0) -> 34463 | L60: 34463 | O60: 28629
C61: ССПШ_120608587_СП | F61: ССПШ | G61: L=1200, S=600, H=850-870, СП | K61: =ROUND(O61*(1+'Повышение цен'!$C$9),0) -> 37984 | L61: 37984 | O61: 31554
C62: ССПШ_150608587_СП | F62: ССПШ | G62: L=1500, S=600, H=850-870, СП | K62: =ROUND(O62*(1+'Повышение цен'!$C$9),0) -> 43269 | L62: 43269 | O62: 35944
C63: ССПШ_180608587_СП | F63: ССПШ | G63: L=1800, S=600, H=850-870, СП | K63: =ROUND(O63*(1+'Повышение цен'!$C$9),0) -> 48547 | L63: 48547 | O63: 40329
C65: ССПШ_60708587_СП | F65: ССПШ | G65: L=600, S=700, H=850-870, СП | K65: =ROUND(O65*(1+'Повышение цен'!$C$9),0) -> 29181 | L65: =ROUND(IF($D$4="С НДС",K65*(1-$D$3),K65*(1-$D$3)/1.2),0) -> 29181 | O65: 24241
C66: ССПШ_80708587_СП | F66: ССПШ | G66: L=800, S=700, H=850-870, СП | K66: =ROUND(O66*(1+'Повышение цен'!$C$9),0) -> 33290 | L66: 33290 | O66: 27655
C67: ССПШ_100708587_СП | F67: ССПШ | G67: L=1000, S=700, H=850-870, СП | K67: =ROUND(O67*(1+'Повышение цен'!$C$9),0) -> 37399 | L67: 37399 | O67: 31068
C68: ССПШ_120708587_СП | F68: ССПШ | G68: L=1200, S=700, H=850-870, СП | K68: =ROUND(O68*(1+'Повышение цен'!$C$9),0) -> 41507 | L68: 41507 | O68: 34481
C69: ССПШ_150708587_СП | F69: ССПШ | G69: L=1500, S=700, H=850-870, СП | K69: =ROUND(O69*(1+'Повышение цен'!$C$9),0) -> 47668 | L69: 47668 | O69: 39599
C70: ССПШ_180708587_СП | F70: ССПШ | G70: L=1800, S=700, H=850-870, СП | K70: =ROUND(O70*(1+'Повышение цен'!$C$9),0) -> 53834 | L70: 53834 | O70: 44721
B73: Стол разделочный с полипропиленой столешницей с нижней обвязкой (ССП Ш; ОБ)
B75: Изображение | C75: Артикул | F75: Модель | G75: Характеристика номенклатуры | K75: Базовая цена, | L75: Ваша цена, | M75: Техническое описание | O75: Базовая цена,
K76: руб | L76: руб | O76: руб
C77: ССПШ_60608587_ОБ | F77: ССПШ | G77: L=600, S=600, H=850-870, ОБ | K77: =ROUND(O77*(1+'Повышение цен'!$C$9),0) -> 25835 | L77: =ROUND(IF($D$4="С НДС",K77*(1-$D$3),K77*(1-$D$3)/1.2),0) -> 25835 | M77: шлифованная н/ст, столешницы - полипропилен, неразборная конструкция,нижний фартук, каркас - труба 40*40*1,2 мм, Hстолешницы -30 мм(полипропилен), обвязка; регулируемые ножки (+/-20мм), | O77: 21462
C78: ССПШ_80608587_ОБ | F78: ССПШ | G78: L=800, S=600, H=850-870, ОБ | K78: =ROUND(O78*(1+'Повышение цен'!$C$9),0) -> 28936 | L78: 28936 | O78: 24038
C79: ССПШ_100608587_ОБ | F79: ССПШ | G79: L=1000, S=600, H=850-870, ОБ | K79: =ROUND(O79*(1+'Повышение цен'!$C$9),0) -> 32043 | L79: 32043 | O79: 26619
C80: ССПШ_120608587_ОБ | F80: ССПШ | G80: L=1200, S=600, H=850-870, ОБ | K80: =ROUND(O80*(1+'Повышение цен'!$C$9),0) -> 35152 | L80: 35152 | O80: 29201
C81: ССПШ_150608587_ОБ | F81: ССПШ | G81: L=1500, S=600, H=850-870, ОБ | K81: =ROUND(O81*(1+'Повышение цен'!$C$9),0) -> 39809 | L81: 39809 | O81: 33070
C82: ССПШ_180608587_ОБ | F82: ССПШ | G82: L=1800, S=600, H=850-870, ОБ | K82: =ROUND(O82*(1+'Повышение цен'!$C$9),0) -> 44469 | L82: 44469 | O82: 36941
C84: ССПШ_60708587_ОБ | F84: ССПШ | G84: L=600, S=700, H=850-870, ОБ | K84: =ROUND(O84*(1+'Повышение цен'!$C$9),0) -> 27387 | L84: =ROUND(IF($D$4="С НДС",K84*(1-$D$3),K84*(1-$D$3)/1.2),0) -> 27387 | O84: 22751
C85: ССПШ_80708587_ОБ | F85: ССПШ | G85: L=800, S=700, H=850-870, ОБ | K85: =ROUND(O85*(1+'Повышение цен'!$C$9),0) -> 31008 | L85: 31008 | O85: 25759
C86: ССПШ_100708587_ОБ | F86: ССПШ | G86: L=1000, S=700, H=850-870, ОБ | K86: =ROUND(O86*(1+'Повышение цен'!$C$9),0) -> 34634 | L86: 34634 | O86: 28771
C87: ССПШ_120708587_ОБ | F87: ССПШ | G87: L=1200, S=700, H=850-870, ОБ | K87: =ROUND(O87*(1+'Повышение цен'!$C$9),0) -> 38257 | L87: 38257 | O87: 31781
C88: ССПШ_150708587_ОБ | F88: ССПШ | G88: L=1500, S=700, H=850-870, ОБ | K88: =ROUND(O88*(1+'Повышение цен'!$C$9),0) -> 43694 | L88: 43694 | O88: 36297
C89: ССПШ_180708587_ОБ | F89: ССПШ | G89: L=1800, S=700, H=850-870, ОБ | K89: =ROUND(O89*(1+'Повышение цен'!$C$9),0) -> 49129 | L89: 49129 | O89: 40812
C91: Формула расчета цены | M91: Техническое описание
B92: Артикул | D92: Длина, | E92: Глубина, | F92: Высота | G92: Исполнение | I92: Доп. | J92: Доп. | K92: Базовая цена, | L92: Ваша цена, | M92: Нестандартной модели
D93: мм | E93: мм | F93: мм | G93: полка/обв | I93: опция | J93: колеса | K93: руб | L93: руб | M93: =CONCATENATE("шлифованная н/ст, полипропиленовая столешница - 30 мм, неразборная конструкция, нижний фартук",", каркас - труба 40*40*1,2 мм,",IF(G94="СП"," сплошная полка, R36","обвязка, "),IF(J94="К",", 4 колеса(2 с тормозом)","регулируемые ножки(+/-20мм)"),", длина ", D94,"мм",", глубина ",E94,"мм"," ,высота ",F94,"мм, ", "Объем в упаковке ",ROUND(D94/1000*E94/1000*(F94+150)/1000,2)," м3") -> шлифованная н/ст, полипропиленовая столешница - 30 мм, неразборная конструкция, нижний фартук, каркас - труба 40*40*1,2 мм,обвязка, регулируемые ножки(+/-20мм), длина 1200мм, глубина 700мм ,высота 850мм, Объем в упаковке 0,84 м3
B94: =UPPER(CONCATENATE(C94,"_",D94/10,E94/10,IF(AND(F97=850,J94=""),8587,F97/10),"_",G94,,I94,J94)) -> ССПШ_120708587_ОБ | C94: ССПШ | D94: 1200 | E94: 700 | F94: 850 | G94: ОБ | K94: =ROUND((K95*IF(D95>1800,1.05,1)*IF(E95>700,1.05,1)*IF(F95>870,1.05,1)+IF(J94="К",6000,0))*1.1,0)*1.05*1.07*1.1*(1+'Повышение цен'!$C$9) -> 38257.4097 | L94: =ROUND(IF($D$4="С НДС",K94*(1-$D$3),K94*(1-$D$3)/1.2),0) -> 38257
D95: =IF(AND(D94>399,D94<2001),D94,"не производим") -> 1200 | E95: =IF(AND(E94>399,E94<1001),E94,"не производим") -> 700 | F95: =IF(AND(F97>599,F97<1001),F97,"не производим") -> 850 | K95: =IF(G94="СП",ROUND(ROUND(ROUND((((2920*1.62/2)*(D95*E95)/1000000+380*2.5+230+4300*1.75*(D95*E95)/1000000)+1000*F95/850*F95/850+1000*3.5)*1.18,0)*0.995,0)*(0.85+0.6944),0),IF(G94="ОБ",ROUND(ROUND(ROUND((((2920*1.62/2)*(D95*E95*0.9)/1000000+380*2.5+230+4300*1.75*(D95*E95*0.9)/1000000)+1000*F95/850*F95/850+1000*3.5)*1.18,0)*0.975,0)*(0.85+0.6944),0))) -> 23378
D96: 400-2000 | E96: 400-1000 | F96: 600-1000 | J96: К | K96: Колеса
F97: =IF(F94=870,850,F94) -> 850
G98: ОБ | I98: обвязка
G99: СП | I99: сплошная полка
C100: ССПШ | D100: стол с полипропиленово столешницей

Sheet Столы для отходов
A1: Нейтральное оборудование/Столы сбора отходов | N1: На главную
A3: Ваша скидка: | D3: =Содержание!C2 -> 0
A4: НДС: | D4: =IF(Лист2!A1=TRUE,"С НДС","БЕЗ НДС") -> С НДС
B7: Стол для отходов с бортом с нижней обвязкой (СОП Ш; ОБ)
B10: Изображение | C10: Артикул | F10: Модель | G10: Характеристика номенклатуры | K10: Базовая цена, | L10: Ваша цена, | M10: Техническое описание | O10: Базовая цена,
K11: руб | L11: руб | O11: руб
C12: СОПШ_60608587_ОБ | F12: СОПШ | G12: L=600, S=600, H=850-870, ОБ | K12: =ROUND(O12*(1+'Повышение цен'!$C$9),0) -> 16365 | L12: =ROUND(IF($D$4="С НДС",K12*(1-$D$3),K12*(1-$D$3)/1.22),0) -> 16365 | M12: шлифованная н/ст, толщина столешницы - 1 мм, разборная конструкция, каркас - труба 40*40*1,2 мм, Hстолешницы -50 мм5, Hборта - 40 мм, столешница усилена ЛДСП толщиной 16 мм, отверстие 225 мм, расположение отверстия указано в названии стола , резиновое кольцо в комплекте, регулируемые ножки(+/-20мм), отступ от края 100 мм | O12: 13595
C13: СОПШЛ_80608587_ОБ | F13: СОПШЛ | G13: L=800, S=600, H=850-870, ОБ | K13: =ROUND(O13*(1+'Повышение цен'!$C$9),0) -> 17438 | L13: =ROUND(IF($D$4="С НДС",K13*(1-$D$3),K13*(1-$D$3)/1.22),0) -> 17438 | O13: 14486
C14: СОПШП_80608587_ОБ | F14: СОПШП | G14: L=800, S=600, H=850-870, ОБ | K14: =ROUND(O14*(1+'Повышение цен'!$C$9),0) -> 17438 | L14: 17438 | O14: 14486
C15: СОПШЛ_100608587_ОБ | F15: СОПШЛ | G15: L=1000, S=600, H=850-870, ОБ | K15: =ROUND(O15*(1+'Повышение цен'!$C$9),0) -> 18507 | L15: 18507 | O15: 15374
C16: СОПШП_100608587_ОБ | F16: СОПШП | G16: L=1000, S=600, H=850-870, ОБ | K16: =ROUND(O16*(1+'Повышение цен'!$C$9),0) -> 18507 | L16: 18507 | O16: 15374
C17: СОПШЛ_120608587_ОБ | F17: СОПШЛ | G17: L=1200, S=600, H=850-870, ОБ | K17: =ROUND(O17*(1+'Повышение цен'!$C$9),0) -> 19578 | L17: 19578 | O17: 16264
C18: СОПШП_120608587_ОБ | F18: СОПШП | G18: L=1200, S=600, H=850-870, ОБ | K18: =ROUND(O18*(1+'Повышение цен'!$C$9),0) -> 19578 | L18: 19578 | O18: 16264
C20: СОПШ_60708587_ОБ | F20: СОПШ | G20: L=600, S=700, H=850-870, ОБ | K20: =ROUND(O20*(1+'Повышение цен'!$C$9),0) -> 17001 | L20: =ROUND(IF($D$4="С НДС",K20*(1-$D$3),K20*(1-$D$3)/1.22),0) -> 17001 | O20: 14123
C21: СОПШЛ_80708587_ОБ | F21: СОПШЛ | G21: L=800, S=700, H=850-870, ОБ | K21: =ROUND(O21*(1+'Повышение цен'!$C$9),0) -> 18164 | L21: 18164 | O21: 15089
C22: СОПШП_80708587_ОБ | F22: СОПШП | G22: L=800, S=700, H=850-870, ОБ | K22: =ROUND(O22*(1+'Повышение цен'!$C$9),0) -> 18164 | L22: 18164 | O22: 15089
C23: СОПШЛ_100708587_ОБ | F23: СОПШЛ | G23: L=1000, S=700, H=850-870, ОБ | K23: =ROUND(O23*(1+'Повышение цен'!$C$9),0) -> 19324 | L23: 19324 | O23: 16053
C24: СОПШП_100708587_ОБ | F24: СОПШП | G24: L=1000, S=700, H=850-870, ОБ | K24: =ROUND(O24*(1+'Повышение цен'!$C$9),0) -> 19324 | L24: 19324 | O24: 16053
C25: СОПШЛ_120708587_ОБ | F25: СОПШЛ | G25: L=1200, S=700, H=850-870, ОБ | K25: =ROUND(O25*(1+'Повышение цен'!$C$9),0) -> 20487 | L25: 20487 | O25: 17019
C26: СОПШП_120708587_ОБ | F26: СОПШП | G26: L=1200, S=700, H=850-870, ОБ | K26: =ROUND(O26*(1+'Повышение цен'!$C$9),0) -> 20487 | L26: 20487 | O26: 17019
C28: Формула расчета цены | M28: Техническое описание
B29: Артикул | C29: Модель | D29: Длина, | E29: Глубина, | F29: Высота | G29: Доп. | H29: Доп. | I29: Каркас | J29: Доп. | K29: Базовая цена, | L29: Ваша цена, | M29: Нестандартной модели
D30: мм | E30: мм | F30: мм | G30: опция | H30: борт | I30: раз/св | J30: колеса | K30: руб | L30: руб | M30: =CONCATENATE("шлифованная н/ст, толщина столешницы - 1 мм,",IF(I31="СВ","сварная конструкция","разборная конструкция"),", обвязка, каркас - труба 40*40*1,2 мм,",IF(OR(OR(C31="СОПШ",C31="СОПШП"),C31="СОПШЛ"),"стол с бортом Нборта-40мм, отступ от края 100 мм","стол без борта"),IF(AND(OR(OR(C31="СОПШ",C31="СОПШП"),C31="СОПШЛ"),G31="ОБ2Б"),", стол угловой с двумя бортами",""),IF(AND(G31="ОБ2Б",H31="П"),", правый",""),IF(AND(G31="ОБ2Б",H31="Л"),", левый","")," Hстолешницы -50 мм, столешница усилена ЛДСП толщиной 16 мм,"," отверстие 225 мм, резиновое кольцо в комплекте, ",IF(C31="СОПШЛ","отверстие слева",IF(C31="СОПШП","отверстие справа",IF(C31="СОПШ","отверстие по центру",IF(C31="СОЦШЛП","отверстие сбоку",IF(C31="СОЦШ","отверстие по центру","отверстие по центру"))))),IF(J31="К",", 4 колеса(2 с тормозом)",", регулируемые ножки(+/-20мм)"),", длина ",D31,"мм",", глубина ",E31,"мм"," ,высота ",F31,"мм, ", "Объем в упаковке ",IF(I31="",ROUND(D31/1000*E31/1000*0.255,2), ROUND(D31/1000*E31/1000*(F31+150)/1000,2))," м3") -> шлифованная н/ст, толщина столешницы - 1 мм,разборная конструкция, обвязка, каркас - труба 40*40*1,2 мм,стол с бортом Нборта-40мм, отступ от края 100 мм Hстолешницы -50 мм, столешница усилена ЛДСП толщиной 16 мм, отверстие 225 мм, резиновое кольцо в комплекте, отверстие слева, регулируемые ножки(+/-20мм), длина 600мм, глубина 600мм ,высота 870мм, Объем в упаковке 0,09 м3
B31: =UPPER(CONCATENATE(C31,"_",D31/10,E31/10,IF(AND(J31="",F34=850),8587,F34/10),"_",G31,H31,I31,J31)) -> СОПШЛ_60608587_ОБ | C31: СОПШЛ | D31: 600 | E31: 600 | F31: 870 | G31: ОБ | K31: =ROUND(((K32*IF(D32>1500,1.05,1)*IF(E32>700,1.05,1)*IF(F32>870,1.05,1)+IF(J31="К",6000,0))*1.1)*1.05*1.07,0)*1.1*(1+'Повышение цен'!$C$9) -> 16365.24081 | L31: =ROUND(IF($D$4="С НДС",K31*(1-$D$3),K31*(1-$D$3)/1.22),0) -> 16365
D32: =IF(AND(D31>399,D31<2001),D31,"не производим") -> 600 | E32: =IF(AND(E31>399,E31<801),E31,"не производим") -> 600 | F32: =IF(AND(F34>599,F34<1001),F34,"не производим") -> 850 | K32: =IF(OR(OR(C31="СОПШ",C31="СОПШП"),C31="СОПШЛ"),IF(AND(I31="",G31="ОБ"),ROUND((((D32*E32*Техно!S10*Техно!T8*0.00001*1.2*Техно!T10)+(((F32-50)*0.001*4+(D32-50)*0.001+(E32-50)*2*0.001)*Техно!T19)+(((D32-100)*80*0.00001*Техно!T8*Техно!S14*2)+((E32-100)*80*0.00001*Техно!T8*Техно!S14*2))*Техно!T14)*1.18+((D32*0.001+E32*0.001)*0.9*Техно!T20)+(Техно!T25*0.35+Техно!T24)+((Техно!T26+Техно!T27)*3))*1.18/0.69*(0.85+0.6944),0),IF(AND(I31="СВ",G31="ОБ"),ROUND((((D32*E32*Техно!S10*Техно!T8*0.00001*1.2*Техно!T10)+(((F32-50)*0.001*4+(D32-50)*0.001+(E32-50)*2*0.001)*Техно!T19)+(((D32-100)*80*0.00001*Техно!T8*Техно!S14*2)+((E32-100)*80*0.00001*Техно!T8*Техно!S14*2))*Техно!T14)*1.18+((D32*0.001+E32*0.001)*0.9*Техно!T20)+(Техно!T25*0.35+Техно!T24)+((Техно!T26+Техно!T27)*3))*1.18/0.69*1.07*(0.85+0.6944),0),IF(AND(I31="",G31="ОБ2Б"),ROUND((((D32*E32*Техно!S10*Техно!T8*0.00001*1.2*Техно!T10)+(((F32-50)*0.001*4+(D32-50)*0.001+(E32-50)*2*0.001)*Техно!T19)+(((D32-100)*80*0.00001*Техно!T8*Техно!S14*2)+((E32-100)*80*0.00001*Техно!T8*Техно!S14*2))*Техно!T14)*1.18+((D32*0.001+E32*0.001)*0.9*Техно!T20)+(Техно!T25*0.35+Техно!T24)+((Техно!T26+Техно!T27)*3))*1.18/0.69*1.05*(0.85+0.6944),0),IF(AND(I31="СВ",G31="ОБ2Б"),ROUND((((D32*E32*Техно!S10*Техно!T8*0.00001*1.2*Техно!T10)+(((F32-50)*0.001*4+(D32-50)*0.001+(E32-50)*2*0.001)*Техно!T19)+(((D32-100)*80*0.00001*Техно!T8*Техно!S14*2)+((E32-100)*80*0.00001*Техно!T8*Техно!S14*2))*Техно!T14)*1.18+((D32*0.001+E32*0.001)*0.9*Техно!T20)+(Техно!T25*0.35+Техно!T24)+((Техно!T26+Техно!T27)*3))*1.18/0.69*1.05*1.07*(0.85+0.6944),0))))),IF(OR(C31="СОЦШ",C31="СОЦШЛП"),IF(I31="",ROUND((((D32*E32*Техно!S10*Техно!T8*0.00001*1*Техно!T10)+(((F32-50)*0.001*4+(D32-50)*0.001+(E32-50)*2*0.001)*Техно!T19)+(((D32-100)*80*0.00001*Техно!T8*Техно!S14*2)+((E32-100)*80*0.00001*Техно!T8*Техно!S14*2))*Техно!T14)*1.18+((D32*0.001+E32*0.001)*0.9*Техно!T20)+(Техно!T25*0.35+Техно!T24)+((Техно!T26+Техно!T27)*2.2))*1.18/0.67*(0.85+0.6944),0),IF(I31="СВ",ROUND((((D32*E32*Техно!S10*Техно!T8*0.00001*1*Техно!T10)+(((F32-50)*0.001*4+(D32-50)*0.001+(E32-50)*2*0.001)*Техно!T19)+(((D32-100)*80*0.00001*Техно!T8*Техно!S14*2)+((E32-100)*80*0.00001*Техно!T8*Техно!S14*2))*Техно!T14)*1.18+((D32*0.001+E32*0.001)*0.9*Техно!T20)+(Техно!T25*0.35+Техно!T24)+((Техно!T26+Техно!T27)*2.2))*1.18/0.67*1.07*(0.85+0.6944),0),)))) -> 10000
D33: 400-2000 | E33: 400-800 | F33: 600-1000 | G33: ОБ | J33: К | K33: Колеса
F34: =IF(F31=870,850,F31) -> 850 | I34: СВ | K34: Сварная конструкция
C35: СОПШ | D35: с бортом, отверстие по центру | G35: ОБ2Б | H35: П | I35: угловой стол(два борта сзади и справа)
C36: СОПШЛ | D36: с бортом, отверстие слева | G36: ОБ2Б | H36: Л | I36: угловой стол(два борта сзади и слева)
C37: СОПШП | D37: с бортом, отверстие справа
C38: СОЦШ | D38: без борта
C39: СОЦШЛП | D39: без борта, отверстие сбоку
B41: Стол для отходов с бортом с нижней обвязкой (СОПН Э1; ОБ)
B43: Изображение | C43: Артикул | F43: Модель | G43: Характеристика номенклатуры | K43: Базовая цена, | L43: Ваша цена, | M43: Техническое описание | O43: Базовая цена,
K44: руб | L44: руб | O44: руб
C45: СОПНЭ1_60608587_ОБ | F45: СОПНЭ1 | G45: L=600, S=600, H=850-870, ОБ | K45: =ROUND(O45*(1+'Повышение цен'!$C$10),0) -> 15004 | L45: =ROUND(IF($D$4="С НДС",K45*(1-$D$3),K45*(1-$D$3)/1.22),0) -> 15004 | M45: н/ст, толщина столешницы - 0,8 мм, разборная конструкция, каркас - труба 40*40*1,2 мм, Hстолешницы -40 мм, Hборта - 40 мм, столешница усилена ЛДСП толщиной 16 мм, отверстие 225 мм, расположение отверстия указано в названии стола , резиновое кольцо в комплект не входит, регулируемые ножки(+/-20мм), отступ от края 100 мм | O45: 12464
C46: СОПНЭ1Л_80608587_ОБ | F46: СОПНЭ1Л | G46: L=800, S=600, H=850-870, ОБ | K46: =ROUND(O46*(1+'Повышение цен'!$C$10),0) -> 15890 | L46: 15890 | O46: 13200
C47: СОПНЭ1П_80608587_ОБ | F47: СОПНЭ1П | G47: L=800, S=600, H=850-870, ОБ | K47: =ROUND(O47*(1+'Повышение цен'!$C$10),0) -> 15890 | L47: 15890 | O47: 13200
C48: СОПНЭ1Л_100608587_ОБ | F48: СОПНЭ1Л | G48: L=1000, S=600, H=850-870, ОБ | K48: =ROUND(O48*(1+'Повышение цен'!$C$10),0) -> 16776 | L48: 16776 | O48: 13936
C49: СОПНЭ1П_100608587_ОБ | F49: СОПНЭ1П | G49: L=1000, S=600, H=850-870, ОБ | K49: =ROUND(O49*(1+'Повышение цен'!$C$10),0) -> 16776 | L49: 16776 | O49: 13936
C50: СОПНЭ1Л_120608587_ОБ | F50: СОПНЭ1Л | G50: L=1200, S=600, H=850-870, ОБ | K50: =ROUND(O50*(1+'Повышение цен'!$C$10),0) -> 17663 | L50: 17663 | O50: 14673
C51: СОПНЭ1П_120608587_ОБ | F51: СОПНЭ1П | G51: L=1200, S=600, H=850-870, ОБ | K51: =ROUND(O51*(1+'Повышение цен'!$C$10),0) -> 17663 | L51: 17663 | O51: 14673
C53: СОПНЭ1_60708587_ОБ | F53: СОПНЭ1 | G53: L=600, S=700, H=850-870, ОБ | K53: =ROUND(O53*(1+'Повышение цен'!$C$10),0) -> 15542 | L53: =ROUND(IF($D$4="С НДС",K53*(1-$D$3),K53*(1-$D$3)/1.22),0) -> 15542 | O53: 12911
C54: СОПНЭ1Л_80708587_ОБ | F54: СОПНЭ1Л | G54: L=800, S=700, H=850-870, ОБ | K54: =ROUND(O54*(1+'Повышение цен'!$C$10),0) -> 16494 | L54: 16494 | O54: 13702
C55: СОПНЭ1П_80708587_ОБ | F55: СОПНЭ1П | G55: L=800, S=700, H=850-870, ОБ | K55: =ROUND(O55*(1+'Повышение цен'!$C$10),0) -> 16494 | L55: 16494 | O55: 13702
C56: СОПНЭ1Л_100708587_ОБ | F56: СОПНЭ1Л | G56: L=1000, S=700, H=850-870, ОБ | K56: =ROUND(O56*(1+'Повышение цен'!$C$10),0) -> 17444 | L56: 17444 | O56: 14491
C57: СОПНЭ1П_100708587_ОБ | F57: СОПНЭ1П | G57: L=1000, S=700, H=850-870, ОБ | K57: =ROUND(O57*(1+'Повышение цен'!$C$10),0) -> 17444 | L57: 17444 | O57: 14491
C58: СОПНЭ1Л_120708587_ОБ | F58: СОПНЭ1Л | G58: L=1200, S=700, H=850-870, ОБ | K58: =ROUND(O58*(1+'Повышение цен'!$C$10),0) -> 18395 | L58: 18395 | O58: 15281
C59: СОПНЭ1П_120708587_ОБ | F59: СОПНЭ1П | G59: L=1200, S=700, H=850-870, ОБ | K59: =ROUND(O59*(1+'Повышение цен'!$C$10),0) -> 18395 | L59: 18395 | O59: 15281
C62: Формула расчета цены | M62: Техническое описание
B63: Артикул | C63: Модель | D63: Длина, | E63: Глубина, | F63: Высота | G63: Доп. | H63: Доп. | I63: Каркас | J63: Доп. | K63: Базовая цена, | L63: Ваша цена, | M63: Нестандартной модели
D64: мм | E64: мм | F64: мм | G64: опция | H64: опция | I64: раз/св | J64: колеса | K64: руб | L64: руб | M64: =CONCATENATE(" н/ст, толщина столешницы - 0,8 мм,",IF(I65="СВ","сварная конструкция","разборная конструкция"),", обвязка, каркас - труба 40*40*1,2 мм,",IF(OR(OR(C65="СОПНЭ1",C65="СОПНЭ1П"),C65="СОПНЭ1Л"),"стол с бортом Нборта-40мм, отступ от края 100 мм","стол без борта")," Hстолешницы -40 мм, столешница усилена ЛДСП толщиной 16 мм,"," отверстие 225 мм, резиновое кольцо в комплект не входит, ",IF(C65="СОПНЭ1Л","отверстие слева",IF(C65="СОПНЭ1П","отверстие справа",IF(C65="СОПНЭ1","отверстие по центру",IF(C65="СОЦНЭ1ЛП","отверстие сбоку",IF(C65="СОЦНЭ1","отверстие по центру","отверстие"))))),IF(J65="К",", 4 колеса(2 с тормозом)",", регулируемые ножки(+/-20мм)"),", длина ",D65,"мм",", глубина ",E65,"мм"," ,высота ",F65,"мм, ", "Объем в упаковке ",IF(I65="",ROUND(D65/1000*E65/1000*0.255,2), ROUND(D65/1000*E65/1000*(F65+150)/1000,2))," м3") -> н/ст, толщина столешницы - 0,8 мм,разборная конструкция, обвязка, каркас - труба 40*40*1,2 мм,стол с бортом Нборта-40мм, отступ от края 100 мм Hстолешницы -40 мм, столешница усилена ЛДСП толщиной 16 мм, отверстие 225 мм, резиновое кольцо в комплект не входит, отверстие по центру, регулируемые ножки(+/-20мм), длина 800мм, глубина 700мм ,высота 870мм, Объем в упаковке 0,14 м3
B65: =UPPER(CONCATENATE(C65,"_",D65/10,E65/10,IF(AND(J65="",F68=850),8587,F68/10),"_",G65,H65,I65,J65)) -> СОПНЭ1_80708587_ОБ | C65: СОПНЭ1 | D65: 800 | E65: 700 | F65: 870 | G65: ОБ | K65: =ROUND((K66*IF(D66>1500,1.05,1)*IF(E66>700,1.05,1)*IF(F66>870,1.05,1)+IF(J65="К",6000,0))*1.1*1.07*1.1*(1+'Повышение цен'!$C$10),0) -> 16494 | L65: =ROUND(IF($D$4="С НДС",K65*(1-$D$3),K65*(1-$D$3)/1.22),0) -> 16494
D66: =IF(AND(D65>399,D65<2001),D65,"не производим") -> 800 | E66: =IF(AND(E65>399,E65<801),E65,"не производим") -> 700 | F66: =IF(AND(F68>599,F68<1001),F68,"не производим") -> 850 | K66: =IF(OR(OR(C65="СОПНЭ1",C65="СОПНЭ1П"),C65="СОПНЭ1Л"),IF(AND(I65="",G65="ОБ"),ROUND((((D66*E66*Техно!I12*Техно!J8*0.00001*1.2*Техно!J12)+(((F66-50)*0.001*4+(D66-50)*0.001+(E66-50)*2*0.001)*Техно!T19)+(((D66-100)*80*0.00001*Техно!T8*Техно!S14*2)+((E66-100)*80*0.00001*Техно!T8*Техно!S14*2))*Техно!T14)*1.18+((D66*0.001+E66*0.001)*0.9*Техно!T20)+(Техно!T25*0.35+Техно!T24)+((Техно!T26+Техно!T27)*3))*1.18/0.7*(0.85+0.6944),0),IF(AND(I65="СВ",G65="ОБ"),ROUND((((D66*E66*Техно!I12*Техно!J8*0.00001*1.2*Техно!J12)+(((F66-50)*0.001*4+(D66-50)*0.001+(E66-50)*2*0.001)*Техно!T19)+(((D66-100)*80*0.00001*Техно!T8*Техно!S14*2)+((E66-100)*80*0.00001*Техно!T8*Техно!S14*2))*Техно!T14)*1.18+((D66*0.001+E66*0.001)*0.9*Техно!T20)+(Техно!T25*0.35+Техно!T24)+((Техно!T26+Техно!T27)*3))*1.18/0.7*1.07*(0.85+0.6944),0))),IF(OR(C65="СОЦНЭ1",C65="СОЦНЭ1ЛП"),IF(I65="",ROUND((((D66*E66*Техно!I12*Техно!J8*0.00001*1.2*Техно!J12)+(((F66-50)*0.001*4+(D66-50)*0.001+(E66-50)*2*0.001)*Техно!T19)+(((D66-100)*80*0.00001*Техно!T8*Техно!S14*2)+((E66-100)*80*0.00001*Техно!T8*Техно!S14*2))*Техно!T14)*1.18+((D66*0.001+E66*0.001)*0.9*Техно!T20)+(Техно!T25*0.35+Техно!T24)+((Техно!T26+Техно!T27)*2.2))*1.18/0.7*(0.85+0.6944),0),IF(I65="СВ",ROUND((((D66*E66*Техно!I12*Техно!J8*0.00001*1.2*Техно!J12)+(((F66-50)*0.001*4+(D66-50)*0.001+(E66-50)*2*0.001)*Техно!T19)+(((D66-100)*80*0.00001*Техно!T8*Техно!S14*2)+((E66-100)*80*0.00001*Техно!T8*Техно!S14*2))*Техно!T14)*1.18+((D66*0.001+E66*0.001)*0.9*Техно!T20)+(Техно!T25*0.35+Техно!T24)+((Техно!T26+Техно!T27)*2.2))*1.18/0.7*1.07*(0.85+0.6944),0),)))) -> 10583
D67: 400-2000 | E67: 400-800 | F67: 600-1000 | G67: ОБ | J67: К | K67: Колеса
F68: =IF(F65=870,850,F65) -> 850 | I68: СВ | K68: Сварная конструкция
C69: СОПНЭ1 | D69: с бортом, отверстие по центру
C70: СОПНЭ1Л | D70: с бортом, отверстие слева
C71: СОПНЭ1П | D71: с бортом, отверстие справа
C72: СОЦНЭ1 | D72: без борта, отверстие по центру
C73: СОЦНЭ1ЛП | D73: без борта, отверстие сбоку
B78: Стол для отходов с бортом с нижней обвязкой (СОПН Э; ОБ)
B80: Изображение | C80: Артикул | F80: Модель | G80: Характеристика номенклатуры | K80: Базовая цена, | L80: Ваша цена, | M80: Техническое описание | O80: Базовая цена,
K81: руб | L81: руб | O81: руб
C82: СОПНЭ_60608587_ОБ | F82: СОПНЭ | G82: L=600, S=600, H=850-870, ОБ | K82: =ROUND(O82*(1+'Повышение цен'!$C$10),0) -> 8731 | L82: =ROUND(IF($D$4="С НДС",K82*(1-$D$3),K82*(1-$D$3)/1.22),0) -> 8731 | M82: н/ст, толщина столешницы - 0,8 мм, разборная конструкция, обвязка с четырех сторон, каркас - нерж уголок 40*40*1,5 мм, Hстолешницы -40 мм, Hборта - 40 мм, столешница усилена ЛДСП толщиной 16 мм, отверстие 225 мм, расположение отверстия указано в названии стола , резиновое кольцо в комплект не входит, регулируемые ножки(+/-20мм), отступ от края 100 мм | O82: 7253
C83: СОПНЭЛ_80608587_ОБ | F83: СОПНЭЛ | G83: L=800, S=600, H=850-870, ОБ | K83: =ROUND(O83*(1+'Повышение цен'!$C$10),0) -> 9601 | L83: 9601 | O83: 7976
C84: СОПНЭП_80608587_ОБ | F84: СОПНЭП | G84: L=800, S=600, H=850-870, ОБ | K84: =ROUND(O84*(1+'Повышение цен'!$C$10),0) -> 9601 | L84: 9601 | O84: 7976
C85: СОПНЭЛ_100608587_ОБ | F85: СОПНЭЛ | G85: L=1000, S=600, H=850-870, ОБ | K85: =ROUND(O85*(1+'Повышение цен'!$C$10),0) -> 10474 | L85: 10474 | O85: 8701
C86: СОПНЭП_100608587_ОБ | F86: СОПНЭП | G86: L=1000, S=600, H=850-870, ОБ | K86: =ROUND(O86*(1+'Повышение цен'!$C$10),0) -> 10474 | L86: 10474 | O86: 8701
C87: СОПНЭЛ_120608587_ОБ | F87: СОПНЭЛ | G87: L=1200, S=600, H=850-870, ОБ | K87: =ROUND(O87*(1+'Повышение цен'!$C$10),0) -> 11344 | L87: 11344 | O87: 9424
C88: СОПНЭП_120608587_ОБ | F88: СОПНЭП | G88: L=1200, S=600, H=850-870, ОБ | K88: =ROUND(O88*(1+'Повышение цен'!$C$10),0) -> 11344 | L88: 11344 | O88: 9424
C90: СОПНЭ_60708587_ОБ | F90: СОПНЭ | G90: L=600, S=700, H=850-870, ОБ | K90: =ROUND(O90*(1+'Повышение цен'!$C$10),0) -> 9156 | L90: =ROUND(IF($D$4="С НДС",K90*(1-$D$3),K90*(1-$D$3)/1.22),0) -> 9156 | O90: 7606
C91: СОПНЭЛ_80708587_ОБ | F91: СОПНЭЛ | G91: L=800, S=700, H=850-870, ОБ | K91: =ROUND(O91*(1+'Повышение цен'!$C$10),0) -> 10115 | L91: 10115 | O91: 8403
C92: СОПНЭП_80708587_ОБ | F92: СОПНЭП | G92: L=800, S=700, H=850-870, ОБ | K92: =ROUND(O92*(1+'Повышение цен'!$C$10),0) -> 10115 | L92: 10115 | O92: 8403
C93: СОПНЭЛ_100708587_ОБ | F93: СОПНЭЛ | G93: L=1000, S=700, H=850-870, ОБ | K93: =ROUND(O93*(1+'Повышение цен'!$C$10),0) -> 11074 | L93: 11074 | O93: 9199
C94: СОПНЭП_100708587_ОБ | F94: СОПНЭП | G94: L=1000, S=700, H=850-870, ОБ | K94: =ROUND(O94*(1+'Повышение цен'!$C$10),0) -> 11074 | L94: 11074 | O94: 9199
C95: СОПНЭЛ_120708587_ОБ | F95: СОПНЭЛ | G95: L=1200, S=700, H=850-870, ОБ | K95: =ROUND(O95*(1+'Повышение цен'!$C$10),0) -> 12034 | L95: 12034 | O95: 9997
C96: СОПНЭП_120708587_ОБ | F96: СОПНЭП | G96: L=1200, S=700, H=850-870, ОБ | K96: =ROUND(O96*(1+'Повышение цен'!$C$10),0) -> 12034 | L96: 12034 | O96: 9997
C98: Формула расчета цены | M98: Техническое описание
B99: Артикул | C99: Модель | D99: Длина, | E99: Глубина, | F99: Высота | G99: Доп. | H99: Доп. | I99: Доп. | J99: Доп. | K99: Базовая цена, | L99: Ваша цена, | M99: Нестандартной модели
D100: мм | E100: мм | F100: мм | G100: опция | H100: опция | I100: опция | J100: колеса | K100: руб | L100: руб | M100: =CONCATENATE(" н/ст, толщина столешницы - 0,8 мм,","разборная конструкция,",IF(G101="ОБ"," обвязка с четырех сторон",IF(G101="РП"," решетчатая полка","")),", каркас - нерж уголок 40*40*1,5 мм,",IF(OR(OR(C101="СОПНЭ",C101="СОПНЭП"),C101="СОПНЭЛ"),"стол с бортом Нборта-40мм, отступ от края 100 мм","стол без борта")," Hстолешницы -40 мм, столешница усилена ЛДСП толщиной 16 мм,"," отверстие 225 мм, резиновое кольцо в комплект не входит, ",IF(C101="СОПНЭЛ","отверстие слева",IF(C101="СОПНЭП","отверстие справа",IF(C101="СОПНЭ","отверстие по центру",IF(C101="СОЦНЭЛП","отверстие сбоку",IF(C101="СОЦНЭ","отверстие по центру","отверстие"))))),IF(J101="К",", 4 колеса(2 с тормозом)",", регулируемые ножки(+/-20мм)"),", длина ",D101,"мм",", глубина ",E101,"мм"," ,высота ",F101,"мм, ", "Объем в упаковке ",IF(I101="",ROUND(D101/1000*E101/1000*0.255,2), ROUND(D101/1000*E101/1000*(F101+150)/1000,2))," м3") -> н/ст, толщина столешницы - 0,8 мм,разборная конструкция, обвязка с четырех сторон, каркас - нерж уголок 40*40*1,5 мм,стол с бортом Нборта-40мм, отступ от края 100 мм Hстолешницы -40 мм, столешница усилена ЛДСП толщиной 16 мм, отверстие 225 мм, резиновое кольцо в комплект не входит, отверстие по центру, регулируемые ножки(+/-20мм), длина 1200мм, глубина 600мм ,высота 870мм, Объем в упаковке 0,18 м3
B101: =UPPER(CONCATENATE(C101,"_",D101/10,E101/10,IF(AND(J101="",F104=870),8587,F104/10),"_",G101,H101,I101,J101)) -> СОПНЭ_120608587_ОБ | C101: СОПНЭ | D101: 1200 | E101: 600 | F101: 870 | G101: ОБ | K101: =ROUND((K102*IF(D102>1500,1.05,1)*IF(E102>700,1.05,1)*IF(F102>870,1.05,1)+IF(J101="К",6000,0))*1.1*1.07,0)*1.15*(1+'Повышение цен'!$C$10) -> 11344.70432 | L101: =ROUND(IF($D$4="С НДС",K101*(1-$D$3),K101*(1-$D$3)/1.22),0) -> 11345
D102: =IF(AND(D101>399,D101<1501),D101,"не производим") -> 1200 | E102: =IF(AND(E101>399,E101<801),E101,"не производим") -> 600 | F102: =IF(AND(F104>599,F104<1001),F104,"не производим") -> 870 | K102: =IF(OR(OR(C101="СОПНЭ",C101="СОПНЭП"),C101="СОПНЭЛ"),IF(G101="ОБ",ROUND((((D102*E102*Техно!S11*Техно!T8*0.00001*1.35*Техно!T11)+((E102-50)*80*0.00001*Техно!T8*Техно!S17*Техно!T17*D102/E102)+(((D102-100)*80*0.00001*Техно!T8*Техно!S14*2)+((E102-100)*80*0.00001*Техно!T8*Техно!S14*2)+((F102-50)*80*0.00001*Техно!T8*Техно!S14*4))*Техно!T14)*1.18+((D102*0.001+E102*0.001)*0.9*Техно!T20)+(Техно!T25*0.15)+((Техно!T26+Техно!T27)*2.6))*1.18/0.69*(0.85+0.6944),0),IF(G101="РП",ROUND((((D102*E102*Техно!S11*Техно!T8*0.00001*1.35*Техно!T11)+((E102-50)*80*0.00001*Техно!T8*Техно!S17*Техно!T17*D102/E102)+(((D102-100)*80*0.00001*Техно!T8*Техно!S14*2)+((E102-100)*80*0.00001*Техно!T8*Техно!S14*2*D102/500)+((F102-50)*80*0.00001*Техно!T8*Техно!S14*4))*Техно!T14)*1.18+((D102*0.001+E102*0.001)*0.9*Техно!T20)+(Техно!T25*0.15)+((Техно!T26+Техно!T27)*(2.6+0.3)))*1.18/0.69*1.05*(0.85+0.6944),0))),IF(OR(C101="СОЦНЭ",C101="СОЦНЭЛП"),IF(G101="ОБ",ROUND((((D102*E102*Техно!S11*Техно!T8*0.00001*1.15*Техно!T11)+((E102-50)*80*0.00001*Техно!T8*Техно!S17*Техно!T17*D102/E102)+(((D102-100)*80*0.00001*Техно!T8*Техно!S14*2)+((E102-100)*80*0.00001*Техно!T8*Техно!S14*2)+((F102-50)*80*0.00001*Техно!T8*Техно!S14*4))*Техно!T14)*1.18+((D102*0.001+E102*0.001)*0.9*Техно!T20)+(Техно!T25*0.2)+((Техно!T26+Техно!T27)*2.4))*1.18/0.69*(0.85+0.6944),0),IF(G101="РП",ROUND((((D102*E102*Техно!S11*Техно!T8*0.00001*1.15*Техно!T11)+((E102-50)*80*0.00001*Техно!T8*Техно!S17*Техно!T17*D102/E102)+(((D102-100)*80*0.00001*Техно!T8*Техно!S14*2)+((E102-100)*80*0.00001*Техно!T8*Техно!S14*2*D102/500)+((F102-50)*80*0.00001*Техно!T8*Техно!S14*4))*Техно!T14)*1.18+((D102*0.001+E102*0.001)*0.9*Техно!T20)+(Техно!T25*0.2)+((Техно!T26+Техно!T27)*(2.4+0.2)))*1.18/0.69*1.05*(0.85+0.6944),0))))) -> 6963
D103: 400-1500 | E103: 400-800 | F103: 600-1000 | J103: К | K103: Колеса
F104: =IF(F101=850,870,F101) -> 870 | G104: ОБ | H104: обвязка с четырех сторон
C105: СОПНЭ | D105: с бортом, отверстие по центру | G105: РП | H105: Решетчатая полка
C106: СОПНЭЛ | D106: с бортом, отверстие слева
C107: СОПНЭП | D107: с бортом, отверстие справа
C108: СОЦНЭ | D108: без борта
C109: СОЦНЭЛП | D109: без борта, отверстие сбоку
B112: Стол для отходов с бортом с нижней обвязкой (СОПЦ Э; ОБ)
B114: Изображение | C114: Артикул | F114: Модель | G114: Характеристика номенклатуры | K114: Базовая цена, | L114: Ваша цена, | M114: Техническое описание | O114: Базовая цена,
K115: руб | L115: руб | O115: руб
C116: СОПЦЭ_60608587_ОБ | F116: СОПЦЭ | G116: L=600, S=600, H=850-870, ОБ | K116: =ROUND(O116*(1+'Повышение цен'!$C$10),0) -> 7445 | L116: =ROUND(IF($D$4="С НДС",K116*(1-$D$3),K116*(1-$D$3)/1.22),0) -> 7445 | M116: н/ст, толщина столешницы - 0,8 мм, разборная конструкция, обвязка с четырех сторон, каркас - оцин уголок 40*40*1,5 мм, Hстолешницы -40 мм, Hборта - 40 мм, столешница усилена ЛДСП толщиной 16 мм, отверстие 225 мм, расположение отверстия указано в названии стола , резиновое кольцо в комплект не входит, регулируемые ножки(+/-20мм), отступ от края 100 мм | O116: 6185
C117: СОПЦЭЛ_80608587_ОБ | F117: СОПЦЭЛ | G117: L=800, S=600, H=850-870, ОБ | K117: =ROUND(O117*(1+'Повышение цен'!$C$10),0) -> 8160 | L117: 8160 | O117: 6779
C118: СОПЦЭП_80608587_ОБ | F118: СОПЦЭП | G118: L=800, S=600, H=850-870, ОБ | K118: =ROUND(O118*(1+'Повышение цен'!$C$10),0) -> 8160 | L118: 8160 | O118: 6779
C119: СОПЦЭЛ_100608587_ОБ | F119: СОПЦЭЛ | G119: L=1000, S=600, H=850-870, ОБ | K119: =ROUND(O119*(1+'Повышение цен'!$C$10),0) -> 8875 | L119: 8875 | O119: 7373
C120: СОПЦЭП_100608587_ОБ | F120: СОПЦЭП | G120: L=1000, S=600, H=850-870, ОБ | K120: =ROUND(O120*(1+'Повышение цен'!$C$10),0) -> 8875 | L120: 8875 | O120: 7373
C121: СОПЦЭЛ_120608587_ОБ | F121: СОПЦЭЛ | G121: L=1200, S=600, H=850-870, ОБ | K121: =ROUND(O121*(1+'Повышение цен'!$C$10),0) -> 9589 | L121: 9589 | O121: 7966
C122: СОПЦЭП_120608587_ОБ | F122: СОПЦЭП | G122: L=1200, S=600, H=850-870, ОБ | K122: =ROUND(O122*(1+'Повышение цен'!$C$10),0) -> 9589 | L122: 9589 | O122: 7966
C124: СОПЦЭ_60708587_ОБ | F124: СОПЦЭ | G124: L=600, S=700, H=850-870, ОБ | K124: =ROUND(O124*(1+'Повышение цен'!$C$10),0) -> 7791 | L124: =ROUND(IF($D$4="С НДС",K124*(1-$D$3),K124*(1-$D$3)/1.22),0) -> 7791 | O124: 6472
C125: СОПЦЭЛ_80708587_ОБ | F125: СОПЦЭЛ | G125: L=800, S=700, H=850-870, ОБ | K125: =ROUND(O125*(1+'Повышение цен'!$C$10),0) -> 8582 | L125: 8582 | O125: 7129
C126: СОПЦЭП_80708587_ОБ | F126: СОПЦЭП | G126: L=800, S=700, H=850-870, ОБ | K126: =ROUND(O126*(1+'Повышение цен'!$C$10),0) -> 8582 | L126: 8582 | O126: 7129
C127: СОПЦЭЛ_100708587_ОБ | F127: СОПЦЭЛ | G127: L=1000, S=700, H=850-870, ОБ | K127: =ROUND(O127*(1+'Повышение цен'!$C$10),0) -> 9369 | L127: 9369 | O127: 7783
C128: СОПЦЭП_100708587_ОБ | F128: СОПЦЭП | G128: L=1000, S=700, H=850-870, ОБ | K128: =ROUND(O128*(1+'Повышение цен'!$C$10),0) -> 9369 | L128: 9369 | O128: 7783
C129: СОПЦЭЛ_120708587_ОБ | F129: СОПЦЭЛ | G129: L=1200, S=700, H=850-870, ОБ | K129: =ROUND(O129*(1+'Повышение цен'!$C$10),0) -> 10160 | L129: 10160 | O129: 8440
C130: СОПЦЭП_120708587_ОБ | F130: СОПЦЭП | G130: L=1200, S=700, H=850-870, ОБ | K130: =ROUND(O130*(1+'Повышение цен'!$C$10),0) -> 10160 | L130: 10160 | O130: 8440
C132: Формула расчета цены | M132: Техническое описание
B133: Артикул | C133: Модель | D133: Длина, | E133: Глубина, | F133: Высота | G133: Доп. | H133: Доп. | I133: Доп. | J133: Доп. | K133: Базовая цена, | L133: Ваша цена, | M133: Нестандартной модели
D134: мм | E134: мм | F134: мм | G134: опция | H134: опция | I134: опция | J134: колеса | K134: руб | L134: руб | M134: =CONCATENATE(" н/ст, толщина столешницы - 0,8 мм,","разборная конструкция,",IF(G135="ОБ"," обвязка с четырех сторон",IF(G135="РП"," решетчатая полка","")),", каркас - нерж уголок 40*40*1,5 мм,",IF(OR(OR(C135="СОПЦЭ",C135="СОПЦЭП"),C135="СОПЦЭЛ"),"стол с бортом Нборта-40мм, отступ от края 100 мм","стол без борта")," Hстолешницы -40 мм, столешница усилена ЛДСП толщиной 16 мм,"," отверстие 225 мм, резиновое кольцо в комплект не входит, ",IF(C135="СОПЦЭЛ","отверстие слева",IF(C135="СОПЦЭП","отверстие справа",IF(C135="СОПЦЭ","отверстие по центру",IF(C135="СОЦЦЭЛП","отверстие сбоку",IF(C135="СОЦЦЭ","отверстие по центру","отверстие"))))),IF(J135="К",", 4 колеса(2 с тормозом)",", регулируемые ножки(+/-20мм)"),", длина ",D135,"мм",", глубина ",E135,"мм"," ,высота ",F135,"мм, ", "Объем в упаковке ",IF(I135="",ROUND(D135/1000*E135/1000*0.255,2), ROUND(D135/1000*E135/1000*(F135+150)/1000,2))," м3") -> н/ст, толщина столешницы - 0,8 мм,разборная конструкция, обвязка с четырех сторон, каркас - нерж уголок 40*40*1,5 мм,стол с бортом Нборта-40мм, отступ от края 100 мм Hстолешницы -40 мм, столешница усилена ЛДСП толщиной 16 мм, отверстие 225 мм, резиновое кольцо в комплект не входит, отверстие по центру, регулируемые ножки(+/-20мм), длина 600мм, глубина 600мм ,высота 850мм, Объем в упаковке 0,09 м3
B135: =UPPER(CONCATENATE(C135,"_",D135/10,E135/10,IF(AND(J135="",F138=870),8587,F138/10),"_",G135,H135,I135,J135)) -> СОПЦЭ_60608587_ОБ | C135: СОПЦЭ | D135: 600 | E135: 600 | F135: 850 | G135: ОБ | K135: =ROUND((K136*IF(D136>1500,1.05,1)*IF(E136>700,1.05,1)*IF(F136>870,1.05,1)+IF(J135="К",6000,0))*1.1*1.07,0)*1.15*(1+'Повышение цен'!$C$10) -> 7445.005468 | L135: =ROUND(IF($D$4="С НДС",K135*(1-$D$3),K135*(1-$D$3)/1.22),0) -> 7445
D136: =IF(AND(D135>399,D135<1501),D135,"не производим") -> 600 | E136: =IF(AND(E135>399,E135<801),E135,"не производим") -> 600 | F136: =IF(AND(F138>599,F138<1001),F138,"не производим") -> 870 | K136: =IF(OR(OR(C135="СОПЦЭ",C135="СОПЦЭП"),C135="СОПЦЭЛ"),IF(G135="ОБ",ROUND((((D136*E136*Техно!S12*Техно!T8*0.00001*1.25*Техно!T12)+((E136-50)*80*0.00001*Техно!T8*Техно!S17*Техно!T17*D136/E136)+(((D136-100)*80*0.00001*Техно!T8*Техно!S15*2)+((E136-100)*80*0.00001*Техно!T8*Техно!S15*2)+((F136-50)*80*0.00001*Техно!T8*Техно!S15*4))*Техно!T15)*1.18+((D136*0.001+E136*0.001)*0.9*Техно!T20)+(Техно!T25*0.15)+((Техно!T26+Техно!T27)*2.5))*1.18/0.67*(0.85+0.6944),0),IF(G135="РП",ROUND((((D136*E136*Техно!S12*Техно!T8*0.00001*1.25*Техно!T12)+((E136-50)*80*0.00001*Техно!T8*Техно!S17*Техно!T17*D136/E136)+(((D136-100)*80*0.00001*Техно!T8*Техно!S15*2)+((E136-100)*80*0.00001*Техно!T8*Техно!S15*2*D136/500)+((F136-50)*80*0.00001*Техно!T8*Техно!S15*4))*Техно!T15)*1.18+((D136*0.001+E136*0.001)*0.9*Техно!T20)+(Техно!T25*0.15)+((Техно!T26+Техно!T27)*(2.5+0.2)))*1.18/0.67*1.05*(0.85+0.6944),0))),IF(OR(C135="СОЦЦЭ",C135="СОЦЦЭЛП"),IF(G135="ОБ",ROUND((((D136*E136*Техно!S12*Техно!T8*0.00001*1*Техно!T12)+((E136-50)*80*0.00001*Техно!T8*Техно!S17*Техно!T17*D136/E136)+(((D136-100)*80*0.00001*Техно!T8*Техно!S15*2)+((E136-100)*80*0.00001*Техно!T8*Техно!S15*2)+((F136-50)*80*0.00001*Техно!T8*Техно!S15*4))*Техно!T15)*1.18+((D136*0.001+E136*0.001)*0.9*Техно!T20)+(Техно!T25*0.2)+((Техно!T26+Техно!T27)*2.35))*1.18/0.68*(0.85+0.6944),0),IF(G135="РП",ROUND((((D136*E136*Техно!S12*Техно!T8*0.00001*1*Техно!T12)+((E136-50)*80*0.00001*Техно!T8*Техно!S17*Техно!T17*D136/E136)+(((D136-100)*80*0.00001*Техно!T8*Техно!S15*2)+((E136-100)*80*0.00001*Техно!T8*Техно!S15*2*D136/500)+((F136-50)*80*0.00001*Техно!T8*Техно!S15*4))*Техно!T15)*1.18+((D136*0.001+E136*0.001)*0.9*Техно!T20)+(Техно!T25*0.2)+((Техно!T26+Техно!T27)*(2.35+0.2)))*1.18/0.68*1.05*(0.85+0.6944),0))))) -> 4569
D137: 400-1500 | E137: 400-800 | F137: 600-1000 | J137: К | K137: Колеса
F138: =IF(F135=850,870,F135) -> 870 | G138: ОБ | H138: обвязка с четырех сторон
C139: СОПЦЭ | D139: с бортом, отверстие по центру | G139: РП | H139: Решетчатая полка
C140: СОПЦЭЛ | D140: с бортом, отверстие слева
C141: СОПЦЭП | D141: с бортом, отверстие справа
C142: СОЦЦЭ | D142: без борта
C143: СОЦЦЭЛП | D143: без борта, отверстие сбоку

Sheet Столы закрытые
A1: Нейтральное оборудование/Столы закрытые | O1: На главную
A3: Ваша скидка: | D3: =Содержание!C2 -> 0
A4: НДС: | D4: =IF(Лист2!A1=TRUE,"С НДС","БЕЗ НДС") -> С НДС
B7: Стол закрытый двери купе с бортом (СРП Ш К)
B9: Изображение | C9: Артикул | F9: Модель | G9: Характеристика номенклатуры | L9: Базовая цена, | M9: Ваша цена, | N9: Техническое описание | P9: Базовая цена,
L10: руб | M10: руб | P10: руб
C11: СРПШК_80608587_СПД | F11: СРПШК | G11: L=800, S=600, H=850-870, СПД | L11: =ROUND(P11*(1+'Повышение цен'!$C$11),0) -> 39220 | M11: =ROUND(IF($D$4="С НДС",L11*(1-$D$3),L11*(1-$D$3)/1.22),0) -> 39220 | N11: шлифованная н/ст, толщина столешницы - 1 мм, двери купе, сварная конструкция, стол закрыт с трех сторон, сплошная полка+дно, каркас - труба 40*40*1,2 мм, Hстолешницы -50 мм, Hборта - 40 мм, столешница усилена швеллером, регулируемые ножки(+/-20мм) | P11: 32581
C12: СРПШК_100608587_СПД | F12: СРПШК | G12: L=1000, S=600, H=850-870, СПД | L12: =ROUND(P12*(1+'Повышение цен'!$C$11),0) -> 41430 | M12: =ROUND(IF($D$4="С НДС",L12*(1-$D$3),L12*(1-$D$3)/1.22),0) -> 41430 | P12: 34417
C13: СРПШК_120608587_СПД | F13: СРПШК | G13: L=1200, S=600, H=850-870, СПД | L13: =ROUND(P13*(1+'Повышение цен'!$C$11),0) -> 43638 | M13: 43638 | P13: 36251
C14: СРПШК_150608587_СПД | F14: СРПШК | G14: L=1500, S=600, H=850-870, СПД | L14: =ROUND(P14*(1+'Повышение цен'!$C$11),0) -> 46953 | M14: 46953 | P14: 39005
C16: СРПШК_80708587_СПД | F16: СРПШК | G16: L=800, S=700, H=850-870, СПД | L16: =ROUND(P16*(1+'Повышение цен'!$C$11),0) -> 40773 | M16: =ROUND(IF($D$4="С НДС",L16*(1-$D$3),L16*(1-$D$3)/1.22),0) -> 40773 | P16: 33871
C17: СРПШК_100708587_СПД | F17: СРПШК | G17: L=1000, S=700, H=850-870, СПД | L17: =ROUND(P17*(1+'Повышение цен'!$C$11),0) -> 43190 | M17: 43190 | P17: 35879
C18: СРПШК_120708587_СПД | F18: СРПШК | G18: L=1200, S=700, H=850-870, СПД | L18: =ROUND(P18*(1+'Повышение цен'!$C$11),0) -> 45608 | M18: 45608 | P18: 37887
C19: СРПШК_150708587_СПД | F19: СРПШК | G19: L=1500, S=700, H=850-870, СПД | L19: =ROUND(P19*(1+'Повышение цен'!$C$11),0) -> 49235 | M19: 49235 | P19: 40900
B22: Стол закрытый двери купе без борта (СРЦ Ш К)
B24: Изображение | C24: Артикул | F24: Модель | G24: Характеристика номенклатуры | L24: Базовая цена, | M24: Ваша цена, | N24: Техническое описание | P24: Базовая цена,
L25: руб | M25: руб | P25: руб
C26: СРЦШК_80608587_СПД | F26: СРЦШК | G26: L=800, S=600, H=850-870, СПД | L26: =ROUND(P26*(1+'Повышение цен'!$C$11),0) -> 38579 | M26: =ROUND(IF($D$4="С НДС",L26*(1-$D$3),L26*(1-$D$3)/1.22),0) -> 38579 | N26: шлифованная н/ст, толщина столешницы - 1 мм, двери купе, сварная конструкция, стол закрыт с трех сторон, сплошная полка+дно, каркас - труба 40*40*1,2 мм, Hстолешницы -50 мм, без борта, столешница усилена швеллером, регулируемые ножки(+/-20мм) | P26: 32048
C27: СРЦШК_100608587_СПД | F27: СРЦШК | G27: L=1000, S=600, H=850-870, СПД | L27: =ROUND(P27*(1+'Повышение цен'!$C$11),0) -> 40629 | M27: 40629 | P27: 33751
C28: СРЦШК_120608587_СПД | F28: СРЦШК | G28: L=1200, S=600, H=850-870, СПД | L28: =ROUND(P28*(1+'Повышение цен'!$C$11),0) -> 42676 | M28: 42676 | P28: 35452
C29: СРЦШК_150608587_СПД | F29: СРЦШК | G29: L=1500, S=600, H=850-870, СПД | L29: =ROUND(P29*(1+'Повышение цен'!$C$11),0) -> 45748 | M29: 45748 | P29: 38004
C31: СРЦШК_80708587_СПД | F31: СРЦШК | G31: L=800, S=700, H=850-870, СПД | L31: =ROUND(P31*(1+'Повышение цен'!$C$11),0) -> 40024 | M31: =ROUND(IF($D$4="С НДС",L31*(1-$D$3),L31*(1-$D$3)/1.22),0) -> 40024 | P31: 33249
C32: СРЦШК_100708587_СПД | F32: СРЦШК | G32: L=1000, S=700, H=850-870, СПД | L32: =ROUND(P32*(1+'Повышение цен'!$C$11),0) -> 42256 | M32: 42256 | P32: 35103
C33: СРЦШК_120708587_СПД | F33: СРЦШК | G33: L=1200, S=700, H=850-870, СПД | L33: =ROUND(P33*(1+'Повышение цен'!$C$11),0) -> 44483 | M33: 44483 | P33: 36953
C34: СРЦШК_150708587_СПД | F34: СРЦШК | G34: L=1500, S=700, H=850-870, СПД | L34: =ROUND(P34*(1+'Повышение цен'!$C$11),0) -> 47824 | M34: 47824 | P34: 39728
C36: Формула расчета цены | N36: Техническое описание
B37: Артикул | D37: Длина, | E37: Глубина, | F37: Высота | G37: Кол. | H37: станд. | I37: Доп. | J37: Стенка | K37: Доп. | L37: Базовая цена, | M37: Ваша цена, | N37: Нестандартной модели
D38: мм | E38: мм | F38: мм | G38: полок | H38: исп. | I38: двери | J38: задняя | K38: колеса | L38: руб | M38: руб | N38: =CONCATENATE("шлифованная н/ст, толщина столешницы - 1 мм, двери купе, сварная конструкция, "," сплошная полка ",IF(G40="",1,G40), "шт + дно,"," каркас - труба 40*40*1,2 мм,",IF(OR(C39="СРПШ",C39="СРПШКС"),"стол с бортом Нборта-40мм, ","стол без борта")," Hстолешницы -50 мм, столешница усилена швеллером,",IF(OR(C39="СРПШКС",C39="СРЦШКС")," стол сквозной, ",""),IF(K39="К"," 4 колеса(2 с тормозом)","регулируемые ножки(+/-20мм)"),", длина ", D39,"мм",", глубина ",E39,"мм"," ,высота ",F39,"мм, ", "Объем в упаковке ",ROUND(D39/1000*E39/1000*(F39+150)/1000,2)," м3") -> шлифованная н/ст, толщина столешницы - 1 мм, двери купе, сварная конструкция, сплошная полка 1шт + дно, каркас - труба 40*40*1,2 мм,стол без борта Hстолешницы -50 мм, столешница усилена швеллером,регулируемые ножки(+/-20мм), длина 800мм, глубина 600мм ,высота 850мм, Объем в упаковке 0,48 м3
B39: =UPPER(CONCATENATE(C39,"_",D39/10,E39/10,IF(AND(F42=850,K39=""),8587,F42/10),"_",IF(G39=1,"",G39),H39,I39,J39,K39)) -> СРПШК_80608587_СПД | C39: СРПШК | D39: 800 | E39: 600 | F39: 850 | H39: СПД | L39: =ROUND(((L40*IF(OR(C39="СРПШК",C39="СРЦШК"),1,1.25)*IF(I39="3ДВ",1.07,1)*IF(J39="БЗС",0.95,1)*IF(D40>1500,1.05,1)*IF(E40>700,1.05,1)*IF(F40>870,1.05,1)+IF(K39="К",6000,0)))*1.07*1.15*(1+'Повышение цен'!$C$11),0) -> 39221 | M39: =ROUND(IF($D$4="С НДС",L39*(1-$D$3),L39*(1-$D$3)/1.22),0) -> 39221
D40: =IF(AND(D39>599,D39<2001),D39,"не производим") -> 800 | E40: =IF(AND(E39>399,E39<1001),E39,"не производим") -> 600 | F40: =IF(AND(F42>599,F42<1001),F42,"не производим") -> 850 | G40: =IF(G39="",1,G39) -> 1 | L40: =IF(OR(C39="СРПШК",C39="СРПШКС"),ROUND(ROUND(ROUND((((D40*E40*(G40-1+3)/1000000*1.15+800*D40*2/1000000+E40*800*3/1000000)*1150+380*2.5*((G40-1)/10+1)+250)+2500+3500*((F40/850)-1)+2500*2.5*((G40-1)/10+1))*1.18,0)*0.97,0)*(0.85+0.694),0),IF(OR(C39="СРЦШК",C39="СРЦШКС"),ROUND(ROUND(ROUND((((D40*E40*(G40-1+3)/1000000+800*D40*2/1000000+E40*800*3/1000000)*1150+380*2.5*((G40-1)/10+1)+250)+2500+3500*(F40/850-1)+2500*2.5)*1.18,0)*0.97,0)*(0.85+0.6944),0))) -> 26478
D41: 600-2000 | E41: 400-1000 | F41: 600-1000 | G41: 1_3 | H41: СПД | K41: К | L41: Колеса
F42: =IF(F39=870,850,F39) -> 850 | J42: БЗС | K42: Без задней стенки
C43: СРПШК | D43: с бортом | I43: 3ДВ | J43: Три двери, при длине стола более 1200 мм
C44: СРПШКС | D44: с бортом, сквозной | H44: СПД | I44: Сплошная полка + дно
C45: СРЦШК | D45: без борта
C46: СРЦШКС | D46: без борта, сквозной
B48: Стол закрытый двери распашные с бортом (СРП Ш Р)
B50: Изображение | C50: Артикул | F50: Модель | G50: Характеристика номенклатуры | L50: Базовая цена, | M50: Ваша цена, | N50: Техническое описание | P50: Базовая цена,
L51: руб | M51: руб | P51: руб
C52: СРПШР_60608587_СПД | F52: СРПШР | G52: L=600, S=600, H=850-870, СПД, Л/О | L52: =ROUND(P52*(1+'Повышение цен'!$C$11),0) -> 32586 | M52: =ROUND(IF($D$4="С НДС",L52*(1-$D$3),L52*(1-$D$3)/1.22),0) -> 32586 | N52: шлифованная н/ст, толщина столешницы - 1 мм, двери распашные, сварная конструкция, стол закрыт с трех сторон, сплошная полка+дно, каркас - труба 40*40*1,2 мм, Hстолешницы -50 мм, Hборта - 40 мм, столешница усилена швеллером, регулируемые ножки(+/-20мм) | P52: 27070
C53: СРПШР_80608587_СПД | F53: СРПШР | G53: L=800, S=600, H=850-870, СПД | L53: =ROUND(P53*(1+'Повышение цен'!$C$11),0) -> 34794 | M53: 34794 | P53: 28904
C54: СРПШР_100608587_СПД | F54: СРПШР | G54: L=1000, S=600, H=850-870, СПД | L54: =ROUND(P54*(1+'Повышение цен'!$C$11),0) -> 37007 | M54: 37007 | P54: 30742
C55: СРПШР_120608587_СПД | F55: СРПШР | G55: L=1200, S=600, H=850-870, СПД | L55: =ROUND(P55*(1+'Повышение цен'!$C$11),0) -> 39215 | M55: 39215 | P55: 32577
C56: СРПШР_150608587_СПД | F56: СРПШР | G56: L=1500, S=600, H=850-870, СПД | L56: =ROUND(P56*(1+'Повышение цен'!$C$11),0) -> 42529 | M56: 42529 | P56: 35330
C58: СРПШР_60708587_СПД | F58: СРПШР | G58: L=600, S=700, H=850-870, СПД, Л/О | L58: =ROUND(P58*(1+'Повышение цен'!$C$11),0) -> 33933 | M58: =ROUND(IF($D$4="С НДС",L58*(1-$D$3),L58*(1-$D$3)/1.22),0) -> 33933 | P58: 28189
C59: СРПШР_80708587_СПД | F59: СРПШР | G59: L=800, S=700, H=850-870, СПД | L59: =ROUND(P59*(1+'Повышение цен'!$C$11),0) -> 36349 | M59: 36349 | P59: 30196
C60: СРПШР_100708587_СПД | F60: СРПШР | G60: L=1000, S=700, H=850-870, СПД | L60: =ROUND(P60*(1+'Повышение цен'!$C$11),0) -> 38768 | M60: 38768 | P60: 32205
C61: СРПШР_120708587_СПД | F61: СРПШР | G61: L=1200, S=700, H=850-870, СПД | L61: =ROUND(P61*(1+'Повышение цен'!$C$11),0) -> 41185 | M61: 41185 | P61: 34213
C62: СРПШР_150708587_СПД | F62: СРПШР | G62: L=1500, S=700, H=850-870, СПД | L62: =ROUND(P62*(1+'Повышение цен'!$C$11),0) -> 44812 | M62: 44812 | P62: 37226
B64: Стол закрытый двери распашные без борта (СРЦ Ш Р)
B66: Изображение | C66: Артикул | F66: Модель | G66: Характеристика номенклатуры | L66: Базовая цена, | M66: Ваша цена, | N66: Техническое описание | P66: Базовая цена,
L67: руб | M67: руб | P67: руб
C68: СРЦШР_60608587_СПД | F68: СРЦШР | G68: L=600, S=600, H=850-870, СПД, Л/О | L68: =ROUND(P68*(1+'Повышение цен'!$C$11),0) -> 32107 | M68: =ROUND(IF($D$4="С НДС",L68*(1-$D$3),L68*(1-$D$3)/1.22),0) -> 32107 | N68: шлифованная н/ст, толщина столешницы - 1 мм, двери распашные, сварная конструкция, стол закрыт с трех сторон, сплошная полка+дно, каркас - труба 40*40*1,2 мм, Hстолешницы -50 мм, без борта, столешница усилена швеллером, регулируемые ножки(+/-20мм) | P68: 26672
C69: СРЦШР_80608587_СПД | F69: СРЦШР | G69: L=800, S=600, H=850-870, СПД | L69: =ROUND(P69*(1+'Повышение цен'!$C$11),0) -> 34155 | M69: 34155 | P69: 28373
C70: СРЦШР_100608587_СПД | F70: СРЦШР | G70: L=1000, S=600, H=850-870, СПД | L70: =ROUND(P70*(1+'Повышение цен'!$C$11),0) -> 36205 | M70: 36205 | P70: 30076
C71: СРЦШР_120608587_СПД | F71: СРЦШР | G71: L=1200, S=600, H=850-870, СПД | L71: =ROUND(P71*(1+'Повышение цен'!$C$11),0) -> 38250 | M71: 38250 | P71: 31775
C72: СРЦШР_150608587_СПД | F72: СРЦШР | G72: L=1500, S=600, H=850-870, СПД | L72: =ROUND(P72*(1+'Повышение цен'!$C$11),0) -> 41321 | M72: 41321 | P72: 34326
C74: СРЦШР_60708587_СПД | F74: СРЦШР | G74: L=600, S=700, H=850-870, СПД, Л/О | L74: =ROUND(P74*(1+'Повышение цен'!$C$11),0) -> 33372 | M74: =ROUND(IF($D$4="С НДС",L74*(1-$D$3),L74*(1-$D$3)/1.22),0) -> 33372 | P74: 27723
C75: СРЦШР_80708587_СПД | F75: СРЦШР | G75: L=800, S=700, H=850-870, СПД | L75: =ROUND(P75*(1+'Повышение цен'!$C$11),0) -> 35599 | M75: 35599 | P75: 29573
C76: СРЦШР_100708587_СПД | F76: СРЦШР | G76: L=1000, S=700, H=850-870, СПД | L76: =ROUND(P76*(1+'Повышение цен'!$C$11),0) -> 37829 | M76: 37829 | P76: 31425
C77: СРЦШР_120708587_СПД | F77: СРЦШР | G77: L=1200, S=700, H=850-870, СПД | L77: =ROUND(P77*(1+'Повышение цен'!$C$11),0) -> 40056 | M77: 40056 | P77: 33275
C78: СРЦШР_150708587_СПД | F78: СРЦШР | G78: L=1500, S=700, H=850-870, СПД | L78: =ROUND(P78*(1+'Повышение цен'!$C$11),0) -> 43400 | M78: 43400 | P78: 36053
C80: Формула расчета цены | N80: Техническое описание
B81: Артикул | D81: Длина, | E81: Глубина, | F81: Высота | G81: Кол. | H81: Станд. | I81: Откр. | J81: Стенка | K81: Доп. | L81: Базовая цена, | M81: Ваша цена, | N81: Нестандартной модели
D82: мм | E82: мм | F82: мм | G82: полок | H82: исп. | I82: двери | J82: задняя | K82: колеса | L82: руб | M82: руб | N82: =CONCATENATE("шлифованная н/ст, толщина столешницы - 1 мм, двери распашные, сварная конструкция, "," сплошная полка ",IF(G84="",1,G84), "шт + дно,"," каркас - труба 40*40*1,2 мм,",IF(OR(C83="СРПШР",C83="СРПШРС"),"стол с бортом Нборта-40мм, ","стол без борта")," Hстолешницы -50 мм, столешница усилена швеллером,",IF(OR(C83="СРПШРС",C83="СРЦШРС")," стол сквозной, ",""),IF(K83="К"," 4 колеса(2 с тормозом)","регулируемые ножки(+/-20мм)"),", длина ", D83,"мм",", глубина ",E83,"мм"," ,высота ",F83,"мм, ", "Объем в упаковке ",ROUND(D83/1000*E83/1000*(F83+150)/1000,2)," м3") -> шлифованная н/ст, толщина столешницы - 1 мм, двери распашные, сварная конструкция, сплошная полка 1шт + дно, каркас - труба 40*40*1,2 мм,стол без борта Hстолешницы -50 мм, столешница усилена швеллером,регулируемые ножки(+/-20мм), длина 1000мм, глубина 700мм ,высота 850мм, Объем в упаковке 0,7 м3
B83: =UPPER(CONCATENATE(C83,"_",D83/10,E83/10,IF(AND(F86=850,K83=""),8587,F86/10),"_",IF(G83=1,"",G83),H83,I83,J83,K83)) -> СРЦШР_100708587_СПД | C83: СРЦШР | D83: 1000 | E83: 700 | F83: 850 | H83: СПД | L83: =ROUND(((L84*IF(OR(C83="СРПШР",C83="СРЦШР"),1,1.25)*IF(J83="БЗС",0.95,1)*IF(D84>1500,1.05,1)*IF(E84>700,1.05,1)*IF(F84>870,1.05,1)+IF(K83="К",6000,0)))*1.07*1.15*(1+'Повышение цен'!$C$11),0) -> 37828 | M83: =ROUND(IF($D$4="С НДС",L83*(1-$D$3),L83*(1-$D$3)/1.22),0) -> 37828
D84: =IF(AND(D83>399,D83<1501),D83,"не производим") -> 1000 | E84: =IF(AND(E83>399,E83<1001),E83,"не производим") -> 700 | F84: =IF(AND(F86>599,F86<1001),F86,"не производим") -> 850 | G84: =IF(G83="",1,G83) -> 1 | L84: =IF(OR(C83="СРПШР",C83="СРПШРС"),ROUND(ROUND(ROUND((((D84*E84*(G84-1+3)/1000000*1.15+800*D84*2/1000000+E84*800*3/1000000)*1150+380*2*((G84-1)/10+1))+2500+3500*(F84/850-1)+2500*2*((G84-1)/10+1))*1.18,0)*0.97,0)*(0.85+0.694),0),IF(OR(C83="СРЦШР",C83="СРЦШРС"),ROUND(ROUND(ROUND((((D84*E84*(G84-1+3)/1000000+800*D84*2/1000000+E84*800*3/1000000)*1150+380*2*((G84-1)/10+1))+2500+3500*(F84/850-1)+2500*2*((G84-1)/10+1))*1.18,0)*0.97,0)*(0.85+0.6944),0))) -> 25538
D85: 400-1500 | E85: 400-1000 | F85: 600-1000 | G85: 1_3 | H85: СПД | K85: К | L85: Колеса
F86: =IF(F83=870,850,F83) -> 850 | J86: БЗС | K86: Без задней стенки
C87: СРПШР | D87: с бортом | I87: П/О | J87: Правая дверь, при длине стола менее 750 мм
C88: СРПШРС | D88: с бортом, сквозной | I88: Л/О | J88: Левая дверь, при длине стола менее 750 мм
C89: СРЦШР | D89: без борта | H89: СПД | I89: Сплошная полка + дно
C90: СРЦШРС | D90: без борта, сквозной
B92: Стол закрытый без дверей с бортом (СРП Ш З)
B94: Изображение | C94: Артикул | F94: Модель | G94: Характеристика номенклатуры | L94: Базовая цена, | M94: Ваша цена, | N94: Техническое описание | P94: Базовая цена,
L95: руб | M95: руб | P95: руб
C96: СРПШЗ_60608587_СПД | F96: СРПШЗ | G96: L=600, S=600, H=850-870, СПД | L96: =ROUND(P96*(1+'Повышение цен'!$C$11),0) -> 27222 | M96: =ROUND(IF($D$4="С НДС",L96*(1-$D$3),L96*(1-$D$3)/1.22),0) -> 27222 | N96: шлифованная н/ст, толщина столешницы - 1 мм, без дверей, сварная конструкция, стол закрыт с трех сторон, сплошная полка+дно, каркас - труба 40*40*1,2 мм, Hстолешницы -50 мм, Hборта - 40 мм, столешница усилена швеллером, регулируемые ножки(+/-20мм) | P96: 22614
C97: СРПШЗ_80608587_СПД | F97: СРПШЗ | G97: L=800, S=600, H=850-870, СПД | L97: =ROUND(P97*(1+'Повышение цен'!$C$11),0) -> 28533 | M97: 28533 | P97: 23703
C98: СРПШЗ_100608587_СПД | F98: СРПШЗ | G98: L=1000, S=600, H=850-870, СПД | L98: =ROUND(P98*(1+'Повышение цен'!$C$11),0) -> 29840 | M98: 29840 | P98: 24789
C99: СРПШЗ_120608587_СПД | F99: СРПШЗ | G99: L=1200, S=600, H=850-870, СПД | L99: =ROUND(P99*(1+'Повышение цен'!$C$11),0) -> 31148 | M99: 31148 | P99: 25875
C100: СРПШЗ_150608587_СПД | F100: СРПШЗ | G100: L=1500, S=600, H=850-870, СПД | L100: =ROUND(P100*(1+'Повышение цен'!$C$11),0) -> 33114 | M100: 33114 | P100: 27508
C102: СРПШЗ_60708587_СПД | F102: СРПШЗ | G102: L=600, S=700, H=850-870, СПД | L102: =ROUND(P102*(1+'Повышение цен'!$C$11),0) -> 28637 | M102: =ROUND(IF($D$4="С НДС",L102*(1-$D$3),L102*(1-$D$3)/1.22),0) -> 28637 | P102: 23789
C103: СРПШЗ_80708587_СПД | F103: СРПШЗ | G103: L=800, S=700, H=850-870, СПД | L103: =ROUND(P103*(1+'Повышение цен'!$C$11),0) -> 30163 | M103: 30163 | P103: 25057
C104: СРПШЗ_100708587_СПД | F104: СРПШЗ | G104: L=1000, S=700, H=850-870, СПД | L104: =ROUND(P104*(1+'Повышение цен'!$C$11),0) -> 31692 | M104: 31692 | P104: 26327
C105: СРПШЗ_120708587_СПД | F105: СРПШЗ | G105: L=1200, S=700, H=850-870, СПД | L105: =ROUND(P105*(1+'Повышение цен'!$C$11),0) -> 33217 | M105: 33217 | P105: 27594
C106: СРПШЗ_150708587_СПД | F106: СРПШЗ | G106: L=1500, S=700, H=850-870, СПД | L106: =ROUND(P106*(1+'Повышение цен'!$C$11),0) -> 35509 | M106: 35509 | P106: 29498
B108: Стол закрытый без дверей без борта (СРЦ Ш З)
B110: Изображение | C110: Артикул | F110: Модель | G110: Характеристика номенклатуры | L110: Базовая цена, | M110: Ваша цена, | N110: Техническое описание | P110: Базовая цена,
L111: руб | M111: руб | P111: руб
C112: СРЦШЗ_60608587_СПД | F112: СРЦШЗ | G112: L=600, S=600, H=850-870, СПД | L112: =ROUND(P112*(1+'Повышение цен'!$C$11),0) -> 26718 | M112: =ROUND(IF($D$4="С НДС",L112*(1-$D$3),L112*(1-$D$3)/1.22),0) -> 26718 | N112: шлифованная н/ст, толщина столешницы - 1 мм, без дверей, сварная конструкция, стол закрыт с трех сторон, сплошная полка+дно, каркас - труба 40*40*1,2 мм, Hстолешницы -50 мм, без борта, столешница усилена швеллером, регулируемые ножки(+/-20мм) | P112: 22195
C113: СРЦШЗ_80608587_СПД | F113: СРЦШЗ | G113: L=800, S=600, H=850-870, СПД | L113: =ROUND(P113*(1+'Повышение цен'!$C$11),0) -> 27855 | M113: 27855 | P113: 23140
C114: СРЦШЗ_100608587_СПД | F114: СРЦШЗ | G114: L=1000, S=600, H=850-870, СПД | L114: =ROUND(P114*(1+'Повышение цен'!$C$11),0) -> 28994 | M114: 28994 | P114: 24086
C115: СРЦШЗ_120608587_СПД | F115: СРЦШЗ | G115: L=1200, S=600, H=850-870, СПД | L115: =ROUND(P115*(1+'Повышение цен'!$C$11),0) -> 30133 | M115: 30133 | P115: 25032
C116: СРЦШЗ_150608587_СПД | F116: СРЦШЗ | G116: L=1500, S=600, H=850-870, СПД | L116: =ROUND(P116*(1+'Повышение цен'!$C$11),0) -> 31842 | M116: 31842 | P116: 26452
C118: СРЦШЗ_60708587_СПД | F118: СРЦШЗ | G118: L=600, S=700, H=850-870, СПД | L118: =ROUND(P118*(1+'Повышение цен'!$C$11),0) -> 28046 | M118: =ROUND(IF($D$4="С НДС",L118*(1-$D$3),L118*(1-$D$3)/1.22),0) -> 28046 | P118: 23298
C119: СРЦШЗ_80708587_СПД | F119: СРЦШЗ | G119: L=800, S=700, H=850-870, СПД | L119: =ROUND(P119*(1+'Повышение цен'!$C$11),0) -> 29373 | M119: 29373 | P119: 24401
C120: СРЦШЗ_100708587_СПД | F120: СРЦШЗ | G120: L=1000, S=700, H=850-870, СПД | L120: =ROUND(P120*(1+'Повышение цен'!$C$11),0) -> 30704 | M120: 30704 | P120: 25506
C121: СРЦШЗ_120708587_СПД | F121: СРЦШЗ | G121: L=1200, S=700, H=850-870, СПД | L121: =ROUND(P121*(1+'Повышение цен'!$C$11),0) -> 32033 | M121: 32033 | P121: 26610
C122: СРЦШЗ_150708587_СПД | F122: СРЦШЗ | G122: L=1500, S=700, H=850-870, СПД | L122: =ROUND(P122*(1+'Повышение цен'!$C$11),0) -> 34024 | M122: 34024 | P122: 28264
C124: Формула расчета цены | N124: Техническое описание
B125: Артикул | D125: Длина, | E125: Глубина, | F125: Высота | G125: Кол. | H125: Станд. | I125: Доп. | J125: Доп. | K125: Доп. | L125: Базовая цена, | M125: Ваша цена, | N125: Нестандартной модели
D126: мм | E126: мм | F126: мм | G126: полок | H126: исп. | I126: опция | J126: опция | K126: колеса | L126: руб | M126: руб | N126: =CONCATENATE("шлифованная н/ст, толщина столешницы - 1 мм, без дверей, сварная конструкция, "," сплошная полка ",IF(G128="",1,G128), "шт + дно,"," каркас - труба 40*40*1,2 мм,",IF(OR(C127="СРПШ",C127="СРПШКС"),"стол с бортом Нборта-40мм, ","стол без борта")," Hстолешницы -50 мм, столешница усилена швеллером,",IF(OR(C127="СРПШКС",C127="СРЦШКС")," стол сквозной, ",""),IF(K127="К"," 4 колеса(2 с тормозом)","регулируемые ножки(+/-20мм)"),", длина ", D127,"мм",", глубина ",E127,"мм"," ,высота ",F127,"мм, ", "Объем ",ROUND(D127/1000*E127/1000*(F127+150)/1000,2)," м3") -> шлифованная н/ст, толщина столешницы - 1 мм, без дверей, сварная конструкция, сплошная полка 1шт + дно, каркас - труба 40*40*1,2 мм,стол без борта Hстолешницы -50 мм, столешница усилена швеллером,регулируемые ножки(+/-20мм), длина 1500мм, глубина 600мм ,высота 870мм, Объем 0,92 м3
B127: =UPPER(CONCATENATE(C127,"_",D127/10,E127/10,IF(AND(F130=850,K127=""),8587,F130/10),"_",IF(G127=1,"",G127),H127,I127,J127,K127)) -> СРЦШЗ_150608587_СПД | C127: СРЦШЗ | D127: 1500 | E127: 600 | F127: 870 | H127: СПД | L127: =ROUND((L128*IF(OR(C127="СРПШЗ",C127="СРЦШЗ"),1,1.25)*IF(J127="БЗС",0.95,1)*IF(D128>1500,1.05,1)*IF(E128>700,1.05,1)*IF(F128>870,1.05,1)+IF(K127="К",6000,0))*1.05,0)*1.07*1.15*(1+'Повышение цен'!$C$11) -> 31842.40467 | M127: =ROUND(IF($D$4="С НДС",L127*(1-$D$3),L127*(1-$D$3)/1.22),0) -> 31842
D128: =IF(AND(D127>699,D127<2001),D127,"не производим") -> 1500 | E128: =IF(AND(E127>399,E127<1001),E127,"не производим") -> 600 | F128: =IF(AND(F130>599,F130<1001),F130,"не производим") -> 850 | G128: =IF(G127="",1,G127) -> 1 | L128: =IF(OR(C127="СРПШЗ",C127="СРПШЗС"),ROUND(ROUND(ROUND((((D128*E128*(G128-1+3)/1000000*1.15+E128*800*3/1000000)*1150+380*1.5*((G128-1)/10+1))+2500+3500*(F128/850-1)+2500*1.5*((G128-1)/10+1))*1.18,0)*0.97,0)*(0.85+0.694),0),IF(OR(C127="СРЦШЗ",C127="СРЦШЗС"),ROUND(ROUND(ROUND((((D128*E128*(G128-1+3)/1000000+E128*800*3/1000000)*1150+380*1.5*((G128-1)/10+1))+2500+3500*(F128/850-1)+2500*1.5*((G128-1)/10+1))*1.18,0)*0.97,0)*(0.85+0.6944),0))) -> 20473
D129: 400-2000 | E129: 400-1000 | F129: 600-1000 | G129: 1_3 | H129: СПД | K129: К | L129: Колеса
F130: =IF(F127=870,850,F127) -> 850 | J130: БЗС | K130: Без задней стенки
C131: СРПШЗ | D131: с бортом | H131: СПД | I131: Сплошная полка + дно
C132: СРЦШЗ | D132: без борта
C133: СРПШЗС | D133: с бортом, сквозной
C134: СРЦШЗС | D134: без борта, сквозной

Sheet Столы закрытые с ванной
A1: Нейтральное оборудование/Столы закрытые с ванной | O1: На главную
A3: Ваша скидка: | D3: =Содержание!C2 -> 0
A4: НДС: | D4: =IF(Лист2!A1=TRUE,"С НДС","БЕЗ НДС") -> С НДС
B7: Стол закрытый с ванной, двери купе СВП Ш К
B9: Изображение | C9: Артикул | F9: Модель | G9: Характеристика номенклатуры | L9: Базовая цена, | M9: Ваша цена, | N9: Техническое описание | P9: Базовая цена,
L10: руб | M10: руб | P10: руб
C11: СВПШК_80608587_25 | F11: СВПШК | G11: L=800, S=600, H=850-870, G=250 | L11: =ROUND(P11*(1+'Повышение цен'!$C$12),0) -> 42202 | M11: =ROUND(IF($D$4="С НДС",L11*(1-$D$3),L11*(1-$D$3)/1.22),0) -> 42202 | N11: шлифованная н/ст, толщина столешницы - 1 мм, двери купе, сварная конструкция, стол закрыт с трех сторон, каркас - труба 40*40*1,2 мм, Hстолешницы -50 мм, Hборта - 40 мм, столешница усилена швеллером, отверстие для смесителя диаметром 31 мм, регулируемые ножки(+/-20мм); 1 цельнотянутая емкость : 400*400*250 мм при глубине изделия 600 мм; 500*500*300 мм при глубине изделия 700 мм и выше; с отверстием для слива 54 мм | P11: 35058
C12: СВПШК_100608587_25 | F12: СВПШК | G12: L=1000, S=600, H=850-870, G=250 | L12: =ROUND(P12*(1+'Повышение цен'!$C$12),0) -> 43521 | M12: =ROUND(IF($D$4="С НДС",L12*(1-$D$3),L12*(1-$D$3)/1.22),0) -> 43521 | P12: 36154
C13: СВПШК_120608587_25 | F13: СВПШК | G13: L=1200, S=600, H=850-870, G=250 | L13: =ROUND(P13*(1+'Повышение цен'!$C$12),0) -> 44837 | M13: 44837 | P13: 37247
C14: СВПШК_150608587_25 | F14: СВПШК | G14: L=1500, S=600, H=850-870, G=250 | L14: =ROUND(P14*(1+'Повышение цен'!$C$12),0) -> 46819 | M14: 46819 | P14: 38893
C16: СВПШК_80708587_30 | F16: СВПШК | G16: L=800, S=700, H=850-870, G=300 | L16: =ROUND(P16*(1+'Повышение цен'!$C$12),0) -> 45943 | M16: =ROUND(IF($D$4="С НДС",L16*(1-$D$3),L16*(1-$D$3)/1.22),0) -> 45943 | P16: 38166
C17: СВПШК_100708587_30 | F17: СВПШК | G17: L=1000, S=700, H=850-870, G=300 | L17: =ROUND(P17*(1+'Повышение цен'!$C$12),0) -> 47401 | M17: 47401 | P17: 39377
C18: СВПШК_120708587_30 | F18: СВПШК | G18: L=1200, S=700, H=850-870, G=300 | L18: =ROUND(P18*(1+'Повышение цен'!$C$12),0) -> 48858 | M18: 48858 | P18: 40587
C19: СВПШК_150708587_30 | F19: СВПШК | G19: L=1500, S=700, H=850-870, G=300 | L19: =ROUND(P19*(1+'Повышение цен'!$C$12),0) -> 51045 | M19: 51045 | P19: 42404
B22: Стол закрытый с двумя ваннами, двери купе СВП Ш К2
B24: Изображение | C24: Артикул | F24: Модель | G24: Характеристика номенклатуры | L24: Базовая цена, | M24: Ваша цена, | N24: Техническое описание | P24: Базовая цена,
L25: руб | M25: руб | P25: руб
C26: СВПШК2_100608587_25 | F26: СВПШК2 | G26: L=1000, S=600, H=850-870, G=250 | L26: =ROUND(P26*(1+'Повышение цен'!$C$12),0) -> 52225 | M26: =ROUND(IF($D$4="С НДС",L26*(1-$D$3),L26*(1-$D$3)/1.22),0) -> 52225 | N26: шлифованная н/ст, толщина столешницы - 1 мм, двери купе, сварная конструкция, стол закрыт с трех сторон, каркас - труба 40*40*1,2 мм, Hстолешницы -50 мм, Hборта - 40 мм, столешница усилена швеллером, отверстие для смесителя диаметром 31 мм, регулируемые ножки(+/-20мм); 2 цельнотянутые емкости : 400*400*250 мм при глубине изделия 600 мм; 500*500*300 мм при глубине изделия 700 мм и выше; с отверстием для слива 54 мм | P26: 43384
C27: СВПШК2_120608587_25 | F27: СВПШК2 | G27: L=1200, S=600, H=850-870, G=250 | L27: =ROUND(P27*(1+'Повышение цен'!$C$12),0) -> 53804 | M27: 53804 | P27: 44696
C28: СВПШК2_150608587_25 | F28: СВПШК2 | G28: L=1500, S=600, H=850-870, G=250 | L28: =ROUND(P28*(1+'Повышение цен'!$C$12),0) -> 56182 | M28: 56182 | P28: 46671
C30: СВПШК2_100708587_25 | F30: СВПШК2 | G30: L=1000, S=700, H=850-870, G=250 | L30: =ROUND(P30*(1+'Повышение цен'!$C$12),0) -> 53929 | M30: =ROUND(IF($D$4="С НДС",L30*(1-$D$3),L30*(1-$D$3)/1.22),0) -> 53929 | P30: 44800
C31: СВПШК2_120708587_30 | F31: СВПШК2 | G31: L=1200, S=700, H=850-870, G=300 | L31: =ROUND(P31*(1+'Повышение цен'!$C$12),0) -> 58629 | M31: 58629 | P31: 48704
C32: СВПШК2_150708587_30 | F32: СВПШК2 | G32: L=1500, S=700, H=850-870, G=300 | L32: =ROUND(P32*(1+'Повышение цен'!$C$12),0) -> 61253 | M32: 61253 | P32: 50884
C34: Формула расчета цены | N34: Техническое описание
B35: Артикул | D35: Длина, | E35: Глубина, | F35: Высота | G35: Цельн. Емкость | I35: Доп. | K35: Доп. | L35: Базовая цена, | M35: Ваша цена, | N35: Нестандартной модели
D36: мм | E36: мм | F36: мм | G36: Глубина, мм | I36: двери | K36: колеса | L36: руб | M36: руб | N36: =CONCATENATE("шлифованная н/ст, толщина столешницы - 1 мм, двери купе, сварная конструкция, стол закрыт с трех сторон, каркас нерж. труба 40*40*1,2 мм, Hстолешницы -50 мм, Hборта - 40 мм, столешница усилена швеллером,",IF(G37=300,"цельнотянутая емкость 500*500*300 мм",""),IF(G37=250,"цельнотянутая емкость 400*400*250 мм",""),IF(OR(OR(C37="СВПШК",C37="СВПШПК",C37="СВПШЛК"))," 1 шт, ",""),IF(OR(OR(C37="СВПШК2",C37="СВПШПК2",C37="СВПШЛК2"))," 2 шт, ",""),IF(K37="К"," 4 колеса(2 с тормозом)","регулируемые ножки(+/-20мм)"),", длина ",D37,"мм",", глубина ",E37,"мм"," ,высота ",F37,"мм, ","Объем в упаковке ",ROUND(D37/1000*E37/1000*(F37+150)/1000,2),"м3") -> шлифованная н/ст, толщина столешницы - 1 мм, двери купе, сварная конструкция, стол закрыт с трех сторон, каркас нерж. труба 40*40*1,2 мм, Hстолешницы -50 мм, Hборта - 40 мм, столешница усилена швеллером,цельнотянутая емкость 400*400*250 мм 1 шт, регулируемые ножки(+/-20мм), длина 1500мм, глубина 600мм ,высота 850мм, Объем в упаковке 0,9м3
B37: =UPPER(CONCATENATE(C37,"_",D37/10,E37/10,IF(AND(F40=850,K37=""),8587,F40/10),"_",G37/10,IF(OR(I37="3ДВ",K37="К"),"_",""),I37,K37)) -> СВПШК_150608587_25 | C37: СВПШК | D37: 1500 | E37: 600 | F37: 850 | G37: 250 | L37: =ROUND((L38*IF(OR(OR(C37="СВПШК2",C37="СВПШЛК2",C37="СВПШПК2")),1.2,1)*IF(D38>1500,1.05,1)*IF(E38>700,1.05,1)*IF(F38>850,1.05,1)*IF(I37="3ДВ",1.07,1)+IF(K37="К",6000,0))*1.05*1.07,0)*1.1*(1+'Повышение цен'!$C$12) -> 46818.17455 | M37: =ROUND(IF($D$4="С НДС",L37*(1-$D$3),L37*(1-$D$3)/1.22),0) -> 46818
D38: =IF(AND(D37>599,D37<2001),D37,"не производим") -> 1500 | E38: =IF(AND(E37>599,E37<1001),E37,"не производим") -> 600 | F38: =IF(AND(F40>599,F40<1001),F40,"не производим") -> 850 | L38: =IF(OR(OR(OR(OR(OR(C37="СВПШК",C37="СВПШЛК",C37="СВПШПК",C37="СВПШК2",C37="СВПШЛК2",C37="СВПШПК2"))))),IF(G37=250,ROUND(ROUND(ROUND((((D38*E38*2/1000000*1.15+800*D38*1/1000000+E38*800*3/1000000)*1150+380*3.5+250)+2500+2500*(F38/850-1)+Техно!X10+2500*2.5)*1.18,0)*0.97,0)*(0.85+0.694),0),IF(G37=300,ROUND(ROUND(ROUND((((D38*E38*2/1000000*1.15+800*D38*1/1000000+E38*800*3/1000000)*1150+380*3.5+250)+2500+2500*(F38/850-1)+Техно!X11+2500*2.5)*1.18,0)*0.97,0)*(0.85+0.694),0)))) -> 31470
D39: =IF(OR(OR(C37="СВПШК",C37="СВПШЛК",C37="СВПШПК")),"600-2000","1000-2000") -> 600-2000 | E39: 600-1000 | F39: 600-1000 | K39: К | L39: Колеса
F40: =IF(F37=870,850,F37) -> 850 | I40: 3ДВ | J40: Три двери, при длине стола более 1200 мм
C41: СВПШК | D41: одна мойка, по центру | G41: G=250 | I41: Цельнотянутая емкость 400*400*250 мм
C42: СВПШЛК | D42: одна мойка, слева | G42: G=300 | I42: Цельнотянутая емкость 500*500*300 мм
C43: СВПШПК | D43: одна мойка, справа
C44: СВПШК2 | D44: две мойки, по центру
C45: СВПШЛК2 | D45: две мойки, слева
C46: СВПШПК2 | D46: две мойки, справа
B48: Стол закрытый с ванной, двери распашные СВП Ш Р
B50: Изображение | C50: Артикул | F50: Модель | G50: Характеристика номенклатуры | L50: Базовая цена, | M50: Ваша цена, | N50: Техническое описание | P50: Базовая цена,
L51: руб | M51: руб | P51: руб
C52: СВПШР_60608587_25_ЛО | F52: СВПШР | G52: L=600, S=600, H=850-870, G=250, Л/О | L52: =ROUND(P52*(1+'Повышение цен'!$C$12),0) -> 35610 | M52: =ROUND(IF($D$4="С НДС",L52*(1-$D$3),L52*(1-$D$3)/1.22),0) -> 35610 | N52: шлифованная н/ст, толщина столешницы - 1 мм, двери распашные, сварная конструкция, стол закрыт с трех сторон, каркас - труба 40*40*1,2 мм, Hстолешницы -50 мм, Hборта - 40 мм, столешница усилена швеллером, отверстие для смесителя диаметром 31 мм, регулируемые ножки(+/-20мм); 1 цельнотянутая емкость : 400*400*250 мм при глубине изделия 600 мм; 500*500*300 мм при глубине изделия 700 мм и выше; с отверстием для слива 54 мм | P52: 29582
C53: СВПШР_80608587_25 | F53: СВПШР | G53: L=800, S=600, H=850-870, G=250 | L53: =ROUND(P53*(1+'Повышение цен'!$C$12),0) -> 36984 | M53: 36984 | P53: 30723
C54: СВПШР_100608587_25 | F54: СВПШР | G54: L=1000, S=600, H=850-870, G=250 | L54: =ROUND(P54*(1+'Повышение цен'!$C$12),0) -> 38356 | M54: 38356 | P54: 31863
C55: СВПШР_120608587_25 | F55: СВПШР | G55: L=1200, S=600, H=850-870, G=250 | L55: =ROUND(P55*(1+'Повышение цен'!$C$12),0) -> 39732 | M55: 39732 | P55: 33006
C56: СВПШР_150608587_25 | F56: СВПШР | G56: L=1500, S=600, H=850-870, G=250 | L56: =ROUND(P56*(1+'Повышение цен'!$C$12),0) -> 43880 | M56: 43880 | P56: 36452
C58: СВПШР_60708587_30_ЛО | F58: СВПШР | G58: L=600, S=700, H=850-870, G=300, Л/О | L58: =ROUND(P58*(1+'Повышение цен'!$C$12),0) -> 39225 | M58: =ROUND(IF($D$4="С НДС",L58*(1-$D$3),L58*(1-$D$3)/1.22),0) -> 39225 | P58: 32585
C59: СВПШР_80708587_30 | F59: СВПШР | G59: L=800, S=700, H=850-870, G=300 | L59: =ROUND(P59*(1+'Повышение цен'!$C$12),0) -> 40683 | M59: 40683 | P59: 33796
C60: СВПШР_100708587_30 | F60: СВПШР | G60: L=1000, S=700, H=850-870, G=300 | L60: =ROUND(P60*(1+'Повышение цен'!$C$12),0) -> 42143 | M60: 42143 | P60: 35009
C61: СВПШР_120708587_30 | F61: СВПШР | G61: L=1200, S=700, H=850-870, G=300 | L61: =ROUND(P61*(1+'Повышение цен'!$C$12),0) -> 43600 | M61: 43600 | P61: 36219
C62: СВПШР_150708587_30 | F62: СВПШР | G62: L=1500, S=700, H=850-870, G=300 | L62: =ROUND(P62*(1+'Повышение цен'!$C$12),0) -> 45787 | M62: 45787 | P62: 38036
B64: Стол закрытый с двумя ваннами, двери распашные СВП Ш Р2
B66: Изображение | C66: Артикул | F66: Модель | G66: Характеристика номенклатуры | L66: Базовая цена, | M66: Ваша цена, | N66: Техническое описание | P66: Базовая цена,
L67: руб | M67: руб | P67: руб
C68: СВПШР2_100608587_25 | F68: СВПШР2 | G68: L=1000, S=600, H=850-870, G=250 | L68: =ROUND(P68*(1+'Повышение цен'!$C$12),0) -> 46026 | M68: =ROUND(IF($D$4="С НДС",L68*(1-$D$3),L68*(1-$D$3)/1.22),0) -> 46026 | N68: шлифованная н/ст, толщина столешницы - 1 мм, двери распашные, сварная конструкция, стол закрыт с трех сторон, каркас - труба 40*40*1,2 мм, Hстолешницы -50 мм, Hборта - 40 мм, столешница усилена швеллером, отверстие для смесителя диаметром 31 мм, регулируемые ножки(+/-20мм); 2 цельнотянутые емкости : 400*400*250 мм при глубине изделия 600 мм; 500*500*300 мм при глубине изделия 700 мм и выше; с отверстием для слива 54 мм | P68: 38235
C69: СВПШР2_120608587_25 | F69: СВПШР2 | G69: L=1200, S=600, H=850-870, G=250 | L69: =ROUND(P69*(1+'Повышение цен'!$C$12),0) -> 47679 | M69: 47679 | P69: 39608
C70: СВПШР2_150608587_25 | F70: СВПШР2 | G70: L=1500, S=600, H=850-870, G=250 | L70: =ROUND(P70*(1+'Повышение цен'!$C$12),0) -> 52653 | M70: 52653 | P70: 43740
C72: СВПШР2_100708587_25 | F72: СВПШР2 | G72: L=1000, S=700, H=850-870, G=250 | L72: =ROUND(P72*(1+'Повышение цен'!$C$12),0) -> 47501 | M72: =ROUND(IF($D$4="С НДС",L72*(1-$D$3),L72*(1-$D$3)/1.22),0) -> 47501 | P72: 39460
C73: СВПШР2_120708587_30 | F73: СВПШР2 | G73: L=1200, S=700, H=850-870, G=300 | L73: =ROUND(P73*(1+'Повышение цен'!$C$12),0) -> 52320 | M73: 52320 | P73: 43463
C74: СВПШР2_150708587_30 | F74: СВПШР2 | G74: L=1500, S=700, H=850-870, G=300 | L74: =ROUND(P74*(1+'Повышение цен'!$C$12),0) -> 57691 | M74: 57691 | P74: 47925
C76: Формула расчета цены | N76: Техническое описание
B77: Артикул | D77: Длина, | E77: Глубина, | F77: Высота | G77: Цельн. Емкость | I77: Откр. | K77: Доп. | L77: Базовая цена, | M77: Ваша цена, | N77: Нестандартной модели
D78: мм | E78: мм | F78: мм | G78: Глубина, мм | I78: двери | K78: колеса | L78: руб | M78: руб | N78: =CONCATENATE("шлифованная н/ст, толщина столешницы - 1 мм, двери распашные, сварная конструкция, стол закрыт с трех сторон, каркас нерж. труба 40*40*1,2 мм, Hстолешницы -50 мм, Hборта - 40 мм, столешница усилена швеллером,",IF(G79=300,"цельнотянутая емкость 500*500*300 мм",""),IF(G79=250,"цельнотянутая емкость 400*400*250 мм",""),IF(OR(OR(C79="СВПШР",C79="СВПШПР",C79="СВПШЛР"))," 1 шт, ",""),IF(OR(OR(C79="СВПШР2",C79="СВПШПР2",C79="СВПШЛР2"))," 2 шт, ",""),IF(K79="К"," 4 колеса(2 с тормозом)","регулируемые ножки(+/-20мм)"),", длина ",D79,"мм",", глубина ",E79,"мм"," ,высота ",F79,"мм, ","Объем в упаковке ",ROUND(D79/1000*E79/1000*(F79+150)/1000,2),"м3") -> шлифованная н/ст, толщина столешницы - 1 мм, двери распашные, сварная конструкция, стол закрыт с трех сторон, каркас нерж. труба 40*40*1,2 мм, Hстолешницы -50 мм, Hборта - 40 мм, столешница усилена швеллером,цельнотянутая емкость 400*400*250 мм 2 шт, регулируемые ножки(+/-20мм), длина 1000мм, глубина 700мм ,высота 850мм, Объем в упаковке 0,7м3
B79: =UPPER(CONCATENATE(C79,"_",D79/10,E79/10,IF(AND(F82=850,K79=""),8587,F82/10),"_",G79/10,IF(OR(OR(I79="Л/О",I79="П/О",K79="К")),"_",""),I79,K79)) -> СВПШР2_100708587_25 | C79: СВПШР2 | D79: 1000 | E79: 700 | F79: 850 | G79: 250 | L79: =ROUND((L80*IF(OR(OR(C79="СВПШР2",C79="СВПШЛР2",C79="СВПШПР2")),1.2,1)*IF(D80>1200,1.05,1)*IF(E80>700,1.05,1)*IF(F80>850,1.05,1)+IF(K79="К",6000,0))*1.05*1.07,0)*1.1*(1+'Повышение цен'!$C$12) -> 47501.43891 | M79: =ROUND(IF($D$4="С НДС",L79*(1-$D$3),L79*(1-$D$3)/1.22),0) -> 47501
D80: =IF(AND(D79>499,D79<1501),D79,"не производим") -> 1000 | E80: =IF(AND(E79>399,E79<1001),E79,"не производим") -> 700 | F80: =IF(AND(F82>599,F82<1001),F82,"не производим") -> 850 | G80: =IF(G79="",1,G79) -> 250 | L80: =IF(OR(OR(OR(OR(OR(C79="СВПШР",C79="СВПШЛР",C79="СВПШПР",C79="СВПШР2",C79="СВПШЛР2",C79="СВПШПР2"))))),IF(G79=250,ROUND(ROUND(ROUND((((D80*E80*2/1000000*1.15+800*D80*1/1000000+E80*800*2/1000000)*1150+380*3.5+250)+1500+Техно!X10+2500*(F80/850-1)+1500*3.5)*1.18,0)*1.042*0.97,0)*(0.85+0.694),0),IF(G79=300,ROUND(ROUND(ROUND((((D80*E80*2/1000000*1.15+800*D80*1/1000000+E80*800*3/1000000)*1150+380*3.5+250)+1500+Техно!X11+2500*(F80/850-1)+1500*3.5)*1.18,0)*0.97,0)*(0.85+0.694),0)))) -> 26608
D81: =IF(OR(OR(C79="СВПШР",C79="СВПШЛР",C79="СВПШПР")),"600-2000","1000-2000") -> 1000-2000 | E81: 600-1000 | F81: 600-1000 | K81: К | L81: Колеса
F82: =IF(F79=870,850,F79) -> 850 | I82: П/О | J82: Правая дверь, при длине стола менее 750 мм
C83: СВПШР | D83: одна мойка, по центру | I83: Л/О | J83: Левая дверь, при длине стола менее 750 мм
C84: СВПШЛР | D84: одна мойка, слева | G84: G=250 | I84: Цельнотянутая емкость 400*400*250 мм
C85: СВПШПР | D85: одна мойка, справа | G85: G=300 | I85: Цельнотянутая емкость 500*500*300 мм
C86: СВПШР2 | D86: две мойки, по центру
C87: СВПШЛР2 | D87: две мойки, слева
C88: СВПШПР2 | D88: две мойки, справа

Sheet Столы для моек, для рыбы (hidden)
A1: Нейтральное оборудование/Столы для моек, для чистки рыбы | N1: На главную
A3: Ваша скидка: | D3: =Содержание!C2 -> 0
A4: НДС: | D4: =IF(Лист2!A1=TRUE,"С НДС","БЕЗ НДС") -> С НДС | E4: Складская программа
B7: Стол для посудомоечной машины, входной СПМ Ш ВХЛ
B9: Изображение | C9: Артикул | F9: Модель | G9: Характеристика номенклатуры | K9: Базовая цена, | L9: Ваша цена, | M9: Техническое описание | O9: Базовая цена,
K10: руб | L10: руб | O10: руб
C11: СПМШВХЛ1_120758587 | F11: СПМШВХ | G11: L=1200, S=750, H=850-870; G=300 | K11: =ROUND(O11*(1+'Повышение цен'!$C$12),0) -> 43736 | L11: =ROUND(IF($D$4="С НДС",K11*(1-$D$3),K11*(1-$D$3)/1.2),0) -> 43736 | M11: шлифованная н/ст, толщина нержавеющей стали - 1 мм, цельнотянутая емкость 500*400*300 со сливным отверстием 54 мм; сварная конструкция, отверстие для смесителя диаметром 31 мм; каркас - труба 40*40*1,2 мм, Hстолешницы -50 мм, Hборта -200 мм, обвязка с трех сторон, отверстие для отходов диаметром 225 мм, углубление для кассеты, крепление для посудомоечной машины, регулируемые ножки(+/-20мм), | O11: 36332
C12: СПМШВХП1_120758587 | F12: СПМШВХ | G12: L=1200, S=750, H=850-870; G=300 | K12: =ROUND(O12*(1+'Повышение цен'!$C$12),0) -> 43736 | L12: 43736 | O12: 36332
C14: Формула расчета цены | M14: Техническое описание
B15: Артикул | C15: Модель | D15: Левое/ | E15: Кол-во | F15: Длина, | G15: Глубина, | H15: Высота | I15: Доп. | J15: Доп. | K15: Базовая цена, | L15: Ваша цена, | M15: Нестандартной модели
D16: Правое | E16: ванн | F16: мм | G16: мм | H16: мм | I16: опция | J16: колеса | K16: руб | L16: руб | M16: =CONCATENATE("шлифованная н/ст, толщина стали - 1 мм, сварная конструкция, ",IF(F17<900,"цельнотянутая емкость 400*400*300 ",""),IF(OR(F17>900,F17=900),"Цельнотянутая емкость 400*500*300 ",""), E20," шт",", каркас - труба 40*40*1,2 мм, ",IF(D17="ВХЛ"," расположен слева от машины, ",""),IF(D17="ВХП"," расположен слева от машины, ",""),IF(I17="СП","сплошная полка"," "),IF(J17="К",", 4 колеса(2 с тормозом)","регулируемые ножки(+/-20мм)"),", длина ", F17,"мм",", глубина ",G17,"мм"," ,высота ",H17,"мм") -> шлифованная н/ст, толщина стали - 1 мм, сварная конструкция, Цельнотянутая емкость 400*500*300 1 шт, каркас - труба 40*40*1,2 мм, расположен слева от машины, регулируемые ножки(+/-20мм), длина 1200мм, глубина 750мм ,высота 870мм
B17: =UPPER(CONCATENATE(C17,D17,IF(E17="",1,E17),"_",F17/10,G17/10,IF(AND(H20=850,J17=""),8587,H17/10),IF(J17="К","_",""),J17)) -> СПМШВХЛ1_120758587 | C17: СПМШ | D17: ВХЛ | F17: 1200 | G17: 750 | H17: 870 | K17: =ROUND((K18*IF(I17="СП",1.1,1)+IF(J17="К",6000,0))*1.07*1.1*(1+'Повышение цен'!$C$12),0) -> 43735 | L17: =ROUND(IF($D$4="С НДС",K17*(1-$D$3),K17*(1-$D$3)/1.2),0) -> 43735
E18: =IF(AND(E20>0.99,E20<2.01),E20,"не производим") -> 1 | F18: =IF(AND(F17>799,F17<2000),F17,"не производим") -> 1200 | G18: =IF(AND(G17>499,G17<951),G17,"не производим") -> 750 | H18: =IF(AND(H17>499,H17<951),H17,"не производим") -> 870 | I18: =IF(AND(I17>4.99,I17<8.01),I17,"не производим") -> не производим | K18: =IF(OR(E18="",E18=1),IF(OR(D17="ВХЛ",D17="ВХП"),ROUND(ROUND(ROUND((((F18*G18*2/1000000*1.8+800*F18*1/1000000)*1150+380*3.5+250)+4000+2500*2.5)*1.2,0),0)*(0.85+0.694),0),IF(D17="ВХУ",ROUND(ROUND(ROUND((((F18*G18*2/1000000*1.9+800*F18*1/1000000)*1150+380*3.5+250)+4000+2900*2.5)*1.2,0),0)*(0.85+0.694),0))),IF(E18=2,IF(OR(D17="ВХЛ",D17="ВХП"),ROUND(ROUND(ROUND((((F18*G18*2/1000000*1.8+800*F18*1/1000000)*1150+380*3.5+250)+5500+3000*2.5)*1.2,0),0)*(0.85+0.694),0),IF(D17="ВХУ",ROUND(ROUND(ROUND((((F18*G18*2/1000000*1.9+800*F18*1/1000000)*1150+380*3.5+250)+5500+3300*2.5)*1.2,0),0)*(0.85+0.694),0))))) -> 30868
E19: 1_2 | F19: =IF(E20=1,"800-1300",IF(E20=2,"1000-1500","ошибка")) -> 800-1300 | G19: 700-800 | H19: 850-870
E20: =IF(E17="",1,E17) -> 1 | H20: =IF(H17=870,850,H17) -> 850 | J20: К | K20: Колеса
I21: СП | J21: Сплошная полка
D22: ВХЛ | E22: Стол входной, расположен слева от машины
D23: ВХП | E23: Стол входной, расположен справа от машины
C24: СПМШ | D24: Стол для посудомоечной машины
B28: Стол для посудомоечной машины СПМ ВЫХ
B30: Изображение | C30: Артикул | F30: Модель | G30: Характеристика номенклатуры | K30: Базовая цена, | L30: Ваша цена, | M30: Техническое описание | O30: Базовая цена,
K31: руб | L31: руб | O31: руб
C32: СПМШВЫХЛ_60758587_Н | F32: СПМШВЫХЛ | G32: L=600, S=750, H=850-870, Н | K32: =ROUND(O32*(1+'Повышение цен'!$C$9),0) -> 21557 | L32: =ROUND(IF($D$4="С НДС",K32*(1-$D$3),K32*(1-$D$3)/1.2),0) -> 21557 | M32: шлифованная н/ст, толщина нержавеющей стали - 1 мм, сварная конструкция, каркас - труба 40*40*1,2 мм, 5 направляющих для кассет 500*500, регулируемые ножки(+/-20мм) крепление к посудомоечной машине слева/справа, | O32: 17908
C33: СПМШВЫХП_60758587_Н | F33: СПМШВЫХП | G33: L=600, S=750, H=850-870, Н | K33: =ROUND(O33*(1+'Повышение цен'!$C$9),0) -> 21557 | L33: 21557 | O33: 17908
C35: Формула расчета цены | M35: Техническое описание
B36: Артикул | C36: Модель | D36: Левое/ | E36: Длина, | F36: Глубина, | G36: Высота | H36: Доп. | J36: Доп. | K36: Базовая цена, | L36: Ваша цена, | M36: Нестандартной модели
D37: Правое | E37: мм | F37: мм | G37: мм | H37: опция | J37: колеса | K37: руб | L37: руб | M37: =CONCATENATE("шлифованная н/ст, толщина стали - 1 мм, каркас - труба 40*40*1,2 мм, ",IF(D38="ВЫХЛ"," крепление для посудомоечной машины слева, ",""),IF(D38="ВЫХП"," крепление для посудомоечной машины справа, ",""),IF(D38="ВЫХУ"," крепление для посудомоечной машины съемное, устанавливается слева/справа, ",""),IF(H38="ОБ","без направляющих для кассет, ",""),IF(H38="Н","направляющие для кассет снизу, ",""),IF(J38="К",", 4 колеса(2 с тормозом)","регулируемые ножки(+/-20мм)"),", длина ", E38,"мм",", глубина ",F38,"мм"," ,высота ",G38,"мм") -> шлифованная н/ст, толщина стали - 1 мм, каркас - труба 40*40*1,2 мм, крепление для посудомоечной машины слева, направляющие для кассет снизу, регулируемые ножки(+/-20мм), длина 600мм, глубина 750мм ,высота 850мм
B38: =UPPER(CONCATENATE(C38,D38,"_",E38/10,F38/10,IF(AND(G41=850,J38=""),8587,G38/10),"_",H38,J38)) -> СПМШВЫХЛ_60758587_Н | C38: СПМШ | D38: ВЫХЛ | E38: 600 | F38: 750 | G38: 850 | H38: Н | K38: =ROUND((K39+IF(J38="К",6000,0))*1.07*1.1*(1+'Повышение цен'!$C$9),0) -> 21557 | L38: =ROUND(IF($D$4="С НДС",K38*(1-$D$3),K38*(1-$D$3)/1.2),0) -> 21557
E39: =IF(AND(E38>599,E38<701),E38,"не производим") -> 600 | F39: =IF(AND(F38>700,F38<801),F38,"не производим") -> 750 | G39: =IF(AND(G38>499,G38<951),G38,"не производим") -> 850 | H39: =IF(AND(H38>499,H38<951),H38,"не производим") -> не производим | I39: =IF(AND(I38>4.99,I38<8.01),I38,"не производим") -> не производим | K39: =IF(H38="ОБ",ROUND(ROUND(ROUND((((E39*F39/1000000*1.8+400*E39*1/1000000)*550+380*3.5+250)+1850*2.6)*1.2,0),0)*(0.85+0.694),0),IF(H38="Н",ROUND(ROUND(ROUND((((E39*F39/1000000*1.8+400*E39*2*1/1000000)*550+380*3.5+250+5*2*100*F39*0.000789)+2050*2.6)*1.2,0),0)*(0.85+0.694),0))) -> 15215
E40: 600-700 | F40: 700-800 | G40: 850-870 | H40: ОБ_Н
E41: =IF(E38="",1,E38) -> 600 | G41: =IF(G38=870,850,G38) -> 850 | J41: К | K41: Колеса
D42: ВЫХЛ | E42: Стол выходной, расположен слева от машины
D43: ВЫХП | E43: Стол выходной, расположен справа от машины
D44: ВЫХУ | E44: Стол выходной, крепление для машины сьемное, устанавливается слева/справа
C45: СПМШ | D45: Стол для посудомоечной машины
B48: Стол под рыбу СПР Э
B50: Изображение | C50: Артикул | F50: Модель | G50: Характеристика номенклатуры | K50: Базовая цена, | L50: Ваша цена, | M50: Техническое описание | O50: Базовая цена,
K51: руб | L51: руб | O51: руб
C52: СПРЭ_110110100_ОБ | F52: СПРЭ | G52: L=1100, S=1100, H=1000, ОБ | K52: =ROUND(O52*(1+'Повышение цен'!$C$9),0) -> 54974 | L52: =ROUND(IF($D$4="С НДС",K52*(1-$D$3),K52*(1-$D$3)/1.2),0) -> 54974 | M52: шлифованная н/ст, столешница с теплоизоляцией, поддоны перфорированные съемные;толщина стали - 1 мм, разборная конструкция(столешница + каркас), каркас - труба 40*40*1,2 мм, регулируемые ножки(+/-20мм), | O52: 45668
C53: СПРЭ_150110110_ОБ | F53: СПРЭ | G53: L=1500, S=1100, H=1100, ОБ | K53: =ROUND(O53*(1+'Повышение цен'!$C$9),0) -> 71862 | L53: 71862 | O53: 59697
C54: СПРЭ_180110100_ОБ | F54: СПРЭ | G54: L=1800, S=1100, H=1000, ОБ | K54: =ROUND(O54*(1+'Повышение цен'!$C$9),0) -> 80306 | L54: 80306 | O54: 66712
C55: СПРЭ_220110100_ОБ | F55: СПРЭ | G55: L=2200, S=1100, H=1000, ОБ | K55: =ROUND(O55*(1+'Повышение цен'!$C$9),0) -> 86145 | L55: 86145 | O55: 71562
C56: СПРЭ_250110100_ОБ | F56: СПРЭ | G56: L=2500, S=1100, H=1000, ОБ | K56: =ROUND(O56*(1+'Повышение цен'!$C$9),0) -> 99321 | L56: 99321 | O56: 82508
B58: Стол для чистки рыбы СЧР Э
B60: Изображение | C60: Артикул | F60: Модель | G60: Характеристика номенклатуры | K60: Базовая цена, | L60: Ваша цена, | M60: Техническое описание | O60: Базовая цена,
K61: руб | L61: руб | O61: руб
C62: СЧРЭП_130608587_ОБ | F62: СЧРЭП | G62: L=1300, S=600, H=850-870, G=300 | K62: =ROUND(O62*(1+'Повышение цен'!$C$12),0) -> 95694 | L62: =ROUND(IF($D$4="С НДС",K62*(1-$D$3),K62*(1-$D$3)/1.2),0) -> 95694 | M62: шлифованная н/ст, столешница: цельнотянутая ванна справа, отверстие для отходов слева, пропиленовая столешница, направляющие для гастроемкости для сбора отходов, нижняя обвязка с трех сторон, каркас - труба 40*40*1,2 мм, регулируемые ножки(+/-20мм), | O62: 79495
C63: СЧРЭЛ_130608587_ОБ | F63: СЧРЭЛ | G63: L=1300, S=600, H=850-870, G=300 | K63: =ROUND(O63*(1+'Повышение цен'!$C$12),0) -> 95694 | L63: =ROUND(IF($D$4="С НДС",K63*(1-$D$3),K63*(1-$D$3)/1.2),0) -> 95694 | M63: шлифованная н/ст, столешница: цельнотянутая ванна слева, отверстие для отходов справа, пропиленовая столешница, направляющие для гастроемкости для сбора отходов, нижняя обвязка с трех сторон, каркас - труба 40*40*1,2 мм, регулируемые ножки(+/-20мм), | O63: 79495

Sheet Цельнотянутые ванны (hidden)
A1: Нейтральное оборудование/Цельнотянутые ванны | O1: На главную
A3: Ваша скидка: | D3: =Содержание!C2 -> 0
A4: НДС: | D4: =IF(Лист2!A1=TRUE,"С НДС","БЕЗ НДС") -> С НДС | E4: Складская программа
B7: Одинарная цельнотянутая ванна ВМП Ш 1
B9: Изображение | C9: Артикул | F9: Модель | G9: Характеристика номенклатуры | L9: Базовая цена, | M9: Ваша цена, | N9: Техническое описание | P9: Базовая цена,
L10: руб | M10: руб | P10: руб
C11: ВМПШ1_60608587_25 | F11: ВМПШ1 | G11: L=600, S=600, H=850-870, G=250 | L11: =ROUND(P11*(1+'Повышение цен'!$C$12),0) -> 29019 | M11: =ROUND(IF($D$4="С НДС",L11*(1-$D$3),L11*(1-$D$3)/1.2),0) -> 29019 | N11: шлифованная н/ст, толщина столешницы - 1 мм, Aisi 304 разборная конструкция, стол закрыт с трех сторон фартуком, каркас - труба 40*40*1,2 мм, Hстолешницы -50 мм, Hборта - 40 мм, столешница усилена швеллером; 1 цельнотянутая емкость : 400*400*250 мм при глубине изделия 600 мм; 500*500*300 мм при глубине изделия 700 мм и выше с отверстием для слива 54 мм, отверстие для смесителя, диаметром 31 мм, регулируемые ножки(+/-20мм) | P11: 24107
C12: ВМПШ1_80608587_25 | F12: ВМПШ1 | G12: L=800, S=600, H=850-870, G=250 | L12: =ROUND(P12*(1+'Повышение цен'!$C$12),0) -> 31328 | M12: 31328 | P12: 26025
C13: ВМПШ1_100608587_25 | F13: ВМПШ1 | G13: L=1000, S=600, H=850-870, G=250 | L13: =ROUND(P13*(1+'Повышение цен'!$C$12),0) -> 33635 | M13: 33635 | P13: 27941
C14: ВМПШ1_120608587_25 | F14: ВМПШ1 | G14: L=1200, S=600, H=850-870, G=250 | L14: =ROUND(P14*(1+'Повышение цен'!$C$12),0) -> 35942 | M14: 35942 | P14: 29858
C15: ВМПШ1_150608587_25 | F15: ВМПШ1 | G15: L=1500, S=600, H=850-870, G=250 | L15: =ROUND(P15*(1+'Повышение цен'!$C$12),0) -> 39404 | M15: 39404 | P15: 32734
C17: ВМПШ1_70708587_30 | F17: ВМПШ1 | G17: L=700, S=700, H=850-870, G=300 | L17: =ROUND(P17*(1+'Повышение цен'!$C$12),0) -> 31740 | M17: 31740 | P17: 26367
C18: ВМПШ1_80708587_30 | F18: ВМПШ1 | G18: L=800, S=700, H=850-870, G=300 | L18: =ROUND(P18*(1+'Повышение цен'!$C$12),0) -> 32996 | M18: 32996 | P18: 27410
C19: ВМПШ1_100708587_30 | F19: ВМПШ1 | G19: L=1000, S=700, H=850-870, G=300 | L19: =ROUND(P19*(1+'Повышение цен'!$C$12),0) -> 35511 | M19: 35511 | P19: 29500
C20: ВМПШ1_120708587_30 | F20: ВМПШ1 | G20: L=1200, S=700, H=850-870, G=300 | L20: =ROUND(P20*(1+'Повышение цен'!$C$12),0) -> 38026 | M20: 38026 | P20: 31589
C21: ВМПШ1_150708587_30 | F21: ВМПШ1 | G21: L=1500, S=700, H=850-870, G=300 | L21: =ROUND(P21*(1+'Повышение цен'!$C$12),0) -> 41798 | M21: 41798 | P21: 34722
B24: Двойная цельнотянутая ванна ВМП Ш 2
B26: Изображение | C26: Артикул | F26: Модель | G26: Характеристика номенклатуры | L26: Базовая цена, | M26: Ваша цена, | N26: Техническое описание | P26: Базовая цена,
L27: руб | M27: руб | P27: руб
C28: ВМПШ2_100608587_25 | F28: ВМПШ2 | G28: L=1000, S=600, H=850-870, G=250 | L28: =ROUND(P28*(1+'Повышение цен'!$C$12),0) -> 37598 | M28: =ROUND(IF($D$4="С НДС",L28*(1-$D$3),L28*(1-$D$3)/1.2),0) -> 37598 | N28: шлифованная н/ст, толщина столешницы - 1 мм, Aisi 304 разборная конструкция, стол закрыт с трех сторон фартуком, каркас - труба 40*40*1,2 мм, Hстолешницы -50 мм, Hборта - 40 мм, столешница усилена швеллером; 2 цельнотянутые емкости : 400*400*250 мм при глубине изделия 600 мм; 500*500*300 мм при глубине изделия 700 мм и выше с отверстием для слива 54 мм, отверстие для смесителя, диаметром 31 мм, регулируемые ножки(+/-20мм) | P28: 31233
C29: ВМПШ2_120608587_25 | F29: ВМПШ2 | G29: L=1200, S=600, H=850-870, G=250 | L29: =ROUND(P29*(1+'Повышение цен'!$C$12),0) -> 39684 | M29: 39684 | P29: 32966
C30: ВМПШ2_150608587_25 | F30: ВМПШ2 | G30: L=1500, S=600, H=850-870, G=250 | L30: =ROUND(P30*(1+'Повышение цен'!$C$12),0) -> 42811 | M30: 42811 | P30: 35564
C32: ВМПШ2_100708587_25 | F32: ВМПШ2 | G32: L=1000, S=700, H=850-870, G=250 | L32: =ROUND(P32*(1+'Повышение цен'!$C$12),0) -> 40796 | M32: =ROUND(IF($D$4="С НДС",L32*(1-$D$3),L32*(1-$D$3)/1.2),0) -> 40796 | P32: 33890
C33: ВМПШ2_120708587_30 | F33: ВМПШ2 | G33: L=1200, S=700, H=850-870, G=300 | L33: =ROUND(P33*(1+'Повышение цен'!$C$12),0) -> 43019 | M33: 43019 | P33: 35737
C34: ВМПШ2_150708587_30 | F34: ВМПШ2 | G34: L=1500, S=700, H=850-870, G=300 | L34: =ROUND(P34*(1+'Повышение цен'!$C$12),0) -> 46449 | M34: 46449 | P34: 38586
B37: Тройная цельнотянутая ванна ВМП Ш 3
B39: Изображение | C39: Артикул | F39: Модель | G39: Характеристика номенклатуры | L39: Базовая цена, | M39: Ваша цена, | N39: Техническое описание | P39: Базовая цена,
L40: руб | M40: руб | P40: руб
C41: ВМПШ3_150608587_25 | F41: ВМПШ3 | G41: L=1500, S=600, H=850-870, G=250 | L41: =ROUND(P41*(1+'Повышение цен'!$C$12),0) -> 64666 | M41: =ROUND(IF($D$4="С НДС",L41*(1-$D$3),L41*(1-$D$3)/1.2),0) -> 64666 | N41: шлифованная н/ст, толщина столешницы - 1 мм, Aisi 304 разборная конструкция, стол закрыт с трех сторон фартуком, каркас - труба 40*40*1,2 мм, Hстолешницы -50 мм, Hборта - 40 мм, столешница усилена швеллером; 3 цельнотянутые емкости : 400*400*250 мм при глубине изделия 600 мм; 500*500*300 мм при глубине изделия 700 мм и выше с отверстием для слива 54 мм, два отверстия для смесителей, диаметром 31 мм, регулируемые ножки(+/-20мм) | P41: 53719
C42: ВМПШ3_160608587_25 | F42: ВМПШ3 | G42: L=1600, S=600, H=850-870, G=250 | L42: =ROUND(P42*(1+'Повышение цен'!$C$12),0) -> 66220 | M42: 66220 | P42: 55010
C43: ВМПШ3_170608587_25 | F43: ВМПШ3 | G43: L=1700, S=600, H=850-870, G=250 | L43: =ROUND(P43*(1+'Повышение цен'!$C$12),0) -> 67774 | M43: 67774 | P43: 56301
C44: ВМПШ3_180608587_25 | F44: ВМПШ3 | G44: L=1800, S=600, H=850-870, G=250 | L44: =ROUND(P44*(1+'Повышение цен'!$C$12),0) -> 69330 | M44: =ROUND(IF($D$4="С НДС",L44*(1-$D$3),L44*(1-$D$3)/1.2),0) -> 69330 | P44: 57594
C46: ВМПШ3_150708587_25 | F46: ВМПШ3 | G46: L=1500, S=700, H=850-870, G=250 | L46: =ROUND(P46*(1+'Повышение цен'!$C$12),0) -> 67267 | M46: =ROUND(IF($D$4="С НДС",L46*(1-$D$3),L46*(1-$D$3)/1.2),0) -> 67267 | P46: 55880
C47: ВМПШ3_160708587_25 | F47: ВМПШ3 | G47: L=1600, S=700, H=850-870, G=250 | L47: =ROUND(P47*(1+'Повышение цен'!$C$12),0) -> 69002 | M47: 69002 | P47: 57321
C48: ВМПШ3_170708587_25 | F48: ВМПШ3 | G48: L=1700, S=700, H=850-870, G=250 | L48: =ROUND(P48*(1+'Повышение цен'!$C$12),0) -> 70738 | M48: =ROUND(IF($D$4="С НДС",L48*(1-$D$3),L48*(1-$D$3)/1.2),0) -> 70738 | P48: 58763
C49: ВМПШ3_180708587_30 | F49: ВМПШ3 | G49: L=1800, S=700, H=850-870, G=300 | L49: =ROUND(P49*(1+'Повышение цен'!$C$12),0) -> 73346 | M49: 73346 | P49: 60930
C52: Формула расчета цены | N52: Техническое описание
B53: Артикул | D53: Длина, | E53: Глубина, | F53: Высота | G53: Емк. | H53: СП | I53: Доп | J53: Каркас | K53: Доп. | L53: Базовая цена, | M53: Ваша цена, | N53: Нестандартной модели
D54: мм | E54: мм | F54: мм | G54: Гл, мм | H54: полка | I54: Борт | J54: Разб/Св | K54: колеса | L54: руб | M54: руб | N54: =CONCATENATE("шлифованная н/ст, толщина столешницы - 1 мм Aisi 304, ",IF(J55="СВ"," сварная конструкция, "," разборная конструкция, "),IF(I55="СП","сплошная полка","без нижней обвязки"),", ванна закрыта с трех сторон, каркас нерж. труба 40*40*1,2 мм, Hстолешницы -50 мм,", IF(OR(OR(OR(OR(OR(OR(C55="ВМПШ1",C55="ВМПШЛ1",C55="ВМПШП1",C55="ВМПШ2",C55="ВМПШЛ2",C55="ВМПШП2",C55="ВМПШ3")))))),"Hборта - 40 мм, ","без борта,")," столешница усилена швеллером,",IF(G55=300,"цельнотянутая емкость 500*500*300 мм",""),IF(G55=250,"цельнотянутая емкость 400*400*250 мм",""),IF(OR(OR(OR(OR(C55="ВМПШ1",C55="ВМПШЛ1",C55="ВМПШП1",C55="ВМЦШ1",C55="ВМЦШЛП1"))))," 1 шт, ",""),IF(OR(OR(OR(OR(C55="ВМПШ2",C55="ВМПШП2",C55="ВМПШЛ2",C55="ВМЦШ2",C55="ВМЦШЛП2"))))," 2 шт, ",""),IF(OR(C55="ВМПШ3",C55="ВМЦШ3")," 3 шт, ",""),IF(I55="2БП","ванна моечная угловая, второй борт справа",""),IF(I55="2БЛ","ванна моечная угловая, второй борт слева",""),IF(I55="3Б","ванна моечная с тремя бортами",""),IF(K55="К"," 4 колеса(2 с тормозом)",", регулируемые ножки(+/-20мм)"),", длина ",D55,"мм",", глубина ",E55,"мм"," ,высота ",F55,"мм, ","Объем в упаковке ",ROUND(D55/1000*E55/1000*(F55+150)/1000,2),"м3") -> шлифованная н/ст, толщина столешницы - 1 мм Aisi 304, разборная конструкция, без нижней обвязки, ванна закрыта с трех сторон, каркас нерж. труба 40*40*1,2 мм, Hстолешницы -50 мм,Hборта - 40 мм, столешница усилена швеллером,цельнотянутая емкость 400*400*250 мм 3 шт, , регулируемые ножки(+/-20мм), длина 1500мм, глубина 700мм ,высота 850мм, Объем в упаковке 1,05м3
B55: =UPPER(CONCATENATE(C55,"_",D55/10,E55/10,IF(AND(F58=850,K55=""),8587,F58/10),"_",G55/10,IF(OR(OR(OR(OR(OR(H55="СП",K55="К",J55="СВ",I55="2БП",I55="2БЛ",I55="3Б"))))),"_",""),H55,I55,J55,K55)) -> ВМПШ3_150708587_25 | C55: ВМПШ3 | D55: 1500 | E55: 700 | F55: 850 | G55: 250 | L55: =ROUND((L56*IF(OR(OR(OR(OR(OR(OR(C55="ВМПШ3",C55="ВМПШ2",C55="ВМПШ1",C55="ВМПШЛ1",C55="ВМПШП1",C55="ВМПШЛ2",C55="ВМПШП2")))))),1,0.97)*IF(D56>1800,1.05,1)*IF(E56>700,1.05,1)*IF(F56>850,1.05,1)*IF(H55="СП",1.15,1)*IF(OR(I55="2БП",I55="2БЛ"),1.07,1)*IF(I55="3Б",1.15,1)*IF(J55="СВ",1.07,1)+IF(K55="К",6000,0))*1.1,0)*1.07*1.05*1.1*(1+'Повышение цен'!$C$12) -> 67267.34472 | M55: =ROUND(IF($D$4="С НДС",L55*(1-$D$3),L55*(1-$D$3)/1.2),0) -> 67267
C56: =1*MID(C55, MATCH(FALSE,ISERROR(1*MID(C55,ROW(INDIRECT("A1:A"&LEN(C55))),1)),0), 255) -> 3 | D56: =IF(C56=1,IF(AND(D55>499,D55<1801),D55,"не производим"),IF(C56=2,IF(AND(D55>999,D55<2001),D55,"не производим"),IF(C56=3,IF(AND(D55>1499,D55<2001),D55,"не производим"),"ошибка"))) -> 1500 | E56: =IF(AND(E55>599,E55<1001),E55,"не производим") -> 700 | F56: =IF(AND(F58>599,F58<1001),F58,"не производим") -> 850 | L56: =IF(OR(OR(OR(OR(C55="ВМПШ1",C55="ВМПШЛ1",C55="ВМПШП1",C55="ВМЦШ1",C55="ВМЦШЛП1")))),IF(G55=300,ROUND((((((D56*E56*Техно!Y10*0.00001*1.5*Техно!Z8)*Техно!Z10)+(((D56*300*Техно!Y11*0.00001*1.25*Техно!Z8)+(E56*300*Техно!Y11*0.00001*1.25*Техно!Z8)*2)*Техно!Z11))+(F56*0.001*4*1.2)*Техно!Z19+((D56-600)*E56*0.00001*Техно!Y14*Техно!Z8)*Техно!Z14)*1.18+Техно!Z30+((D56/600)*Техно!Z25*0.45)+(Техно!Z26+Техно!Z27)*5)*1.18/0.68*(0.85+0.6944),0),IF(G55=250,ROUND((((((D56*E56*Техно!Y10*0.00001*1.55*Техно!Z8)*Техно!Z10)+(((D56*300*Техно!Y11*0.00001*1.25*Техно!Z8)+(E56*300*Техно!Y11*0.00001*1.25*Техно!Z8)*2)*Техно!Z11))+(F56*0.001*4*1.2)*Техно!Z19+((D56-600)*E56*0.00001*Техно!Y14*Техно!Z8)*Техно!Z14)*1.18+Техно!Z29*1.35+((D56/600)*Техно!Z25*0.45)+(Техно!Z26+Техно!Z27)*5)*1.18/0.68*(0.85+0.6944),0))),0)+IF(OR(OR(OR(OR(C55="ВМПШ2",C55="ВМПШЛ2",C55="ВМПШП2",C55="ВМЦШ2",C55="ВМЦШЛП2")))),IF(G55=300,ROUND((((((D56*E56*Техно!AA10*0.00001*1.2*Техно!AB8)*Техно!AB10)+(((D56*300*Техно!AA11*0.00001*1.25*Техно!AB8)+(E56*300*Техно!AA11*0.00001*1.25*Техно!AB8)*2)*Техно!AB11))+(F56*0.001*4*1.2)*Техно!AB19+((D56-600)*E56*0.00001*Техно!AA14*Техно!AB8)*Техно!AB14)*1.18+Техно!AB30*1.55+((D56/600)*Техно!AB25*0.45)+(Техно!AB26+Техно!AB27)*5)*1.18/0.7*(0.85+0.6944),0),IF(G55=250,ROUND((((((D56*E56*Техно!AA10*0.00001*1.2*Техно!AB8)*Техно!AB10)+(((D56*300*Техно!AA11*0.00001*1.25*Техно!AB8)+(E56*300*Техно!AA11*0.00001*1.25*Техно!AB8)*2)*Техно!AB11))+(F56*0.001*4*1.2)*Техно!AB19+((D56-600)*E56*0.00001*Техно!AA14*Техно!AB8)*Техно!AB14)*1.18+Техно!AB29*2+((D56/600)*Техно!AB25*0.45)+(Техно!AB26+Техно!AB27)*5)*1.18/0.7*(0.85+0.6944),0))),0)+IF(OR(C55="ВМПШ3",C55="ВМЦШ3"),IF(G55=300,ROUND((((((D56*E56*Техно!AC10*0.00001*2*Техно!AD8)*Техно!AD10)+(((D56*300*Техно!AC11*0.00001*1.25*Техно!AD8)+(E56*300*Техно!AC11*0.00001*1.25*Техно!AD8)*2)*Техно!AD11))+(F56*0.001*4*1.2)*Техно!AD19+((D56-600)*E56*0.00001*Техно!AC14*Техно!AD8)*Техно!AD14)*1.18+Техно!AD30*3+((D56/600)*Техно!AD25*0.45)+(Техно!AD26+Техно!AD27)*6)*1.18/0.7*(0.85+0.6944),0),IF(G55=250,ROUND((((((D56*E56*Техно!AC10*0.00001*3*Техно!AD8)*Техно!AD10)+(((D56*300*Техно!AC11*0.00001*1.25*Техно!AD8)+(E56*300*Техно!AC11*0.00001*1.25*Техно!AD8)*2)*Техно!AD11))+(F56*0.001*4*1.2)*Техно!AD19+((D56-600)*E56*0.00001*Техно!AC14*Техно!AD8)*Техно!AD14)*1.18+Техно!AD29*3+((D56/600)*Техно!AD25*0.45)+(Техно!AD26+Техно!AD27)*7)*1.18/0.65*(0.85+0.6944),0)))*1,0) -> 41105
D57: =IF(C56=1,"500-1800",IF(C56=2,"1000-2000",IF(C56=3,"1500-2000","ошибка"))) -> 1500-2000 | E57: 600-800 | F57: 600-1000 | K57: К | L57: Колеса
F58: =IF(F55=870,850,F55) -> 850 | J58: СВ | K58: сварная конструкция
C59: ВМПШ1 | D59: одна мойка, по центр с бортом | I59: 2БП | J59: угловая ванна (два борта сзади и справа)
C60: ВМПШЛ1 | D60: одна мойка, слева с бортом | I60: 2БЛ | J60: угловая ванна (два борта сзади и слева)
C61: ВМПШП1 | D61: одна мойка, справа с бортом | I61: 3Б | J61: Стол с тремя бортами
C62: ВМЦШ1 | D62: одна мойка, по центр без борта | H62: СП | I62: Сплошная полка
C63: ВМЦШЛП1 | D63: одна мойка, сбоку без борта | G63: 250 | H63: Цельнотянутая емкость 400*400*250 мм
C64: ВМПШ2 | D64: две мойки, по центр с бортом | G64: 300 | H64: Цельнотянутая емкость 500*500*300 мм
C65: ВМПШЛ2 | D65: две мойки, слева с бортом
C66: ВМПШП2 | D66: две мойки, справа с бортом
C67: ВМЦШ2 | D67: две мойки, по центр без борта
C68: ВМЦШЛП2 | D68: две мойки, сбоку без борта
C69: ВМПШ3 | D69: три мойки, по центру с бортом
C70: ВМЦШ3 | D70: три мойки, по центру без борта
B78: Одинарная цельнотянутая ванна ВМЦН S 1/ВМЦЦ S 1
B80: Изображение | C80: Артикул | F80: Модель | G80: Характеристика номенклатуры | L80: Базовая цена, | M80: Ваша цена, | N80: Техническое описание | O80: Каркас | P80: Базовая цена,
L81: руб | M81: руб | P81: руб
C82: ВМЦНS1_53538587_25 | F82: ВМЦНS1 | G82: L=530, S=530, H=850-870, G=250 | L82: =ROUND(P82*(1+'Повышение цен'!$C$12),0) -> 20886 | M82: =ROUND(IF($D$4="С НДС",L82*(1-$D$3),L82*(1-$D$3)/1.2),0) -> 20886 | N82: н/ст, толщина столешницы - 1 мм, разборная конструкция, каркас -уголок 40*40*1,5 мм, Hстолешницы -40 мм, без борта, столешница усилена швеллером; 1 цельнотянутая емкость : 400*400*250 мм при глубине изделия 600 мм; 500*500*300 мм при глубине изделия 630 мм и выше с диаметром сливного отверстия 54 мм, без отверстия для смесителя, регулируемые ножки(+/-20мм) | O82: Нерж. сталь | P82: 17350
C83: ВМЦНS1_60538587_25 | F83: ВМЦНS1 | G83: L=600, S=530, H=850-870, G=250 | L83: =ROUND(P83*(1+'Повышение цен'!$C$12),0) -> 21420 | M83: 21420 | P83: 17794
C84: ВМЦНS1_63638587_30 | F84: ВМЦНS1 | G84: L=630, S=630, H=850-870, G=300 | L84: =ROUND(P84*(1+'Повышение цен'!$C$12),0) -> 24943 | M84: 24943 | P84: 20721
C85: ВМЦНS1_70638587_30 | F85: ВМЦНS1 | G85: L=700, S=630, H=850-870, G=300 | L85: =ROUND(P85*(1+'Повышение цен'!$C$12),0) -> 25660 | M85: 25660 | P85: 21316
C87: ВМЦЦS1_53538587_25 | F87: ВМЦЦS1 | G87: L=530, S=530, H=850-870, G=250 | L87: =ROUND(P87*(1+'Повышение цен'!$C$12),0) -> 19347 | M87: =ROUND(IF($D$4="С НДС",L87*(1-$D$3),L87*(1-$D$3)/1.2),0) -> 19347 | O87: Оцин. сталь | P87: 16072
C88: ВМЦЦS1_60538587_25 | F88: ВМЦЦS1 | G88: L=600, S=530, H=850-870, G=250 | L88: =ROUND(P88*(1+'Повышение цен'!$C$12),0) -> 19826 | M88: 19826 | P88: 16470
C89: ВМЦЦS1_63638587_30 | F89: ВМЦЦS1 | G89: L=630, S=630, H=850-870, G=300 | L89: =ROUND(P89*(1+'Повышение цен'!$C$12),0) -> 23247 | M89: 23247 | P89: 19312
C90: ВМЦЦS1_70638587_30 | F90: ВМЦЦS1 | G90: L=700, S=630, H=850-870, G=300 | L90: =ROUND(P90*(1+'Повышение цен'!$C$12),0) -> 23908 | M90: 23908 | P90: 19861
B93: Двойная цельнотянутая ванна ВМЦН S 2/ВМЦЦ S 2
B95: Изображение | C95: Артикул | F95: Модель | G95: Характеристика номенклатуры | L95: Базовая цена, | M95: Ваша цена, | N95: Техническое описание | O95: Каркас | P95: Базовая цена,
L96: руб | M96: руб | P96: руб
C97: ВМЦНS2_100538587_25 | F97: ВМЦНS2 | G97: L=1000, S=530, H=850-870, G=250 | L97: =ROUND(P97*(1+'Повышение цен'!$C$12),0) -> 30032 | M97: =ROUND(IF($D$4="С НДС",L97*(1-$D$3),L97*(1-$D$3)/1.2),0) -> 30032 | N97: н/ст, толщина столешницы - 1 мм, разборная конструкция, каркас - уголк 40*40*1,5 мм, Hстолешницы -40 мм, без борта, 2 цельнотянутые емкости : 400*400*250 мм при глубине изделия 600 мм; 500*500*300 мм при глубине изделия 630 мм и выше, с диаметром сливного отверстия 54 мм, без отверстия для смесителя, регулируемые ножки(+/-20мм) | O97: Нерж. сталь | P97: 24948
C98: ВМЦНS2_105538587_25 | F98: ВМЦНS2 | G98: L=1050, S=530, H=850-870, G=250 | L98: =ROUND(P98*(1+'Повышение цен'!$C$12),0) -> 30430 | M98: 30430 | P98: 25279
C99: ВМЦНS2_120638587_30 | F99: ВМЦНS2 | G99: L=1200, S=630, H=850-870, G=300 | L99: =ROUND(P99*(1+'Повышение цен'!$C$12),0) -> 38609 | M99: =ROUND(IF($D$4="С НДС",L99*(1-$D$3),L99*(1-$D$3)/1.2),0) -> 38609 | P99: 32073
C100: ВМЦНS2_125638587_30 | F100: ВМЦНS2 | G100: L=1250, S=630, H=850-870, G=300 | L100: =ROUND(P100*(1+'Повышение цен'!$C$12),0) -> 39051 | M100: 39051 | P100: 32440
C102: ВМЦЦS2_100538587_25 | F102: ВМЦЦS2 | G102: L=1000, S=530, H=850-870, G=250 | L102: =ROUND(P102*(1+'Повышение цен'!$C$12),0) -> 29033 | M102: =ROUND(IF($D$4="С НДС",L102*(1-$D$3),L102*(1-$D$3)/1.2),0) -> 29033 | O102: Оцин. сталь | P102: 24118
C103: ВМЦЦS2_105538587_25 | F103: ВМЦЦS2 | G103: L=1050, S=530, H=850-870, G=250 | L103: =ROUND(P103*(1+'Повышение цен'!$C$12),0) -> 29422 | M103: 29422 | P103: 24441
C104: ВМЦЦS2_120638587_30 | F104: ВМЦЦS2 | G104: L=1200, S=630, H=850-870, G=300 | L104: =ROUND(P104*(1+'Повышение цен'!$C$12),0) -> 37428 | M104: 37428 | P104: 31092
C105: ВМЦЦS2_125638587_30 | F105: ВМЦЦS2 | G105: L=1250, S=630, H=850-870, G=300 | L105: =ROUND(P105*(1+'Повышение цен'!$C$12),0) -> 37870 | M105: 37870 | P105: 31459
B107: Тройная цельнотянутая ванна ВМЦН S 3/ВМЦЦ S 3
B109: Изображение | C109: Артикул | F109: Модель | G109: Характеристика номенклатуры | L109: Базовая цена, | M109: Ваша цена, | N109: Техническое описание | O109: Каркас | P109: Базовая цена,
L110: руб | M110: руб | P110: руб
C111: ВМЦНS3_150608587_25 | F111: ВМЦНS3 | G111: L=1500, S=530, H=850-870, G=250 | L111: =ROUND(P111*(1+'Повышение цен'!$C$12),0) -> 50030 | M111: =ROUND(IF($D$4="С НДС",L111*(1-$D$3),L111*(1-$D$3)/1.2),0) -> 50030 | N111: н/ст, толщина столешницы - 1 мм, разборная конструкция, каркас - уголок 40*40*1,5 мм, Hстолешницы -40 мм, 3 цельнотянутые емкости : 400*400*250 мм длине изделия до 1800 мм; 500*500*300 мм при длине изделия 1800 мм и выше, с диаметром сливного отверстия, без отверстий для смесителя, регулируемые ножки(+/-20мм) | O111: Нерж. сталь | P111: 41561
C112: ВМЦНS3_160608587_25 | F112: ВМЦНS3 | G112: L=1600, S=530, H=850-870, G=250 | L112: =ROUND(P112*(1+'Повышение цен'!$C$12),0) -> 51300 | M112: 51300 | P112: 42616
C113: ВМЦНS3_170608587_30 | F113: ВМЦНS3 | G113: L=1700, S=630, H=850-870, G=300 | L113: =ROUND(P113*(1+'Повышение цен'!$C$12),0) -> 57654 | M113: 57654 | P113: 47894
C114: ВМЦНS3_180608587_30 | F114: ВМЦНS3 | G114: L=1800, S=630, H=850-870, G=300 | L114: =ROUND(P114*(1+'Повышение цен'!$C$12),0) -> 58541 | M114: 58541 | P114: 48631
C116: ВМЦЦS3_150608587_25 | F116: ВМЦЦS3 | G116: L=1500, S=530, H=850-870, G=250 | L116: =ROUND(P116*(1+'Повышение цен'!$C$12),0) -> 44933 | M116: =ROUND(IF($D$4="С НДС",L116*(1-$D$3),L116*(1-$D$3)/1.2),0) -> 44933 | O116: Оцин. сталь | P116: 37327
C117: ВМЦЦS3_160608587_25 | F117: ВМЦЦS3 | G117: L=1600, S=530, H=850-870, G=250 | L117: =ROUND(P117*(1+'Повышение цен'!$C$12),0) -> 45936 | M117: 45936 | P117: 38160
C118: ВМЦЦS3_170608587_30 | F118: ВМЦЦS3 | G118: L=1700, S=630, H=850-870, G=250 | L118: =ROUND(P118*(1+'Повышение цен'!$C$12),0) -> 52091 | M118: 52091 | P118: 43273
C119: ВМЦЦS3_180608587_30 | F119: ВМЦЦS3 | G119: L=1800, S=630, H=850-870, G=300 | L119: =ROUND(P119*(1+'Повышение цен'!$C$12),0) -> 53079 | M119: 53079 | P119: 44094
C121: Формула расчета цены | N121: Техническое описание
B122: Артикул | D122: Длина, | E122: Глубина, | F122: Высота | G122: Цельн. Емк. | I122: Сплош | K122: Доп. | L122: Базовая цена, | M122: Ваша цена, | N122: Нестандартной модели
D123: мм | E123: мм | F123: мм | G123: Глубина, мм | I123: полка | K123: колеса | L123: руб | M123: руб | N123: =CONCATENATE("шлифованная н/ст, толщина столешницы - 1 мм Aisi 304, ",IF(I124="СП","сплошная полка","обвязка"),", каркас уголок 40*40*1,5 мм, Hстолешницы -40 мм,", IF(OR(OR(OR(OR(OR(OR(OR(C124="ВМПНS1",C124="ВМПЦS1",C124="ВМПНSЛ1",C124="ВМПНSП1",C124="ВМПНS2",C124="ВМПЦS2",C124="ВМПНS3",C124="ВМПЦS3"))))))),"Hборта - 40 мм, ","без борта, ")," столешница усилена швеллером, ",IF(G124=300,"цельнотянутая емкость 500*500*300 мм ",""),IF(G124=250,"цельнотянутая емкость 400*400*250 мм ",""),RIGHT( C124,SUM(LEN(C124 ) - LEN(SUBSTITUTE( C124, {"0","1","2","3","4","5","6","7","8","9"},"")))),IF(OR(C124="ВМПШ3",C124="ВМЦШ3")," 3 шт, ",""),"шт",IF(I124="2БП","ванна моечная угловая, второй борт справа",""),IF(K124="К"," 4 колеса(2 с тормозом)",", регулируемые ножки(+/-20мм)"),", длина ",D124,"мм",", глубина ",E124,"мм"," ,высота ",F124,"мм, ","Объем в упаковке ",ROUND(D124/1000*E124/1000*(F124+150)/1000,2),"м3") -> шлифованная н/ст, толщина столешницы - 1 мм Aisi 304, обвязка, каркас уголок 40*40*1,5 мм, Hстолешницы -40 мм,без борта, столешница усилена швеллером, цельнотянутая емкость 400*400*250 мм 2шт, регулируемые ножки(+/-20мм), длина 630мм, глубина 630мм ,высота 850мм, Объем в упаковке 0,4м3
B124: =UPPER(CONCATENATE(C124,"_",D124/10,E124/10,IF(AND(F127=850,K124=""),8587,F127/10),"_",G124/10,IF(OR(I124="СП",K124="К"),"_",""),I124,K124)) -> ВМПЦSЛ2_636387_25 | C124: ВМПЦSЛ2 | D124: 630 | E124: 630 | F124: 850 | G124: 250 | L124: =ROUND((L125*IF(OR(OR(OR(OR(OR(OR(OR(OR(OR(OR(OR(OR(OR(C124="ВМПНS3",C124="ВМПНS2",C124="ВМПНS1",C124="ВМПНSЛ1",C124="ВМПНSП1",C124="ВМПНSЛ2",C124="ВМПНSП2",C124="ВМПЦS3",C124="ВМПЦS2",C124="ВМПЦS1",C124="ВМПЦSЛ1",C124="ВМПЦSП1",C124="ВМПЦSЛ2",C124="ВМПЦSП2"))))))))))))),1.07,1)*IF(D125>1800,1.05,1)*IF(E125>700,1.05,1)*IF(F125>870,1.05,1)*IF(I124="СП",1.15,1)+IF(K124="К",6000,0))*1.05,0)*1.05*1.07*1.1*(1+'Повышение цен'!$C$12) -> 28511.55922 | M124: =ROUND(IF($D$4="С НДС",L124*(1-$D$3),L124*(1-$D$3)/1.2),0) -> 28512
C125: =1*MID(C124, MATCH(FALSE,ISERROR(1*MID(C124,ROW(INDIRECT("A1:A"&LEN(C124))),1)),0), 255) -> 2 | D125: =IF(AND(D124>529,D124<1801),D124,"не производим") -> 630 | E125: =IF(AND(E124>529,E124<801),E124,"не производим") -> 630 | F125: =IF(AND(F127>599,F127<1001),F127,"не производим") -> 870 | L125: =IF(OR(OR(OR(OR(C124="ВМЦНS1",C124="ВМПНS1",C124="ВМПНSЛ1",C124="ВМПНSП1",C124="ВМЦНSЛП1")))),IF(G124=300,ROUND((((((D125*E125*Техно!Y10*0.00001*1.75*Техно!Z8)*Техно!Z10))+(((D125+E125)*4+F125*4)*80*0.00001*Техно!Z8*Техно!Y14)*Техно!Z14)*1.18+Техно!Z30+((D125/500)*Техно!Z25*0.55)+(Техно!Z26+Техно!Z27)*3)*1.18/0.69*(0.85+0.6944),0),IF(G124=250,ROUND((((((D125*E125*Техно!Y10*0.00001*1.25*Техно!Z8)*Техно!Z10))+(((D125+E125)*4+F125*4)*80*0.00001*Техно!Z8*Техно!Y14)*Техно!Z14)*1.18+Техно!Z29*1.35+((D125/530)*Техно!Z25*0.45)+(Техно!Z26+Техно!Z27)*2.5)*1.18/0.69*(0.85+0.6944),0))),0)+IF(OR(OR(OR(OR(C124="ВМЦЦS1",C124="ВМПЦS1",C124="ВМПЦSЛ1",C124="ВМПЦSП1",C124="ВМЦЦSЛП1")))),IF(G124=300,ROUND((((((D125*E125*Техно!Y10*0.00001*1.75*Техно!Z8)*Техно!Z10))+(((D125+E125)*4+F125*4)*80*0.00001*Техно!Z8*Техно!Y15)*Техно!Z15)*1.18+Техно!Z30+((D125/500)*Техно!Z25*0.55)+(Техно!Z26+Техно!Z27)*3)*1.18/0.69*(0.85+0.6944),0),IF(G124=250,ROUND((((((D125*E125*Техно!Y10*0.00001*1.25*Техно!Z8)*Техно!Z10))+(((D125+E125)*4+F125*4)*80*0.00001*Техно!Z8*Техно!Y15)*Техно!Z15)*1.18+Техно!Z29*1.35+((D125/530)*Техно!Z25*0.45)+(Техно!Z26+Техно!Z27)*2.5)*1.18/0.69*(0.85+0.6944),0))),0)+IF(OR(OR(OR(OR(C124="ВМПНS2",C124="ВМПНSЛ2",C124="ВМПНSП2",C124="ВМЦНS2",C124="ВМЦНSЛП2")))),IF(G124=300,ROUND((((((D125*E125*Техно!AA10*0.00001*1.2*Техно!AB8)*Техно!AB10))+(((D125+E125)*4+F125*4)*80*0.00001*Техно!AB8*Техно!AA14)*Техно!AB14)*1.18+Техно!AB30*1.8+((D125/500)*Техно!AB25*0.55)+(Техно!AB26+Техно!AB27)*3)*1.18/0.7*(0.85+0.6944),0),IF(G124=250,ROUND((((((D125*E125*Техно!AA10*0.00001*1.5*Техно!AB8)*Техно!AB10))+(((D125+E125)*4+F125*4)*80*0.00001*Техно!AB8*Техно!AA14)*Техно!AB14)*1.18+Техно!AB29*2+((D125/530)*Техно!AB25*0.45)+(Техно!AB26+Техно!AB27)*2.5)*1.18/0.7*(0.85+0.6944),0))),0)+IF(OR(OR(OR(OR(C124="ВМПЦS2",C124="ВМПЦSЛ2",C124="ВМПЦSП2",C124="ВМЦЦS2",C124="ВМЦЦSЛП2")))),IF(G124=300,ROUND((((((D125*E125*Техно!AA10*0.00001*1.55*Техно!AB8)*Техно!AB10))+(((D125+E125)*4+F125*4)*80*0.00001*Техно!AB8*Техно!AA15)*Техно!AB15)*1.18+Техно!AB30*1.8+((D125/500)*Техно!AB25*0.55)+(Техно!AB26+Техно!AB27)*3)*1.18/0.7*(0.85+0.6944),0),IF(G124=250,ROUND((((((D125*E125*Техно!AA10*0.00001*1.75*Техно!AB8)*Техно!AB10))+(((D125+E125)*4+F125*4)*80*0.00001*Техно!AB8*Техно!AA15)*Техно!AB15)*1.18+Техно!AB29*2+((D125/530)*Техно!AB25*0.45)+(Техно!AB26+Техно!AB27)*2.5)*1.18/0.69*(0.85+0.6944),0))),0)+IF(OR(C124="ВМПНS3",C124="ВМЦНS3"),IF(G124=300,ROUND((((((D125*E125*Техно!AC10*0.00001*1.2*Техно!AD8)*Техно!AD10))+(((D125+E125)*4+F125*4)*80*0.00001*Техно!AD8*Техно!AC14)*Техно!AD14)*1.18+Техно!AD30*3+((D125/500)*Техно!AD25*0.55)+(Техно!AD26+Техно!AD27)*3)*1.18/0.7*(0.85+0.6944),0),IF(G124=250,ROUND((((((D125*E125*Техно!AC10*0.00001*4*Техно!AD8)*Техно!AD10))+(((D125+E125)*4+F125*4)*80*0.00001*Техно!AD8*Техно!AC14)*Техно!AD14)*1.18+Техно!AD29*3+((D125/530)*Техно!AD25*0.45)+(Техно!AD26+Техно!AD27)*3)*1.18/0.7*(0.85+0.6944),0))),0)+IF(OR(C124="ВМПЦS3",C124="ВМЦЦS3"),IF(G124=300,ROUND((((((D125*E125*Техно!AC10*0.00001*2*Техно!AD8)*Техно!AD10))+(((D125+E125)*4+F125*4)*80*0.00001*Техно!AD8*Техно!AC15)*Техно!AD15)*1.18+Техно!AD30*2.5+((D125/500)*Техно!AD25*0.55)+(Техно!AD26+Техно!AD27)*3)*1.18/0.7*(0.85+0.6944),0),IF(G124=250,ROUND((((((D125*E125*Техно!AC10*0.00001*3*Техно!AD8)*Техно!AD10))+(((D125+E125)*4+F125*4)*80*0.00001*Техно!AD8*Техно!AC15)*Техно!AD15)*1.18+Техно!AD29*3+((D125/530)*Техно!AD25*0.45)+(Техно!AD26+Техно!AD27)*3)*1.18/0.7*(0.85+0.6944),0))),0) -> 17058
D126: =IF(C125=1,"530-1800",IF(C125=2,"1000-1800",IF(C125=3,"1500-1800","ошибка"))) -> 1000-1800 | E126: 530-800 | F126: 600-1000 | G126: 250 | I126: Цельнотянутая емкость 400*400*250 мм
C127: Нерж.карс | D127: Оцин.карс | F127: =IF(F124=850,870,F124) -> 870 | G127: 300 | I127: Цельнотянутая емкость 500*500*300 мм
C128: ВМПНS1 | D128: ВМПЦS1 | E128: одна мойка, по центр с бортом | I128: СП | K128: Сплошная полка
C129: ВМПНSЛ1 | D129: ВМПЦSЛ1 | E129: одна мойка, слева с бортом | K129: К | L129: Колеса
C130: ВМПНSП1 | D130: ВМПЦSП1 | E130: одна мойка, справа с бортом
C131: ВМЦНS1 | D131: ВМЦЦS1 | E131: одна мойка, по центр без борта
C132: ВМЦНSЛП1 | D132: ВМЦЦSЛП1 | E132: одна мойка, сбоку без борта
C133: ВМПНS2 | D133: ВМПЦS2 | E133: две мойки, по центр с бортом
C134: ВМПНSЛ2 | D134: ВМПЦSЛ2 | E134: две мойки, слева с бортом
C135: ВМПНSП2 | D135: ВМПЦSП2 | E135: две мойки, справа с бортом
C136: ВМЦНS2 | D136: ВМЦЦS2 | E136: две мойки, по центр без борта
C137: ВМЦНSЛП2 | D137: ВМЦЦSЛП2 | E137: две мойки, сбоку без борта
C138: ВМПНS3 | D138: ВМПЦS3 | E138: три мойки, по центру с бортом
C139: ВМЦНS3 | D139: ВМЦЦS3 | E139: три мойки, по центру без борта

Sheet Сварные ванны
A1: Нейтральное оборудование/Ванны сварные | P1: На главную
A3: Ваша скидка: | D3: =Содержание!C2 -> 0
A4: НДС: | D4: =IF(Лист2!A1=TRUE,"С НДС","БЕЗ НДС") -> С НДС
B7: Одинарная сварная ванна ВМН Э 1 / ВМЦ Э 1
B9: Изображение | C9: Артикул | F9: Модель | G9: Характеристика номенклатуры | L9: Базовая цена, | M9: Ваша цена, | N9: Сварная | O9: Техническое описание | Q9: Каркас | R9: Базовая цена,
L10: руб | M10: руб | N10: емкость, мм | R10: руб
C11: ВМНЭ1_43438587_30 | F11: ВМНЭ1 | G11: L=430, S=430, H=850-870, G=300 | L11: =ROUND(R11*(1+'Повышение цен'!$C$13),0) -> 9403 | M11: =ROUND(IF($D$4="С НДС",L11*(1-$D$3),L11*(1-$D$3)/1.22),0) -> 9403 | N11: 330*330*300 | O11: н/ст, толщина ванны - 1 мм, разборная конструкция, каркас - нерж. уголок 40*40*1,5 мм, Hстолешницы -40 мм, 1 сварная емкость, без отверстия для смесителя, регулируемые ножки(+/-20мм), сливное отверстие диаметром 54 мм, широкий борт с отверстием под смеситель и пристенным бортом Hстолешницы -40 мм заказывается отдельно и крепится по месту(опция) | Q11: Нержавеющая сталь | R11: 7811
C12: ВМНЭ1_50438587_30 | F12: ВМНЭ1 | G12: L=500, S=430, H=850-870, G=300 | L12: =ROUND(R12*(1+'Повышение цен'!$C$13),0) -> 10008 | M12: =ROUND(IF($D$4="С НДС",L12*(1-$D$3),L12*(1-$D$3)/1.22),0) -> 10008 | N12: 400*330*300 | R12: 8314
C13: ВМНЭ1_53538587_30 | F13: ВМНЭ1 | G13: L=530, S=530, H=850-870, G=300 | L13: =ROUND(R13*(1+'Повышение цен'!$C$13),0) -> 11828 | M13: 11828 | N13: 430*430*300 | R13: 9826
C14: ВМНЭ1_60538587_30 | F14: ВМНЭ1 | G14: L=600, S=530, H=850-870, G=300 | L14: =ROUND(R14*(1+'Повышение цен'!$C$13),0) -> 12523 | M14: 12523 | N14: 500*430*300 | R14: 10403
C15: ВМНЭ1_60638587_40 | F15: ВМНЭ1 | G15: L=600, S=630, H=850-870, G=400 | L15: =ROUND(R15*(1+'Повышение цен'!$C$13),0) -> 14828 | M15: 14828 | N15: 500*530*400 | R15: 12318
C16: ВМНЭ1_63638587_40 | F16: ВМНЭ1 | G16: L=630, S=630, H=850-870, G=400 | L16: =ROUND(R16*(1+'Повышение цен'!$C$13),0) -> 15122 | M16: 15122 | N16: 530*530*400 | R16: 12562
C17: ВМНЭ1_70638587_40 | F17: ВМНЭ1 | G17: L=700, S=630, H=850-870, G=400 | L17: =ROUND(R17*(1+'Повышение цен'!$C$13),0) -> 15839 | M17: 15839 | N17: 600*530*400 | R17: 13158
C18: ВМНЭ1_70708587_45 | F18: ВМНЭ1 | G18: L=700, S=700, H=850-870, G=450 | L18: =ROUND(R18*(1+'Повышение цен'!$C$13),0) -> 17834 | M18: 17834 | N18: 600*600*450 | R18: 14815
C19: ВМНЭ1_80808587_45 | F19: ВМНЭ1 | G19: L=800, S=800, H=850-870, G=450 | L19: =ROUND(R19*(1+'Повышение цен'!$C$13),0) -> 20405 | M19: 20405 | N19: 700*700*450 | R19: 16951
C20: ВМНЭ1ЛП_101538587_30 | F20: ВМНЭ1ЛП | G20: L=1010, S=530, H=850-870, G=300 | L20: =ROUND(R20*(1+'Повышение цен'!$C$13),0) -> 16582 | M20: 16582 | N20: 460*430*300 | R20: 13775
C21: ВМНЭ1ЛП_121638587_40 | F21: ВМНЭ1ЛП | G21: L=1210, S=630, H=850-870, G=400 | L21: =ROUND(R21*(1+'Повышение цен'!$C$13),0) -> 22237 | M21: 22237 | N21: 560*530*400 | R21: 18473
C23: ВМЦЭ1_43438587_30 | F23: ВМЦЭ1 | G23: L=430, S=430, H=850-870, G=300 | L23: =ROUND(R23*(1+'Повышение цен'!$C$13),0) -> 7118 | M23: =ROUND(IF($D$4="С НДС",L23*(1-$D$3),L23*(1-$D$3)/1.22),0) -> 7118 | N23: 330*330*300 | O23: н/ст, толщина ванны - 1 мм, разборная конструкция, каркас - оцин. уголок 40*40*1,5 мм, Hстолешницы -40 мм, 1 сварная емкость, без отверстия для смесителя, регулируемые ножки(+/-20мм), сливное отверстие диаметром 54 мм, широкий борт с отверстием под смеситель и пристенным бортом Hстолешницы -40 мм заказывается отдельно и крепится по месту(опция) | Q23: Оцинкованная сталь | R23: 5913
C24: ВМЦЭ1_50438587_30 | F24: ВМЦЭ1 | G24: L=500, S=430, H=850-870, G=300 | L24: =ROUND(R24*(1+'Повышение цен'!$C$13),0) -> 7383 | M24: 7383 | N24: 400*330*300 | R24: 6133
C25: ВМЦЭ1_53538587_30 | F25: ВМЦЭ1 | G25: L=530, S=530, H=850-870, G=300 | L25: =ROUND(R25*(1+'Повышение цен'!$C$13),0) -> 9099 | M25: 9099 | N25: 430*430*300 | R25: 7559
C26: ВМЦЭ1_60538587_30 | F26: ВМЦЭ1 | G26: L=600, S=530, H=850-870, G=300 | L26: =ROUND(R26*(1+'Повышение цен'!$C$13),0) -> 9430 | M26: 9430 | N26: 500*430*300 | R26: 7834
C27: ВМЦЭ1_60638587_40 | F27: ВМЦЭ1 | G27: L=600, S=630, H=850-870, G=400 | L27: =ROUND(R27*(1+'Повышение цен'!$C$13),0) -> 12081 | M27: 12081 | N27: 500*530*400 | R27: 10036
C28: ВМЦЭ1_63638587_40 | F28: ВМЦЭ1 | G28: L=630, S=630, H=850-870, G=400 | L28: =ROUND(R28*(1+'Повышение цен'!$C$13),0) -> 12204 | M28: 12204 | N28: 530*530*400 | R28: 10138
C29: ВМЦЭ1_70638587_40 | F29: ВМЦЭ1 | G29: L=700, S=630, H=850-870, G=400 | L29: =ROUND(R29*(1+'Повышение цен'!$C$13),0) -> 12512 | M29: 12512 | N29: 600*530*400 | R29: 10394
C30: ВМЦЭ1_70708587_45 | F30: ВМЦЭ1 | G30: L=700, S=700, H=850-870, G=450 | L30: =ROUND(R30*(1+'Повышение цен'!$C$13),0) -> 14686 | M30: 14686 | N30: 600*600*450 | R30: 12200
C31: ВМЦЭ1_80808587_45 | F31: ВМЦЭ1 | G31: L=800, S=800, H=850-870, G=450 | L31: =ROUND(R31*(1+'Повышение цен'!$C$13),0) -> 16926 | M31: 16926 | N31: 700*700*450 | R31: 14061
C32: ВМЦЭ1ЛП_101538587_30 | F32: ВМЦЭ1ЛП | G32: L=1010, S=530, H=850-870, G=300 | L32: =ROUND(R32*(1+'Повышение цен'!$C$13),0) -> 11549 | M32: 11549 | N32: 460*430*300 | R32: 9594
C33: ВМЦЭ1ЛП_121638587_40 | F33: ВМЦЭ1ЛП | G33: L=1210, S=630, H=850-870, G=400 | L33: =ROUND(R33*(1+'Повышение цен'!$C$13),0) -> 15841 | M33: 15841 | N33: 560*530*400 | R33: 13159
B35: Двойная сварная ванна ВМН Э 2 / ВМЦ Э 2
B37: Изображение | C37: Артикул | F37: Модель | G37: Характеристика номенклатуры | L37: Базовая цена, | M37: Ваша цена, | N37: Две сварные | O37: Техническое описание | Q37: Каркас | R37: Базовая цена,
L38: руб | M38: руб | N38: емкости, мм | R38: руб
C39: ВМНЭ2_100538587_30 | F39: ВМНЭ2 | G39: L=1000, S=530, H=850-870, G=300 | L39: =ROUND(R39*(1+'Повышение цен'!$C$13),0) -> 19531 | M39: =ROUND(IF($D$4="С НДС",L39*(1-$D$3),L39*(1-$D$3)/1.22),0) -> 19531 | N39: 405*430*300 | O39: н/ст, толщина ванны - 1 мм, разборная конструкция, каркас - нерж. уголок 40*40*1,5 мм, Hстолешницы -40 мм, 2 сварные емкости, без отверстия для смесителя, регулируемые ножки(+/-20мм), сливное отверстие диаметром 54 мм, широкий борт с отверстием под смеситель и пристенным бортом Hстолешницы -40 мм заказывается отдельно и крепится по месту(опция) | Q39: Нержавеющая сталь | R39: 16225
C40: ВМНЭ2_105538587_30 | F40: ВМНЭ2 | G40: L=1050, S=530, H=850-870, G=300 | L40: =ROUND(R40*(1+'Повышение цен'!$C$13),0) -> 19969 | M40: 19969 | N40: 430*430*300 | R40: 16589
C41: ВМНЭ2_120538587_30 | F41: ВМНЭ2 | G41: L=1200, S=530, H=850-870, G=300 | L41: =ROUND(R41*(1+'Повышение цен'!$C$13),0) -> 21288 | M41: 21288 | N41: 500*430*300 | R41: 17684
C42: ВМНЭ2_120638587_40 | F42: ВМНЭ2 | G42: L=1200, S=630, H=850-870, G=400 | L42: =ROUND(R42*(1+'Повышение цен'!$C$13),0) -> 26186 | M42: 26186 | N42: 505*530*400 | R42: 21753
C43: ВМНЭ2_125638587_40 | F43: ВМНЭ2 | G43: L=1250, S=630, H=850-870, G=400 | L43: =ROUND(R43*(1+'Повышение цен'!$C$13),0) -> 26637 | M43: 26637 | N43: 530*530*400 | R43: 22128
C44: ВМНЭ2_139708587_45 | F44: ВМНЭ2 | G44: L=1390, S=700, H=850-870, G=450 | L44: =ROUND(R44*(1+'Повышение цен'!$C$13),0) -> 32039 | M44: 32039 | N44: 600*600*450 | R44: 26615
C45: ВМНЭ2_159808587_45 | F45: ВМНЭ2 | G45: L=1590, S=800, H=850-870, G=450 | L45: =ROUND(R45*(1+'Повышение цен'!$C$13),0) -> 36981 | M45: 36981 | N45: 700*700*450 | R45: 30721
C47: ВМЦЭ2_100538587_30 | F47: ВМЦЭ2 | G47: L=1000, S=530, H=850-870, G=300 | L47: =ROUND(R47*(1+'Повышение цен'!$C$13),0) -> 15689 | M47: =ROUND(IF($D$4="С НДС",L47*(1-$D$3),L47*(1-$D$3)/1.22),0) -> 15689 | N47: 405*430*300 | O47: н/ст, толщина ванны - 1 мм, разборная конструкция, каркас - оцин. уголок 40*40*1,5 мм, Hстолешницы -40 мм, 2 сварные емкости, без отверстия для смесителя, регулируемые ножки(+/-20мм), сливное отверстие диаметром 54 мм, широкий борт с отверстием под смеситель и пристенным бортом Hстолешницы -40 мм заказывается отдельно и крепится по месту(опция) | Q47: Оцинкованная сталь | R47: 13033
C48: ВМЦЭ2_105538587_30 | F48: ВМЦЭ2 | G48: L=1050, S=530, H=850-870, G=300 | L48: =ROUND(R48*(1+'Повышение цен'!$C$13),0) -> 15845 | M48: 15845 | N48: 430*430*300 | R48: 13163
C49: ВМЦЭ2_120538587_30 | F49: ВМЦЭ2 | G49: L=1200, S=530, H=850-870, G=300 | L49: =ROUND(R49*(1+'Повышение цен'!$C$13),0) -> 16310 | M49: 16310 | N49: 500*430*300 | R49: 13549
C50: ВМЦЭ2_120638587_40 | F50: ВМЦЭ2 | G50: L=1200, S=630, H=850-870, G=400 | L50: =ROUND(R50*(1+'Повышение цен'!$C$13),0) -> 22460 | M50: 22460 | N50: 505*530*400 | R50: 18658
C51: ВМЦЭ2_125638587_40 | F51: ВМЦЭ2 | G51: L=1250, S=630, H=850-870, G=400 | L51: =ROUND(R51*(1+'Повышение цен'!$C$13),0) -> 22629 | M51: 22629 | N51: 530*530*400 | R51: 18798
C52: ВМЦЭ2_139708587_45 | F52: ВМЦЭ2 | G52: L=1390, S=700, H=850-870, G=450 | L52: =ROUND(R52*(1+'Повышение цен'!$C$13),0) -> 27819 | M52: 27819 | N52: 600*600*450 | R52: 23110
C53: ВМЦЭ2_159808587_45 | F53: ВМЦЭ2 | G53: L=1590, S=800, H=850-870, G=450 | L53: =ROUND(R53*(1+'Повышение цен'!$C$13),0) -> 32094 | M53: 32094 | N53: 700*700*450 | R53: 26661
B55: Тройная сварная ванна ВМН Э 3 / ВМЦ Э 3
B57: Изображение | C57: Артикул | F57: Модель | G57: Характеристика номенклатуры | L57: Базовая цена, | M57: Ваша цена, | N57: Три сварные | O57: Техническое описание | Q57: Каркас | R57: Базовая цена,
L58: руб | M58: руб | N58: емкости, мм | R58: руб
C59: ВМНЭ3_149538587_30 | F59: ВМНЭ3 | G59: L=1490, S=530, H=850-870, G=300 | L59: =ROUND(R59*(1+'Повышение цен'!$C$13),0) -> 30162 | M59: =ROUND(IF($D$4="С НДС",L59*(1-$D$3),L59*(1-$D$3)/1.22),0) -> 30162 | N59: 430*430*300 | O59: н/ст, толщина ванны - 1 мм, разборная конструкция, каркас - нерж. уголок 40*40*1,5 мм, Hстолешницы -40 мм, 3 сварные емкости, без отверстия для смесителя, регулируемые ножки(+/-20мм), сливное отверстие диаметром 54 мм, широкий борт с отверстием под смеситель и пристенным бортом Hстолешницы -40 мм заказывается отдельно и крепится по месту(опция) | Q59: Нерж. сталь | R59: 25056
C60: ВМНЭ3_189638587_40 | F60: ВМНЭ3 | G60: L=1890, S=630, H=850-870, G=400 | L60: =ROUND(R60*(1+'Повышение цен'!$C$13),0) -> 40902 | M60: =ROUND(IF($D$4="С НДС",L60*(1-$D$3),L60*(1-$D$3)/1.22),0) -> 40902 | N60: 530*530*400 | R60: 33978
C62: ВМЦЭ3_149538587_30 | F62: ВМЦЭ3 | G62: L=1490, S=530, H=850-870, G=300 | L62: =ROUND(R62*(1+'Повышение цен'!$C$13),0) -> 25376 | M62: =ROUND(IF($D$4="С НДС",L62*(1-$D$3),L62*(1-$D$3)/1.22),0) -> 25376 | N62: 430*430*300 | O62: н/ст, толщина ванны - 1 мм, разборная конструкция, каркас - оцин. уголок 40*40*1,5 мм, Hстолешницы -40 мм, 3 сварные емкости, без отверстия для смесителя, регулируемые ножки(+/-20мм), сливное отверстие диаметром 54 мм, широкий борт с отверстием под смеситель и пристенным бортом Hстолешницы -40 мм заказывается отдельно и крепится по месту(опция) | Q62: Оцин. сталь | R62: 21080
C63: ВМЦЭ3_189638587_40 | F63: ВМЦЭ3 | G63: L=1890, S=630, H=850-870, G=400 | L63: =ROUND(R63*(1+'Повышение цен'!$C$13),0) -> 36573 | M63: =ROUND(IF($D$4="С НДС",L63*(1-$D$3),L63*(1-$D$3)/1.22),0) -> 36573 | N63: 530*530*400 | R63: 30382
B65: Опция, борт для сварной ванны
B67: Изображение | C67: Артикул | F67: Модель | G67: Характеристика номенклатуры | L67: Базовая цена, | M67: Ваша цена, | N67: отверстие | O67: Техническое описание | Q67: Каркас | R67: Базовая цена,
L68: руб | M68: руб | N68: для смесителя | R68: руб
C69: БОРТВМ_430_1ОТВ | F69: Борт | G69: L=430, S=70, Нб=40, 1 отв | L69: =ROUND(R69*(1+'Повышение цен'!$C$13),0) -> 992 | M69: =ROUND(IF($D$4="С НДС",L69*(1-$D$3),L69*(1-$D$3)/1.22),0) -> 992 | N69: 1 отв | O69: н/ст, толщина стали - 1 мм, сварная конструкция, кол-во отверстий под смеситель указано в характеристике, диаметр отверстия 31 мм, Hстолешницы -40 мм , Hборта -40 мм присоединятеся к ванне моечной серии ВМНЭ/ВМЦЭ соответствующей длинный и крепится по месту(опция) | Q69: Нержавеющая сталь | R69: 824
C70: БОРТВМ_500_1ОТВ | F70: Борт | G70: L=500, S=70, Нб=40, 1 отв | L70: =ROUND(R70*(1+'Повышение цен'!$C$13),0) -> 1275 | M70: 1275 | N70: 1 отв | R70: 1059
C71: БОРТВМ_530_1ОТВ | F71: Борт | G71: L=530, S=70, Нб=40, 1 отв | L71: =ROUND(R71*(1+'Повышение цен'!$C$13),0) -> 1347 | M71: 1347 | N71: 1 отв | R71: 1119
C72: БОРТВМ_600_1ОТВ | F72: Борт | G72: L=600, S=70, Нб=40, 1 отв | L72: =ROUND(R72*(1+'Повышение цен'!$C$13),0) -> 1417 | M72: 1417 | N72: 1 отв | R72: 1177
C73: БОРТВМ_630_1ОТВ | F73: Борт | G73: L=630, S=70, Нб=40, 1 отв | L73: =ROUND(R73*(1+'Повышение цен'!$C$13),0) -> 1488 | M73: 1488 | N73: 1 отв | R73: 1236
C74: БОРТВМ_700_1ОТВ | F74: Борт | G74: L=700, S=100, Нб=40, 1 отв | L74: =ROUND(R74*(1+'Повышение цен'!$C$13),0) -> 1984 | M74: 1984 | N74: 1 отв | R74: 1648
C75: БОРТВМ_800_1ОТВ | F75: Борт | G75: L=800, S=100, Нб=40, 1 отв | L75: =ROUND(R75*(1+'Повышение цен'!$C$13),0) -> 2126 | M75: 2126 | N75: 1 отв | R75: 1766
C76: БОРТВМ_1000_1ОТВ | F76: Борт | G76: L=1000, S=70, Нб=40, 1 отв | L76: =ROUND(R76*(1+'Повышение цен'!$C$13),0) -> 2339 | M76: 2339 | N76: 1 отв | R76: 1943
C77: БОРТВМ_1050_1ОТВ | F77: Борт | G77: L=1050, S=70, Нб=40, 1 отв | L77: =ROUND(R77*(1+'Повышение цен'!$C$13),0) -> 2409 | M77: 2409 | N77: 1 отв | R77: 2001
C78: БОРТВМ_1200_1ОТВ | F78: Борт | G78: L=1200, S=70, Нб=40, 1 отв | L78: =ROUND(R78*(1+'Повышение цен'!$C$13),0) -> 2551 | M78: 2551 | N78: 1 отв | R78: 2119
C79: БОРТВМ_1250_1ОТВ | F79: Борт | G79: L=1250, S=70, Нб=40, 1 отв | L79: =ROUND(R79*(1+'Повышение цен'!$C$13),0) -> 2622 | M79: 2622 | N79: 1 отв | R79: 2178
C80: БОРТВМ_1390_1ОТВ | F80: Борт | G80: L=1390, S=100, Нб=40, 1 отв | L80: =ROUND(R80*(1+'Повышение цен'!$C$13),0) -> 2764 | M80: 2764 | N80: 1 отв | R80: 2296
C81: БОРТВМ_1490_2ОТВ | F81: Борт | G81: L=1490, S=70, Нб=40, 2 отв | L81: =ROUND(R81*(1+'Повышение цен'!$C$13),0) -> 3047 | M81: 3047 | N81: 2 отв | R81: 2531
C82: БОРТВМ_1590_1ОТВ | F82: Борт | G82: L=1590, S=100, Нб=40, 1 отв | L82: =ROUND(R82*(1+'Повышение цен'!$C$13),0) -> 3189 | M82: 3189 | N82: 1 отв | R82: 2649
C83: БОРТВМ_1890_1ОТВ | F83: Борт | G83: L=1890, S=70, Нб=40, 2 отв | L83: =ROUND(R83*(1+'Повышение цен'!$C$13),0) -> 3472 | M83: 3472 | N83: 2 отв | R83: 2884

Sheet Рукомойники, Котломоечные
A1: Нейтральное оборудование/Рукомойники,Котломоечные | P1: На главную
A3: Ваша скидка: | D3: =Содержание!C2 -> 0
A4: НДС: | D4: =IF(Лист2!A1=TRUE,"С НДС","БЕЗ НДС") -> С НДС
B7: Рукомойник РНЭ/РНБЭ/ВРПЭ
B9: Изображение | C9: Артикул | F9: Модель | G9: Характеристика номенклатуры | L9: Базовая цена, | M9: Ваша цена, | N9: Техническое описание | R9: Базовая цена,
L10: руб | M10: руб | R10: руб
C11: РНЭ_403025_14 | F11: РНЭ | G11: L=400, S=300, H=250, G=140 | L11: =ROUND(R11*(1+'Повышение цен'!$C$21),0) -> 14500 | M11: =ROUND(IF($D$4="С НДС",L11*(1-$D$3),L11*(1-$D$3)/1.22),0) -> 14500 | N11: Рукомойник настенный. В комплекте:исмеситель с гибкими подводками для холодной и горячей воды. | R11: 12045
C12: РНБЭ_403025_14 | F12: РНБЭ | G12: L=400, S=300, H=250, G=140 | L12: =ROUND(R12*(1+'Повышение цен'!$C$21),0) -> 21044 | M12: =ROUND(IF($D$4="С НДС",L12*(1-$D$3),L12*(1-$D$3)/1.22),0) -> 21044 | N12: Рукомойник настенный. В комплекте:излив, узел смешивания, кнопка подачи воды с гибкими подводками для холодной и горячей воды. | R12: 17482
C13: ВРПЭ_505286_25 | F13: ВРПЭ | G13: L=500, S=520, H=850, G=250 | L13: =ROUND(R13*(1+'Повышение цен'!$C$21),0) -> 29225 | M13: =ROUND(IF($D$4="С НДС",L13*(1-$D$3),L13*(1-$D$3)/1.22),0) -> 29225 | N13: Рукомойник закрытый напольный. В комплекте:излив, узел смешивания с гибкими подводками для холодной и горячей воды, распашная дверь, педаль подачи воды | R13: 24278
B15: Котломоечная цельнотянутая ванна ВКП Ш 1
B17: Изображение | C17: Артикул | F17: Модель | G17: Характеристика номенклатуры | L17: Базовая цена, | M17: Ваша цена, | N17: Техническое описание | R17: Базовая цена,
L18: руб | M18: руб | R18: руб
C19: ВКПШ1_110708587_36 | F19: ВКПШ1 | G19: L=1100, S=700, H=850-870, G=360 | L19: =ROUND(R19*(1+'Повышение цен'!$C$21),0) -> 65981 | M19: =ROUND(IF($D$4="С НДС",L19*(1-$D$3),L19*(1-$D$3)/1.22),0) -> 65981 | N19: шлифованная н/ст, толщина столешницы - 1 мм, Aisi 304 разборная конструкция, стол закрыт с трех сторон фартуком, каркас - труба 40*40*1,2 мм, Hстолешницы -50 мм, Hборта - 40 мм, столешница усилена швеллером; 1 цельнотянутая емкость : 1010*510*360 мм со сливным отверстием диаметром 54 мм, отверстие для смесителя диаметром 31,5 мм, регулируемые ножки(+/-20мм), | R19: 54812
C20: ВКПШ1_120708587_36 | F20: ВКПШ1 | G20: L=1200, S=700, H=850-870, G=360 | L20: =ROUND(R20*(1+'Повышение цен'!$C$21),0) -> 67471 | M20: 67471 | R20: 56049
C21: ВКПШ1_130708587_36 | F21: ВКПШ1 | G21: L=1300, S=700, H=850-870, G=360 | L21: =ROUND(R21*(1+'Повышение цен'!$C$21),0) -> 68911 | M21: 68911 | R21: 57246
C22: ВКПШ1Л_140708587_36 | F22: ВКПШ1 | G22: L=1400, S=700, H=850-870, G=360 | L22: =ROUND(R22*(1+'Повышение цен'!$C$21),0) -> 71973 | M22: 71973 | R22: 59789
C23: ВКПШ1П_140708587_36 | F23: ВКПШ1 | G23: L=1400, S=700, H=850-870, G=360 | L23: =ROUND(R23*(1+'Повышение цен'!$C$21),0) -> 71973 | M23: 71973 | R23: 59789
C24: ВКПШ1Л_150708587_36 | F24: ВКПШ1 | G24: L=1500, S=700, H=850-870, G=360 | L24: =ROUND(R24*(1+'Повышение цен'!$C$21),0) -> 75310 | M24: 75310 | R24: 62561
C25: ВКПШ1П_150708587_36 | F25: ВКПШ1 | G25: L=1500, S=700, H=850-870, G=360 | L25: =ROUND(R25*(1+'Повышение цен'!$C$21),0) -> 75310 | M25: 75310 | R25: 62561
B29: Одинарная сварная котломойка ВКН Э / ВКЦ Э
B31: Изображение | C31: Артикул | F31: Модель | G31: Характеристика номенклатуры | L31: Базовая цена, | M31: Ваша цена, | N31: Сварная | O31: Техническое описание | Q31: Каркас | R31: Базовая цена,
L32: руб | M32: руб | N32: емкость, мм | R32: руб
C33: ВКНЭ_80538587_30 | F33: ВКНЭ | G33: L=800, S=530, H=850-870, G=300 | L33: =ROUND(R33*(1+'Повышение цен'!$C$21),0) -> 16332 | M33: =ROUND(IF($D$4="С НДС",L33*(1-$D$3),L33*(1-$D$3)/1.22),0) -> 16332 | N33: 700*430*300 | O33: н/ст, толщина ванны - 1 мм, разборная конструкция, каркас - нерж. уголок 40*40*1,5 мм, Hстолешницы -40 мм, сварная емкость, без отверстия для смесителя, регулируемые ножки(+/-20мм), широкий борт с отверстием под смеситель и пристенным бортом Hстолешницы -40 мм заказывается отдельно и крепится по месту(опция) | Q33: Нерж. Сталь | R33: 13567
C34: ВКНЭ_100538587_30 | F34: ВКНЭ | G34: L=1000, S=530, H=850-870, G=300 | L34: =ROUND(R34*(1+'Повышение цен'!$C$21),0) -> 18908 | M34: 18908 | N34: 900*430*300 | R34: 15707
C35: ВКНЭ_120638587_40 | F35: ВКНЭ | G35: L=1200, S=630, H=850-870, G=400 | L35: =ROUND(R35*(1+'Повышение цен'!$C$21),0) -> 27594 | M35: 27594 | N35: 1100*530*400 | R35: 22923
C36: ВКНЭ_139708587_45 | F36: ВКНЭ | G36: L=1390, S=700, H=850-870, G=400 | L36: =ROUND(R36*(1+'Повышение цен'!$C$21),0) -> 34538 | M36: 34538 | N36: 1290*600*450 | R36: 28691
C38: ВКЦЭ_80538587_30 | F38: ВКЦЭ | G38: L=800, S=530, H=850-870, G=300 | L38: =ROUND(R38*(1+'Повышение цен'!$C$21),0) -> 12666 | M38: =ROUND(IF($D$4="С НДС",L38*(1-$D$3),L38*(1-$D$3)/1.22),0) -> 12666 | N38: 700*430*300 | O38: н/ст, толщина ванны - 1 мм, разборная конструкция, каркас - оцин. уголок 40*40*1,5 мм, Hстолешницы -40 мм, сварная емкость, без отверстия для смесителя, регулируемые ножки(+/-20мм), широкий борт с отверстием под смеситель и пристенным бортом Hстолешницы -40 мм заказывается отдельно и крепится по месту(опция) | Q38: Оцинкованная сталь | R38: 10522
C39: ВКЦЭ_100538587_30 | F39: ВКЦЭ | G39: L=1000, S=530, H=850-870, G=300 | L39: =ROUND(R39*(1+'Повышение цен'!$C$21),0) -> 14899 | M39: 14899 | N39: 900*430*300 | R39: 12377
C40: ВКЦЭ_120638587_40 | F40: ВКЦЭ | G40: L=1200, S=630, H=850-870, G=400 | L40: =ROUND(R40*(1+'Повышение цен'!$C$21),0) -> 22815 | M40: 22815 | N40: 1100*530*400 | R40: 18953
C41: ВКЦЭ_139708587_45 | F41: ВКЦЭ | G41: L=1390, S=700, H=850-870, G=400 | L41: =ROUND(R41*(1+'Повышение цен'!$C$21),0) -> 29255 | M41: 29255 | N41: 1290*600*450 | R41: 24303
B44: Опция, борт для сварной ванны
B46: Изображение | C46: Артикул | F46: Модель | G46: Характеристика номенклатуры | L46: Базовая цена, | M46: Ваша цена, | N46: отверстие | O46: Техническое описание | Q46: Каркас | R46: Базовая цена,
L47: руб | M47: руб | N47: для смесителя | R47: руб
C48: БОРТВМ_800_1ОТВ | F48: Борт | G48: L=800, S=70, Нб=40, 1 отв | L48: =ROUND(R48*(1+'Повышение цен'!$C$21),0) -> 2055 | M48: =ROUND(IF($D$4="С НДС",L48*(1-$D$3),L48*(1-$D$3)/1.22),0) -> 2055 | N48: 1 отв | O48: н/ст , толщина стали - 1 мм, сварная конструкция, кол-во отверстий под смеситель указано в характеристике Hстолешницы -40 мм , Hборта -40 мм присоединятеся к ванне моечной серии ВКНЭ/ВКЦЭ соответствующей длинный и крепится по месту(опция) | Q48: Нержавеющая сталь | R48: 1707
C49: БОРТВМ_1000_1ОТВ | F49: Борт | G49: L=1000, S=70, Нб=40, 1 отв | L49: =ROUND(R49*(1+'Повышение цен'!$C$21),0) -> 2339 | M49: 2339 | N49: 1 отв | R49: 1943
C50: БОРТВМ_1200_1ОТВ | F50: Борт | G50: L=1200, S=70, Нб=40, 1 отв | L50: =ROUND(R50*(1+'Повышение цен'!$C$21),0) -> 2551 | M50: 2551 | N50: 1 отв | R50: 2119
C51: БОРТВМ_1390_1ОТВ | F51: Борт | G51: L=1390, S=100, Нб=40, 1 отв | L51: =ROUND(R51*(1+'Повышение цен'!$C$21),0) -> 2764 | M51: 2764 | N51: 1 отв | R51: 2296

Sheet Стеллажи
A1: Нейтральное оборудование/Стеллажи | N1: На главную
A3: Ваша скидка: | D3: =Содержание!C2 -> 0
A4: НДС: | D4: =IF(Лист2!A1=TRUE,"С НДС","БЕЗ НДС") -> С НДС
B7: Стеллажи на прямоугольной трубе со сплошной полкой (СК Ш, 4)
B9: Изображение | C9: Артикул | F9: Модель | G9: Характеристика номенклатуры | K9: Базовая цена, | L9: Ваша цена, | M9: Техническое описание | O9: Базовая цена,
K10: руб | L10: руб | O10: руб
C11: СКШ_4040180_4 | F11: СКШ | G11: L=400, S=400, H=1800, 4 | K11: =ROUND(O11*(1+'Повышение цен'!$C$14),0) -> 18991 | L11: =ROUND(IF($D$4="С НДС",K11*(1-$D$3),K11*(1-$D$3)/1.2),0) -> 18991 | M11: шлифованная н/ст, толщина нержавеющей стали полки - 1 мм, разборная конструкция, каркас - труба 20*40*1,2 мм, Hполки -35 мм, полка сплошная, 4 шт, шаг крепления полки 150 мм, регулируемые ножки(+/-20мм), | O11: 15776
C12: СКШ_6040180_4 | F12: СКШ | G12: L=600, S=400, H=1800, 4 | K12: =ROUND(O12*(1+'Повышение цен'!$C$14),0) -> 21089 | L12: =ROUND(IF($D$4="С НДС",K12*(1-$D$3),K12*(1-$D$3)/1.2),0) -> 21089 | O12: 17519
C13: СКШ_8040180_4 | F13: СКШ | G13: L=800, S=400, H=1800, 4 | K13: =ROUND(O13*(1+'Повышение цен'!$C$14),0) -> 23187 | L13: 23187 | O13: 19262
C14: СКШ_10040180_4 | F14: СКШ | G14: L=1000, S=400, H=1800, 4 | K14: =ROUND(O14*(1+'Повышение цен'!$C$14),0) -> 25287 | L14: 25287 | O14: 21006
C15: СКШ_12040180_4 | F15: СКШ | G15: L=1200, S=400, H=1800, 4 | K15: =ROUND(O15*(1+'Повышение цен'!$C$14),0) -> 27386 | L15: 27386 | O15: 22750
C16: СКШ_15040180_4 | F16: СКШ | G16: L=1500, S=400, H=1800, 4 | K16: =ROUND(O16*(1+'Повышение цен'!$C$14),0) -> 30533 | L16: 30533 | O16: 25364
C17: СКШ_18040180_4 | F17: СКШ | G17: L=1800, S=400, H=1800, 4 | K17: =ROUND(O17*(1+'Повышение цен'!$C$14),0) -> 33679 | L17: 33679 | O17: 27978
C19: СКШ_4050180_4 | F19: СКШ | G19: L=400, S=500, H=1800, 4 | K19: =ROUND(O19*(1+'Повышение цен'!$C$14),0) -> 19904 | L19: 19904 | O19: 16535
C20: СКШ_6050180_4 | F20: СКШ | G20: L=600, S=500, H=1800, 4 | K20: =ROUND(O20*(1+'Повышение цен'!$C$14),0) -> 22461 | L20: 22461 | O20: 18659
C21: СКШ_8050180_4 | F21: СКШ | G21: L=800, S=500, H=1800, 4 | K21: =ROUND(O21*(1+'Повышение цен'!$C$14),0) -> 25015 | L21: 25015 | O21: 20780
C22: СКШ_10050180_4 | F22: СКШ | G22: L=1000, S=500, H=1800, 4 | K22: =ROUND(O22*(1+'Повышение цен'!$C$14),0) -> 27574 | L22: 27574 | O22: 22906
C23: СКШ_12050180_4 | F23: СКШ | G23: L=1200, S=500, H=1800, 4 | K23: =ROUND(O23*(1+'Повышение цен'!$C$14),0) -> 30127 | L23: 30127 | O23: 25027
C24: СКШ_15050180_4 | F24: СКШ | G24: L=1500, S=500, H=1800, 4 | K24: =ROUND(O24*(1+'Повышение цен'!$C$14),0) -> 33960 | L24: 33960 | O24: 28211
C25: СКШ_18050180_4 | F25: СКШ | G25: L=1800, S=500, H=1800, 4 | K25: =ROUND(O25*(1+'Повышение цен'!$C$14),0) -> 37791 | L25: 37791 | O25: 31394
B27: Стеллажи на прямоугольной трубе с перфорированной полкой (СК Ш, 4П)
B29: Изображение | C29: Артикул | F29: Модель | G29: Характеристика номенклатуры | K29: Базовая цена, | L29: Ваша цена, | M29: Техническое описание | O29: Базовая цена,
K30: руб | L30: руб | O30: руб
C31: СКШ_4040180_4П | F31: СКШ | G31: L=400, S=400, H=1800, 4П | K31: =ROUND(O31*(1+'Повышение цен'!$C$14),0) -> 21239 | L31: =ROUND(IF($D$4="С НДС",K31*(1-$D$3),K31*(1-$D$3)/1.2),0) -> 21239 | M31: шлифованная н/ст, толщина нержавеющей стали полки - 1 мм, разборная конструкция, каркас - труба 20*40*1,2 мм, Hполки -35 мм, полка перфорированная, 4 шт, шаг крепления полки 150 мм, регулируемые ножки(+/-20мм), | O31: 17644
C32: СКШ_6040180_4П | F32: СКШ | G32: L=600, S=400, H=1800, 4П | K32: =ROUND(O32*(1+'Повышение цен'!$C$14),0) -> 23338 | L32: 23338 | O32: 19387
C33: СКШ_8040180_4П | F33: СКШ | G33: L=800, S=400, H=1800, 4П | K33: =ROUND(O33*(1+'Повышение цен'!$C$14),0) -> 25436 | L33: 25436 | O33: 21130
C34: СКШ_10040180_4П | F34: СКШ | G34: L=1000, S=400, H=1800, 4П | K34: =ROUND(O34*(1+'Повышение цен'!$C$14),0) -> 27533 | L34: 27533 | O34: 22872
C35: СКШ_12040180_4П | F35: СКШ | G35: L=1200, S=400, H=1800, 4П | K35: =ROUND(O35*(1+'Повышение цен'!$C$14),0) -> 29632 | L35: 29632 | O35: 24616
C36: СКШ_15040180_4П | F36: СКШ | G36: L=1500, S=400, H=1800, 4П | K36: =ROUND(O36*(1+'Повышение цен'!$C$14),0) -> 32778 | L36: 32778 | O36: 27229
C37: СКШ_18040180_4П | F37: СКШ | G37: L=1800, S=400, H=1800, 4П | K37: =ROUND(O37*(1+'Повышение цен'!$C$14),0) -> 35924 | L37: 35924 | O37: 29843
C39: СКШ_4050180_4П | F39: СКШ | G39: L=400, S=500, H=1800, 4П | K39: =ROUND(O39*(1+'Повышение цен'!$C$14),0) -> 22153 | L39: =ROUND(IF($D$4="С НДС",K39*(1-$D$3),K39*(1-$D$3)/1.2),0) -> 22153 | O39: 18403
C40: СКШ_6050180_4П | F40: СКШ | G40: L=600, S=500, H=1800, 4П | K40: =ROUND(O40*(1+'Повышение цен'!$C$14),0) -> 24708 | L40: 24708 | O40: 20525
C41: СКШ_8050180_4П | F41: СКШ | G41: L=800, S=500, H=1800, 4П | K41: =ROUND(O41*(1+'Повышение цен'!$C$14),0) -> 27264 | L41: 27264 | O41: 22649
C42: СКШ_10050180_4П | F42: СКШ | G42: L=1000, S=500, H=1800, 4П | K42: =ROUND(O42*(1+'Повышение цен'!$C$14),0) -> 29818 | L42: 29818 | O42: 24770
C43: СКШ_12050180_4П | F43: СКШ | G43: L=1200, S=500, H=1800, 4П | K43: =ROUND(O43*(1+'Повышение цен'!$C$14),0) -> 32372 | L43: 32372 | O43: 26892
C44: СКШ_15050180_4П | F44: СКШ | G44: L=1500, S=500, H=1800, 4П | K44: =ROUND(O44*(1+'Повышение цен'!$C$14),0) -> 36207 | L44: 36207 | O44: 30078
C45: СКШ_18050180_4П | F45: СКШ | G45: L=1800, S=500, H=1800, 4П | K45: =ROUND(O45*(1+'Повышение цен'!$C$14),0) -> 40040 | L45: 40040 | O45: 33262
C47: Формула расчета цены | M47: Техническое описание
B48: Артикул | C48: Модель | D48: Длина, | E48: Глубина, | F48: Высота | G48: кол-во | H48: Тип | I48: Каркас | J48: Доп. | K48: Базовая цена, | L48: Ваша цена, | M48: Нестандартной модели
D49: мм | E49: мм | F49: мм | G49: полок | H49: полок | I49: раз/св | J49: колеса | K49: руб | L49: руб | M49: =CONCATENATE("шлифованная н/ст, толщина стали нержавеющей полки - 1 мм,",IF(I50="СВ","сварная конструкция","разборная конструкция"),", каркас - труба 20*40*1,2 мм, Hполки - 35 мм, ",IF(H50=""," сплошная полка, ",""),IF(H50="П"," полка перфорированная, ",""),G50," шт, ",IF(J50="К",", 4 колеса(2 с тормозом)","регулируемые ножки(+/-20мм)"),", длина ", D50,"мм",", глубина ",E50,"мм"," ,высота ",F50,"мм") -> шлифованная н/ст, толщина стали нержавеющей полки - 1 мм,разборная конструкция, каркас - труба 20*40*1,2 мм, Hполки - 35 мм, полка перфорированная, 4 шт, регулируемые ножки(+/-20мм), длина 1500мм, глубина 500мм ,высота 1800мм
B50: =UPPER(CONCATENATE(C50,"_",D50/10,E50/10,F50/10,"_",G50,H50,I50,J50)) -> СКШ_15050180_4П | C50: СКШ | D50: 1500 | E50: 500 | F50: 1800 | G50: 4 | H50: П | K50: =ROUND(((K51*IF(D51>1800,1.05,1)*IF(E51>600,1.05,1)*IF(F51>1850,1.05,1)+IF(J50="К",6000,0))*1.12*1.1)*1.05*1.2*(1+'Повышение цен'!$C$14),0) -> 36207 | L50: =ROUND(IF($D$4="С НДС",K50*(1-$D$3),K50*(1-$D$3)/1.2),0) -> 36207
D51: =IF(AND(D50>299,D50<2001),D50,"не производим") -> 1500 | E51: =IF(AND(E50>299,E50<701),E50,"не производим") -> 500 | F51: =IF(AND(F53>999,F53<2501),F53,"не производим") -> 1800 | G51: =IF(I50="",IF(AND(G50>2.99,G50<6.01),G50,"не производим"),IF(I50="СВ",IF(AND(G50>2.99,G50<6.01),G50,"не производим"))) -> 4 | K51: =IF(H50="",IF(I50="",ROUND((((((D51*E51*Техно!AI10*0.00001*1.25*Техно!AJ8)*Техно!AJ10*G51)+((D51*150*Техно!AI13*0.00001*Техно!AJ8)*Техно!AJ13*G51)+(Техно!AJ18*F51*0.001*1.1*4))*1.18)+(Техно!AJ25*0.4)+((Техно!AJ26+Техно!AJ27)*4*G51/4))*1.18/0.65*(0.85+0.6944),0),IF(I50="СВ",ROUND((((((D51*E51*Техно!AI10*0.00001*1.25*Техно!AJ8)*Техно!AJ10*G51)+((D51*150*Техно!AI13*0.00001*Техно!AJ8)*Техно!AJ13*G51)+(Техно!AJ18*F51*0.001*1.1*4))*1.18)+(Техно!AJ25*(0.4+0.1))+((Техно!AJ26+Техно!AJ27)*(4+0.5)*G51/4))*1.18/0.65*1.035*(0.85+0.6944),0))),IF(H50="П",IF(I50="",ROUND((((((D51*E51*Техно!AK10*0.00001*1.25*Техно!AL8)*Техно!AL10*G51)+((D51*150*Техно!AK13*0.00001*Техно!AL8)*Техно!AL13*G51)+(Техно!AL18*F51*0.001*1.1*4))*1.18)+(Техно!AL25*0.4)+((Техно!AL26+Техно!AL27)*5.5*G51/4))*1.18/0.65*(0.85+0.6944),0),IF(I50="СВ",ROUND((((((D51*E51*Техно!AK10*0.00001*1.25*Техно!AL8)*Техно!AL10*G51)+((D51*150*Техно!AK13*0.00001*Техно!AL8)*Техно!AL13*G51)+(Техно!AL18*F51*0.001*1.1*4))*1.18)+(Техно!AL25*(0.4+0.1))+((Техно!AL26+Техно!AL27)*(5.5+0.5)*G51/4))*1.18/0.65*1.035*(0.85+0.6944),0))))) -> 19376
D52: 300-2000 | E52: 300-700 | F52: 1000-2500 | G52: 3_6 | J52: К | K52: Колеса
F53: =IF(F50=870,850,F50) -> 1800 | I53: СВ | J53: Сварная конструкция
C54: СКШ | D54: Стеллаж на трубе | H54: П | I54: Перфорированная полка
B56: Сплошная полка для стеллажа на прямоугольной трубе (СК Ш)
B58: Артикул | C58: Артикул | E58: Модель | F58: Наименование | K58: Базовая цена, | L58: Ваша цена, | M58: Техническое описание | O58: Базовая цена,
K59: руб | L59: руб | O59: руб
C60: ПЛКСКШ_6040 | E60: ПЛКСКШ | F60: L=600, S=400, H=35 | K60: =ROUND(O60*(1+'Повышение цен'!$C$14),0) -> 3088 | L60: =ROUND(IF($D$4="С НДС",K60*(1-$D$3),K60*(1-$D$3)/1.2),0) -> 3088 | M60: шлифованная н/ст, толщина нержавеющей стали полки - 1 мм, Hполки -35 мм, полка сплошная, усилена продолным ребром жесткости | O60: 2565
C61: ПЛКСКШ_8040 | E61: ПЛКСКШ | F61: L=800, S=400, H=35 | K61: =ROUND(O61*(1+'Повышение цен'!$C$14),0) -> 3529 | L61: 3529 | O61: 2932
C62: ПЛКСКШ_10040 | E62: ПЛКСКШ | F62: L=1000, S=400, H=35 | K62: =ROUND(O62*(1+'Повышение цен'!$C$14),0) -> 3970 | L62: 3970 | O62: 3298
C63: ПЛКСКШ_12040 | E63: ПЛКСКШ | F63: L=1200, S=400, H=35 | K63: =ROUND(O63*(1+'Повышение цен'!$C$14),0) -> 4409 | L63: 4409 | O63: 3663
C64: ПЛКСКШ_15040 | E64: ПЛКСКШ | F64: L=1500, S=400, H=35 | K64: =ROUND(O64*(1+'Повышение цен'!$C$14),0) -> 5072 | L64: 5072 | O64: 4213
C65: ПЛКСКШ_18040 | E65: ПЛКСКШ | F65: L=1800, S=400, H=35 | K65: =ROUND(O65*(1+'Повышение цен'!$C$14),0) -> 5734 | L65: 5734 | O65: 4763
C67: ПЛКСКШ_6050 | E67: ПЛКСКШ | F67: L=600, S=500, H=35 | K67: =ROUND(O67*(1+'Повышение цен'!$C$14),0) -> 3380 | L67: =ROUND(IF($D$4="С НДС",K67*(1-$D$3),K67*(1-$D$3)/1.2),0) -> 3380 | O67: 2808
C68: ПЛКСКШ_8050 | E68: ПЛКСКШ | F68: L=800, S=500, H=35 | K68: =ROUND(O68*(1+'Повышение цен'!$C$14),0) -> 3920 | L68: 3920 | O68: 3256
C69: ПЛКСКШ_10050 | E69: ПЛКСКШ | F69: L=1000, S=500, H=35 | K69: =ROUND(O69*(1+'Повышение цен'!$C$14),0) -> 4459 | L69: 4459 | O69: 3704
C70: ПЛКСКШ_12050 | E70: ПЛКСКШ | F70: L=1200, S=500, H=35 | K70: =ROUND(O70*(1+'Повышение цен'!$C$14),0) -> 4997 | L70: 4997 | O70: 4151
C71: ПЛКСКШ_15050 | E71: ПЛКСКШ | F71: L=1500, S=500, H=35 | K71: =ROUND(O71*(1+'Повышение цен'!$C$14),0) -> 5805 | L71: 5805 | O71: 4822
C72: ПЛКСКШ_18050 | E72: ПЛКСКШ | F72: L=1800, S=500, H=35 | K72: =ROUND(O72*(1+'Повышение цен'!$C$14),0) -> 6611 | L72: 6611 | O72: 5492
C74: Формула расчета цены | M74: Техническое описание
B75: Наимменование | C75: Название | D75: Длина, | E75: Глубина, | F75: Высота | H75: Тип | K75: Базовая цена, | L75: Ваша цена,
D76: мм | E76: мм | F76: мм | H76: полок | K76: руб | L76: руб | M76: =CONCATENATE("шлифованная н/ст, толщина стали полки - 1 мм,","усилена ребром жесткости,",IF(H77=""," сплошная полка,",""),IF(H77="П"," полка перфорированная, ","")," длина ", D77,"мм",", глубина ",E77,"мм"," ,высота ",F77,"мм") -> шлифованная н/ст, толщина стали полки - 1 мм,усилена ребром жесткости, сплошная полка, длина 1500мм, глубина 500мм ,высота 35мм
B77: =UPPER(CONCATENATE(C77,"_",D77/10,E77/10,IF(H77="П","_П",""))) -> ПЛКСКШ_15050 | C77: ПЛКСКШ | D77: 1500 | E77: 500 | F77: 35 | K77: =ROUND((IF(D77>1800,1.05,1)*IF(E77>600,1.05,1)*IF(H77="П",1.15,1)*ROUND(((((((D77*E77*Техно!AI10*0.00001*1.445*Техно!AJ8)*Техно!AJ10)+((D77*150*Техно!AI13*0.00001*Техно!AJ8)*Техно!AJ13)))+(Техно!AJ25*0.1)+((Техно!AJ26+Техно!AJ27)*1)))*1.18/0.65*(0.85+0.6944),0))*1.12*1.1*1.1*(1+'Повышение цен'!$C$14),0) -> 5804 | L77: =ROUND(IF($D$4="С НДС",K77*(1-$D$3),K77*(1-$D$3)/1.2),0) -> 5804
D78: =IF(AND(D77>299,D77<2001),D77,"не производим") -> 1500 | E78: =IF(AND(E77>299,E77<601),E77,"не производим") -> 500 | F78: =IF(AND(#REF!>999,#REF!<2501),#REF!,"не производим") ->  | G78: =IF(I77="",IF(AND(G77>2.99,G77<4.01),G77,"не производим"),IF(I77="СВ",IF(AND(G77>2.99,G77<6.01),G77,"не производим"))) -> не производим
B81: Стойка для стеллажа на прямоугольной трубе (СК Ш)
C83: Артикул | E83: Модель | F83: Наименование | K83: Базовая цена, | L83: Ваша цена, | M83: Техническое описание | O83: Базовая цена,
K84: руб | L84: руб | O84: руб
C85: СТКСКШ_180 | E85: СКТСКШ | F85: L=20, S=40, H=1800 | K85: =ROUND(O85*(1+'Повышение цен'!$C$14),0) -> 2515 | L85: =ROUND(IF($D$4="С НДС",K85*(1-$D$3),K85*(1-$D$3)/1.2),0) -> 2515 | M85: труба 20*40*1,2 мм, шаг крепления полки 150 мм, регулируемые ножки(+/-20мм), | O85: 2089
C86: СТКСКШ_200 | E86: СКТСКШ | F86: L=20, S=40, H=2000 | K86: =ROUND(O86*(1+'Повышение цен'!$C$14),0) -> 2865 | L86: 2865 | O86: 2380
C87: СТКСКШ_220 | E87: СКТСКШ | F87: L=20, S=40, H=2200 | K87: =ROUND(O87*(1+'Повышение цен'!$C$14),0) -> 3229 | L87: =ROUND(IF($D$4="С НДС",K87*(1-$D$3),K87*(1-$D$3)/1.2),0) -> 3229 | O87: 2682
B92: Стеллажи на нерж уголке со сплошной полкой (СК Э, 4)
B94: Изображение | C94: Артикул | F94: Модель | G94: Характеристика номенклатуры | K94: Базовая цена, | L94: Ваша цена, | M94: Техническое описание | O94: Базовая цена,
K95: руб | L95: руб | O95: руб
C96: СКЭ_4040180_4 | F96: СКЭ | G96: L=400, S=400, H=1800, 4 | K96: =ROUND(O96*(1+'Повышение цен'!$C$15),0) -> 12398 | L96: =ROUND(IF($D$4="С НДС",K96*(1-$D$3),K96*(1-$D$3)/1.22),0) -> 12398 | M96: н/ст, толщина стали нержавеющей полки - 0,8 мм, разборная конструкция, каркас - нерж уголок 40*40*1,5 мм, Hполки -35 мм, полка сплошная, 4 шт, шаг крепления полки 100 мм, регулируемые ножки(+/-20мм), | O96: 10299
C97: СКЭ_6040180_4 | F97: СКЭ | G97: L=600, S=400, H=1800, 4 | K97: =ROUND(O97*(1+'Повышение цен'!$C$15),0) -> 13668 | L97: =ROUND(IF($D$4="С НДС",K97*(1-$D$3),K97*(1-$D$3)/1.22),0) -> 13668 | O97: 11354
C98: СКЭ_8040180_4 | F98: СКЭ | G98: L=800, S=400, H=1800, 4 | K98: =ROUND(O98*(1+'Повышение цен'!$C$15),0) -> 14941 | L98: 14941 | O98: 12412
C99: СКЭ_10040180_4 | F99: СКЭ | G99: L=1000, S=400, H=1800, 4 | K99: =ROUND(O99*(1+'Повышение цен'!$C$15),0) -> 16211 | L99: 16211 | O99: 13467
C100: СКЭ_12040180_4 | F100: СКЭ | G100: L=1200, S=400, H=1800, 4 | K100: =ROUND(O100*(1+'Повышение цен'!$C$15),0) -> 17482 | L100: 17482 | O100: 14523
C101: СКЭ_15040180_4 | F101: СКЭ | G101: L=1500, S=400, H=1800, 4 | K101: =ROUND(O101*(1+'Повышение цен'!$C$15),0) -> 19389 | L101: 19389 | O101: 16107
C102: СКЭ_18040180_4 | F102: СКЭ | G102: L=1800, S=400, H=1800, 4 | K102: =ROUND(O102*(1+'Повышение цен'!$C$15),0) -> 21296 | L102: 21296 | O102: 17691
C104: СКЭ_4050180_4 | F104: СКЭ | G104: L=400, S=500, H=1800, 4 | K104: =ROUND(O104*(1+'Повышение цен'!$C$15),0) -> 12998 | L104: =ROUND(IF($D$4="С НДС",K104*(1-$D$3),K104*(1-$D$3)/1.22),0) -> 12998 | O104: 10798
C105: СКЭ_6050180_4 | F105: СКЭ | G105: L=600, S=500, H=1800, 4 | K105: =ROUND(O105*(1+'Повышение цен'!$C$15),0) -> 14574 | L105: 14574 | O105: 12107
C106: СКЭ_8050180_4 | F106: СКЭ | G106: L=800, S=500, H=1800, 4 | K106: =ROUND(O106*(1+'Повышение цен'!$C$15),0) -> 16144 | L106: 16144 | O106: 13411
C107: СКЭ_10050180_4 | F107: СКЭ | G107: L=1000, S=500, H=1800, 4 | K107: =ROUND(O107*(1+'Повышение цен'!$C$15),0) -> 17716 | L107: 17716 | O107: 14717
C108: СКЭ_12050180_4 | F108: СКЭ | G108: L=1200, S=500, H=1800, 4 | K108: =ROUND(O108*(1+'Повышение цен'!$C$15),0) -> 19289 | L108: 19289 | O108: 16024
C109: СКЭ_15050180_4 | F109: СКЭ | G109: L=1500, S=500, H=1800, 4 | K109: =ROUND(O109*(1+'Повышение цен'!$C$15),0) -> 21646 | L109: 21646 | O109: 17982
C110: СКЭ_18050180_4 | F110: СКЭ | G110: L=1800, S=500, H=1800, 4 | K110: =ROUND(O110*(1+'Повышение цен'!$C$15),0) -> 24005 | L110: 24005 | O110: 19941
B112: Стеллажи на нерж уголке с перфорированной полкой (СК Э, 4П)
B114: Изображение | C114: Артикул | F114: Модель | G114: Характеристика номенклатуры | K114: Базовая цена, | L114: Ваша цена, | M114: Техническое описание | O114: Базовая цена,
K115: руб | L115: руб | O115: руб
C116: СКЭ_4040180_4П | F116: СКЭ | G116: L=400, S=400, H=1800, 4П | K116: =ROUND(O116*(1+'Повышение цен'!$C$15),0) -> 13863 | L116: =ROUND(IF($D$4="С НДС",K116*(1-$D$3),K116*(1-$D$3)/1.22),0) -> 13863 | M116: н/ст, толщина стали нержавеющей полки - 0,8 мм, разборная конструкция, каркас - нерж уголок 40*40*1,5 мм, Hполки -35 мм, полка перфорированная, 4 шт, шаг крепления полки 100 мм, регулируемые ножки(+/-20мм), | O116: 11516
C117: СКЭ_6040180_4П | F117: СКЭ | G117: L=600, S=400, H=1800, 4П | K117: =ROUND(O117*(1+'Повышение цен'!$C$15),0) -> 15134 | L117: 15134 | O117: 12572
C118: СКЭ_8040180_4П | F118: СКЭ | G118: L=800, S=400, H=1800, 4П | K118: =ROUND(O118*(1+'Повышение цен'!$C$15),0) -> 16405 | L118: 16405 | O118: 13628
C119: СКЭ_10040180_4П | F119: СКЭ | G119: L=1000, S=400, H=1800, 4П | K119: =ROUND(O119*(1+'Повышение цен'!$C$15),0) -> 17676 | L119: 17676 | O119: 14684
C120: СКЭ_12040180_4П | F120: СКЭ | G120: L=1200, S=400, H=1800, 4П | K120: =ROUND(O120*(1+'Повышение цен'!$C$15),0) -> 18949 | L120: 18949 | O120: 15741
C121: СКЭ_15040180_4П | F121: СКЭ | G121: L=1500, S=400, H=1800, 4П | K121: =ROUND(O121*(1+'Повышение цен'!$C$15),0) -> 20855 | L121: 20855 | O121: 17325
C122: СКЭ_18040180_4П | F122: СКЭ | G122: L=1800, S=400, H=1800, 4П | K122: =ROUND(O122*(1+'Повышение цен'!$C$15),0) -> 22762 | L122: 22762 | O122: 18909
C124: СКЭ_4050180_4П | F124: СКЭ | G124: L=400, S=500, H=1800, 4П | K124: =ROUND(O124*(1+'Повышение цен'!$C$15),0) -> 14465 | L124: =ROUND(IF($D$4="С НДС",K124*(1-$D$3),K124*(1-$D$3)/1.22),0) -> 14465 | O124: 12016
C125: СКЭ_6050180_4П | F125: СКЭ | G125: L=600, S=500, H=1800, 4П | K125: =ROUND(O125*(1+'Повышение цен'!$C$15),0) -> 16037 | L125: 16037 | O125: 13322
C126: СКЭ_8050180_4П | F126: СКЭ | G126: L=800, S=500, H=1800, 4П | K126: =ROUND(O126*(1+'Повышение цен'!$C$15),0) -> 17609 | L126: 17609 | O126: 14628
C127: СКЭ_10050180_4П | F127: СКЭ | G127: L=1000, S=500, H=1800, 4П | K127: =ROUND(O127*(1+'Повышение цен'!$C$15),0) -> 19181 | L127: 19181 | O127: 15934
C128: СКЭ_12050180_4П | F128: СКЭ | G128: L=1200, S=500, H=1800, 4П | K128: =ROUND(O128*(1+'Повышение цен'!$C$15),0) -> 20753 | L128: 20753 | O128: 17240
C129: СКЭ_15050180_4П | F129: СКЭ | G129: L=1500, S=500, H=1800, 4П | K129: =ROUND(O129*(1+'Повышение цен'!$C$15),0) -> 23114 | L129: 23114 | O129: 19201
C130: СКЭ_18050180_4П | F130: СКЭ | G130: L=1800, S=500, H=1800, 4П | K130: =ROUND(O130*(1+'Повышение цен'!$C$15),0) -> 25472 | L130: 25472 | O130: 21160
C132: Формула расчета цены | M132: Техническое описание
B133: Артикул | C133: Модель | D133: Длина, | E133: Глубина, | F133: Высота | G133: кол-во | H133: Тип | I133: Каркас | J133: Доп. | K133: Базовая цена, | L133: Ваша цена, | M133: Нестандартной модели
D134: мм | E134: мм | F134: мм | G134: полок | H134: полок | I134: раз/св | J134: колеса | K134: руб | L134: руб | M134: =CONCATENATE(" н/ст, толщина стали нержавеющей полки - 0,8 мм,",IF(I135="СВ","сварная конструкция","разборная конструкция"),", каркас - нерж уголок 40*40*1,5 мм, Hполки - 35 мм, ",IF(H135=""," сплошная полка, ",""),IF(H135="П"," полка перфорированная, ",""),G135," шт, ",IF(J135="К",", 4 колеса(2 с тормозом)","регулируемые ножки(+/-20мм)"),", длина ", D135,"мм",", глубина ",E135,"мм"," ,высота ",F135,"мм") -> н/ст, толщина стали нержавеющей полки - 0,8 мм,разборная конструкция, каркас - нерж уголок 40*40*1,5 мм, Hполки - 35 мм, сплошная полка, 4 шт, регулируемые ножки(+/-20мм), длина 400мм, глубина 400мм ,высота 1800мм
B135: =UPPER(CONCATENATE(C135,"_",D135/10,E135/10,F135/10,"_",G135,H135,I135,J135)) -> СКЭ_4040180_4 | C135: СКЭ | D135: 400 | E135: 400 | F135: 1800 | G135: 4 | K135: =ROUND((K136*IF(D136>1800,1.05,1)*IF(E136>600,1.05,1)*IF(F136>1850,1.05,1)+IF(J135="К",6000,0))*1.1*1.1*1.1*(1+'Повышение цен'!$C$15),0) -> 12398 | L135: =ROUND(IF($D$4="С НДС",K135*(1-$D$3),K135*(1-$D$3)/1.22),0) -> 12398
D136: =IF(AND(D135>299,D135<2001),D135,"не производим") -> 400 | E136: =IF(AND(E135>299,E135<701),E135,"не производим") -> 400 | F136: =IF(AND(F138>999,F138<2001),F138,"не производим") -> 1800 | G136: =IF(I135="",IF(AND(G135>2.99,G135<6.01),G135,"не производим"),IF(I135="СВ",IF(AND(G135>2.99,G135<6.01),G135,"не производим"))) -> 4 | K136: =IF(H135="",IF(I135="",ROUND((((((D136*E136*Техно!AI12*0.00001*1.1*Техно!AJ8)*Техно!AJ12*G136)+((D136*20*G136/4*Техно!AI16*0.00001*Техно!AJ8)*Техно!AJ16*G136*G136)+(F136*Техно!AI14*82*Техно!AJ8*0.00001*1.1*Техно!AJ14*4))*1.18)+(Техно!AJ25*0.5)+((Техно!AJ26+Техно!AJ27)*2*G136/4))*1.18/0.57*(0.85+0.6944),0),IF(I135="СВ",ROUND((((((D136*E136*Техно!AI12*0.00001*1.1*Техно!AJ8)*Техно!AJ12*G136)+((D136*20*G136/4*Техно!AI16*0.00001*Техно!AJ8)*Техно!AJ16*G136*G136)+(F136*Техно!AI14*82*Техно!AJ8*0.00001*1.1*Техно!AJ14*4))*1.18)+(Техно!AJ25*(0.5+0.1))+((Техно!AJ26+Техно!AJ27)*(2+0.2)*G136/4))*1.18/0.57*1.035*(0.85+0.6944),0))),IF(H135="П",IF(I135="",ROUND((((((D136*E136*Техно!AK12*0.00001*1.1*Техно!AL8)*Техно!AL12*G136)+((D136*20*G136/4*Техно!AK16*0.00001*Техно!AL8)*Техно!AL16*G136*G136)+(F136*Техно!AK14*82*Техно!AL8*0.00001*1.1*Техно!AL14*4))*1.18)+(Техно!AL25*0.5)+((Техно!AL26+Техно!AL27)*3*G136/4))*1.18/0.57*(0.85+0.6944),0),IF(I135="СВ",ROUND((((((D136*E136*Техно!AK12*0.00001*1.1*Техно!AL8)*Техно!AL12*G136)+((D136*20*G136/4*Техно!AK16*0.00001*Техно!AL8)*Техно!AL16*G136*G136)+(F136*Техно!AK14*82*Техно!AL8*0.00001*1.1*Техно!AL14*4))*1.18)+(Техно!AL25*(0.5+0.1))+((Техно!AL26+Техно!AL27)*(3+0.5)*G136/4))*1.18/0.57*1.035*(0.85+0.6944),0))))) -> 7738
D137: 300-2000 | E137: 300-700 | F137: 1000-2000 | G137: 3_4 | J137: К | K137: Колеса
F138: =IF(F135=870,850,F135) -> 1800 | I138: СВ | J138: Сварная конструкция
C139: СКЭ | D139: Стеллаж на нерж уголке | H139: П | I139: Перфорированная полка
B143: Стеллажи на оцин уголке со сплошной полкой (СКЦ Э, 4)
B145: Изображение | C145: Артикул | F145: Модель | G145: Характеристика номенклатуры | K145: Базовая цена, | L145: Ваша цена, | M145: Техническое описание | O145: Базовая цена,
K146: руб | L146: руб | O146: руб
C147: СКЦ Э_4040180_4 | F147: СКЦ Э | G147: L=400, S=400, H=1800, 4 | K147: =ROUND(O147*(1+'Повышение цен'!$C$15),0) -> 9382 | L147: =ROUND(IF($D$4="С НДС",K147*(1-$D$3),K147*(1-$D$3)/1.22),0) -> 9382 | M147: н/ст, толщина стали нержавеющей полки - 0,8 мм, разборная конструкция, каркас - оцин уголок 40*40*1,5 мм, Hполки -35 мм, полка сплошная, 4 шт, шаг крепления полки 100 мм, регулируемые ножки(+/-20мм), | O147: 7794
C148: СКЦ Э_6040180_4 | F148: СКЦ Э | G148: L=600, S=400, H=1800, 4 | K148: =ROUND(O148*(1+'Повышение цен'!$C$15),0) -> 10531 | L148: =ROUND(IF($D$4="С НДС",K148*(1-$D$3),K148*(1-$D$3)/1.22),0) -> 10531 | O148: 8748
C149: СКЦ Э_8040180_4 | F149: СКЦ Э | G149: L=800, S=400, H=1800, 4 | K149: =ROUND(O149*(1+'Повышение цен'!$C$15),0) -> 11677 | L149: 11677 | O149: 9700
C150: СКЦ Э_10040180_4 | F150: СКЦ Э | G150: L=1000, S=400, H=1800, 4 | K150: =ROUND(O150*(1+'Повышение цен'!$C$15),0) -> 12825 | L150: 12825 | O150: 10654
C151: СКЦ Э_12040180_4 | F151: СКЦ Э | G151: L=1200, S=400, H=1800, 4 | K151: =ROUND(O151*(1+'Повышение цен'!$C$15),0) -> 13973 | L151: 13973 | O151: 11608
C152: СКЦ Э_15040180_4 | F152: СКЦ Э | G152: L=1500, S=400, H=1800, 4 | K152: =ROUND(O152*(1+'Повышение цен'!$C$15),0) -> 15696 | L152: 15696 | O152: 13039
C153: СКЦ Э_18040180_4 | F153: СКЦ Э | G153: L=1800, S=400, H=1800, 4 | K153: =ROUND(O153*(1+'Повышение цен'!$C$15),0) -> 17417 | L153: 17417 | O153: 14469
C155: СКЦ Э_4050180_4 | F155: СКЦ Э | G155: L=400, S=500, H=1800, 4 | K155: =ROUND(O155*(1+'Повышение цен'!$C$15),0) -> 9926 | L155: =ROUND(IF($D$4="С НДС",K155*(1-$D$3),K155*(1-$D$3)/1.22),0) -> 9926 | O155: 8246
C156: СКЦ Э_6050180_4 | F156: СКЦ Э | G156: L=600, S=500, H=1800, 4 | K156: =ROUND(O156*(1+'Повышение цен'!$C$15),0) -> 11344 | L156: 11344 | O156: 9424
C157: СКЦ Э_8050180_4 | F157: СКЦ Э | G157: L=800, S=500, H=1800, 4 | K157: =ROUND(O157*(1+'Повышение цен'!$C$15),0) -> 12764 | L157: 12764 | O157: 10603
C158: СКЦ Э_10050180_4 | F158: СКЦ Э | G158: L=1000, S=500, H=1800, 4 | K158: =ROUND(O158*(1+'Повышение цен'!$C$15),0) -> 14185 | L158: 14185 | O158: 11784
C159: СКЦ Э_12050180_4 | F159: СКЦ Э | G159: L=1200, S=500, H=1800, 4 | K159: =ROUND(O159*(1+'Повышение цен'!$C$15),0) -> 15605 | L159: 15605 | O159: 12963
C160: СКЦ Э_15050180_4 | F160: СКЦ Э | G160: L=1500, S=500, H=1800, 4 | K160: =ROUND(O160*(1+'Повышение цен'!$C$15),0) -> 17735 | L160: 17735 | O160: 14733
C161: СКЦ Э_18050180_4 | F161: СКЦ Э | G161: L=1800, S=500, H=1800, 4 | K161: =ROUND(O161*(1+'Повышение цен'!$C$15),0) -> 19861 | L161: 19861 | O161: 16499
B163: Стеллажи на оцин уголке с перфорированной полкой (СКЦ Э, 4П)
B165: Изображение | C165: Артикул | F165: Модель | G165: Характеристика номенклатуры | K165: Базовая цена, | L165: Ваша цена, | M165: Техническое описание | O165: Базовая цена,
K166: руб | L166: руб | O166: руб
C167: СКЦ Э_4040180_4П | F167: СКЦ Э | G167: L=400, S=400, H=1800, 4П | K167: =ROUND(O167*(1+'Повышение цен'!$C$15),0) -> 10308 | L167: =ROUND(IF($D$4="С НДС",K167*(1-$D$3),K167*(1-$D$3)/1.22),0) -> 10308 | M167: н/ст, толщина стали нержавеющей полки - 0,8 мм, разборная конструкция, каркас - оцин уголок 40*40*1,5 мм, Hполки -35 мм, полка перфорированная, 4 шт, шаг крепления полки 100 мм, регулируемые ножки(+/-20мм), | O167: 8563
C168: СКЦ Э_6040180_4П | F168: СКЦ Э | G168: L=600, S=400, H=1800, 4П | K168: =ROUND(O168*(1+'Повышение цен'!$C$15),0) -> 11455 | L168: 11455 | O168: 9516
C169: СКЦ Э_8040180_4П | F169: СКЦ Э | G169: L=800, S=400, H=1800, 4П | K169: =ROUND(O169*(1+'Повышение цен'!$C$15),0) -> 12604 | L169: 12604 | O169: 10470
C170: СКЦ Э_10040180_4П | F170: СКЦ Э | G170: L=1000, S=400, H=1800, 4П | K170: =ROUND(O170*(1+'Повышение цен'!$C$15),0) -> 13751 | L170: 13751 | O170: 11423
C171: СКЦ Э_12040180_4П | F171: СКЦ Э | G171: L=1200, S=400, H=1800, 4П | K171: =ROUND(O171*(1+'Повышение цен'!$C$15),0) -> 14898 | L171: 14898 | O171: 12376
C172: СКЦ Э_15040180_4П | F172: СКЦ Э | G172: L=1500, S=400, H=1800, 4П | K172: =ROUND(O172*(1+'Повышение цен'!$C$15),0) -> 16622 | L172: 16622 | O172: 13808
C173: СКЦ Э_18040180_4П | F173: СКЦ Э | G173: L=1800, S=400, H=1800, 4П | K173: =ROUND(O173*(1+'Повышение цен'!$C$15),0) -> 18344 | L173: 18344 | O173: 15239
C175: СКЦ Э_4050180_4П | F175: СКЦ Э | G175: L=400, S=500, H=1800, 4П | K175: =ROUND(O175*(1+'Повышение цен'!$C$15),0) -> 10852 | L175: =ROUND(IF($D$4="С НДС",K175*(1-$D$3),K175*(1-$D$3)/1.22),0) -> 10852 | O175: 9015
C176: СКЦ Э_6050180_4П | F176: СКЦ Э | G176: L=600, S=500, H=1800, 4П | K176: =ROUND(O176*(1+'Повышение цен'!$C$15),0) -> 12271 | L176: 12271 | O176: 10194
C177: СКЦ Э_8050180_4П | F177: СКЦ Э | G177: L=800, S=500, H=1800, 4П | K177: =ROUND(O177*(1+'Повышение цен'!$C$15),0) -> 13689 | L177: 13689 | O177: 11372
C178: СКЦ Э_10050180_4П | F178: СКЦ Э | G178: L=1000, S=500, H=1800, 4П | K178: =ROUND(O178*(1+'Повышение цен'!$C$15),0) -> 15110 | L178: 15110 | O178: 12552
C179: СКЦ Э_12050180_4П | F179: СКЦ Э | G179: L=1200, S=500, H=1800, 4П | K179: =ROUND(O179*(1+'Повышение цен'!$C$15),0) -> 16530 | L179: 16530 | O179: 13732
C180: СКЦ Э_15050180_4П | F180: СКЦ Э | G180: L=1500, S=500, H=1800, 4П | K180: =ROUND(O180*(1+'Повышение цен'!$C$15),0) -> 18660 | L180: 18660 | O180: 15501
C181: СКЦ Э_18050180_4П | F181: СКЦ Э | G181: L=1800, S=500, H=1800, 4П | K181: =ROUND(O181*(1+'Повышение цен'!$C$15),0) -> 20787 | L181: 20787 | O181: 17268
C183: Формула расчета цены | M183: Техническое описание
B184: Артикул | C184: Модель | D184: Длина, | E184: Глубина, | F184: Высота | G184: кол-во | H184: Тип | I184: Доп | J184: Доп. | K184: Базовая цена, | L184: Ваша цена, | M184: Нестандартной модели
D185: мм | E185: мм | F185: мм | G185: полок | H185: полок | I185: опция | J185: колеса | K185: руб | L185: руб | M185: =CONCATENATE(" н/ст, толщина стали нержавеющей полки - 0,8 мм,",IF(I186="СВ","сварная конструкция","разборная конструкция"),", каркас - оцинк уголок 40*40*1,5 мм, Hполки - 35 мм, ",IF(H186=""," сплошная полка, ",""),IF(H186="П"," полка перфорированная, ",""),G186," шт, ",IF(J186="К",", 4 колеса(2 с тормозом)","регулируемые ножки(+/-20мм)"),", длина ", D186,"мм",", глубина ",E186,"мм"," ,высота ",F186,"мм") -> н/ст, толщина стали нержавеющей полки - 0,8 мм,разборная конструкция, каркас - оцинк уголок 40*40*1,5 мм, Hполки - 35 мм, сплошная полка, 4 шт, регулируемые ножки(+/-20мм), длина 1500мм, глубина 700мм ,высота 1800мм
B186: =UPPER(CONCATENATE(C186,"_",D186/10,E186/10,F186/10,"_",G186,H186,I186,J186)) -> СКЦ Э_15070180_4 | C186: СКЦ Э | D186: 1500 | E186: 700 | F186: 1800 | G186: 4 | K186: =ROUND((K187*IF(D187>1800,1.05,1)*IF(E187>600,1.05,1)*IF(F187>1850,1.05,1)+IF(J186="К",6000,0))*1.05*1.1*1.15*(1+'Повышение цен'!$C$15),0) -> 22900 | L186: =ROUND(IF($D$4="С НДС",K186*(1-$D$3),K186*(1-$D$3)/1.22),0) -> 22900
D187: =IF(AND(D186>299,D186<2001),D186,"не производим") -> 1500 | E187: =IF(AND(E186>299,E186<701),E186,"не производим") -> 700 | F187: =IF(AND(F189>999,F189<2001),F189,"не производим") -> 1800 | G187: =IF(I186="",IF(AND(G186>2.99,G186<6.01),G186,"не производим"),IF(I186="СВ",IF(AND(G186>2.99,G186<6.01),G186,"не производим"))) -> 4 | K187: =IF(H186="",ROUND((((((D187*E187*Техно!AI12*0.00001*1.1*Техно!AJ8)*Техно!AJ12*G187)+((D187*20*G187/4*Техно!AI16*0.00001*Техно!AJ8)*Техно!AJ16*G187*G187)+(F187*Техно!AI15*82*Техно!AJ8*0.00001*1.1*Техно!AJ15*4))*1.18)+(Техно!AJ25*0.5)+((Техно!AJ26+Техно!AJ27)*2*G187/4))*1.18/0.63*(0.85+0.6944),0),IF(H186="П",ROUND((((((D187*E187*Техно!AK12*0.00001*1.1*Техно!AL8)*Техно!AL12*G187)+((D187*20*G187/4*Техно!AK16*0.00001*Техно!AL8)*Техно!AL16*G187*G187)+(F187*Техно!AK15*82*Техно!AL8*0.00001*1.1*Техно!AL15*4))*1.18)+(Техно!AL25*0.5)+((Техно!AL26+Техно!AL27)*2.7*G187/4))*1.18/0.63*(0.85+0.6944),0))) -> 13640
D188: 300-2000 | E188: 300-700 | F188: 1000-2000 | G188: 3_6 | J188: К | K188: Колеса
F189: =IF(F186=870,850,F186) -> 1800
C190: СКЦ Э | D190: Стеллаж на оцин уголке | H190: П | I190: Перфорированная полка
B194: Сплошная полка для стеллажа на уголке (СК Э/СКЦ Э)
B196: Артикул | C196: Артикул | E196: Модель | F196: Наименование | K196: Базовая цена, | L196: Ваша цена, | M196: Техническое описание | O196: Базовая цена,
K197: руб | L197: руб | O197: руб
C198: ПЛКСК_6040 | E198: ПЛКСК | F198: L=600, S=400, H=35 | K198: =ROUND(O198*(1+'Повышение цен'!$C$15),0) -> 2427 | L198: =ROUND(IF($D$4="С НДС",K198*(1-$D$3),K198*(1-$D$3)/1.22),0) -> 2427 | M198: н/ст, толщина нержавеющей стали полки - 0,8 мм, Hполки -35 мм, полка сплошная, усилена продолным ребром жесткости | O198: 2016
C199: ПЛКСК_8040 | E199: ПЛКСК | F199: L=800, S=400, H=35 | K199: =ROUND(O199*(1+'Повышение цен'!$C$15),0) -> 2771 | L199: 2771 | O199: 2302
C200: ПЛКСК_10040 | E200: ПЛКСК | F200: L=1000, S=400, H=35 | K200: =ROUND(O200*(1+'Повышение цен'!$C$15),0) -> 3119 | L200: 3119 | O200: 2591
C201: ПЛКСК_12040 | E201: ПЛКСК | F201: L=1200, S=400, H=35 | K201: =ROUND(O201*(1+'Повышение цен'!$C$15),0) -> 3466 | L201: 3466 | O201: 2879
C202: ПЛКСК_15040 | E202: ПЛКСК | F202: L=1500, S=400, H=35 | K202: =ROUND(O202*(1+'Повышение цен'!$C$15),0) -> 3986 | L202: 3986 | O202: 3311
C203: ПЛКСК_18040 | E203: ПЛКСК | F203: L=1800, S=400, H=35 | K203: =ROUND(O203*(1+'Повышение цен'!$C$15),0) -> 4503 | L203: 4503 | O203: 3741
C205: ПЛКСК_6050 | E205: ПЛКСК | F205: L=600, S=500, H=35 | K205: =ROUND(O205*(1+'Повышение цен'!$C$15),0) -> 2656 | L205: =ROUND(IF($D$4="С НДС",K205*(1-$D$3),K205*(1-$D$3)/1.22),0) -> 2656 | O205: 2206
C206: ПЛКСК_8050 | E206: ПЛКСК | F206: L=800, S=500, H=35 | K206: =ROUND(O206*(1+'Повышение цен'!$C$15),0) -> 3082 | L206: 3082 | O206: 2560
C207: ПЛКСК_10050 | E207: ПЛКСК | F207: L=1000, S=500, H=35 | K207: =ROUND(O207*(1+'Повышение цен'!$C$15),0) -> 3504 | L207: 3504 | O207: 2911
C208: ПЛКСК_12050 | E208: ПЛКСК | F208: L=1200, S=500, H=35 | K208: =ROUND(O208*(1+'Повышение цен'!$C$15),0) -> 3927 | L208: 3927 | O208: 3262
C209: ПЛКСК_15050 | E209: ПЛКСК | F209: L=1500, S=500, H=35 | K209: =ROUND(O209*(1+'Повышение цен'!$C$15),0) -> 4560 | L209: 4560 | O209: 3788
C210: ПЛКСК_18050 | E210: ПЛКСК | F210: L=1800, S=500, H=35 | K210: =ROUND(O210*(1+'Повышение цен'!$C$15),0) -> 5196 | L210: 5196 | O210: 4316

Sheet Полки настольные (hidden)
A1: Нейтральное оборудование/Полки настольные | N1: На главную
A3: Ваша скидка: | D3: =Содержание!C2 -> 0
A4: НДС: | D4: =IF(Лист2!A1=TRUE,"С НДС","БЕЗ НДС") -> С НДС | E4: Складская программа
B7: Полки кухонные настольные со сплошной полкой (ПН Ш)
B9: Изображение | C9: Артикул | F9: Модель | G9: Характеристика номенклатуры | K9: Базовая цена, | L9: Ваша цена, | M9: Техническое описание | O9: Базовая цена,
K10: руб | L10: руб | O10: руб
C11: ПНШ_403030 | F11: ПНШ | G11: L=400, S=300, H=400 | K11: =ROUND(O11*(1+'Повышение цен'!$C$18),0) -> 5129 | L11: =ROUND(IF($D$4="С НДС",K11*(1-$D$3),K11*(1-$D$3)/1.2),0) -> 5129 | M11: шлифованная н/ст, толщина 0,8 мм, сварная конструкция, полка сплошная, каркас из нержавеющей трубы 20*40*1,2 мм, крепление к столешнице в комплекте. | O11: 4261
C12: ПНШ_603030 | F12: ПНШ | G12: L=600, S=300, H=400 | K12: =ROUND(O12*(1+'Повышение цен'!$C$18),0) -> 5535 | L12: 5535 | O12: 4598
C13: ПНШ_803030 | F13: ПНШ | G13: L=800, S=300, H=400 | K13: =ROUND(O13*(1+'Повышение цен'!$C$18),0) -> 5937 | L13: 5937 | O13: 4932
C14: ПНШ_1003030 | F14: ПНШ | G14: L=1000, S=300, H=400 | K14: =ROUND(O14*(1+'Повышение цен'!$C$18),0) -> 6342 | L14: 6342 | O14: 5268
C15: ПНШ_1203030 | F15: ПНШ | G15: L=1200, S=300, H=400 | K15: =ROUND(O15*(1+'Повышение цен'!$C$18),0) -> 6746 | L15: 6746 | O15: 5604
C16: ПНШ_1503030 | F16: ПНШ | G16: L=1500, S=300, H=400 | K16: =ROUND(O16*(1+'Повышение цен'!$C$18),0) -> 7351 | L16: 7351 | O16: 6107
C18: ПНШ_404030 | F18: ПНШ | G18: L=400, S=400, H=400 | K18: =ROUND(O18*(1+'Повышение цен'!$C$18),0) -> 5398 | L18: 5398 | O18: 4484
C19: ПНШ_604030 | F19: ПНШ | G19: L=600, S=400, H=400 | K19: =ROUND(O19*(1+'Повышение цен'!$C$18),0) -> 5937 | L19: 5937 | O19: 4932
C20: ПНШ_804030 | F20: ПНШ | G20: L=800, S=400, H=400 | K20: =ROUND(O20*(1+'Повышение цен'!$C$18),0) -> 6475 | L20: 6475 | O20: 5379
C21: ПНШ_1004030 | F21: ПНШ | G21: L=1000, S=400, H=400 | K21: =ROUND(O21*(1+'Повышение цен'!$C$18),0) -> 7016 | L21: 7016 | O21: 5828
C22: ПНШ_1204030 | F22: ПНШ | G22: L=1200, S=400, H=400 | K22: =ROUND(O22*(1+'Повышение цен'!$C$18),0) -> 7555 | L22: 7555 | O22: 6276
C23: ПНШ_1504030 | F23: ПНШ | G23: L=1500, S=400, H=400 | K23: =ROUND(O23*(1+'Повышение цен'!$C$18),0) -> 8361 | L23: 8361 | O23: 6946
C26: Формула расчета цены | M26: Техническое описание
B27: Артикул | C27: Модель | D27: Кол-во, | E27: Длина, | F27: Глубина, | G27: Высота | K27: Базовая цена, | L27: Ваша цена, | M27: Нестандартной модели
D28: полок | E28: мм | F28: мм | G28: мм | K28: руб | L28: руб | M28: =CONCATENATE("шлифованная н/ст, толщина 0,8 мм,сварная конструкция сплошная полка, ",D32, " шт",", каркас из нержавеющей трубы 20*40*1,2 мм, крепление к столешнице в комплекте", ", длина ", E29,"мм",", глубина ",F29,"мм"," ,высота ",G29,"мм") -> шлифованная н/ст, толщина 0,8 мм,сварная конструкция сплошная полка, 1 шт, каркас из нержавеющей трубы 20*40*1,2 мм, крепление к столешнице в комплекте, длина 1500мм, глубина 400мм ,высота 400мм
B29: =UPPER(CONCATENATE(C29,IF(D29=1,"",D29),"_",E29/10,F29/10,G29/10,IF(H29="У","_",""),H29)) -> ПНШ_1504040 | C29: ПНШ | E29: 1500 | F29: 400 | G29: 400 | K29: =ROUND((K30*IF(E29>1500,1.05,1))*1.1*1.07*1.15*(1+'Повышение цен'!$C$18),0) -> 8362 | L29: =ROUND(IF($D$4="С НДС",K29*(1-$D$3),K29*(1-$D$3)/1.2),0) -> 8362
D30: =IF(AND(D32>0.99,D32<2.01),D32,"не производим") -> 1 | E30: =IF(AND(E29>399,E29<2001),E29,"не производим") -> 1500 | F30: =IF(AND(F29>299,F29<501),F29,"не производим") -> 400 | G30: =IF(D30=1,IF(AND(G29>249,G29<401),G29,"не производим"),IF(D30=2,IF(AND(G29>499,G29<801),G29,"не производим"))) -> 400 | K30: =ROUND(((((((E30*F30*Техно!AO10*Техно!AP8*0.00001)*1.3*Техно!AP10*D30)+(G30*4*0.001*Техно!AP18*1.1))*1.18)+Техно!AP25*0.2*D30+(Техно!AP26+Техно!AP27)*0.85*D30)*1.18/0.5*(0.85+0.6944)),0) -> 5132
D31: 1_2 | E31: 400-2000 | F31: 300-600 | G31: =IF(D32=1,"250-400",IF(D32=2,"500-800","ошибка")) -> 250-400
D32: =IF(D29="",1,D29) -> 1
C33: ПНШ | D33: полка со сплошной полкой

Sheet Полки навесные открытые
A1: Нейтральное оборудование/Полки навесные открытые | N1: На главную
A3: Ваша скидка: | D3: =Содержание!C2 -> 0
A4: НДС: | D4: =IF(Лист2!A1=TRUE,"С НДС","БЕЗ НДС") -> С НДС
B7: Полки кухонные навесные со сплошной полкой (ПК Ш)
B9: Изображение | C9: Артикул | F9: Модель | G9: Характеристика номенклатуры | K9: Базовая цена, | L9: Ваша цена, | M9: Техническое описание | O9: Базовая цена,
K10: руб | L10: руб | O10: руб
C11: ПКШ_403030 | F11: ПКШ | G11: L=400, S=300, H=300 | K11: =ROUND(O11*(1+'Повышение цен'!$C$16),0) -> 2564 | L11: =ROUND(IF($D$4="С НДС",K11*(1-$D$3),K11*(1-$D$3)/1.22),0) -> 2564 | M11: шлифованная н/ст, толщина 0,8 мм, разборная конструкция,полка сплошная,кронштейны типа"косынка",настенное крепление | O11: 2130
C12: ПКШ_603030 | F12: ПКШ | G12: L=600, S=300, H=300 | K12: =ROUND(O12*(1+'Повышение цен'!$C$16),0) -> 2905 | L12: =ROUND(IF($D$4="С НДС",K12*(1-$D$3),K12*(1-$D$3)/1.22),0) -> 2905 | O12: 2413
C13: ПКШ_803030 | F13: ПКШ | G13: L=800, S=300, H=300 | K13: =ROUND(O13*(1+'Повышение цен'!$C$16),0) -> 3243 | L13: 3243 | O13: 2694
C14: ПКШ_1003030 | F14: ПКШ | G14: L=1000, S=300, H=300 | K14: =ROUND(O14*(1+'Повышение цен'!$C$16),0) -> 3584 | L14: 3584 | O14: 2977
C15: ПКШ_1203030 | F15: ПКШ | G15: L=1200, S=300, H=300 | K15: =ROUND(O15*(1+'Повышение цен'!$C$16),0) -> 3924 | L15: 3924 | O15: 3260
C16: ПКШ_1503030 | F16: ПКШ | G16: L=1500, S=300, H=300 | K16: =ROUND(O16*(1+'Повышение цен'!$C$16),0) -> 4435 | L16: 4435 | O16: 3684
C18: ПКШ_404030 | F18: ПКШ | G18: L=400, S=400, H=300 | K18: =ROUND(O18*(1+'Повышение цен'!$C$16),0) -> 3074 | L18: =ROUND(IF($D$4="С НДС",K18*(1-$D$3),K18*(1-$D$3)/1.22),0) -> 3074 | O18: 2554
C19: ПКШ_604030 | F19: ПКШ | G19: L=600, S=400, H=300 | K19: =ROUND(O19*(1+'Повышение цен'!$C$16),0) -> 3529 | L19: 3529 | O19: 2932
C20: ПКШ_804030 | F20: ПКШ | G20: L=800, S=400, H=300 | K20: =ROUND(O20*(1+'Повышение цен'!$C$16),0) -> 3983 | L20: 3983 | O20: 3309
C21: ПКШ_1004030 | F21: ПКШ | G21: L=1000, S=400, H=300 | K21: =ROUND(O21*(1+'Повышение цен'!$C$16),0) -> 4436 | L21: 4436 | O21: 3685
C22: ПКШ_1204030 | F22: ПКШ | G22: L=1200, S=400, H=300 | K22: =ROUND(O22*(1+'Повышение цен'!$C$16),0) -> 4890 | L22: 4890 | O22: 4062
C23: ПКШ_1504030 | F23: ПКШ | G23: L=1500, S=400, H=300 | K23: =ROUND(O23*(1+'Повышение цен'!$C$16),0) -> 5571 | L23: 5571 | O23: 4628
B25: Полки кухонные навесные с перфорированной полкой (ПКП Ш)
B27: Изображение | C27: Артикул | F27: Модель | G27: Характеристика номенклатуры | K27: Базовая цена, | L27: Ваша цена, | M27: Техническое описание | O27: Базовая цена,
K28: руб | L28: руб | O28: руб
C29: ПКПШ_403030 | F29: ПКПШ | G29: L=400, S=300, H=300 | K29: =ROUND(O29*(1+'Повышение цен'!$C$16),0) -> 3147 | L29: =ROUND(IF($D$4="С НДС",K29*(1-$D$3),K29*(1-$D$3)/1.22),0) -> 3147 | M29: шлифованная н/ст, толщина 0,8 мм, разборная конструкция,полка перфорированная,кронштейны типа"косынка",настенное крепление | O29: 2614
C30: ПКПШ_603030 | F30: ПКПШ | G30: L=600, S=300, H=300 | K30: =ROUND(O30*(1+'Повышение цен'!$C$16),0) -> 3473 | L30: 3473 | O30: 2885
C31: ПКПШ_803030 | F31: ПКПШ | G31: L=800, S=300, H=300 | K31: =ROUND(O31*(1+'Повышение цен'!$C$16),0) -> 3799 | L31: 3799 | O31: 3156
C32: ПКПШ_1003030 | F32: ПКПШ | G32: L=1000, S=300, H=300 | K32: =ROUND(O32*(1+'Повышение цен'!$C$16),0) -> 4125 | L32: 4125 | O32: 3427
C33: ПКПШ_1203030 | F33: ПКПШ | G33: L=1200, S=300, H=300 | K33: =ROUND(O33*(1+'Повышение цен'!$C$16),0) -> 4450 | L33: 4450 | O33: 3697
C34: ПКПШ_1503030 | F34: ПКПШ | G34: L=1500, S=300, H=300 | K34: =ROUND(O34*(1+'Повышение цен'!$C$16),0) -> 4939 | L34: 4939 | O34: 4103
C36: ПКПШ_404030 | F36: ПКПШ | G36: L=400, S=400, H=300 | K36: =ROUND(O36*(1+'Повышение цен'!$C$16),0) -> 3638 | L36: =ROUND(IF($D$4="С НДС",K36*(1-$D$3),K36*(1-$D$3)/1.22),0) -> 3638 | O36: 3022
C37: ПКПШ_604030 | F37: ПКПШ | G37: L=600, S=400, H=300 | K37: =ROUND(O37*(1+'Повышение цен'!$C$16),0) -> 4072 | L37: 4072 | O37: 3383
C38: ПКПШ_804030 | F38: ПКПШ | G38: L=800, S=400, H=300 | K38: =ROUND(O38*(1+'Повышение цен'!$C$16),0) -> 4506 | L38: 4506 | O38: 3743
C39: ПКПШ_1004030 | F39: ПКПШ | G39: L=1000, S=400, H=300 | K39: =ROUND(O39*(1+'Повышение цен'!$C$16),0) -> 4940 | L39: 4940 | O39: 4104
C40: ПКПШ_1204030 | F40: ПКПШ | G40: L=1200, S=400, H=300 | K40: =ROUND(O40*(1+'Повышение цен'!$C$16),0) -> 5376 | L40: 5376 | O40: 4466
C41: ПКПШ_1504030 | F41: ПКПШ | G41: L=1500, S=400, H=300 | K41: =ROUND(O41*(1+'Повышение цен'!$C$16),0) -> 6026 | L41: 6026 | O41: 5006
C43: Формула расчета цены | M43: Техническое описание
B44: Артикул | C44: Модель | D44: Кол-во, | E44: Длина, | F44: Глубина, | G44: Высота | H44: Усиленная | K44: Базовая цена, | L44: Ваша цена, | M44: Нестандартной модели
D45: полок | E45: мм | F45: мм | G45: мм | H45: кострукция | K45: руб | L45: руб | M45: =CONCATENATE("шлифованная н/ст, толщина 0,8 мм,разборная конструкция, ",IF(C46="ПКШ","сплошная полка ",""),IF(C46="ПКПШ","перфорированная полка ",""),D47, "шт",IF(H46="У","усиленная конструкция",""), ", длина ", E46,"мм",", глубина ",F46,"мм"," ,высота ",G46,"мм") -> шлифованная н/ст, толщина 0,8 мм,разборная конструкция, перфорированная полка 1шт, длина 1500мм, глубина 400мм ,высота 300мм
B46: =UPPER(CONCATENATE(C46,IF(D46=1,"",D46),"_",E46/10,F46/10,G46/10,IF(H46="У","_",""),H46)) -> ПКПШ_1504030 | C46: ПКПШ | E46: 1500 | F46: 400 | G46: 300 | K46: =ROUND((K47*IF(E47>1500,1.05,1)*IF(F47>400,1.05,1)*IF(G47>300,1.05,1))*1.05*1.07*1.1*(1+'Повышение цен'!$C$16),0) -> 6027 | L46: =ROUND(IF($D$4="С НДС",K46*(1-$D$3),K46*(1-$D$3)/1.2),0) -> 6027
D47: =IF(AND(D49>0.99,D49<2.01),D49,"не производим") -> 1 | E47: =IF(AND(E46>399,E46<2001),E46,"не производим") -> 1500 | F47: =IF(AND(F46>299,F46<601),F46,"не производим") -> 400 | G47: =IF(D47=1,IF(AND(G46>159,G46<301),G46,"не производим"),IF(D47=2,IF(AND(G46>499,G46<601),G46,"не производим"))) -> 300 | K47: =IF(C46="ПКШ",IF(H46="",ROUND(((((((E47*F47*Техно!AM11*Техно!AN8*0.00001)*1.25)+((F47*G47*Техно!AM11*Техно!AN8*0.00001)*2.1))*1.18*Техно!AN11*D47)+Техно!AN25*0.05+(Техно!AN26+Техно!AN27)*0.7*0.6*1/D47/D47)*1.18/0.45*(0.85+0.6944)),0),IF(H46="У",ROUND(((((((E47*F47*Техно!AM11*Техно!AN8*0.00001)*1.5)+((F47*G47*Техно!AM11*Техно!AN8*0.00001)*2.5))*1.18*Техно!AN11*D47)+Техно!AN25*0.05+(Техно!AN26+Техно!AN27)*0.7*2.5*0.6*1/D47/D47)*1.18/0.45*(0.85+0.6944)),0))),IF(C46="ПКПШ",IF(H46="",ROUND(((((((E47*F47*Техно!AM11*Техно!AN8*0.00001)*1.25)+((F47*G47*Техно!AM11*Техно!AN8*0.00001)*2.1))*1.18*Техно!AN11*D47)+Техно!AN25*0.05+(Техно!AN26+Техно!AN27)*0.7*0.6*2)*1.18/0.47*(0.85+0.6944)),0),IF(H46="У",ROUND(((((((E47*F47*Техно!AM11*Техно!AN8*0.00001)*1.5)+((F47*G47*Техно!AM11*Техно!AN8*0.00001)*2.5))*1.18*Техно!AN11*D47)+Техно!AN25*0.05+(Техно!AN26+Техно!AN27)*0.7*0.6*2)*1.18/0.47*(0.85+0.6944)),0))))) -> 4051
D48: 1_2 | E48: 400-2000 | F48: 300-600 | G48: =IF(D49=1,"250-300",IF(D49=2,"500-600","ошибка")) -> 250-300
D49: =IF(D46="",1,D46) -> 1
